Workbook

Sheet fdm
B1: 1 | I1: =IF(ISBLANK(H4),0,1) -> 0 | X1: 1 | Y1: =C3&D3&E3 -> AC Ajaccio-Troyes | Z1: =Accueil!H33 -> Lens | AF1: =Z18 ->  | AH1: 1 | AI1: Général | AJ1: 1 | AK1: 1 | AM1: 1 | AN1: Général | AO1: 1 | AP1: 1
B2: 1 | C2: Equipes à domicile | E2: Equipes à l'extérieur | X2: =X1+50 -> 51 | Y2: =C4&D4&E4 -> GFCO Ajaccio-Paris FC | AF2: =Z24 ->  | AH2: 2 | AI2: Domicile | AJ2: =VLOOKUP(AJ1,AH1:AK10,4,FALSE) -> 1 | AK2: 4 | AM2: 2 | AN2: Domicile | AO2: =VLOOKUP(AO1,AM1:AP10,4,FALSE) -> 1 | AP2: 4
B3: 1 | C3: =IF(ISNA(VLOOKUP(X1,class!B2:F381,3,0)),"",VLOOKUP(X1,class!B2:F381,3,0)) -> AC Ajaccio | D3: - | E3: =IF(ISNA(VLOOKUP(X1,class!B2:F381,5,0)),"",VLOOKUP(X1,class!B2:F381,5,0)) -> Troyes | H3: Choix de la rencontre | L3: STATS GENERALES | X3: =X2+50 -> 101 | Y3: Brest-Metz | AF3: =Z28 ->  | AH3: 3 | AI3: Extérieur | AJ3: =AJ2+1 -> 2 | AK3: 7 | AM3: 3 | AN3: Extérieur | AO3: =AO2+1 -> 2 | AP3: 7
B4: 1 | C4: =IF(ISNA(VLOOKUP(X2,class!B3:F382,3,0)),"",VLOOKUP(X2,class!B3:F382,3,0)) -> GFCO Ajaccio | D4: - | E4: =IF(ISNA(VLOOKUP(X2,class!B3:F382,5,0)),"",VLOOKUP(X2,class!B3:F382,5,0)) -> Paris FC | L4: =AC17+AE18+AC27+AE28+AC31+AE32+AC23+AE24+AC36+AE37+AC41+AE42+AC46+AE47+AC51+AE52+AC56+AE57+AC61+AE62+AC66+AE67+AC71+AE72+AC76+AE77+AC81+AE82 -> 0 | M4: =C17 ->  | X4: 151 | Y4: Clermont Foot-Châteauroux | AF4: =Z32 ->  | AJ4: =AJ3+1 -> 3 | AK4: 10 | AO4: =AO3+1 -> 3 | AP4: 10
B5: 1 | C5: =IF(ISNA(VLOOKUP(X3,class!B4:F383,3,0)),"",VLOOKUP(X3,class!B4:F383,3,0)) -> Brest | D5: - | E5: =IF(ISNA(VLOOKUP(X3,class!B4:F383,5,0)),"",VLOOKUP(X3,class!B4:F383,5,0)) -> Metz | L5: =Y19+Y25+Y29+Y33+Y38+Y43+Y48+Y53+Y58+Y63+Y68+Y73+Y78+Y83 -> 0 | X5: 201 | Y5: Grenoble Foot 38-Sochaux | AF5: =Z37 -> 
B6: 1 | C6: =IF(ISNA(VLOOKUP(X4,class!B5:F384,3,0)),"",VLOOKUP(X4,class!B5:F384,3,0)) -> Clermont Foot | D6: - | E6: =IF(ISNA(VLOOKUP(X4,class!B5:F384,5,0)),"",VLOOKUP(X4,class!B5:F384,5,0)) -> Châteauroux | L6: =AE17+AC18+AE27+AC28+AE31+AC32+AE23+AC24+AE36+AC37+AE41+AC42+AE46+AC47+AE51+AC52+AE56+AC57+AC62+AE61+AE66+AC67+AE71+AC72+AE76+AC77+AE81+AC82 -> 0 | M6: =E17 ->  | X6: 251 | Y6: Lorient-Le Havre | AF6: =Z42 -> 
B7: 1 | C7: =IF(ISNA(VLOOKUP(X5,class!B6:F385,3,0)),"",VLOOKUP(X5,class!B6:F385,3,0)) -> Grenoble Foot 38 | D7: - | E7: =IF(ISNA(VLOOKUP(X5,class!B6:F385,5,0)),"",VLOOKUP(X5,class!B6:F385,5,0)) -> Sochaux | I7: Journée N° | J7: =X1 -> 1 | L7: =L6+L5+L4 -> 0 | X7: 301 | Y7: Nancy-AS Béziers | AF7: =Z47 -> 
B8: 1 | C8: =IF(ISNA(VLOOKUP(X6,class!B7:F386,3,0)),"",VLOOKUP(X6,class!B7:F386,3,0)) -> Lorient | D8: - | E8: =IF(ISNA(VLOOKUP(X6,class!B7:F386,5,0)),"",VLOOKUP(X6,class!B7:F386,5,0)) -> Le Havre | L8: Stats pour : | M8: =C17 ->  | X8: 351 | Y8: US Orléans-Lens | AF8: =Z52 -> 
B9: 1 | C9: =IF(ISNA(VLOOKUP(X7,class!B8:F387,3,0)),"",VLOOKUP(X7,class!B8:F387,3,0)) -> Nancy | D9: - | E9: =IF(ISNA(VLOOKUP(X7,class!B8:F387,5,0)),"",VLOOKUP(X7,class!B8:F387,5,0)) -> AS Béziers | L9: =IF(ISNA(VLOOKUP(AJ2,$AI$12:$AJ$21,2,0)),"",VLOOKUP(AJ2,$AI$12:$AJ$21,2,0)) -> 0 | M9: =C17 ->  | X9: 401 | Y9: Red Star 93-Niort | AF9: =Z57 -> 
B10: 1 | C10: =IF(ISNA(VLOOKUP(X8,class!B9:F388,3,0)),"",VLOOKUP(X8,class!B9:F388,3,0)) -> US Orléans | D10: - | E10: =IF(ISNA(VLOOKUP(X8,class!B9:F388,5,0)),"",VLOOKUP(X8,class!B9:F388,5,0)) -> Lens | L10: =IF(ISNA(VLOOKUP(AJ3,$AI$12:$AJ$21,2,0)),"",VLOOKUP(AJ3,$AI$12:$AJ$21,2,0)) -> 0 | X10: 451 | Y10: Valenciennes-Auxerre | AF10: =Z62 -> 
B11: 1 | C11: =IF(ISNA(VLOOKUP(X9,class!B10:F389,3,0)),"",VLOOKUP(X9,class!B10:F389,3,0)) -> Red Star 93 | D11: - | E11: =IF(ISNA(VLOOKUP(X9,class!B10:F389,5,0)),"",VLOOKUP(X9,class!B10:F389,5,0)) -> Niort | L11: =IF(ISNA(VLOOKUP(AJ4,$AI$12:$AJ$21,2,0)),"",VLOOKUP(AJ4,$AI$12:$AJ$21,2,0)) -> 0 | M11: =M9 ->  | AF11: =Z67 -> 
B12: 1 | C12: =IF(ISNA(VLOOKUP(X10,class!B11:F390,3,0)),"",VLOOKUP(X10,class!B11:F390,3,0)) -> Valenciennes | D12: - | E12: =IF(ISNA(VLOOKUP(X10,class!B11:F390,5,0)),"",VLOOKUP(X10,class!B11:F390,5,0)) -> Auxerre | L12: =L11+L10+L9 -> 0 | V12: FALSE | AF12: =SUM(AF1:AF11) -> 0 | AH12: =C17 ->  | AI12: 1 | AJ12: =AC17+AE18+AC27+AE28+AC31+AE32+AC23+AE24+AC36+AE37+AC41+AE42+AC46+AE47+AC51+AE52+AC56+AE57+AC61+AE62+AC66+AE67+AC71+AE72+AC76+AE77+AC81+AE82 -> 0 | AK12: Gagne | AM12: =E17 ->  | AN12: 1 | AO12: =AE17+AC18+AE23+AC24+AE27+AC28+AE31+AC32+AE36+AC37+AE41+AC42+AE46+AC47+AE51+AC52+AE56+AC57+AC62+AE61+AE66+AC67+AE71+AC72+AE76+AC77+AE81+AC82 -> 0 | AP12: Gagne
B13: 1 | L13: Stats pour : | M13: =E17 ->  | V13: =E17&D17&C17 ->  | W13: =IF($V$12=TRUE,V13,"") ->  | AF13: =COUNTIF(AF1:AF12,1) -> 0 | AH13: =AH12 ->  | AI13: 2 | AJ13: =Y19+Y25+Y29+Y33+Y38+Y43+Y48+Y53+Y58+Y63+Y68+Y73+Y78+Y83 -> 0 | AK13: Nul | AM13: =AM12 ->  | AN13: 2 | AO13: =AJ13 -> 0 | AP13: Nul
B14: 1 | C14: Historique depuis : | L14: =IF(ISNA(VLOOKUP(AO2,$AN$12:$AO$20,2,0)),"",VLOOKUP(AO2,$AN$12:$AO$20,2,0)) -> 0 | M14: =M6 ->  | V14: =E27&D27&C27 ->  | W14: =IF($V$12=TRUE,V14,"") ->  | AH14: =AH13 ->  | AI14: 3 | AJ14: =AE17+AC18+AE27+AC28+AE31+AC32+AE23+AC24+AE36+AC37+AE41+AC42+AE46+AC47+AE51+AC52+AE56+AC57+AC62+AE61+AE66+AC67+AE71+AC72+AE76+AC77+AE81+AC82 -> 0 | AK14: Perdu | AM14: =AM13 ->  | AN14: 3 | AO14: =AJ12 -> 0 | AP14: Perdu
C15: =IF(L7=0,"",L7) ->  | E15: Match(es) retour(s) | L15: =IF(ISNA(VLOOKUP(AO3,$AN$12:$AO$20,2,0)),"",VLOOKUP(AO3,$AN$12:$AO$20,2,0)) -> 0 | V15: =E29&D29&C29 ->  | AH15: =AH14 ->  | AI15: 4 | AJ15: =AC17+AC23+AC27+AC31+AC36+AC41+AC46+AC51+AC56+AC61+AC66+AC71+AC76+AC81 -> 0 | AK15: =AK12 -> Gagne | AM15: =AM14 ->  | AN15: 4 | AO15: =AJ20 -> 0 | AP15: =AP12 -> Gagne
B16: Années | C16: Equipes à domicile | D16: - | E16: Equipes à l'extérieur | F16: Scores | L16: =IF(ISNA(VLOOKUP(AO4,$AN$12:$AO$20,2,0)),"",VLOOKUP(AO4,$AN$12:$AO$20,2,0)) -> 0 | M16: =M14 ->  | V16: =E31&D31&C31 ->  | Y16: gagne | Z16: nul | AA16: perdu | AC16: gagne | AD16: nul | AE16: perdu | AI16: 5 | AJ16: =Z19+Z25+Z29+Z33+Z38+Z43+Z48+Z53+Z58+Z63+Z68+Z73+Z78+Z83 -> 0 | AK16: Nul | AN16: 5 | AO16: =AJ19 -> 0 | AP16: Nul
B17: =IF(ISNA(VLOOKUP($H$4,class!$C$2:$J$381,7,0)),"",VLOOKUP($H$4,class!$C$2:$J$381,7,0)) ->  | C17: =IF(ISNA(VLOOKUP($H$4,class!$C$2:$J$381,2,0)),"",VLOOKUP($H$4,class!$C$2:$J$381,2,0)) ->  | D17: =IF(ISNA(VLOOKUP($H$4,class!$C$2:$J$381,3,0)),"",VLOOKUP($H$4,class!$C$2:$J$381,3,0)) ->  | E17: =IF(ISNA(VLOOKUP($H$4,class!$C$2:$J$381,4,0)),"",VLOOKUP($H$4,class!$C$2:$J$381,4,0)) ->  | F17: =IF(ISNA(VLOOKUP($H$4,class!$C$2:$J$381,5,0)),"",VLOOKUP($H$4,class!$C$2:$J$381,5,0)) ->  | G17: =IF(ISNA(VLOOKUP($H$4,class!$C$2:$J$381,3,0)),"",VLOOKUP($H$4,class!$C$2:$J$381,3,0)) ->  | H17: =IF(ISNA(VLOOKUP($H$4,class!$C$2:$J$381,6,0)),"",VLOOKUP($H$4,class!$C$2:$J$381,6,0)) ->  | V17: =E33&D33&C33 ->  | Y17: =IF(ISTEXT(F33),F33,IF(F33="","",IF(F33=H33,"0",IF(F33>H33,"1","0")))) ->  | Z17: =IF(ISTEXT(F33),F33,IF(F33="","",IF(F33=H33,"1",IF(F33>H33,"0","0")))) ->  | AA17: =IF(ISTEXT(F33),F33,IF(F33="","",IF(F33=H33,"0",IF(F33>H33,"0","1")))) ->  | AB17: =M4 ->  | AC17: =COUNTIF(Y17,1) -> 0 | AD17: =COUNTIF(Z17:Z18,1) -> 0 | AE17: 0 | AF17: =AB17 ->  | AI17: 6 | AJ17: =AE17+AE23+AE27+AE31+AE36+AE41+AE46+AE51+AE56+AE61+AE66+AE71+AE76+AE81 -> 0 | AK17: Perdu | AN17: 6 | AO17: =AJ18 -> 0 | AP17: Perdu
A18: =IF(C17=E18,1,0) -> 1 | B18: =IF(ISNA(VLOOKUP($W$13,class!$C$2:$J$381,7,0)),"",VLOOKUP($W$13,class!$C$2:$J$381,7,0)) ->  | C18: =IF(ISNA(VLOOKUP($W$13,class!$C$2:$J$381,2,0)),"",VLOOKUP($W$13,class!$C$2:$J$381,2,0)) ->  | D18: =IF(ISNA(VLOOKUP($W$13,class!$C$2:$J$381,3,0)),"",VLOOKUP($W$13,class!$C$2:$J$381,3,0)) ->  | E18: =IF(ISNA(VLOOKUP($W$13,class!$C$2:$J$381,4,0)),"",VLOOKUP($W$13,class!$C$2:$J$381,4,0)) ->  | F18: =IF(ISNA(VLOOKUP($W$13,class!$C$2:$J$381,5,0)),"",VLOOKUP($W$13,class!$C$2:$J$381,5,0)) ->  | G18: =IF(ISNA(VLOOKUP($W$13,class!$C$2:$J$381,3,0)),"",VLOOKUP($W$13,class!$C$2:$J$381,3,0)) ->  | H18: =IF(ISNA(VLOOKUP($W$13,class!$C$2:$J$381,6,0)),"",VLOOKUP($W$13,class!$C$2:$J$381,6,0)) ->  | V18: =E35&D35&C35 ->  | Y18: =IF(ISTEXT(F34),F34,IF(F34="","",IF(F34=H34,"0",IF(F34>H34,"1","0")))) ->  | Z18: =IF(ISTEXT(F34),F34,IF(F34="","",IF(F34=H34,"1",IF(F34>H34,"0","0")))) ->  | AA18: =IF(ISTEXT(F34),F34,IF(F34="","",IF(F34=H34,"0",IF(F34>H34,"0","1")))) ->  | AB18: =M6 ->  | AC18: 0 | AE18: 0 | AF18: =AB18 ->  | AI18: 7 | AJ18: =AE18+AE24+AE28+AE32+AE37+AE42+AE47+AE52+AE57+AE62+AE67+AE72+AE77+AE82 -> 0 | AK18: Gagne | AN18: 7 | AO18: =AJ17 -> 0 | AP18: Gagne
B19: =IF(ISNA(VLOOKUP($H$4,class!$CQ$2:$CW$381,7,0)),"",VLOOKUP($H$4,class!$CQ$2:$CW$381,7,0)) ->  | C19: =IF(ISNA(VLOOKUP($H$4,class!$CQ$2:$CW$381,2,0)),"",VLOOKUP($H$4,class!$CQ$2:$CW$381,2,0)) ->  | D19: =IF(ISNA(VLOOKUP($H$4,class!$CQ$2:$CW$381,3,0)),"",VLOOKUP($H$4,class!$CQ$2:$CW$381,3,0)) ->  | E19: =IF(ISNA(VLOOKUP($H$4,class!$CQ$2:$CW$381,4,0)),"",VLOOKUP($H$4,class!$CQ$2:$CW$381,4,0)) ->  | F19: =IF(ISNA(VLOOKUP($H$4,class!$CQ$2:$CW$381,5,0)),"",VLOOKUP($H$4,class!$CQ$2:$CW$381,5,0)) ->  | G19: =IF(ISNA(VLOOKUP($H$4,class!$CQ$2:$CW$381,3,0)),"",VLOOKUP($H$4,class!$CQ$2:$CW$381,3,0)) ->  | H19: =IF(ISNA(VLOOKUP($H$4,class!$CQ$2:$CW$381,6,0)),"",VLOOKUP($H$4,class!$CQ$2:$CW$381,6,0)) ->  | V19: =E37&D37&C37 ->  | Y19: =COUNTIF(Z17:Z18,1) -> 0 | Z19: =COUNTIF(Z17,1) -> 0 | AA19: =COUNTIF(AA17,1) -> 0 | AB19: =COUNTIF(Z17,1) -> 0 | AI19: 8 | AJ19: =AF13 -> 0 | AK19: Nul | AN19: 8 | AO19: =AJ16 -> 0 | AP19: Nul
A20: =IF(C39=E20,1,0) -> 1 | B20: =IF(ISNA(VLOOKUP($W$25,class!$CQ$2:$CW$381,7,0)),"",VLOOKUP($W$25,class!$CQ$2:$CW$381,7,0)) ->  | C20: =IF(ISNA(VLOOKUP($W$25,class!$CQ$2:$CW$381,2,0)),"",VLOOKUP($W$25,class!$CQ$2:$CW$381,2,0)) ->  | D20: =IF(ISNA(VLOOKUP($W$25,class!$CQ$2:$CW$381,3,0)),"",VLOOKUP($W$25,class!$CQ$2:$CW$381,3,0)) ->  | E20: =IF(ISNA(VLOOKUP($W$25,class!$CQ$2:$CW$381,4,0)),"",VLOOKUP($W$25,class!$CQ$2:$CW$381,4,0)) ->  | F20: =IF(ISNA(VLOOKUP($W$25,class!$CQ$2:$CW$381,5,0)),"",VLOOKUP($W$25,class!$CQ$2:$CW$381,5,0)) ->  | G20: =IF(ISNA(VLOOKUP($W$25,class!$CQ$2:$CW$381,3,0)),"",VLOOKUP($W$25,class!$CQ$2:$CW$381,3,0)) ->  | H20: =IF(ISNA(VLOOKUP($W$25,class!$CQ$2:$CW$381,6,0)),"",VLOOKUP($W$25,class!$CQ$2:$CW$381,6,0)) ->  | V20: =E41&D41&C41 ->  | AI20: 9 | AJ20: =AC24+AC28+AC32+AC37+AC42+AC47+AC18+AC52+AC57+AC62+AC67+AC72+AC77+AC82 -> 0 | AK20: Perdu | AN20: 9 | AO20: =AJ15 -> 0 | AP20: Perdu
B21: =IF(ISNA(VLOOKUP($H$4,class!$CJ$2:$CP$381,7,0)),"",VLOOKUP($H$4,class!$CJ$2:$CP$381,7,0)) ->  | C21: =IF(ISNA(VLOOKUP($H$4,class!$CJ$2:$CP$381,2,0)),"",VLOOKUP($H$4,class!$CJ$2:$CP$381,2,0)) ->  | D21: =IF(ISNA(VLOOKUP($H$4,class!$CJ$2:$CP$381,3,0)),"",VLOOKUP($H$4,class!$CJ$2:$CP$381,3,0)) ->  | E21: =IF(ISNA(VLOOKUP($H$4,class!$CJ$2:$CP$381,4,0)),"",VLOOKUP($H$4,class!$CJ$2:$CP$381,4,0)) ->  | F21: =IF(ISNA(VLOOKUP($H$4,class!$CJ$2:$CP$381,5,0)),"",VLOOKUP($H$4,class!$CJ$2:$CP$381,5,0)) ->  | G21: =IF(ISNA(VLOOKUP($H$4,class!$CJ$2:$CP$381,3,0)),"",VLOOKUP($H$4,class!$CJ$2:$CP$381,3,0)) ->  | H21: =IF(ISNA(VLOOKUP($H$4,class!$CJ$2:$CP$381,6,0)),"",VLOOKUP($H$4,class!$CJ$2:$CP$381,6,0)) ->  | V21: =E39&D39&C39 -> 
A22: =IF(C17=E22,1,0) -> 1 | B22: =IF(ISNA(VLOOKUP($W$24,class!$CJ$2:$CP$381,7,0)),"",VLOOKUP($W$24,class!$CJ$2:$CP$381,7,0)) ->  | C22: =IF(ISNA(VLOOKUP($W$24,class!$CJ$2:$CP$381,2,0)),"",VLOOKUP($W$24,class!$CJ$2:$CP$381,2,0)) ->  | D22: =IF(ISNA(VLOOKUP($W$24,class!$CJ$2:$CP$381,3,0)),"",VLOOKUP($W$24,class!$CJ$2:$CP$381,3,0)) ->  | E22: =IF(ISNA(VLOOKUP($W$24,class!$CJ$2:$CP$381,4,0)),"",VLOOKUP($W$24,class!$CJ$2:$CP$381,4,0)) ->  | F22: =IF(ISNA(VLOOKUP($W$24,class!$CJ$2:$CP$381,5,0)),"",VLOOKUP($W$24,class!$CJ$2:$CP$381,5,0)) ->  | G22: =IF(ISNA(VLOOKUP($W$24,class!$CJ$2:$CP$381,3,0)),"",VLOOKUP($W$24,class!$CJ$2:$CP$381,3,0)) ->  | H22: =IF(ISNA(VLOOKUP($W$24,class!$CJ$2:$CP$381,6,0)),"",VLOOKUP($W$24,class!$CJ$2:$CP$381,6,0)) ->  | V22: =E25&D25&C25 ->  | Y22: gagne | Z22: nul | AA22: perdu | AC22: gagne | AD22: nul | AE22: perdu
B23: =IF(ISNA(VLOOKUP($H$4,class!$CC$2:$CI$381,7,0)),"",VLOOKUP($H$4,class!$CC$2:$CI$381,7,0)) ->  | C23: =IF(ISNA(VLOOKUP($H$4,class!$CC$2:$CI$381,2,0)),"",VLOOKUP($H$4,class!$CC$2:$CI$381,2,0)) ->  | D23: =IF(ISNA(VLOOKUP($H$4,class!$CC$2:$CI$381,3,0)),"",VLOOKUP($H$4,class!$CC$2:$CI$381,3,0)) ->  | E23: =IF(ISNA(VLOOKUP($H$4,class!$CC$2:$CI$381,4,0)),"",VLOOKUP($H$4,class!$CC$2:$CI$381,4,0)) ->  | F23: =IF(ISNA(VLOOKUP($H$4,class!$CC$2:$CI$381,5,0)),"",VLOOKUP($H$4,class!$CC$2:$CI$381,5,0)) ->  | G23: =IF(ISNA(VLOOKUP($H$4,class!$CC$2:$CI$381,3,0)),"",VLOOKUP($H$4,class!$CC$2:$CI$381,3,0)) ->  | H23: =IF(ISNA(VLOOKUP($H$4,class!$CC$2:$CI$381,6,0)),"",VLOOKUP($H$4,class!$CC$2:$CI$381,6,0)) ->  | V23: =E23&D23&C23 ->  | Y23: =IF(F37>H37,1,0) -> 0 | Z23: =IF(ISTEXT(F37),F37,IF(F37="","",IF(F37=H37,"1",IF(F37>H37,"0","0")))) ->  | AA23: =IF(F37<H37,1,0) -> 0 | AB23: =M4 ->  | AC23: =COUNTIF(Y23,1) -> 0 | AD23: =COUNTIF(Z23:Z24,1) -> 0 | AE23: =COUNTIF(AA23,1) -> 0 | AF23: =AB23 -> 
A24: =IF(C17=E24,1,0) -> 1 | B24: =IF(ISNA(VLOOKUP($W$23,class!$CC$2:$CI$381,7,0)),"",VLOOKUP($W$23,class!$CC$2:$CI$381,7,0)) ->  | C24: =IF(ISNA(VLOOKUP($W$23,class!$CC$2:$CI$381,2,0)),"",VLOOKUP($W$23,class!$CC$2:$CI$381,2,0)) ->  | D24: =IF(ISNA(VLOOKUP($W$23,class!$CC$2:$CI$381,3,0)),"",VLOOKUP($W$23,class!$CC$2:$CI$381,3,0)) ->  | E24: =IF(ISNA(VLOOKUP($W$23,class!$CC$2:$CI$381,4,0)),"",VLOOKUP($W$23,class!$CC$2:$CI$381,4,0)) ->  | F24: =IF(ISNA(VLOOKUP($W$23,class!$CC$2:$CI$381,5,0)),"",VLOOKUP($W$23,class!$CC$2:$CI$381,5,0)) ->  | G24: =IF(ISNA(VLOOKUP($W$23,class!$CC$2:$CI$381,3,0)),"",VLOOKUP($W$23,class!$CC$2:$CI$381,3,0)) ->  | H24: =IF(ISNA(VLOOKUP($W$23,class!$CC$2:$CI$381,6,0)),"",VLOOKUP($W$23,class!$CC$2:$CI$381,6,0)) ->  | V24: =E21&D21&C21 ->  | Y24: =IF(F38>H38,1,0) -> 0 | Z24: =IF(ISTEXT(F38),F38,IF(F38="","",IF(F38=H38,"1",IF(F38>H38,"0","0")))) ->  | AA24: =IF(F38<H38,1,0) -> 0 | AB24: =M6 ->  | AC24: =COUNTIF(Y24,1) -> 0 | AE24: =COUNTIF(AA24,1) -> 0 | AF24: =AB24 -> 
B25: =IF(ISNA(VLOOKUP($H$4,class!$BV$2:$CB$381,7,0)),"",VLOOKUP($H$4,class!$BV$2:$CB$381,7,0)) ->  | C25: =IF(ISNA(VLOOKUP($H$4,class!$BV$2:$CB$381,2,0)),"",VLOOKUP($H$4,class!$BV$2:$CB$381,2,0)) ->  | D25: =IF(ISNA(VLOOKUP($H$4,class!$BV$2:$CB$381,3,0)),"",VLOOKUP($H$4,class!$BV$2:$CB$381,3,0)) ->  | E25: =IF(ISNA(VLOOKUP($H$4,class!$BV$2:$CB$381,4,0)),"",VLOOKUP($H$4,class!$BV$2:$CB$381,4,0)) ->  | F25: =IF(ISNA(VLOOKUP($H$4,class!$BV$2:$CB$381,5,0)),"",VLOOKUP($H$4,class!$BV$2:$CB$381,5,0)) ->  | G25: =IF(ISNA(VLOOKUP($H$4,class!$BV$2:$CB$381,3,0)),"",VLOOKUP($H$4,class!$BV$2:$CB$381,3,0)) ->  | H25: =IF(ISNA(VLOOKUP($H$4,class!$BV$2:$CB$381,6,0)),"",VLOOKUP($H$4,class!$BV$2:$CB$381,6,0)) ->  | V25: =E19&D19&C19 ->  | Y25: =COUNTIF(Z23:Z24,1) -> 0 | Z25: =COUNTIF(Z23,1) -> 0 | AA25: =COUNTIF(AA23,1) -> 0 | AB25: =COUNTIF(Z23,1) -> 0
A26: =IF(C17=E26,1,0) -> 1 | B26: =IF(ISNA(VLOOKUP($W$22,class!$BV$2:$CB$381,7,0)),"",VLOOKUP($W$22,class!$BV$2:$CB$381,7,0)) ->  | C26: =IF(ISNA(VLOOKUP($W$22,class!$BV$2:$CB$381,2,0)),"",VLOOKUP($W$22,class!$BV$2:$CB$381,2,0)) ->  | D26: =IF(ISNA(VLOOKUP($W$22,class!$BV$2:$CB$381,3,0)),"",VLOOKUP($W$22,class!$BV$2:$CB$381,3,0)) ->  | E26: =IF(ISNA(VLOOKUP($W$22,class!$BV$2:$CB$381,4,0)),"",VLOOKUP($W$22,class!$BV$2:$CB$381,4,0)) ->  | F26: =IF(ISNA(VLOOKUP($W$22,class!$BV$2:$CB$381,5,0)),"",VLOOKUP($W$22,class!$BV$2:$CB$381,5,0)) ->  | G26: =IF(ISNA(VLOOKUP($W$22,class!$BV$2:$CB$381,3,0)),"",VLOOKUP($W$22,class!$BV$2:$CB$381,3,0)) ->  | H26: =IF(ISNA(VLOOKUP($W$22,class!$BV$2:$CB$381,6,0)),"",VLOOKUP($W$22,class!$BV$2:$CB$381,6,0)) ->  | V26: =E43&D43&C43 ->  | Y26: gagne | Z26: nul | AA26: perdu
B27: =IF(ISNA(VLOOKUP($H$4,class!$BO$2:$BU$381,7,0)),"",VLOOKUP($H$4,class!$BO$2:$BU$381,7,0)) ->  | C27: =IF(ISNA(VLOOKUP($H$4,class!$BO$2:$BU$381,2,0)),"",VLOOKUP($H$4,class!$BO$2:$BU$381,2,0)) ->  | D27: =IF(ISNA(VLOOKUP($H$4,class!$BO$2:$BU$381,3,0)),"",VLOOKUP($H$4,class!$BO$2:$BU$381,3,0)) ->  | E27: =IF(ISNA(VLOOKUP($H$4,class!$BO$2:$BU$381,4,0)),"",VLOOKUP($H$4,class!$BO$2:$BU$381,4,0)) ->  | F27: =IF(ISNA(VLOOKUP($H$4,class!$BO$2:$BU$381,5,0)),"",VLOOKUP($H$4,class!$BO$2:$BU$381,5,0)) ->  | G27: =IF(ISNA(VLOOKUP($H$4,class!$BO$2:$BU$381,3,0)),"",VLOOKUP($H$4,class!$BO$2:$BU$381,3,0)) ->  | H27: =IF(ISNA(VLOOKUP($H$4,class!$BO$2:$BU$381,6,0)),"",VLOOKUP($H$4,class!$BO$2:$BU$381,6,0)) ->  | Y27: =IF(F41>H41,1,0) -> 0 | Z27: =IF(ISTEXT(F41),F41,IF(F41="","",IF(F41=H41,"1",IF(F41>H41,"0","0")))) ->  | AA27: =IF(F41<H41,1,0) -> 0 | AB27: =M4 ->  | AC27: =COUNTIF(Y27,1) -> 0 | AD27: =COUNTIF(Z27:Z28,1) -> 0 | AE27: =COUNTIF(AA27,1) -> 0 | AF27: =AB27 -> 
A28: =IF(C17=E28,1,0) -> 1 | B28: =IF(ISNA(VLOOKUP($W$14,class!$BO$2:$BU$381,7,0)),"",VLOOKUP($W$14,class!$BO$2:$BU$381,7,0)) ->  | C28: =IF(ISNA(VLOOKUP($W$14,class!$BO$2:$BU$381,2,0)),"",VLOOKUP($W$14,class!$BO$2:$BU$381,2,0)) ->  | D28: =IF(ISNA(VLOOKUP($W$14,class!$BO$2:$BU$381,3,0)),"",VLOOKUP($W$14,class!$BO$2:$BU$381,3,0)) ->  | E28: =IF(ISNA(VLOOKUP($W$14,class!$BO$2:$BU$381,4,0)),"",VLOOKUP($W$14,class!$BO$2:$BU$381,4,0)) ->  | F28: =IF(ISNA(VLOOKUP($W$14,class!$BO$2:$BU$381,5,0)),"",VLOOKUP($W$14,class!$BO$2:$BU$381,5,0)) ->  | G28: =IF(ISNA(VLOOKUP($W$14,class!$BO$2:$BU$381,3,0)),"",VLOOKUP($W$14,class!$BO$2:$BU$381,3,0)) ->  | H28: =IF(ISNA(VLOOKUP($W$14,class!$BO$2:$BU$381,6,0)),"",VLOOKUP($W$14,class!$BO$2:$BU$381,6,0)) ->  | Y28: =IF(F42>H42,1,0) -> 0 | Z28: =IF(ISTEXT(F42),F42,IF(F42="","",IF(F42=H42,"1",IF(F42>H42,"0","0")))) ->  | AA28: =IF(F42<H42,1,0) -> 0 | AB28: =M6 ->  | AC28: =COUNTIF(Y28,1) -> 0 | AE28: =COUNTIF(AA28,1) -> 0 | AF28: =AB28 -> 
B29: =IF(ISNA(VLOOKUP($H$4,class!$BH$2:$BN$381,7,0)),"",VLOOKUP($H$4,class!$BH$2:$BN$381,7,0)) ->  | C29: =IF(ISNA(VLOOKUP($H$4,class!$BH$2:$BN$381,2,0)),"",VLOOKUP($H$4,class!$BH$2:$BN$381,2,0)) ->  | D29: =IF(ISNA(VLOOKUP($H$4,class!$BH$2:$BN$381,3,0)),"",VLOOKUP($H$4,class!$BH$2:$BN$381,3,0)) ->  | E29: =IF(ISNA(VLOOKUP($H$4,class!$BH$2:$BN$381,4,0)),"",VLOOKUP($H$4,class!$BH$2:$BN$381,4,0)) ->  | F29: =IF(ISNA(VLOOKUP($H$4,class!$BH$2:$BN$381,5,0)),"",VLOOKUP($H$4,class!$BH$2:$BN$381,5,0)) ->  | G29: =IF(ISNA(VLOOKUP($H$4,class!$BH$2:$BN$381,3,0)),"",VLOOKUP($H$4,class!$BH$2:$BN$381,3,0)) ->  | H29: =IF(ISNA(VLOOKUP($H$4,class!$BH$2:$BN$381,6,0)),"",VLOOKUP($H$4,class!$BH$2:$BN$381,6,0)) ->  | Y29: =COUNTIF(Z27:Z28,1) -> 0 | Z29: =COUNTIF(Z27,1) -> 0 | AA29: =COUNTIF(AA27,1) -> 0 | AB29: =COUNTIF(Z27,1) -> 0
A30: =IF(C17=E30,1,0) -> 1 | B30: =IF(ISNA(VLOOKUP($W$15,class!$BH$2:$BN$381,7,0)),"",VLOOKUP($W$15,class!$BH$2:$BN$381,7,0)) ->  | C30: =IF(ISNA(VLOOKUP($W$15,class!$BH$2:$BN$381,2,0)),"",VLOOKUP($W$15,class!$BH$2:$BN$381,2,0)) ->  | D30: =IF(ISNA(VLOOKUP($W$15,class!$BH$2:$BN$381,3,0)),"",VLOOKUP($W$15,class!$BH$2:$BN$381,3,0)) ->  | E30: =IF(ISNA(VLOOKUP($W$15,class!$BH$2:$BN$381,4,0)),"",VLOOKUP($W$15,class!$BH$2:$BN$381,4,0)) ->  | F30: =IF(ISNA(VLOOKUP($W$15,class!$BH$2:$BN$381,5,0)),"",VLOOKUP($W$15,class!$BH$2:$BN$381,5,0)) ->  | G30: =IF(ISNA(VLOOKUP($W$15,class!$BH$2:$BN$381,3,0)),"",VLOOKUP($W$15,class!$BH$2:$BN$381,3,0)) ->  | H30: =IF(ISNA(VLOOKUP($W$15,class!$BH$2:$BN$381,6,0)),"",VLOOKUP($W$15,class!$BH$2:$BN$381,6,0)) ->  | Y30: gagne | Z30: nul | AA30: perdu
B31: =IF(ISNA(VLOOKUP($H$4,class!$BA$2:$BG$381,7,0)),"",VLOOKUP($H$4,class!$BA$2:$BG$381,7,0)) ->  | C31: =IF(ISNA(VLOOKUP($H$4,class!$BA$2:$BG$381,2,0)),"",VLOOKUP($H$4,class!$BA$2:$BG$381,2,0)) ->  | D31: =IF(ISNA(VLOOKUP($H$4,class!$BA$2:$BG$381,3,0)),"",VLOOKUP($H$4,class!$BA$2:$BG$381,3,0)) ->  | E31: =IF(ISNA(VLOOKUP($H$4,class!$BA$2:$BG$381,4,0)),"",VLOOKUP($H$4,class!$BA$2:$BG$381,4,0)) ->  | F31: =IF(ISNA(VLOOKUP($H$4,class!$BA$2:$BG$381,5,0)),"",VLOOKUP($H$4,class!$BA$2:$BG$381,5,0)) ->  | G31: =IF(ISNA(VLOOKUP($H$4,class!$BA$2:$BG$381,3,0)),"",VLOOKUP($H$4,class!$BA$2:$BG$381,3,0)) ->  | H31: =IF(ISNA(VLOOKUP($H$4,class!$BA$2:$BG$381,6,0)),"",VLOOKUP($H$4,class!$BA$2:$BG$381,6,0)) ->  | Y31: =IF(F39>H39,1,0) -> 0 | Z31: =IF(ISTEXT(F39),F39,IF(F39="","",IF(F39=H39,"1",IF(F39>H39,"0","0")))) ->  | AA31: =IF(F39<H39,1,0) -> 0 | AB31: =M4 ->  | AC31: =COUNTIF(Y31,1) -> 0 | AD31: =COUNTIF(Z31:Z32,1) -> 0 | AE31: =COUNTIF(AA31,1) -> 0 | AF31: =AB31 -> 
A32: =IF(C17=E32,1,0) -> 1 | B32: =IF(ISNA(VLOOKUP($W$16,class!$BA$2:$BG$381,7,0)),"",VLOOKUP($W$16,class!$BA$2:$BG$381,7,0)) ->  | C32: =IF(ISNA(VLOOKUP($W$16,class!$BA$2:$BG$381,2,0)),"",VLOOKUP($W$16,class!$BA$2:$BG$381,2,0)) ->  | D32: =IF(ISNA(VLOOKUP($W$16,class!$BA$2:$BG$381,3,0)),"",VLOOKUP($W$16,class!$BA$2:$BG$381,3,0)) ->  | E32: =IF(ISNA(VLOOKUP($W$16,class!$BA$2:$BG$381,4,0)),"",VLOOKUP($W$16,class!$BA$2:$BG$381,4,0)) ->  | F32: =IF(ISNA(VLOOKUP($W$16,class!$BA$2:$BG$381,5,0)),"",VLOOKUP($W$16,class!$BA$2:$BG$381,5,0)) ->  | G32: =IF(ISNA(VLOOKUP($W$16,class!$BA$2:$BG$381,3,0)),"",VLOOKUP($W$16,class!$BA$2:$BG$381,3,0)) ->  | H32: =IF(ISNA(VLOOKUP($W$16,class!$BA$2:$BG$381,6,0)),"",VLOOKUP($W$16,class!$BA$2:$BG$381,6,0)) ->  | Y32: =IF(F40>H40,1,0) -> 0 | Z32: =IF(ISTEXT(F40),F40,IF(F40="","",IF(F40=H40,"1",IF(F40>H40,"0","0")))) ->  | AA32: =IF(F40<H40,1,0) -> 0 | AB32: =M6 ->  | AC32: =COUNTIF(Y32,1) -> 0 | AE32: =COUNTIF(AA32,1) -> 0 | AF32: =AB32 -> 
B33: =IF(ISNA(VLOOKUP($H$4,class!$AT$2:$AZ$381,7,0)),"",VLOOKUP($H$4,class!$AT$2:$AZ$381,7,0)) ->  | C33: =IF(ISNA(VLOOKUP($H$4,class!$AT$2:$AZ$381,2,0)),"",VLOOKUP($H$4,class!$AT$2:$AZ$381,2,0)) ->  | D33: =IF(ISNA(VLOOKUP($H$4,class!$AT$2:$AZ$381,3,0)),"",VLOOKUP($H$4,class!$AT$2:$AZ$381,3,0)) ->  | E33: =IF(ISNA(VLOOKUP($H$4,class!$AT$2:$AZ$381,4,0)),"",VLOOKUP($H$4,class!$AT$2:$AZ$381,4,0)) ->  | F33: =IF(ISNA(VLOOKUP($H$4,class!$AT$2:$AZ$381,5,0)),"",VLOOKUP($H$4,class!$AT$2:$AZ$381,5,0)) ->  | G33: =IF(ISNA(VLOOKUP($H$4,class!$AT$2:$AZ$381,3,0)),"",VLOOKUP($H$4,class!$AT$2:$AZ$381,3,0)) ->  | H33: =IF(ISNA(VLOOKUP($H$4,class!$AT$2:$AZ$381,6,0)),"",VLOOKUP($H$4,class!$AT$2:$AZ$381,6,0)) ->  | Y33: =COUNTIF(Z31:Z32,1) -> 0 | Z33: =COUNTIF(Z31,1) -> 0 | AA33: =COUNTIF(AA31,1) -> 0 | AB33: =COUNTIF(Z31,1) -> 0
A34: =IF(C17=E34,1,0) -> 1 | B34: =IF(ISNA(VLOOKUP($W$17,class!$AT$2:$AZ$381,7,0)),"",VLOOKUP($W$17,class!$AT$2:$AZ$381,7,0)) ->  | C34: =IF(ISNA(VLOOKUP($W$17,class!$AT$2:$AZ$381,2,0)),"",VLOOKUP($W$17,class!$AT$2:$AZ$381,2,0)) ->  | D34: =IF(ISNA(VLOOKUP($W$17,class!$AT$2:$AZ$381,3,0)),"",VLOOKUP($W$17,class!$AT$2:$AZ$381,3,0)) ->  | E34: =IF(ISNA(VLOOKUP($W$17,class!$AT$2:$AZ$381,4,0)),"",VLOOKUP($W$17,class!$AT$2:$AZ$381,4,0)) ->  | F34: =IF(ISNA(VLOOKUP($W$17,class!$AT$2:$AZ$381,5,0)),"",VLOOKUP($W$17,class!$AT$2:$AZ$381,5,0)) ->  | G34: =IF(ISNA(VLOOKUP($W$17,class!$AT$2:$AZ$381,3,0)),"",VLOOKUP($W$17,class!$AT$2:$AZ$381,3,0)) ->  | H34: =IF(ISNA(VLOOKUP($W$17,class!$AT$2:$AZ$381,6,0)),"",VLOOKUP($W$17,class!$AT$2:$AZ$381,6,0)) -> 
B35: =IF(ISNA(VLOOKUP($H$4,class!$AM$2:$AS$381,7,0)),"",VLOOKUP($H$4,class!$AM$2:$AS$381,7,0)) ->  | C35: =IF(ISNA(VLOOKUP($H$4,class!$AM$2:$AS$381,2,0)),"",VLOOKUP($H$4,class!$AM$2:$AS$381,2,0)) ->  | D35: =IF(ISNA(VLOOKUP($H$4,class!$AM$2:$AS$381,3,0)),"",VLOOKUP($H$4,class!$AM$2:$AS$381,3,0)) ->  | E35: =IF(ISNA(VLOOKUP($H$4,class!$AM$2:$AS$381,4,0)),"",VLOOKUP($H$4,class!$AM$2:$AS$381,4,0)) ->  | F35: =IF(ISNA(VLOOKUP($H$4,class!$AM$2:$AS$381,5,0)),"",VLOOKUP($H$4,class!$AM$2:$AS$381,5,0)) ->  | G35: =IF(ISNA(VLOOKUP($H$4,class!$AM$2:$AS$381,3,0)),"",VLOOKUP($H$4,class!$AM$2:$AS$381,3,0)) ->  | H35: =IF(ISNA(VLOOKUP($H$4,class!$AM$2:$AS$381,6,0)),"",VLOOKUP($H$4,class!$AM$2:$AS$381,6,0)) ->  | Y35: gagne | Z35: nul | AA35: perdu | AC35: gagne | AD35: nul | AE35: perdu
A36: =IF(C17=E36,1,0) -> 1 | B36: =IF(ISNA(VLOOKUP($W$18,class!$AM$2:$AS$381,7,0)),"",VLOOKUP($W$18,class!$AM$2:$AS$381,7,0)) ->  | C36: =IF(ISNA(VLOOKUP($W$18,class!$AM$2:$AS$381,2,0)),"",VLOOKUP($W$18,class!$AM$2:$AS$381,2,0)) ->  | D36: =IF(ISNA(VLOOKUP($W$18,class!$AM$2:$AS$381,3,0)),"",VLOOKUP($W$18,class!$AM$2:$AS$381,3,0)) ->  | E36: =IF(ISNA(VLOOKUP($W$18,class!$AM$2:$AS$381,4,0)),"",VLOOKUP($W$18,class!$AM$2:$AS$381,4,0)) ->  | F36: =IF(ISNA(VLOOKUP($W$18,class!$AM$2:$AS$381,5,0)),"",VLOOKUP($W$18,class!$AM$2:$AS$381,5,0)) ->  | G36: =IF(ISNA(VLOOKUP($W$18,class!$AM$2:$AS$381,3,0)),"",VLOOKUP($W$18,class!$AM$2:$AS$381,3,0)) ->  | H36: =IF(ISNA(VLOOKUP($W$18,class!$AM$2:$AS$381,6,0)),"",VLOOKUP($W$18,class!$AM$2:$AS$381,6,0)) ->  | Y36: =IF(F35>H35,1,0) -> 0 | Z36: =IF(ISTEXT(F35),F35,IF(F35="","",IF(F35=H35,"1",IF(F35>H35,"0","0")))) ->  | AA36: =IF(F35<H35,1,0) -> 0 | AB36: =M4 ->  | AC36: =COUNTIF(Y36,1) -> 0 | AD36: =COUNTIF(Z36:Z37,1) -> 0 | AE36: =COUNTIF(AA36,1) -> 0 | AF36: =AB36 -> 
B37: =IF(ISNA(VLOOKUP($H$4,class!$AF$2:$AL$381,7,0)),"",VLOOKUP($H$4,class!$AF$2:$AL$381,7,0)) ->  | C37: =IF(ISNA(VLOOKUP($H$4,class!$AF$2:$AL$381,2,0)),"",VLOOKUP($H$4,class!$AF$2:$AL$381,2,0)) ->  | D37: =IF(ISNA(VLOOKUP($H$4,class!$AF$2:$AL$381,3,0)),"",VLOOKUP($H$4,class!$AF$2:$AL$381,3,0)) ->  | E37: =IF(ISNA(VLOOKUP($H$4,class!$AF$2:$AL$381,4,0)),"",VLOOKUP($H$4,class!$AF$2:$AL$381,4,0)) ->  | F37: =IF(ISNA(VLOOKUP($H$4,class!$AF$2:$AL$381,5,0)),"",VLOOKUP($H$4,class!$AF$2:$AL$381,5,0)) ->  | G37: =IF(ISNA(VLOOKUP($H$4,class!$AF$2:$AL$381,3,0)),"",VLOOKUP($H$4,class!$AF$2:$AL$381,3,0)) ->  | H37: =IF(ISNA(VLOOKUP($H$4,class!$AF$2:$AL$381,6,0)),"",VLOOKUP($H$4,class!$AF$2:$AL$381,6,0)) ->  | Y37: =IF(F36>H36,1,0) -> 0 | Z37: =IF(ISTEXT(F36),F36,IF(F36="","",IF(F36=H36,"1",IF(F36>H36,"0","0")))) ->  | AA37: =IF(F36<H36,1,0) -> 0 | AB37: =M6 ->  | AC37: =COUNTIF(Y37,1) -> 0 | AE37: =COUNTIF(AA37,1) -> 0 | AF37: =AB37 -> 
A38: =IF(C17=E38,1,0) -> 1 | B38: =IF(ISNA(VLOOKUP($W$19,class!$AF$2:$AL$381,7,0)),"",VLOOKUP($W$19,class!$AF$2:$AL$381,7,0)) ->  | C38: =IF(ISNA(VLOOKUP($W$19,class!$AF$2:$AL$381,2,0)),"",VLOOKUP($W$19,class!$AF$2:$AL$381,2,0)) ->  | D38: =IF(ISNA(VLOOKUP($W$19,class!$AF$2:$AL$381,3,0)),"",VLOOKUP($W$19,class!$AF$2:$AL$381,3,0)) ->  | E38: =IF(ISNA(VLOOKUP($W$19,class!$AF$2:$AL$381,4,0)),"",VLOOKUP($W$19,class!$AF$2:$AL$381,4,0)) ->  | F38: =IF(ISNA(VLOOKUP($W$19,class!$AF$2:$AL$381,5,0)),"",VLOOKUP($W$19,class!$AF$2:$AL$381,5,0)) ->  | G38: =IF(ISNA(VLOOKUP($W$19,class!$AF$2:$AL$381,3,0)),"",VLOOKUP($W$19,class!$AF$2:$AL$381,3,0)) ->  | H38: =IF(ISNA(VLOOKUP($W$19,class!$AF$2:$AL$381,6,0)),"",VLOOKUP($W$19,class!$AF$2:$AL$381,6,0)) ->  | Y38: =COUNTIF(Z36:Z37,1) -> 0 | Z38: =COUNTIF(Z36,1) -> 0 | AA38: =COUNTIF(AA36,1) -> 0 | AB38: =COUNTIF(Z36,1) -> 0
B39: =IF(ISNA(VLOOKUP($H$4,class!$Y$2:$AE$381,7,0)),"",VLOOKUP($H$4,class!$Y$2:$AE$381,7,0)) ->  | C39: =IF(ISNA(VLOOKUP($H$4,class!$Y$2:$AE$381,2,0)),"",VLOOKUP($H$4,class!$Y$2:$AE$381,2,0)) ->  | D39: =IF(ISNA(VLOOKUP($H$4,class!$Y$2:$AE$381,3,0)),"",VLOOKUP($H$4,class!$Y$2:$AE$381,3,0)) ->  | E39: =IF(ISNA(VLOOKUP($H$4,class!$Y$2:$AE$381,4,0)),"",VLOOKUP($H$4,class!$Y$2:$AE$381,4,0)) ->  | F39: =IF(ISNA(VLOOKUP($H$4,class!$Y$2:$AE$381,5,0)),"",VLOOKUP($H$4,class!$Y$2:$AE$381,5,0)) ->  | G39: =IF(ISNA(VLOOKUP($H$4,class!$Y$2:$AE$381,3,0)),"",VLOOKUP($H$4,class!$Y$2:$AE$381,3,0)) ->  | H39: =IF(ISNA(VLOOKUP($H$4,class!$Y$2:$AE$381,6,0)),"",VLOOKUP($H$4,class!$Y$2:$AE$381,6,0)) -> 
A40: =IF(C17=E40,1,0) -> 1 | B40: =IF(ISNA(VLOOKUP($W$21,class!$Y$2:$AE$381,7,0)),"",VLOOKUP($W$21,class!$Y$2:$AE$381,7,0)) ->  | C40: =IF(ISNA(VLOOKUP($W$21,class!$Y$2:$AE$381,2,0)),"",VLOOKUP($W$21,class!$Y$2:$AE$381,2,0)) ->  | D40: =IF(ISNA(VLOOKUP($W$21,class!$Y$2:$AE$381,3,0)),"",VLOOKUP($W$21,class!$Y$2:$AE$381,3,0)) ->  | E40: =IF(ISNA(VLOOKUP($W$21,class!$Y$2:$AE$381,4,0)),"",VLOOKUP($W$21,class!$Y$2:$AE$381,4,0)) ->  | F40: =IF(ISNA(VLOOKUP($W$21,class!$Y$2:$AE$381,5,0)),"",VLOOKUP($W$21,class!$Y$2:$AE$381,5,0)) ->  | G40: =IF(ISNA(VLOOKUP($W$21,class!$Y$2:$AE$381,3,0)),"",VLOOKUP($W$21,class!$Y$2:$AE$381,3,0)) ->  | H40: =IF(ISNA(VLOOKUP($W$21,class!$Y$2:$AE$381,6,0)),"",VLOOKUP($W$21,class!$Y$2:$AE$381,6,0)) ->  | Y40: gagne | Z40: nul | AA40: perdu | AC40: gagne | AD40: nul | AE40: perdu
B41: =IF(ISNA(VLOOKUP($H$4,class!$Q$2:$W$381,7,0)),"",VLOOKUP($H$4,class!$Q$2:$W$381,7,0)) ->  | C41: =IF(ISNA(VLOOKUP($H$4,class!$Q$2:$W$381,2,0)),"",VLOOKUP($H$4,class!$Q$2:$W$381,2,0)) ->  | D41: =IF(ISNA(VLOOKUP($H$4,class!$Q$2:$W$381,3,0)),"",VLOOKUP($H$4,class!$Q$2:$W$381,3,0)) ->  | E41: =IF(ISNA(VLOOKUP($H$4,class!$Q$2:$W$381,4,0)),"",VLOOKUP($H$4,class!$Q$2:$W$381,4,0)) ->  | F41: =IF(ISNA(VLOOKUP($H$4,class!$Q$2:$W$381,5,0)),"",VLOOKUP($H$4,class!$Q$2:$W$381,5,0)) ->  | G41: =IF(ISNA(VLOOKUP($H$4,class!$Q$2:$W$381,3,0)),"",VLOOKUP($H$4,class!$Q$2:$W$381,3,0)) ->  | H41: =IF(ISNA(VLOOKUP($H$4,class!$Q$2:$W$381,6,0)),"",VLOOKUP($H$4,class!$Q$2:$W$381,6,0)) ->  | Y41: =IF(F17>H17,1,0) -> 0 | Z41: =IF(ISTEXT(F17),F17,IF(F17="","",IF(F17=H17,"1",IF(F17>H17,"0","0")))) ->  | AA41: =IF(F17<H17,1,0) -> 0 | AB41: =M4 ->  | AC41: =COUNTIF(Y41,1) -> 0 | AD41: =COUNTIF(Z41:Z42,1) -> 0 | AE41: =COUNTIF(AA41,1) -> 0 | AF41: =AB41 -> 
A42: =IF(C17=E42,1,0) -> 1 | B42: =IF(ISNA(VLOOKUP($W$20,class!$Q$2:$W$381,7,0)),"",VLOOKUP($W$20,class!$Q$2:$W$381,7,0)) ->  | C42: =IF(ISNA(VLOOKUP($W$20,class!$Q$2:$W$381,2,0)),"",VLOOKUP($W$20,class!$Q$2:$W$381,2,0)) ->  | D42: =IF(ISNA(VLOOKUP($W$20,class!$Q$2:$W$381,3,0)),"",VLOOKUP($W$20,class!$Q$2:$W$381,3,0)) ->  | E42: =IF(ISNA(VLOOKUP($W$20,class!$Q$2:$W$381,4,0)),"",VLOOKUP($W$20,class!$Q$2:$W$381,4,0)) ->  | F42: =IF(ISNA(VLOOKUP($W$20,class!$Q$2:$W$381,5,0)),"",VLOOKUP($W$20,class!$Q$2:$W$381,5,0)) ->  | G42: =IF(ISNA(VLOOKUP($W$20,class!$Q$2:$W$381,3,0)),"",VLOOKUP($W$20,class!$Q$2:$W$381,3,0)) ->  | H42: =IF(ISNA(VLOOKUP($W$20,class!$Q$2:$W$381,6,0)),"",VLOOKUP($W$20,class!$Q$2:$W$381,6,0)) ->  | Y42: =IF(F18>H18,1,0) -> 0 | Z42: =IF(ISTEXT(F18),F18,IF(F18="","",IF(F18=H18,"1",IF(F18>H18,"0","0")))) ->  | AA42: =IF(F18<H18,1,0) -> 0 | AB42: =M6 ->  | AC42: =COUNTIF(Y42,1) -> 0 | AE42: =COUNTIF(AA42,1) -> 0 | AF42: =AB42 -> 
B43: =IF(ISNA(VLOOKUP($H$4,class!$CX$2:$DD$381,7,0)),"",VLOOKUP($H$4,class!$CX$2:$DD$381,7,0)) ->  | C43: =IF(ISNA(VLOOKUP($H$4,class!$CX$2:$DD$381,2,0)),"",VLOOKUP($H$4,class!$CX$2:$DD$381,2,0)) ->  | D43: =IF(ISNA(VLOOKUP($H$4,class!$CX$2:$DD$381,3,0)),"",VLOOKUP($H$4,class!$CX$2:$DD$381,3,0)) ->  | E43: =IF(ISNA(VLOOKUP($H$4,class!$CX$2:$DD$381,4,0)),"",VLOOKUP($H$4,class!$CX$2:$DD$381,4,0)) ->  | F43: =IF(ISNA(VLOOKUP($H$4,class!$CX$2:$DD$381,5,0)),"",VLOOKUP($H$4,class!$CX$2:$DD$381,5,0)) ->  | G43: =IF(ISNA(VLOOKUP($H$4,class!$CX$2:$DD$381,3,0)),"",VLOOKUP($H$4,class!$CX$2:$DD$381,3,0)) ->  | H43: =IF(ISNA(VLOOKUP($H$4,class!$CX$2:$DD$381,6,0)),"",VLOOKUP($H$4,class!$CX$2:$DD$381,6,0)) ->  | Y43: =COUNTIF(Z41:Z42,1) -> 0 | Z43: =COUNTIF(Z41,1) -> 0 | AA43: =COUNTIF(AA41,1) -> 0 | AB43: =COUNTIF(Z41,1) -> 0
A44: =IF(C17=E44,1,0) -> 1 | B44: =IF(ISNA(VLOOKUP($W$26,class!$CX$2:$DD$381,7,0)),"",VLOOKUP($W$26,class!$CX$2:$DD$381,7,0)) ->  | C44: =IF(ISNA(VLOOKUP($W$26,class!$CX$2:$DD$381,2,0)),"",VLOOKUP($W$26,class!$CX$2:$DD$381,2,0)) ->  | D44: =IF(ISNA(VLOOKUP($W$26,class!$CX$2:$DD$381,3,0)),"",VLOOKUP($W$26,class!$CX$2:$DD$381,3,0)) ->  | E44: =IF(ISNA(VLOOKUP($W$26,class!$CX$2:$DD$381,4,0)),"",VLOOKUP($W$26,class!$CX$2:$DD$381,4,0)) ->  | F44: =IF(ISNA(VLOOKUP($W$26,class!$CX$2:$DD$381,5,0)),"",VLOOKUP($W$26,class!$CX$2:$DD$381,5,0)) ->  | G44: =IF(ISNA(VLOOKUP($W$26,class!$CX$2:$DD$381,3,0)),"",VLOOKUP($W$26,class!$CX$2:$DD$381,3,0)) ->  | H44: =IF(ISNA(VLOOKUP($W$26,class!$CX$2:$DD$381,6,0)),"",VLOOKUP($W$26,class!$CX$2:$DD$381,6,0)) -> 
Y45: gagne | Z45: nul | AA45: perdu | AC45: gagne | AD45: nul | AE45: perdu
Y46: =IF(F31>H31,1,0) -> 0 | Z46: =IF(ISTEXT(F31),F31,IF(F31="","",IF(F31=H31,"1",IF(F31>H31,"0","0")))) ->  | AA46: =IF(F31<H31,1,0) -> 0 | AB46: =M4 ->  | AC46: =COUNTIF(Y46,1) -> 0 | AD46: =COUNTIF(Z46:Z47,1) -> 0 | AE46: =COUNTIF(AA46,1) -> 0 | AF46: =AB46 -> 
Y47: =IF(F32>H32,1,0) -> 0 | Z47: =IF(ISTEXT(F32),F32,IF(F32="","",IF(F32=H32,"1",IF(F32>H32,"0","0")))) ->  | AA47: =IF(F32<H32,1,0) -> 0 | AB47: =M6 ->  | AC47: =COUNTIF(Y47,1) -> 0 | AE47: =COUNTIF(AA47,1) -> 0 | AF47: =AB47 -> 
Y48: =COUNTIF(Z46:Z47,1) -> 0 | Z48: =COUNTIF(Z46,1) -> 0 | AA48: =COUNTIF(AA46,1) -> 0 | AB48: =COUNTIF(Z46,1) -> 0
Y50: gagne | Z50: nul | AA50: perdu | AC50: gagne | AD50: nul | AE50: perdu
Y51: =IF(F29>H29,1,0) -> 0 | Z51: =IF(ISTEXT(F29),F29,IF(F29="","",IF(F29=H29,"1",IF(F29>H29,"0","0")))) ->  | AA51: =IF(F29<H29,1,0) -> 0 | AB51: =M4 ->  | AC51: =COUNTIF(Y51,1) -> 0 | AD51: =COUNTIF(Z51:Z52,1) -> 0 | AE51: =COUNTIF(AA51,1) -> 0 | AF51: =AB51 -> 
Y52: =IF(F30>H30,1,0) -> 0 | Z52: =IF(ISTEXT(F30),F30,IF(F30="","",IF(F30=H30,"1",IF(F30>H30,"0","0")))) ->  | AA52: =IF(F30<H30,1,0) -> 0 | AB52: =M6 ->  | AC52: =COUNTIF(Y52,1) -> 0 | AE52: =COUNTIF(AA52,1) -> 0 | AF52: =AB52 -> 
Y53: =COUNTIF(Z51:Z52,1) -> 0 | Z53: =COUNTIF(Z51,1) -> 0 | AA53: =COUNTIF(AA51,1) -> 0 | AB53: =COUNTIF(Z51,1) -> 0
Y55: gagne | Z55: nul | AA55: perdu | AC55: gagne | AD55: nul | AE55: perdu
Y56: =IF(F27>H27,1,0) -> 0 | Z56: =IF(ISTEXT(F27),F27,IF(F27="","",IF(F27=H27,"1",IF(F27>H27,"0","0")))) ->  | AA56: =IF(F27<H27,1,0) -> 0 | AB56: =M4 ->  | AC56: =COUNTIF(Y56,1) -> 0 | AD56: =COUNTIF(Z56:Z57,1) -> 0 | AE56: =COUNTIF(AA56,1) -> 0 | AF56: =AB56 -> 
Y57: =IF(F28>H28,1,0) -> 0 | Z57: =IF(ISTEXT(F28),F28,IF(F28="","",IF(F28=H28,"1",IF(F28>H28,"0","0")))) ->  | AA57: =IF(F28<H28,1,0) -> 0 | AB57: =M6 ->  | AC57: =COUNTIF(Y57,1) -> 0 | AE57: =COUNTIF(AA57,1) -> 0 | AF57: =AB57 -> 
Y58: =COUNTIF(Z56:Z57,1) -> 0 | Z58: =COUNTIF(Z56,1) -> 0 | AA58: =COUNTIF(AA56,1) -> 0 | AB58: =COUNTIF(Z56,1) -> 0
Y60: gagne | Z60: nul | AA60: perdu | AC60: gagne | AD60: nul | AE60: perdu
Y61: =IF(F25>H25,1,0) -> 0 | Z61: =IF(ISTEXT(F25),F25,IF(F25="","",IF(F25=H25,"1",IF(F25>H25,"0","0")))) ->  | AA61: =IF(F25<H25,1,0) -> 0 | AB61: =AB56 ->  | AC61: =COUNTIF(Y61,1) -> 0 | AD61: =COUNTIF(Z61:Z62,1) -> 0 | AE61: =COUNTIF(AA61,1) -> 0 | AF61: =AF56 -> 
Y62: =IF(F26>H26,1,0) -> 0 | Z62: =IF(ISTEXT(F26),F26,IF(F26="","",IF(F26=H26,"1",IF(F26>H26,"0","0")))) ->  | AA62: =IF(F26<H26,1,0) -> 0 | AB62: =AB57 ->  | AC62: =COUNTIF(Y62,1) -> 0 | AE62: =COUNTIF(AA62,1) -> 0 | AF62: =AF57 -> 
Y63: =COUNTIF(Z61:Z62,1) -> 0 | Z63: =COUNTIF(Z61,1) -> 0 | AA63: =COUNTIF(AA61,1) -> 0 | AB63: =COUNTIF(Z61,1) -> 0
Y65: gagne | Z65: nul | AA65: perdu | AC65: gagne | AD65: nul | AE65: perdu
Y66: =IF(F23>H23,1,0) -> 0 | Z66: =IF(ISTEXT(F23),F23,IF(F23="","",IF(F23=H23,"1",IF(F23>H23,"0","0")))) ->  | AA66: =IF(F23<H23,1,0) -> 0 | AB66: =AB61 ->  | AC66: =COUNTIF(Y66,1) -> 0 | AD66: =COUNTIF(Z66:Z67,1) -> 0 | AE66: =COUNTIF(AA66,1) -> 0 | AF66: =AF61 -> 
Y67: =IF(F24>H24,1,0) -> 0 | Z67: =IF(ISTEXT(F24),F24,IF(F24="","",IF(F24=H24,"1",IF(F24>H24,"0","0")))) ->  | AA67: =IF(F24<H24,1,0) -> 0 | AB67: =AB62 ->  | AC67: =COUNTIF(Y67,1) -> 0 | AE67: =COUNTIF(AA67,1) -> 0 | AF67: =AF62 -> 
Y68: =COUNTIF(Z66:Z67,1) -> 0 | Z68: =COUNTIF(Z66,1) -> 0 | AA68: =COUNTIF(AA66,1) -> 0 | AB68: =COUNTIF(Z66,1) -> 0
Y70: gagne | Z70: nul | AA70: perdu | AC70: gagne | AD70: nul | AE70: perdu
Y71: =IF(F21>H21,1,0) -> 0 | Z71: =IF(ISTEXT(F21),F21,IF(F21="","",IF(F21=H21,"1",IF(F21>H21,"0","0")))) ->  | AA71: =IF(F21<H21,1,0) -> 0 | AB71: =AB66 ->  | AC71: =COUNTIF(Y71,1) -> 0 | AD71: =COUNTIF(Z71:Z72,1) -> 0 | AE71: =COUNTIF(AA71,1) -> 0 | AF71: =AF66 -> 
Y72: =IF(F22>H22,1,0) -> 0 | Z72: =IF(ISTEXT(F22),F22,IF(F22="","",IF(F22=H22,"1",IF(F22>H22,"0","0")))) ->  | AA72: =IF(F22<H22,1,0) -> 0 | AB72: =AB67 ->  | AC72: =COUNTIF(Y72,1) -> 0 | AE72: =COUNTIF(AA72,1) -> 0 | AF72: =AF67 -> 
Y73: =COUNTIF(Z71:Z72,1) -> 0 | Z73: =COUNTIF(Z71,1) -> 0 | AA73: =COUNTIF(AA71,1) -> 0 | AB73: =COUNTIF(Z71,1) -> 0
Y75: gagne | Z75: nul | AA75: perdu | AC75: gagne | AD75: nul | AE75: perdu
Y76: =IF(F19>H19,1,0) -> 0 | Z76: =IF(ISTEXT(F19),F19,IF(F19="","",IF(F19=H19,"1",IF(F19>H19,"0","0")))) ->  | AA76: =IF(F19<H19,1,0) -> 0 | AB76: =AB71 ->  | AC76: =COUNTIF(Y76,1) -> 0 | AD76: =COUNTIF(Z76:Z77,1) -> 0 | AE76: =COUNTIF(AA76,1) -> 0 | AF76: =AF71 -> 
Y77: =IF(F20>H20,1,0) -> 0 | Z77: =IF(ISTEXT(F20),F20,IF(F20="","",IF(F20=H20,"1",IF(F20>H20,"0","0")))) ->  | AA77: =IF(F20<H20,1,0) -> 0 | AB77: =AB72 ->  | AC77: =COUNTIF(Y77,1) -> 0 | AE77: =COUNTIF(AA77,1) -> 0 | AF77: =AF72 -> 
Y78: =COUNTIF(Z76:Z77,1) -> 0 | Z78: =COUNTIF(Z76,1) -> 0 | AA78: =COUNTIF(AA76,1) -> 0 | AB78: =COUNTIF(Z76,1) -> 0
Y80: gagne | Z80: nul | AA80: perdu | AC80: gagne | AD80: nul | AE80: perdu
Y81: =IF(F43>H43,1,0) -> 0 | Z81: =IF(ISTEXT(F43),F43,IF(F43="","",IF(F43=H43,"1",IF(F43>H43,"0","0")))) ->  | AA81: =IF(F43<H43,1,0) -> 0 | AB81: =AB76 ->  | AC81: =COUNTIF(Y81,1) -> 0 | AD81: =COUNTIF(Z81:Z82,1) -> 0 | AE81: =COUNTIF(AA81,1) -> 0 | AF81: =AF76 -> 
Y82: =IF(F44>H44,1,0) -> 0 | Z82: =IF(ISTEXT(F44),F44,IF(F44="","",IF(F44=H44,"1",IF(F44>H44,"0","0")))) ->  | AA82: =IF(F44<H44,1,0) -> 0 | AB82: =AB77 ->  | AC82: =COUNTIF(Y82,1) -> 0 | AE82: =COUNTIF(AA82,1) -> 0 | AF82: =AF77 -> 
Y83: =COUNTIF(Z81:Z82,1) -> 0 | Z83: =COUNTIF(Z81,1) -> 0 | AA83: =COUNTIF(AA81,1) -> 0 | AB83: =COUNTIF(Z81,1) -> 0

Sheet class (hidden)
A1: 2018-2019 | Q1: MATCH ALLER ET RETOUR 2006/2007 | Y1: MATCH ALLER ET RETOUR 2007/2008
A2: =IF(OR(D2=gnp!$G$5,F2=gnp!$G$5),B$2,"") ->  | B2: 1 | C2: =D2&E2&F2 -> AC Ajaccio-Troyes | D2: =journée01!H13 -> AC Ajaccio | E2: - | F2: =journée01!V13 -> Troyes | G2: =IF(ISBLANK(journée01!Q13),"",journée01!Q13) -> 0 | H2: =IF(ISBLANK(journée01!S13),"",journée01!S13) -> 1 | I2: =IF(ISTEXT(G2),G2,IF(G2="","",IF(G2=H2,$A$1,IF(G2>H2,$A$1,$A$1)))) -> 2018-2019 | J2: =IF(ISTEXT(G2),G2,IF(G2="","",IF(G2=H2,"N",IF(G2>H2,"G","P")))) -> P | K2: 1ère journée | L2: journée01 | M2: =G2&E2&H2 -> 0-1 | N2: =journée01!H11 -> 43308 | O2: Match Aller | P2: 1 | Q2: AC Ajaccio-Niort | R2: AC Ajaccio | S2: - | T2: Niort | U2: 1 | V2: 1 | W2: 2006-2007 | X2: 1 | Y2: Bastia-Le Havre | Z2: Bastia | AA2: - | AB2: Le Havre | AC2: 0 | AD2: 2 | AE2: 2007-2008 | AF2: AC Ajaccio-Châteauroux | AG2: AC Ajaccio | AH2: - | AI2: Châteauroux | AJ2: 0 | AK2: 1 | AL2: 2008-2009 | AM2: AC Ajaccio-Guingamp | AN2: AC Ajaccio | AO2: - | AP2: Guingamp | AQ2: 0 | AR2: 1 | AS2: 2009-2010 | AT2: Grenoble-Le Havre | AU2: Grenoble | AV2: - | AW2: Le Havre | AX2: 1 | AY2: 0 | AZ2: 2010-2011 | BA2: Sedan-Nantes | BB2: Sedan | BC2: - | BD2: Nantes | BE2: 2 | BF2: 0 | BG2: 2011-2012 | BH2: Châteauroux-Laval | BI2: Châteauroux | BJ2: - | BK2: Laval | BL2: 1 | BM2: 1 | BN2: 2012-2013 | BO2: Arles-Avignon-Le Havre | BP2: Arles-Avignon | BQ2: - | BR2: Le Havre | BS2: 2 | BT2: 0 | BU2: 2013-2014 | BV2: Arles-Avignon-AC Ajaccio | BW2: Arles-Avignon | BX2: - | BY2: AC Ajaccio | BZ2: 0 | CA2: 0 | CB2: 2014-2015 | CC2: AC Ajaccio-Dijon | CD2: AC Ajaccio | CE2: - | CF2: Dijon | CG2: 0 | CH2: 0 | CI2: 2015-2016 | CJ2: Amiens-Reims | CK2: Amiens | CL2: - | CM2: Reims | CN2: 1 | CO2: 1 | CP2: 2016-2017 | CQ2: Auxerre-Lens | CR2: Auxerre | CS2: - | CT2: Lens | CU2: 1 | CV2: 0 | CW2: 2017-2018
A3: =IF(OR(D3=gnp!$G$5,F3=gnp!$G$5),B$2,"") ->  | B3: =B2+50 -> 51 | C3: =D3&E3&F3 -> GFCO Ajaccio-Paris FC | D3: =journée01!H14 -> GFCO Ajaccio | E3: - | F3: =journée01!V14 -> Paris FC | G3: =IF(ISBLANK(journée01!Q14),"",journée01!Q14) -> 1 | H3: =IF(ISBLANK(journée01!S14),"",journée01!S14) -> 1 | I3: =IF(ISTEXT(G3),G3,IF(G3="","",IF(G3=H3,$A$1,IF(G3>H3,$A$1,$A$1)))) -> 2018-2019 | J3: =IF(ISTEXT(G3),G3,IF(G3="","",IF(G3=H3,"N",IF(G3>H3,"G","P")))) -> N | K3: =K2 -> 1ère journée | L3: journée01 | M3: =G3&E3&H3 -> 1-1 | N3: =N2 -> 43308 | O3: =O2 -> Match Aller | P3: 51 | Q3: Caen-Libourne/Seurin | R3: Caen | S3: - | T3: Libourne/Seurin | U3: 2 | V3: 1 | W3: 2006-2007 | X3: 51 | Y3: Brest-Angers | Z3: Brest | AA3: - | AB3: Angers | AC3: 1 | AD3: 0 | AE3: 2007-2008 | AF3: Amiens-Boulogne/Mer | AG3: Amiens | AH3: - | AI3: Boulogne/Mer | AJ3: 1 | AK3: 1 | AL3: 2008-2009 | AM3: Angers-Dijon | AN3: Angers | AO3: - | AP3: Dijon | AQ3: 3 | AR3: 0 | AS3: 2009-2010 | AT3: Reims-Laval | AU3: Reims | AV3: - | AW3: Laval | AX3: 1 | AY3: 1 | AZ3: 2010-2011 | BA3: Angers-Le Havre | BB3: Angers | BC3: - | BD3: Le Havre | BE3: 1 | BF3: 2 | BG3: 2011-2012 | BH3: Lens-Le Mans | BI3: Lens | BJ3: - | BK3: Le Mans | BL3: 2 | BM3: 2 | BN3: 2012-2013 | BO3: Caen-Dijon | BP3: Caen | BQ3: - | BR3: Dijon | BS3: 3 | BT3: 1 | BU3: 2013-2014 | BV3: Auxerre-Le Havre | BW3: Auxerre | BX3: - | BY3: Le Havre | BZ3: 2 | CA3: 0 | CB3: 2014-2015 | CC3: Auxerre-Brest | CD3: Auxerre | CE3: - | CF3: Brest | CG3: 0 | CH3: 0 | CI3: 2015-2016 | CJ3: FC Bourg-Péronnas-RC Strasbourg | CK3: FC Bourg-Péronnas | CL3: - | CM3: RC Strasbourg | CN3: 0 | CO3: 0 | CP3: 2016-2017 | CQ3: Paris FC-Clermont Foot | CR3: Paris FC | CS3: - | CT3: Clermont Foot | CU3: 0 | CV3: 0 | CW3: 2017-2018
A4: =IF(OR(D4=gnp!$G$5,F4=gnp!$G$5),B$2,"") ->  | B4: =B3+50 -> 101 | C4: Brest-Metz | D4: =journée01!H15 -> Brest | E4: - | F4: =journée01!V15 -> Metz | G4: =IF(ISBLANK(journée01!Q15),"",journée01!Q15) -> 0 | H4: =IF(ISBLANK(journée01!S15),"",journée01!S15) -> 1 | I4: 2018-2019 | J4: P | K4: =K3 -> 1ère journée | L4: journée01 | M4: 0-1 | N4: =N3 -> 43308 | O4: =O3 -> Match Aller | P4: 101 | Q4: Châteauroux-Tours FC | R4: Châteauroux | S4: - | T4: Tours FC | U4: 3 | V4: 1 | W4: 2006-2007 | X4: 101 | Y4: Clermont Foot-Châteauroux | Z4: Clermont Foot | AA4: - | AB4: Châteauroux | AC4: 0 | AD4: 0 | AE4: 2007-2008 | AF4: Angers-Reims | AG4: Angers | AH4: - | AI4: Reims | AJ4: 3 | AK4: 1 | AL4: 2008-2009 | AM4: Brest-Laval | AN4: Brest | AO4: - | AP4: Laval | AQ4: 2 | AR4: 1 | AS4: 2009-2010 | AT4: Vannes OC-Troyes | AU4: Vannes OC | AV4: - | AW4: Troyes | AX4: 1 | AY4: 0 | AZ4: 2010-2011 | BA4: Tours FC-Metz | BB4: Tours FC | BC4: - | BD4: Metz | BE4: 1 | BF4: 0 | BG4: 2011-2012 | BH4: Angers-Sedan | BI4: Angers | BJ4: - | BK4: Sedan | BL4: 1 | BM4: 0 | BN4: 2012-2013 | BO4: Châteauroux-Brest | BP4: Châteauroux | BQ4: - | BR4: Brest | BS4: 3 | BT4: 3 | BU4: 2013-2014 | BV4: Brest-Clermont Foot | BW4: Brest | BX4: - | BY4: Clermont Foot | BZ4: 2 | CA4: 1 | CB4: 2014-2015 | CC4: Nancy-Tours FC | CD4: Nancy | CE4: - | CF4: Tours FC | CG4: 0 | CH4: 0 | CI4: 2015-2016 | CJ4: GFCO Ajaccio-Brest | CK4: GFCO Ajaccio | CL4: - | CM4: Brest | CN4: 0 | CO4: 0 | CP4: 2016-2017 | CQ4: Brest-Châteauroux | CR4: Brest | CS4: - | CT4: Châteauroux | CU4: 2 | CV4: 3 | CW4: 2017-2018
A5: =IF(OR(D5=gnp!$G$5,F5=gnp!$G$5),B$2,"") ->  | B5: 151 | C5: Clermont Foot-Châteauroux | D5: =journée01!H16 -> Clermont Foot | E5: - | F5: =journée01!V16 -> Châteauroux | G5: =IF(ISBLANK(journée01!Q16),"",journée01!Q16) -> 0 | H5: =IF(ISBLANK(journée01!S16),"",journée01!S16) -> 0 | I5: 2018-2019 | J5: N | K5: 1ère journée | L5: journée01 | M5: 0-0 | N5: 43308 | O5: Match Aller | P5: 151 | Q5: Créteil-Guingamp | R5: Créteil | S5: - | T5: Guingamp | U5: 0 | V5: 0 | W5: 2006-2007 | X5: 151 | Y5: Dijon-AC Ajaccio | Z5: Dijon | AA5: - | AB5: AC Ajaccio | AC5: 1 | AD5: 1 | AE5: 2007-2008 | AF5: Clermont Foot-Vannes OC | AG5: Clermont Foot | AH5: - | AI5: Vannes OC | AJ5: 0 | AK5: 1 | AL5: 2008-2009 | AM5: Caen-Nantes | AN5: Caen | AO5: - | AP5: Nantes | AQ5: 1 | AR5: 0 | AS5: 2009-2010 | AT5: Nantes-Le Mans | AU5: Nantes | AV5: - | AW5: Le Mans | AX5: 0 | AY5: 2 | AZ5: 2010-2011 | BA5: Amiens-Troyes | BB5: Amiens | BC5: - | BD5: Troyes | BE5: 1 | BF5: 1 | BG5: 2011-2012 | BH5: Dijon-Guingamp | BI5: Dijon | BJ5: - | BK5: Guingamp | BL5: 1 | BM5: 0 | BN5: 2012-2013 | BO5: Clermont Foot-Tours FC | BP5: Clermont Foot | BQ5: - | BR5: Tours FC | BS5: 2 | BT5: 1 | BU5: 2013-2014 | BV5: GFCO Ajaccio-Valenciennes | BW5: GFCO Ajaccio | BX5: - | BY5: Valenciennes | BZ5: 2 | CA5: 0 | CB5: 2014-2015 | CC5: Niort-Valenciennes | CD5: Niort | CE5: - | CF5: Valenciennes | CG5: 0 | CH5: 1 | CI5: 2015-2016 | CJ5: Nîmes-Laval | CK5: Nîmes | CL5: - | CM5: Laval | CN5: 0 | CO5: 0 | CP5: 2016-2017 | CQ5: Lorient-US Quevilly | CR5: Lorient | CS5: - | CT5: US Quevilly | CU5: 1 | CV5: 1 | CW5: 2017-2018
A6: =IF(OR(D6=gnp!$G$5,F6=gnp!$G$5),B$2,"") ->  | B6: 201 | C6: Grenoble Foot 38-Sochaux | D6: =journée01!H17 -> Grenoble Foot 38 | E6: - | F6: =journée01!V17 -> Sochaux | G6: =IF(ISBLANK(journée01!Q17),"",journée01!Q17) -> 1 | H6: =IF(ISBLANK(journée01!S17),"",journée01!S17) -> 0 | I6: 2018-2019 | J6: G | K6: 1ère journée | L6: journée01 | M6: 1-0 | N6: 43308 | O6: Match Aller | P6: 201 | Q6: Grenoble-Montpellier | R6: Grenoble | S6: - | T6: Montpellier | U6: 3 | V6: 2 | W6: 2006-2007 | X6: 201 | Y6: Grenoble-Sedan | Z6: Grenoble | AA6: - | AB6: Sedan | AC6: 0 | AD6: 0 | AE6: 2007-2008 | AF6: Guingamp-Metz | AG6: Guingamp | AH6: - | AI6: Metz | AJ6: 0 | AK6: 1 | AL6: 2008-2009 | AM6: Clermont Foot-Arles | AN6: Clermont Foot | AO6: - | AP6: Arles | AQ6: 1 | AR6: 2 | AS6: 2009-2010 | AT6: Tours FC-Sedan | AU6: Tours FC | AV6: - | AW6: Sedan | AX6: 4 | AY6: 3 | AZ6: 2010-2011 | BA6: Guingamp-Châteauroux | BB6: Guingamp | BC6: - | BD6: Châteauroux | BE6: 1 | BF6: 1 | BG6: 2011-2012 | BH6: GFCO Ajaccio-Caen | BI6: GFCO Ajaccio | BJ6: - | BK6: Caen | BL6: 0 | BM6: 0 | BN6: 2012-2013 | BO6: Istres-Angers | BP6: Istres | BQ6: - | BR6: Angers | BS6: 2 | BT6: 4 | BU6: 2013-2014 | BV6: Châteauroux-Troyes | BW6: Châteauroux | BX6: - | BY6: Troyes | BZ6: 0 | CA6: 1 | CB6: 2014-2015 | CC6: Clermont Foot-Sochaux | CD6: Clermont Foot | CE6: - | CF6: Sochaux | CG6: 0 | CH6: 0 | CI6: 2015-2016 | CJ6: Niort-Lens | CK6: Niort | CL6: - | CM6: Lens | CN6: 0 | CO6: 0 | CP6: 2016-2017 | CQ6: Nîmes-Reims | CR6: Nîmes | CS6: - | CT6: Reims | CU6: 0 | CV6: 1 | CW6: 2017-2018
A7: =IF(OR(D7=gnp!$G$5,F7=gnp!$G$5),B$2,"") ->  | B7: 251 | C7: Lorient-Le Havre | D7: =journée01!H18 -> Lorient | E7: - | F7: =journée01!V18 -> Le Havre | G7: =IF(ISBLANK(journée01!Q18),"",journée01!Q18) -> 0 | H7: =IF(ISBLANK(journée01!S18),"",journée01!S18) -> 0 | I7: 2018-2019 | J7: N | K7: 1ère journée | L7: journée01 | M7: 0-0 | N7: 43308 | O7: Match Aller | P7: 251 | Q7: Gueugnon-Metz | R7: Gueugnon | S7: - | T7: Metz | U7: 0 | V7: 1 | W7: 2006-2007 | X7: 251 | Y7: Gueugnon-Amiens | Z7: Gueugnon | AA7: - | AB7: Amiens | AC7: 1 | AD7: 2 | AE7: 2007-2008 | AF7: Lens-Dijon | AG7: Lens | AH7: - | AI7: Dijon | AJ7: 3 | AK7: 1 | AL7: 2008-2009 | AM7: Istres-Bastia | AN7: Istres | AO7: - | AP7: Bastia | AQ7: 1 | AR7: 0 | AS7: 2009-2010 | AT7: AC Ajaccio-Nîmes | AU7: AC Ajaccio | AV7: - | AW7: Nîmes | AX7: 1 | AY7: 0 | AZ7: 2010-2011 | BA7: Arles-Avignon-Le Mans | BB7: Arles-Avignon | BC7: - | BD7: Le Mans | BE7: 1 | BF7: 0 | BG7: 2011-2012 | BH7: Auxerre-Nîmes | BI7: Auxerre | BJ7: - | BK7: Nîmes | BL7: 2 | BM7: 0 | BN7: 2012-2013 | BO7: Lens-CA Bastia | BP7: Lens | BQ7: - | BR7: CA Bastia | BS7: 1 | BT7: 0 | BU7: 2013-2014 | BV7: Nîmes-Angers | BW7: Nîmes | BX7: - | BY7: Angers | BZ7: 3 | CA7: 2 | CB7: 2014-2015 | CC7: FC Bourg-Péronnas-Le Havre | CD7: FC Bourg-Péronnas | CE7: - | CF7: Le Havre | CG7: 1 | CH7: 3 | CI7: 2015-2016 | CJ7: US Orléans-Le Havre | CK7: US Orléans | CL7: - | CM7: Le Havre | CN7: 0 | CO7: 1 | CP7: 2016-2017 | CQ7: Niort-AC Ajaccio | CR7: Niort | CS7: - | CT7: AC Ajaccio | CU7: 0 | CV7: 0 | CW7: 2017-2018
A8: =IF(OR(D8=gnp!$G$5,F8=gnp!$G$5),B$2,"") ->  | B8: 301 | C8: Nancy-AS Béziers | D8: =journée01!H19 -> Nancy | E8: - | F8: =journée01!V19 -> AS Béziers | G8: =IF(ISBLANK(journée01!Q19),"",journée01!Q19) -> 0 | H8: =IF(ISBLANK(journée01!S19),"",journée01!S19) -> 2 | I8: 2018-2019 | J8: P | K8: 1ère journée | L8: journée01 | M8: 0-2 | N8: 43308 | O8: Match Aller | P8: 301 | Q8: Istres-Bastia | R8: Istres | S8: - | T8: Bastia | U8: 2 | V8: 2 | W8: 2006-2007 | X8: 301 | Y8: Libourne/Seurin-Montpellier | Z8: Libourne/Seurin | AA8: - | AB8: Montpellier | AC8: 1 | AD8: 3 | AE8: 2007-2008 | AF8: Nîmes-Brest | AG8: Nîmes | AH8: - | AI8: Brest | AJ8: 0 | AK8: 1 | AL8: 2008-2009 | AM8: Sedan-Le Havre | AN8: Sedan | AO8: - | AP8: Le Havre | AQ8: 1 | AR8: 1 | AS8: 2009-2010 | AT8: Boulogne-sur-Mer-Clermont Foot | AU8: Boulogne-sur-Mer | AV8: - | AW8: Clermont Foot | AX8: 1 | AY8: 1 | AZ8: 2010-2011 | BA8: Lens-Reims | BB8: Lens | BC8: - | BD8: Reims | BE8: 0 | BF8: 2 | BG8: 2011-2012 | BH8: Niort-Clermont Foot | BI8: Niort | BJ8: - | BK8: Clermont Foot | BL8: 1 | BM8: 1 | BN8: 2012-2013 | BO8: Metz-Laval | BP8: Metz | BQ8: - | BR8: Laval | BS8: 1 | BT8: 0 | BU8: 2013-2014 | BV8: Sochaux-US Orléans | BW8: Sochaux | BX8: - | BY8: US Orléans | BZ8: 0 | CA8: 1 | CB8: 2014-2015 | CC8: Metz-Lens | CD8: Metz | CE8: - | CF8: Lens | CG8: 0 | CH8: 0 | CI8: 2015-2016 | CJ8: Red Star 93-Auxerre | CK8: Red Star 93 | CL8: - | CM8: Auxerre | CN8: 0 | CO8: 0 | CP8: 2016-2017 | CQ8: US Orléans-Nancy | CR8: US Orléans | CS8: - | CT8: Nancy | CU8: 3 | CV8: 1 | CW8: 2017-2018
A9: =IF(OR(D9=gnp!$G$5,F9=gnp!$G$5),B$2,"") ->  | B9: 351 | C9: US Orléans-Lens | D9: =journée01!H20 -> US Orléans | E9: - | F9: =journée01!V20 -> Lens | G9: =IF(ISBLANK(journée01!Q20),"",journée01!Q20) -> 0 | H9: =IF(ISBLANK(journée01!S20),"",journée01!S20) -> 2 | I9: 2018-2019 | J9: P | K9: 1ère journée | L9: journée01 | M9: 0-2 | N9: 43308 | O9: Match Aller | P9: 351 | Q9: Le Havre-Amiens | R9: Le Havre | S9: - | T9: Amiens | U9: 1 | V9: 3 | W9: 2006-2007 | X9: 351 | Y9: Nantes-Reims | Z9: Nantes | AA9: - | AB9: Reims | AC9: 5 | AD9: 0 | AE9: 2007-2008 | AF9: Strasbourg-Montpellier | AG9: Strasbourg | AH9: - | AI9: Montpellier | AJ9: 1 | AK9: 0 | AL9: 2008-2009 | AM9: Strasbourg-Châteauroux | AN9: Strasbourg | AO9: - | AP9: Châteauroux | AQ9: 1 | AR9: 2 | AS9: 2009-2010 | AT9: Châteauroux-Istres | AU9: Châteauroux | AV9: - | AW9: Istres | AX9: 0 | AY9: 0 | AZ9: 2010-2011 | BA9: Monaco-Boulogne-sur-Mer | BB9: Monaco | BC9: - | BD9: Boulogne-sur-Mer | BE9: 0 | BF9: 0 | BG9: 2011-2012 | BH9: Monaco-Tours FC | BI9: Monaco | BJ9: - | BK9: Tours FC | BL9: 4 | BM9: 0 | BN9: 2012-2013 | BO9: Nancy-Auxerre | BP9: Nancy | BQ9: - | BR9: Auxerre | BS9: 0 | BT9: 0 | BU9: 2013-2014 | BV9: Tours FC-Créteil | BW9: Tours FC | BX9: - | BY9: Créteil | BZ9: 4 | CA9: 2 | CB9: 2014-2015 | CC9: Nîmes-Evian Thonon G. | CD9: Nîmes | CE9: - | CF9: Evian Thonon G. | CG9: 0 | CH9: 0 | CI9: 2015-2016 | CJ9: Tours FC-AC Ajaccio | CK9: Tours FC | CL9: - | CM9: AC Ajaccio | CN9: 0 | CO9: 0 | CP9: 2016-2017 | CQ9: Sochaux-FC Bourg-Péronnas | CR9: Sochaux | CS9: - | CT9: FC Bourg-Péronnas | CU9: 2 | CV9: 0 | CW9: 2017-2018
A10: =IF(OR(D10=gnp!$G$5,F10=gnp!$G$5),B$2,"") ->  | B10: 401 | C10: Red Star 93-Niort | D10: =journée01!H21 -> Red Star 93 | E10: - | F10: =journée01!V21 -> Niort | G10: =IF(ISBLANK(journée01!Q21),"",journée01!Q21) -> 1 | H10: =IF(ISBLANK(journée01!S21),"",journée01!S21) -> 2 | I10: 2018-2019 | J10: P | K10: 1ère journée | L10: journée01 | M10: 1-2 | N10: 43308 | O10: Match Aller | P10: 401 | Q10: Reims-Brest | R10: Reims | S10: - | T10: Brest | U10: 2 | V10: 0 | W10: 2006-2007 | X10: 401 | Y10: Niort-Boulogne/Mer | Z10: Niort | AA10: - | AB10: Boulogne/Mer | AC10: 2 | AD10: 1 | AE10: 2007-2008 | AF10: Tours FC-Sedan | AG10: Tours FC | AH10: - | AI10: Sedan | AJ10: 2 | AK10: 1 | AL10: 2008-2009 | AM10: Tours FC-Nîmes | AN10: Tours FC | AO10: - | AP10: Nîmes | AQ10: 0 | AR10: 0 | AS10: 2009-2010 | AT10: Dijon-Angers | AU10: Dijon | AV10: - | AW10: Angers | AX10: 0 | AY10: 0 | AZ10: 2010-2011 | BA10: Laval-Clermont Foot | BB10: Laval | BC10: - | BD10: Clermont Foot | BE10: 1 | BF10: 2 | BG10: 2011-2012 | BH10: Le Havre-Arles-Avignon | BI10: Le Havre | BJ10: - | BK10: Arles-Avignon | BL10: 1 | BM10: 2 | BN10: 2012-2013 | BO10: Nîmes-Créteil | BP10: Nîmes | BQ10: - | BR10: Créteil | BS10: 2 | BT10: 3 | BU10: 2013-2014 | BV10: Nancy-Dijon | BW10: Nancy | BX10: - | BY10: Dijon | BZ10: 1 | CA10: 1 | CB10: 2014-2015 | CC10: Paris FC-Laval | CD10: Paris FC | CE10: - | CF10: Laval | CG10: 1 | CH10: 1 | CI10: 2015-2016 | CJ10: Troyes-Sochaux | CK10: Troyes | CL10: - | CM10: Sochaux | CN10: 1 | CO10: 3 | CP10: 2016-2017 | CQ10: Tours FC-Le Havre | CR10: Tours FC | CS10: - | CT10: Le Havre | CU10: 0 | CV10: 3 | CW10: 2017-2018
A11: =IF(OR(D11=gnp!$G$5,F11=gnp!$G$5),B$2,"") ->  | B11: 451 | C11: Valenciennes-Auxerre | D11: =journée01!H22 -> Valenciennes | E11: - | F11: =journée01!V22 -> Auxerre | G11: =IF(ISBLANK(journée01!Q22),"",journée01!Q22) -> 3 | H11: =IF(ISBLANK(journée01!S22),"",journée01!S22) -> 1 | I11: 2018-2019 | J11: G | K11: 1ère journée | L11: journée01 | M11: 3-1 | N11: 43308 | O11: Match Aller | P11: 451 | Q11: Strasbourg-Dijon | R11: Strasbourg | S11: - | T11: Dijon | U11: 0 | V11: 0 | W11: 2006-2007 | X11: 451 | Y11: Troyes-Guingamp | Z11: Troyes | AA11: - | AB11: Guingamp | AC11: 1 | AD11: 0 | AE11: 2007-2008 | AF11: Troyes-Bastia | AG11: Troyes | AH11: - | AI11: Bastia | AJ11: 1 | AK11: 2 | AL11: 2008-2009 | AM11: Vannes OC-Metz | AN11: Vannes OC | AO11: - | AP11: Metz | AQ11: 3 | AR11: 0 | AS11: 2009-2010 | AT11: Metz-Evian Thonon G. | AU11: Metz | AV11: - | AW11: Evian Thonon G. | AX11: 0 | AY11: 2 | AZ11: 2010-2011 | BA11: Bastia-Istres | BB11: Bastia | BC11: - | BD11: Istres | BE11: 3 | BF11: 1 | BG11: 2011-2012 | BH11: Nantes-Istres | BI11: Nantes | BJ11: - | BK11: Istres | BL11: 1 | BM11: 1 | BN11: 2012-2013 | BO11: Niort-Troyes | BP11: Niort | BQ11: - | BR11: Troyes | BS11: 1 | BT11: 1 | BU11: 2013-2014 | BV11: Laval-Niort | BW11: Laval | BX11: - | BY11: Niort | BZ11: 1 | CA11: 1 | CB11: 2014-2015 | CC11: Red Star 93-Créteil | CD11: Red Star 93 | CE11: - | CF11: Créteil | CG11: 0 | CH11: 1 | CI11: 2015-2016 | CJ11: Valenciennes-Clermont Foot | CK11: Valenciennes | CL11: - | CM11: Clermont Foot | CN11: 2 | CO11: 0 | CP11: 2016-2017 | CQ11: Valenciennes-GFCO Ajaccio | CR11: Valenciennes | CS11: - | CT11: GFCO Ajaccio | CU11: 1 | CV11: 1 | CW11: 2017-2018
A12: =IF(OR(D12=gnp!$G$5,F12=gnp!$G$5),B$2,"") ->  | B12: 2 | C12: Auxerre-GFCO Ajaccio | D12: =journée02!H13 -> Auxerre | E12: - | F12: =journée02!V13 -> GFCO Ajaccio | G12: =IF(ISBLANK(journée02!Q13),"",journée02!Q13) -> 2 | H12: =IF(ISBLANK(journée02!S13),"",journée02!S13) -> 3 | I12: 2018-2019 | J12: P | K12: 2ème journée | L12: journée02 | M12: 2-3 | N12: =journée02!H11 -> 43315 | O12: Match Aller | P12: 2 | Q12: Amiens-Strasbourg | R12: Amiens | S12: - | T12: Strasbourg | U12: 1 | V12: 0 | W12: 2006-2007 | X12: 2 | Y12: AC Ajaccio-Boulogne/Mer | Z12: AC Ajaccio | AA12: - | AB12: Boulogne/Mer | AC12: 2 | AD12: 2 | AE12: 2007-2008 | AF12: Bastia-Angers | AG12: Bastia | AH12: - | AI12: Angers | AJ12: 0 | AK12: 0 | AL12: 2008-2009 | AM12: Arles-AC Ajaccio | AN12: Arles | AO12: - | AP12: AC Ajaccio | AQ12: 2 | AR12: 1 | AS12: 2009-2010 | AT12: Troyes-Nantes | AU12: Troyes | AV12: - | AW12: Nantes | AX12: 0 | AY12: 2 | AZ12: 2010-2011 | BA12: Istres-Lens | BB12: Istres | BC12: - | BD12: Lens | BE12: 2 | BF12: 1 | BG12: 2011-2012 | BH12: Arles-Avignon-Lens | BI12: Arles-Avignon | BJ12: - | BK12: Lens | BL12: 0 | BM12: 0 | BN12: 2012-2013 | BO12: Angers-Châteauroux | BP12: Angers | BQ12: - | BR12: Châteauroux | BS12: 1 | BT12: 0 | BU12: 2013-2014 | BV12: AC Ajaccio-Sochaux | BW12: AC Ajaccio | BX12: - | BY12: Sochaux | BZ12: 0 | CA12: 2 | CB12: 2014-2015 | CC12: Dijon-Niort | CD12: Dijon | CE12: - | CF12: Niort | CG12: 3 | CH12: 0 | CI12: 2015-2016 | CJ12: AC Ajaccio-Troyes | CK12: AC Ajaccio | CL12: - | CM12: Troyes | CN12: 2 | CO12: 1 | CP12: 2016-2017 | CQ12: AC Ajaccio-Brest | CR12: AC Ajaccio | CS12: - | CT12: Brest | CU12: 2 | CV12: 1 | CW12: 2017-2018
A13: =IF(OR(D13=gnp!$G$5,F13=gnp!$G$5),B$2,"") ->  | B13: =B12+50 -> 52 | C13: AS Béziers-AC Ajaccio | D13: =journée02!H14 -> AS Béziers | E13: - | F13: =journée02!V14 -> AC Ajaccio | G13: =IF(ISBLANK(journée02!Q14),"",journée02!Q14) -> 0 | H13: =IF(ISBLANK(journée02!S14),"",journée02!S14) -> 1 | I13: 2018-2019 | J13: P | K13: =K12 -> 2ème journée | L13: journée02 | M13: 0-1 | N13: =N12 -> 43315 | O13: Match Aller | P13: 52 | Q13: Bastia-Reims | R13: Bastia | S13: - | T13: Reims | U13: 1 | V13: 0 | W13: 2006-2007 | X13: 52 | Y13: Amiens-Troyes | Z13: Amiens | AA13: - | AB13: Troyes | AC13: 0 | AD13: 0 | AE13: 2007-2008 | AF13: Boulogne/Mer-Guingamp | AG13: Boulogne/Mer | AH13: - | AI13: Guingamp | AJ13: 2 | AK13: 0 | AL13: 2008-2009 | AM13: Bastia-Caen | AN13: Bastia | AO13: - | AP13: Caen | AQ13: 1 | AR13: 2 | AS13: 2009-2010 | AT13: Laval-Metz | AU13: Laval | AV13: - | AW13: Metz | AX13: 1 | AY13: 0 | AZ13: 2010-2011 | BA13: Nantes-Bastia | BB13: Nantes | BC13: - | BD13: Bastia | BE13: 0 | BF13: 2 | BG13: 2011-2012 | BH13: Nîmes-Nantes | BI13: Nîmes | BJ13: - | BK13: Nantes | BL13: 0 | BM13: 0 | BN13: 2012-2013 | BO13: Auxerre-Nîmes | BP13: Auxerre | BQ13: - | BR13: Nîmes | BS13: 1 | BT13: 1 | BU13: 2013-2014 | BV13: Angers-Arles-Avignon | BW13: Angers | BX13: - | BY13: Arles-Avignon | BZ13: 2 | CA13: 0 | CB13: 2014-2015 | CC13: Evian Thonon G.-Clermont Foot | CD13: Evian Thonon G. | CE13: - | CF13: Clermont Foot | CG13: 2 | CH13: 2 | CI13: 2015-2016 | CJ13: Auxerre-GFCO Ajaccio | CK13: Auxerre | CL13: - | CM13: GFCO Ajaccio | CN13: 1 | CO13: 2 | CP13: 2016-2017 | CQ13: FC Bourg-Péronnas-Paris FC | CR13: FC Bourg-Péronnas | CS13: - | CT13: Paris FC | CU13: 1 | CV13: 2 | CW13: 2017-2018
A14: =IF(OR(D14=gnp!$G$5,F14=gnp!$G$5),B$2,"") ->  | B14: =B13+50 -> 102 | C14: Châteauroux-Lorient | D14: =journée02!H15 -> Châteauroux | E14: - | F14: =journée02!V15 -> Lorient | G14: =IF(ISBLANK(journée02!Q15),"",journée02!Q15) -> 1 | H14: =IF(ISBLANK(journée02!S15),"",journée02!S15) -> 2 | I14: 2018-2019 | J14: P | K14: =K13 -> 2ème journée | L14: journée02 | M14: 1-2 | N14: =N13 -> 43315 | O14: Match Aller | P14: 102 | Q14: Brest-Libourne/Seurin | R14: Brest | S14: - | T14: Libourne/Seurin | U14: 2 | V14: 2 | W14: 2006-2007 | X14: 102 | Y14: Angers-Grenoble | Z14: Angers | AA14: - | AB14: Grenoble | AC14: 0 | AD14: 2 | AE14: 2007-2008 | AF14: Brest-Clermont Foot | AG14: Brest | AH14: - | AI14: Clermont Foot | AJ14: 2 | AK14: 2 | AL14: 2008-2009 | AM14: Châteauroux-Sedan | AN14: Châteauroux | AO14: - | AP14: Sedan | AQ14: 1 | AR14: 0 | AS14: 2009-2010 | AT14: Nîmes-Châteauroux | AU14: Nîmes | AV14: - | AW14: Châteauroux | AX14: 1 | AY14: 1 | AZ14: 2010-2011 | BA14: Troyes-Monaco | BB14: Troyes | BC14: - | BD14: Monaco | BE14: 1 | BF14: 1 | BG14: 2011-2012 | BH14: Guingamp-Le Havre | BI14: Guingamp | BJ14: - | BK14: Le Havre | BL14: 3 | BM14: 3 | BN14: 2012-2013 | BO14: Brest-Istres | BP14: Brest | BQ14: - | BR14: Istres | BS14: 3 | BT14: 1 | BU14: 2013-2014 | BV14: Clermont Foot-Auxerre | BW14: Clermont Foot | BX14: - | BY14: Auxerre | BZ14: 1 | CA14: 1 | CB14: 2014-2015 | CC14: Sochaux-Metz | CD14: Sochaux | CE14: - | CF14: Metz | CG14: 0 | CH14: 1 | CI14: 2015-2016 | CJ14: Brest-US Orléans | CK14: Brest | CL14: - | CM14: US Orléans | CN14: 2 | CO14: 1 | CP14: 2016-2017 | CQ14: Châteauroux-Valenciennes | CR14: Châteauroux | CS14: - | CT14: Valenciennes | CU14: 0 | CV14: 1 | CW14: 2017-2018
A15: =IF(OR(D15=gnp!$G$5,F15=gnp!$G$5),B$2,"") ->  | B15: 152 | C15: Le Havre-Grenoble Foot 38 | D15: =journée02!H16 -> Le Havre | E15: - | F15: =journée02!V16 -> Grenoble Foot 38 | G15: =IF(ISBLANK(journée02!Q16),"",journée02!Q16) -> 1 | H15: =IF(ISBLANK(journée02!S16),"",journée02!S16) -> 1 | I15: 2018-2019 | J15: N | K15: 2ème journée | L15: journée02 | M15: 1-1 | N15: 43315 | O15: Match Aller | P15: 152 | Q15: Châteauroux-Le Havre | R15: Châteauroux | S15: - | T15: Le Havre | U15: 2 | V15: 2 | W15: 2006-2007 | X15: 152 | Y15: Châteauroux-Nantes | Z15: Châteauroux | AA15: - | AB15: Nantes | AC15: 1 | AD15: 2 | AE15: 2007-2008 | AF15: Châteauroux-Troyes | AG15: Châteauroux | AH15: - | AI15: Troyes | AJ15: 0 | AK15: 1 | AL15: 2008-2009 | AM15: Dijon-Tours FC | AN15: Dijon | AO15: - | AP15: Tours FC | AQ15: 2 | AR15: 2 | AS15: 2009-2010 | AT15: Le Havre-AC Ajaccio | AU15: Le Havre | AV15: - | AW15: AC Ajaccio | AX15: 2 | AY15: 0 | AZ15: 2010-2011 | BA15: Le Havre-Laval | BB15: Le Havre | BC15: - | BD15: Laval | BE15: 1 | BF15: 1 | BG15: 2011-2012 | BH15: Laval-Monaco | BI15: Laval | BJ15: - | BK15: Monaco | BL15: 0 | BM15: 0 | BN15: 2012-2013 | BO15: CA Bastia-Nancy | BP15: CA Bastia | BQ15: - | BR15: Nancy | BS15: 1 | BT15: 2 | BU15: 2013-2014 | BV15: Créteil-Châteauroux | BW15: Créteil | BX15: - | BY15: Châteauroux | BZ15: 3 | CA15: 0 | CB15: 2014-2015 | CC15: Le Havre-AC Ajaccio | CD15: Le Havre | CE15: - | CF15: AC Ajaccio | CG15: 1 | CH15: 0 | CI15: 2015-2016 | CJ15: Clermont Foot-Red Star 93 | CK15: Clermont Foot | CL15: - | CM15: Red Star 93 | CN15: 0 | CO15: 0 | CP15: 2016-2017 | CQ15: Clermont Foot-Tours FC | CR15: Clermont Foot | CS15: - | CT15: Tours FC | CU15: 2 | CV15: 0 | CW15: 2017-2018
A16: =IF(OR(D16=gnp!$G$5,F16=gnp!$G$5),B$2,"") ->  | B16: 202 | C16: Lens-Red Star 93 | D16: =journée02!H17 -> Lens | E16: - | F16: =journée02!V17 -> Red Star 93 | G16: =IF(ISBLANK(journée02!Q17),"",journée02!Q17) -> 1 | H16: =IF(ISBLANK(journée02!S17),"",journée02!S17) -> 0 | I16: 2018-2019 | J16: G | K16: 2ème journée | L16: journée02 | M16: 1-0 | N16: 43315 | O16: Match Aller | P16: 202 | Q16: Dijon-Caen | R16: Dijon | S16: - | T16: Caen | U16: 0 | V16: 2 | W16: 2006-2007 | X16: 202 | Y16: Clermont Foot-Bastia | Z16: Clermont Foot | AA16: - | AB16: Bastia | AC16: 2 | AD16: 3 | AE16: 2007-2008 | AF16: Dijon-Strasbourg | AG16: Dijon | AH16: - | AI16: Strasbourg | AJ16: 1 | AK16: 3 | AL16: 2008-2009 | AM16: Guingamp-Angers | AN16: Guingamp | AO16: - | AP16: Angers | AQ16: 0 | AR16: 0 | AS16: 2009-2010 | AT16: Clermont Foot-Dijon | AU16: Clermont Foot | AV16: - | AW16: Dijon | AX16: 2 | AY16: 2 | AZ16: 2010-2011 | BA16: Châteauroux-Sedan | BB16: Châteauroux | BC16: - | BD16: Sedan | BE16: 0 | BF16: 1 | BG16: 2011-2012 | BH16: Sedan-Châteauroux | BI16: Sedan | BJ16: - | BK16: Châteauroux | BL16: 1 | BM16: 1 | BN16: 2012-2013 | BO16: Créteil-Metz | BP16: Créteil | BQ16: - | BR16: Metz | BS16: 3 | BT16: 2 | BU16: 2013-2014 | BV16: Dijon-Laval | BW16: Dijon | BX16: - | BY16: Laval | BZ16: 1 | CA16: 0 | CB16: 2014-2015 | CC16: Lens-Red Star 93 | CD16: Lens | CE16: - | CF16: Red Star 93 | CG16: 1 | CH16: 1 | CI16: 2015-2016 | CJ16: Laval-Niort | CK16: Laval | CL16: - | CM16: Niort | CN16: 1 | CO16: 1 | CP16: 2016-2017 | CQ16: GFCO Ajaccio-Lorient | CR16: GFCO Ajaccio | CS16: - | CT16: Lorient | CU16: 0 | CV16: 0 | CW16: 2017-2018
A17: =IF(OR(D17=gnp!$G$5,F17=gnp!$G$5),B$2,"") ->  | B17: 252 | C17: Metz-US Orléans | D17: =journée02!H18 -> Metz | E17: - | F17: =journée02!V18 -> US Orléans | G17: =IF(ISBLANK(journée02!Q18),"",journée02!Q18) -> 5 | H17: =IF(ISBLANK(journée02!S18),"",journée02!S18) -> 1 | I17: 2018-2019 | J17: G | K17: 2ème journée | L17: journée02 | M17: 5-1 | N17: 43315 | O17: Match Aller | P17: 252 | Q17: Guingamp-AC Ajaccio | R17: Guingamp | S17: - | T17: AC Ajaccio | U17: 1 | V17: 1 | W17: 2006-2007 | X17: 252 | Y17: Guingamp-Niort | Z17: Guingamp | AA17: - | AB17: Niort | AC17: 0 | AD17: 0 | AE17: 2007-2008 | AF17: Metz-Tours FC | AG17: Metz | AH17: - | AI17: Tours FC | AJ17: 1 | AK17: 0 | AL17: 2008-2009 | AM17: Laval-Strasbourg | AN17: Laval | AO17: - | AP17: Strasbourg | AQ17: 3 | AR17: 2 | AS17: 2009-2010 | AT17: Le Mans-Reims | AU17: Le Mans | AV17: - | AW17: Reims | AX17: 2 | AY17: 2 | AZ17: 2010-2011 | BA17: Clermont Foot-Guingamp | BB17: Clermont Foot | BC17: - | BD17: Guingamp | BE17: 0 | BF17: 1 | BG17: 2011-2012 | BH17: Tours FC-Niort | BI17: Tours FC | BJ17: - | BK17: Niort | BL17: 2 | BM17: 2 | BN17: 2012-2013 | BO17: Dijon-Lens | BP17: Dijon | BQ17: - | BR17: Lens | BS17: 1 | BT17: 1 | BU17: 2013-2014 | BV17: Le Havre-GFCO Ajaccio | BW17: Le Havre | BX17: - | BY17: GFCO Ajaccio | BZ17: 1 | CA17: 1 | CB17: 2014-2015 | CC17: Brest-Nîmes | CD17: Brest | CE17: - | CF17: Nîmes | CG17: 2 | CH17: 0 | CI17: 2015-2016 | CJ17: Le Havre-Nîmes | CK17: Le Havre | CL17: - | CM17: Nîmes | CN17: 1 | CO17: 0 | CP17: 2016-2017 | CQ17: Le Havre-Auxerre | CR17: Le Havre | CS17: - | CT17: Auxerre | CU17: 4 | CV17: 1 | CW17: 2017-2018
A18: =IF(OR(D18=gnp!$G$5,F18=gnp!$G$5),B$2,"") ->  | B18: 302 | C18: Niort-Clermont Foot | D18: =journée02!H19 -> Niort | E18: - | F18: =journée02!V19 -> Clermont Foot | G18: =IF(ISBLANK(journée02!Q19),"",journée02!Q19) -> 4 | H18: =IF(ISBLANK(journée02!S19),"",journée02!S19) -> 2 | I18: 2018-2019 | J18: G | K18: 2ème journée | L18: journée02 | M18: 4-2 | N18: 43315 | O18: Match Aller | P18: 302 | Q18: Metz-Istres | R18: Metz | S18: - | T18: Istres | U18: 3 | V18: 0 | W18: 2006-2007 | X18: 302 | Y18: Le Havre-Brest | Z18: Le Havre | AA18: - | AB18: Brest | AC18: 1 | AD18: 1 | AE18: 2007-2008 | AF18: Montpellier-Amiens | AG18: Montpellier | AH18: - | AI18: Amiens | AJ18: 2 | AK18: 1 | AL18: 2008-2009 | AM18: Le Havre-Brest | AN18: Le Havre | AO18: - | AP18: Brest | AQ18: 1 | AR18: 0 | AS18: 2009-2010 | AT18: Angers-Boulogne-sur-Mer | AU18: Angers | AV18: - | AW18: Boulogne-sur-Mer | AX18: 0 | AY18: 0 | AZ18: 2010-2011 | BA18: Reims-Amiens | BB18: Reims | BC18: - | BD18: Amiens | BE18: 1 | BF18: 0 | BG18: 2011-2012 | BH18: Le Mans-Dijon | BI18: Le Mans | BJ18: - | BK18: Dijon | BL18: 1 | BM18: 2 | BN18: 2012-2013 | BO18: Laval-Caen | BP18: Laval | BQ18: - | BR18: Caen | BS18: 1 | BT18: 2 | BU18: 2013-2014 | BV18: Niort-Brest | BW18: Niort | BX18: - | BY18: Brest | BZ18: 0 | CA18: 0 | CB18: 2014-2015 | CC18: Laval-Nancy | CD18: Laval | CE18: - | CF18: Nancy | CG18: 0 | CH18: 1 | CI18: 2015-2016 | CJ18: Lens-Tours FC | CK18: Lens | CL18: - | CM18: Tours FC | CN18: 2 | CO18: 2 | CP18: 2016-2017 | CQ18: Lens-Nîmes | CR18: Lens | CS18: - | CT18: Nîmes | CU18: 1 | CV18: 2 | CW18: 2017-2018
A19: =IF(OR(D19=gnp!$G$5,F19=gnp!$G$5),B$2,"") ->  | B19: 352 | C19: Paris FC-Nancy | D19: =journée02!H20 -> Paris FC | E19: - | F19: =journée02!V20 -> Nancy | G19: =IF(ISBLANK(journée02!Q20),"",journée02!Q20) -> 2 | H19: =IF(ISBLANK(journée02!S20),"",journée02!S20) -> 0 | I19: 2018-2019 | J19: G | K19: 2ème journée | L19: journée02 | M19: 2-0 | N19: 43315 | O19: Match Aller | P19: 352 | Q19: Montpellier-Gueugnon | R19: Montpellier | S19: - | T19: Gueugnon | U19: 0 | V19: 3 | W19: 2006-2007 | X19: 352 | Y19: Montpellier-Dijon | Z19: Montpellier | AA19: - | AB19: Dijon | AC19: 1 | AD19: 1 | AE19: 2007-2008 | AF19: Reims-AC Ajaccio | AG19: Reims | AH19: - | AI19: AC Ajaccio | AJ19: 1 | AK19: 3 | AL19: 2008-2009 | AM19: Metz-Istres | AN19: Metz | AO19: - | AP19: Istres | AQ19: 2 | AR19: 0 | AS19: 2009-2010 | AT19: Sedan-Grenoble | AU19: Sedan | AV19: - | AW19: Grenoble | AX19: 1 | AY19: 0 | AZ19: 2010-2011 | BA19: Le Mans-Tours FC | BB19: Le Mans | BC19: - | BD19: Tours FC | BE19: 0 | BF19: 1 | BG19: 2011-2012 | BH19: Istres-GFCO Ajaccio | BI19: Istres | BJ19: - | BK19: GFCO Ajaccio | BL19: 2 | BM19: 0 | BN19: 2012-2013 | BO19: Le Havre-Clermont Foot | BP19: Le Havre | BQ19: - | BR19: Clermont Foot | BS19: 0 | BT19: 1 | BU19: 2013-2014 | BV19: US Orléans-Nancy | BW19: US Orléans | BX19: - | BY19: Nancy | BZ19: 0 | CA19: 1 | CB19: 2014-2015 | CC19: Tours FC-Paris FC | CD19: Tours FC | CE19: - | CF19: Paris FC | CG19: 0 | CH19: 0 | CI19: 2015-2016 | CJ19: Reims-FC Bourg-Péronnas | CK19: Reims | CL19: - | CM19: FC Bourg-Péronnas | CN19: 1 | CO19: 0 | CP19: 2016-2017 | CQ19: Nancy-Niort | CR19: Nancy | CS19: - | CT19: Niort | CU19: 0 | CV19: 0 | CW19: 2017-2018
A20: =IF(OR(D20=gnp!$G$5,F20=gnp!$G$5),B$2,"") ->  | B20: 402 | C20: Sochaux-Valenciennes | D20: =journée02!H21 -> Sochaux | E20: - | F20: =journée02!V21 -> Valenciennes | G20: =IF(ISBLANK(journée02!Q21),"",journée02!Q21) -> 0 | H20: =IF(ISBLANK(journée02!S21),"",journée02!S21) -> 1 | I20: 2018-2019 | J20: P | K20: 2ème journée | L20: journée02 | M20: 0-1 | N20: 43315 | O20: Match Aller | P20: 402 | Q20: Niort-Grenoble | R20: Niort | S20: - | T20: Grenoble | U20: 2 | V20: 1 | W20: 2006-2007 | X20: 402 | Y20: Reims-Libourne/Seurin | Z20: Reims | AA20: - | AB20: Libourne/Seurin | AC20: 2 | AD20: 1 | AE20: 2007-2008 | AF20: Sedan-Nîmes | AG20: Sedan | AH20: - | AI20: Nîmes | AJ20: 2 | AK20: 1 | AL20: 2008-2009 | AM20: Nantes-Clermont Foot | AN20: Nantes | AO20: - | AP20: Clermont Foot | AQ20: 3 | AR20: 2 | AS20: 2009-2010 | AT20: Istres-Tours FC | AU20: Istres | AV20: - | AW20: Tours FC | AX20: 1 | AY20: 0 | AZ20: 2010-2011 | BA20: Metz-Arles-Avignon | BB20: Metz | BC20: - | BD20: Arles-Avignon | BE20: 0 | BF20: 0 | BG20: 2011-2012 | BH20: Clermont Foot-Angers | BI20: Clermont Foot | BJ20: - | BK20: Angers | BL20: 1 | BM20: 2 | BN20: 2012-2013 | BO20: Tours FC-Niort | BP20: Tours FC | BQ20: - | BR20: Niort | BS20: 1 | BT20: 1 | BU20: 2013-2014 | BV20: Troyes-Tours FC | BW20: Troyes | BX20: - | BY20: Tours FC | BZ20: 1 | CA20: 0 | CB20: 2014-2015 | CC20: Créteil-FC Bourg-Péronnas | CD20: Créteil | CE20: - | CF20: FC Bourg-Péronnas | CG20: 2 | CH20: 1 | CI20: 2015-2016 | CJ20: Sochaux-Valenciennes | CK20: Sochaux | CL20: - | CM20: Valenciennes | CN20: 0 | CO20: 0 | CP20: 2016-2017 | CQ20: US Quevilly-Sochaux | CR20: US Quevilly | CS20: - | CT20: Sochaux | CU20: 1 | CV20: 1 | CW20: 2017-2018
A21: =IF(OR(D21=gnp!$G$5,F21=gnp!$G$5),B$2,"") ->  | B21: 452 | C21: Troyes-Brest | D21: =journée02!H22 -> Troyes | E21: - | F21: =journée02!V22 -> Brest | G21: =IF(ISBLANK(journée02!Q22),"",journée02!Q22) -> 1 | H21: =IF(ISBLANK(journée02!S22),"",journée02!S22) -> 2 | I21: 2018-2019 | J21: P | K21: 2ème journée | L21: journée02 | M21: 1-2 | N21: 43315 | O21: Match Aller | P21: 452 | Q21: Tours FC-Créteil | R21: Tours FC | S21: - | T21: Créteil | U21: 1 | V21: 1 | W21: 2006-2007 | X21: 452 | Y21: Sedan-Gueugnon | Z21: Sedan | AA21: - | AB21: Gueugnon | AC21: 3 | AD21: 1 | AE21: 2007-2008 | AF21: Vannes OC-Lens | AG21: Vannes OC | AH21: - | AI21: Lens | AJ21: 2 | AK21: 1 | AL21: 2008-2009 | AM21: Nîmes-Vannes OC | AN21: Nîmes | AO21: - | AP21: Vannes OC | AQ21: 1 | AR21: 1 | AS21: 2009-2010 | AT21: Evian Thonon G.-Vannes OC | AU21: Evian Thonon G. | AV21: - | AW21: Vannes OC | AX21: 4 | AY21: 0 | AZ21: 2010-2011 | BA21: Boulogne-sur-Mer-Angers | BB21: Boulogne-sur-Mer | BC21: - | BD21: Angers | BE21: 3 | BF21: 3 | BG21: 2011-2012 | BH21: Caen-Auxerre | BI21: Caen | BJ21: - | BK21: Auxerre | BL21: 3 | BM21: 1 | BN21: 2012-2013 | BO21: Troyes-Arles-Avignon | BP21: Troyes | BQ21: - | BR21: Arles-Avignon | BS21: 1 | BT21: 0 | BU21: 2013-2014 | BV21: Valenciennes-Nîmes | BW21: Valenciennes | BX21: - | BY21: Nîmes | BZ21: 2 | CA21: 2 | CB21: 2014-2015 | CC21: Valenciennes-Auxerre | CD21: Valenciennes | CE21: - | CF21: Auxerre | CG21: 0 | CH21: 0 | CI21: 2015-2016 | CJ21: RC Strasbourg-Amiens | CK21: RC Strasbourg | CL21: - | CM21: Amiens | CN21: 1 | CO21: 0 | CP21: 2016-2017 | CQ21: Reims-US Orléans | CR21: Reims | CS21: - | CT21: US Orléans | CU21: 2 | CV21: 0 | CW21: 2017-2018
A22: =IF(OR(D22=gnp!$G$5,F22=gnp!$G$5),B$2,"") ->  | B22: 3 | C22: AC Ajaccio-Sochaux | D22: =journée03!H13 -> AC Ajaccio | E22: - | F22: =journée03!V13 -> Sochaux | G22: =IF(ISBLANK(journée03!Q13),"",journée03!Q13) -> 2 | H22: =IF(ISBLANK(journée03!S13),"",journée03!S13) -> 3 | I22: 2018-2019 | J22: P | K22: 3ème journée | L22: journée03 | M22: 2-3 | N22: =journée03!H11 -> 43322 | O22: Match Aller | P22: 3 | Q22: AC Ajaccio-Amiens | R22: AC Ajaccio | S22: - | T22: Amiens | U22: 3 | V22: 1 | W22: 2006-2007 | X22: 3 | Y22: AC Ajaccio-Guingamp | Z22: AC Ajaccio | AA22: - | AB22: Guingamp | AC22: 1 | AD22: 1 | AE22: 2007-2008 | AF22: AC Ajaccio-Dijon | AG22: AC Ajaccio | AH22: - | AI22: Dijon | AJ22: 1 | AK22: 1 | AL22: 2008-2009 | AM22: Angers-Châteauroux | AN22: Angers | AO22: - | AP22: Châteauroux | AQ22: 0 | AR22: 3 | AS22: 2009-2010 | AT22: Châteauroux-Le Havre | AU22: Châteauroux | AV22: - | AW22: Le Havre | AX22: 2 | AY22: 1 | AZ22: 2010-2011 | BA22: Arles-Avignon-Nantes | BB22: Arles-Avignon | BC22: - | BD22: Nantes | BE22: 0 | BF22: 0 | BG22: 2011-2012 | BH22: Lens-Le Havre | BI22: Lens | BJ22: - | BK22: Le Havre | BL22: 1 | BM22: 0 | BN22: 2012-2013 | BO22: Caen-Créteil | BP22: Caen | BQ22: - | BR22: Créteil | BS22: 3 | BT22: 0 | BU22: 2013-2014 | BV22: Auxerre-US Orléans | BW22: Auxerre | BX22: - | BY22: US Orléans | BZ22: 0 | CA22: 1 | CB22: 2014-2015 | CC22: AC Ajaccio-Evian Thonon G. | CD22: AC Ajaccio | CE22: - | CF22: Evian Thonon G. | CG22: 1 | CH22: 1 | CI22: 2015-2016 | CJ22: Amiens-Niort | CK22: Amiens | CL22: - | CM22: Niort | CN22: 2 | CO22: 0 | CP22: 2016-2017 | CQ22: Paris FC-Le Havre | CR22: Paris FC | CS22: - | CT22: Le Havre | CU22: 0 | CV22: 3 | CW22: 2017-2018
A23: =IF(OR(D23=gnp!$G$5,F23=gnp!$G$5),B$2,"") ->  | B23: =B22+50 -> 53 | C23: GFCO Ajaccio-Lorient | D23: =journée03!H14 -> GFCO Ajaccio | E23: - | F23: =journée03!V14 -> Lorient | G23: =IF(ISBLANK(journée03!Q14),"",journée03!Q14) -> 1 | H23: =IF(ISBLANK(journée03!S14),"",journée03!S14) -> 3 | I23: 2018-2019 | J23: P | K23: =K22 -> 3ème journée | L23: journée03 | M23: 1-3 | N23: =N22 -> 43322 | O23: Match Aller | P23: 53 | Q23: Caen-Brest | R23: Caen | S23: - | T23: Brest | U23: 1 | V23: 0 | W23: 2006-2007 | X23: 53 | Y23: Boulogne/Mer-Montpellier | Z23: Boulogne/Mer | AA23: - | AB23: Montpellier | AC23: 2 | AD23: 0 | AE23: 2007-2008 | AF23: Amiens-Metz | AG23: Amiens | AH23: - | AI23: Metz | AJ23: 1 | AK23: 1 | AL23: 2008-2009 | AM23: Bastia-Nîmes | AN23: Bastia | AO23: - | AP23: Nîmes | AQ23: 6 | AR23: 1 | AS23: 2009-2010 | AT23: Vannes OC-Laval | AU23: Vannes OC | AV23: - | AW23: Laval | AX23: 2 | AY23: 1 | AZ23: 2010-2011 | BA23: Amiens-Le Havre | BB23: Amiens | BC23: - | BD23: Le Havre | BE23: 0 | BF23: 1 | BG23: 2011-2012 | BH23: Nantes-Laval | BI23: Nantes | BJ23: - | BK23: Laval | BL23: 3 | BM23: 1 | BN23: 2012-2013 | BO23: Châteauroux-Tours FC | BP23: Châteauroux | BQ23: - | BR23: Tours FC | BS23: 0 | BT23: 4 | BU23: 2013-2014 | BV23: Brest-Angers | BW23: Brest | BX23: - | BY23: Angers | BZ23: 0 | CA23: 0 | CB23: 2014-2015 | CC23: Auxerre-Laval | CD23: Auxerre | CE23: - | CF23: Laval | CG23: 2 | CH23: 3 | CI23: 2015-2016 | CJ23: FC Bourg-Péronnas-Auxerre | CK23: FC Bourg-Péronnas | CL23: - | CM23: Auxerre | CN23: 2 | CO23: 4 | CP23: 2016-2017 | CQ23: Brest-GFCO Ajaccio | CR23: Brest | CS23: - | CT23: GFCO Ajaccio | CU23: 0 | CV23: 0 | CW23: 2017-2018
A24: =IF(OR(D24=gnp!$G$5,F24=gnp!$G$5),B$2,"") ->  | B24: =B23+50 -> 103 | C24: Brest-Paris FC | D24: =journée03!H15 -> Brest | E24: - | F24: =journée03!V15 -> Paris FC | G24: =IF(ISBLANK(journée03!Q15),"",journée03!Q15) -> 1 | H24: =IF(ISBLANK(journée03!S15),"",journée03!S15) -> 1 | I24: 2018-2019 | J24: N | K24: =K23 -> 3ème journée | L24: journée03 | M24: 1-1 | N24: 43322 | O24: Match Aller | P24: 103 | Q24: Créteil-Châteauroux | R24: Créteil | S24: - | T24: Châteauroux | U24: 1 | V24: 3 | W24: 2006-2007 | X24: 103 | Y24: Brest-Bastia | Z24: Brest | AA24: - | AB24: Bastia | AC24: 3 | AD24: 1 | AE24: 2007-2008 | AF24: Angers-Sedan | AG24: Angers | AH24: - | AI24: Sedan | AJ24: 3 | AK24: 0 | AL24: 2008-2009 | AM24: Brest-Metz | AN24: Brest | AO24: - | AP24: Metz | AQ24: 2 | AR24: 1 | AS24: 2009-2010 | AT24: Metz-Troyes | AU24: Metz | AV24: - | AW24: Troyes | AX24: 0 | AY24: 1 | AZ24: 2010-2011 | BA24: Guingamp-Metz | BB24: Guingamp | BC24: - | BD24: Metz | BE24: 0 | BF24: 1 | BG24: 2011-2012 | BH24: Châteauroux-Le Mans | BI24: Châteauroux | BJ24: - | BK24: Le Mans | BL24: 1 | BM24: 0 | BN24: 2012-2013 | BO24: Clermont Foot-Laval | BP24: Clermont Foot | BQ24: - | BR24: Laval | BS24: 2 | BT24: 1 | BU24: 2013-2014 | BV24: GFCO Ajaccio-AC Ajaccio | BW24: GFCO Ajaccio | BX24: - | BY24: AC Ajaccio | BZ24: 0 | CA24: 2 | CB24: 2014-2015 | CC24: Nancy-Brest | CD24: Nancy | CE24: - | CF24: Brest | CG24: 3 | CH24: 0 | CI24: 2015-2016 | CJ24: Clermont Foot-Sochaux | CK24: Clermont Foot | CL24: - | CM24: Sochaux | CN24: 1 | CO24: 2 | CP24: 2016-2017 | CQ24: Lorient-Châteauroux | CR24: Lorient | CS24: - | CT24: Châteauroux | CU24: 3 | CV24: 0 | CW24: 2017-2018
A25: =IF(OR(D25=gnp!$G$5,F25=gnp!$G$5),B$2,"") ->  | B25: 153 | C25: Clermont Foot-Metz | D25: =journée03!H16 -> Clermont Foot | E25: - | F25: =journée03!V16 -> Metz | G25: =IF(ISBLANK(journée03!Q16),"",journée03!Q16) -> 2 | H25: =IF(ISBLANK(journée03!S16),"",journée03!S16) -> 3 | I25: 2018-2019 | J25: P | K25: 3ème journée | L25: journée03 | M25: 2-3 | N25: 43322 | O25: Match Aller | P25: 153 | Q25: Grenoble-Guingamp | R25: Grenoble | S25: - | T25: Guingamp | U25: 1 | V25: 0 | W25: 2006-2007 | X25: 153 | Y25: Dijon-Amiens | Z25: Dijon | AA25: - | AB25: Amiens | AC25: 1 | AD25: 0 | AE25: 2007-2008 | AF25: Clermont Foot-Nîmes | AG25: Clermont Foot | AH25: - | AI25: Nîmes | AJ25: 2 | AK25: 0 | AL25: 2008-2009 | AM25: Caen-Dijon | AN25: Caen | AO25: - | AP25: Dijon | AQ25: 1 | AR25: 0 | AS25: 2009-2010 | AT25: AC Ajaccio-Le Mans | AU25: AC Ajaccio | AV25: - | AW25: Le Mans | AX25: 0 | AY25: 0 | AZ25: 2010-2011 | BA25: Lens-Troyes | BB25: Lens | BC25: - | BD25: Troyes | BE25: 2 | BF25: 1 | BG25: 2011-2012 | BH25: Auxerre-Sedan | BI25: Auxerre | BJ25: - | BK25: Sedan | BL25: 1 | BM25: 0 | BN25: 2012-2013 | BO25: Dijon-Angers | BP25: Dijon | BQ25: - | BR25: Angers | BS25: 1 | BT25: 3 | BU25: 2013-2014 | BV25: Laval-Créteil | BW25: Laval | BX25: - | BY25: Créteil | BZ25: 1 | CA25: 1 | CB25: 2014-2015 | CC25: Niort-Sochaux | CD25: Niort | CE25: - | CF25: Sochaux | CG25: 1 | CH25: 1 | CI25: 2015-2016 | CJ25: GFCO Ajaccio-Le Havre | CK25: GFCO Ajaccio | CL25: - | CM25: Le Havre | CN25: 1 | CO25: 1 | CP25: 2016-2017 | CQ25: Nîmes-Nancy | CR25: Nîmes | CS25: - | CT25: Nancy | CU25: 0 | CV25: 0 | CW25: 2017-2018
A26: =IF(OR(D26=gnp!$G$5,F26=gnp!$G$5),B$2,"") ->  | B26: 203 | C26: Grenoble Foot 38-Niort | D26: =journée03!H17 -> Grenoble Foot 38 | E26: - | F26: =journée03!V17 -> Niort | G26: =IF(ISBLANK(journée03!Q17),"",journée03!Q17) -> 1 | H26: =IF(ISBLANK(journée03!S17),"",journée03!S17) -> 0 | I26: 2018-2019 | J26: G | K26: 3ème journée | L26: journée03 | M26: 1-0 | N26: 43322 | O26: Match Aller | P26: 203 | Q26: Gueugnon-Niort | R26: Gueugnon | S26: - | T26: Niort | U26: 0 | V26: 1 | W26: 2006-2007 | X26: 203 | Y26: Grenoble-Reims | Z26: Grenoble | AA26: - | AB26: Reims | AC26: 2 | AD26: 0 | AE26: 2007-2008 | AF26: Guingamp-Reims | AG26: Guingamp | AH26: - | AI26: Reims | AJ26: 0 | AK26: 2 | AL26: 2008-2009 | AM26: Clermont Foot-Laval | AN26: Clermont Foot | AO26: - | AP26: Laval | AQ26: 0 | AR26: 0 | AS26: 2009-2010 | AT26: Dijon-Sedan | AU26: Dijon | AV26: - | AW26: Sedan | AX26: 1 | AY26: 1 | AZ26: 2010-2011 | BA26: Tours FC-Châteauroux | BB26: Tours FC | BC26: - | BD26: Châteauroux | BE26: 1 | BF26: 2 | BG26: 2011-2012 | BH26: Angers-Guingamp | BI26: Angers | BJ26: - | BK26: Guingamp | BL26: 1 | BM26: 2 | BN26: 2012-2013 | BO26: Istres-CA Bastia | BP26: Istres | BQ26: - | BR26: CA Bastia | BS26: 1 | BT26: 1 | BU26: 2013-2014 | BV26: Châteauroux-Clermont Foot | BW26: Châteauroux | BX26: - | BY26: Clermont Foot | BZ26: 3 | CA26: 2 | CB26: 2014-2015 | CC26: Clermont Foot-Nîmes | CD26: Clermont Foot | CE26: - | CF26: Nîmes | CG26: 1 | CH26: 0 | CI26: 2015-2016 | CJ26: Nîmes-Lens | CK26: Nîmes | CL26: - | CM26: Lens | CN26: 0 | CO26: 2 | CP26: 2016-2017 | CQ26: Niort-Auxerre | CR26: Niort | CS26: - | CT26: Auxerre | CU26: 2 | CV26: 0 | CW26: 2017-2018
A27: =IF(OR(D27=gnp!$G$5,F27=gnp!$G$5),B$2,"") ->  | B27: 253 | C27: Nancy-Lens | D27: =journée03!H18 -> Nancy | E27: - | F27: =journée03!V18 -> Lens | G27: =IF(ISBLANK(journée03!Q18),"",journée03!Q18) -> 0 | H27: =IF(ISBLANK(journée03!S18),"",journée03!S18) -> 3 | I27: 2018-2019 | J27: P | K27: 3ème journée | L27: journée03 | M27: 0-3 | N27: 43322 | O27: Match Aller | P27: 253 | Q27: Istres-Dijon | R27: Istres | S27: - | T27: Dijon | U27: 2 | V27: 2 | W27: 2006-2007 | X27: 253 | Y27: Gueugnon-Châteauroux | Z27: Gueugnon | AA27: - | AB27: Châteauroux | AC27: 3 | AD27: 1 | AE27: 2007-2008 | AF27: Lens-Châteauroux | AG27: Lens | AH27: - | AI27: Châteauroux | AJ27: 1 | AK27: 0 | AL27: 2008-2009 | AM27: Istres-Guingamp | AN27: Istres | AO27: - | AP27: Guingamp | AQ27: 0 | AR27: 0 | AS27: 2009-2010 | AT27: Boulogne-sur-Mer-Nîmes | AU27: Boulogne-sur-Mer | AV27: - | AW27: Nîmes | AX27: 2 | AY27: 1 | AZ27: 2010-2011 | BA27: Bastia-Le Mans | BB27: Bastia | BC27: - | BD27: Le Mans | BE27: 1 | BF27: 0 | BG27: 2011-2012 | BH27: Niort-Caen | BI27: Niort | BJ27: - | BK27: Caen | BL27: 1 | BM27: 0 | BN27: 2012-2013 | BO27: Lens-Auxerre | BP27: Lens | BQ27: - | BR27: Auxerre | BS27: 4 | BT27: 1 | BU27: 2013-2014 | BV27: Nancy-Arles-Avignon | BW27: Nancy | BX27: - | BY27: Arles-Avignon | BZ27: 1 | CA27: 1 | CB27: 2014-2015 | CC27: FC Bourg-Péronnas-Dijon | CD27: FC Bourg-Péronnas | CE27: - | CF27: Dijon | CG27: 2 | CH27: 1 | CI27: 2015-2016 | CJ27: US Orléans-AC Ajaccio | CK27: US Orléans | CL27: - | CM27: AC Ajaccio | CN27: 2 | CO27: 0 | CP27: 2016-2017 | CQ27: US Orléans-AC Ajaccio | CR27: US Orléans | CS27: - | CT27: AC Ajaccio | CU27: 0 | CV27: 0 | CW27: 2017-2018
A28: =IF(OR(D28=gnp!$G$5,F28=gnp!$G$5),B$2,"") ->  | B28: 303 | C28: US Orléans-Auxerre | D28: =journée03!H19 -> US Orléans | E28: - | F28: =journée03!V19 -> Auxerre | G28: =IF(ISBLANK(journée03!Q19),"",journée03!Q19) -> 0 | H28: =IF(ISBLANK(journée03!S19),"",journée03!S19) -> 3 | I28: 2018-2019 | J28: P | K28: 3ème journée | L28: journée03 | M28: 0-3 | N28: 43322 | O28: Match Aller | P28: 303 | Q28: Le Havre-Tours FC | R28: Le Havre | S28: - | T28: Tours FC | U28: 3 | V28: 0 | W28: 2006-2007 | X28: 303 | Y28: Libourne/Seurin-Le Havre | Z28: Libourne/Seurin | AA28: - | AB28: Le Havre | AC28: 3 | AD28: 1 | AE28: 2007-2008 | AF28: Montpellier-Boulogne/Mer | AG28: Montpellier | AH28: - | AI28: Boulogne/Mer | AJ28: 0 | AK28: 0 | AL28: 2008-2009 | AM28: Sedan-AC Ajaccio | AN28: Sedan | AO28: - | AP28: AC Ajaccio | AQ28: 1 | AR28: 3 | AS28: 2009-2010 | AT28: Tours FC-Clermont Foot | AU28: Tours FC | AV28: - | AW28: Clermont Foot | AX28: 3 | AY28: 2 | AZ28: 2010-2011 | BA28: Monaco-Reims | BB28: Monaco | BC28: - | BD28: Reims | BE28: 1 | BF28: 2 | BG28: 2011-2012 | BH28: Clermont Foot-Nîmes | BI28: Clermont Foot | BJ28: - | BK28: Nîmes | BL28: 2 | BM28: 1 | BN28: 2012-2013 | BO28: Metz-Arles-Avignon | BP28: Metz | BQ28: - | BR28: Arles-Avignon | BS28: 1 | BT28: 0 | BU28: 2013-2014 | BV28: Nîmes-Dijon | BW28: Nîmes | BX28: - | BY28: Dijon | BZ28: 2 | CA28: 2 | CB28: 2014-2015 | CC28: Metz-Valenciennes | CD28: Metz | CE28: - | CF28: Valenciennes | CG28: 2 | CH28: 0 | CI28: 2015-2016 | CJ28: Red Star 93-Brest | CK28: Red Star 93 | CL28: - | CM28: Brest | CN28: 0 | CO28: 3 | CP28: 2016-2017 | CQ28: US Quevilly-FC Bourg-Péronnas | CR28: US Quevilly | CS28: - | CT28: FC Bourg-Péronnas | CU28: 1 | CV28: 4 | CW28: 2017-2018
A29: =IF(OR(D29=gnp!$G$5,F29=gnp!$G$5),B$2,"") ->  | B29: 353 | C29: Red Star 93-Le Havre | D29: =journée03!H20 -> Red Star 93 | E29: - | F29: =journée03!V20 -> Le Havre | G29: =IF(ISBLANK(journée03!Q20),"",journée03!Q20) -> 0 | H29: =IF(ISBLANK(journée03!S20),"",journée03!S20) -> 1 | I29: 2018-2019 | J29: P | K29: 3ème journée | L29: journée03 | M29: 0-1 | N29: 43322 | O29: Match Aller | P29: 353 | Q29: Libourne/Seurin-Bastia | R29: Libourne/Seurin | S29: - | T29: Bastia | U29: 2 | V29: 4 | W29: 2006-2007 | X29: 353 | Y29: Nantes-Clermont Foot | Z29: Nantes | AA29: - | AB29: Clermont Foot | AC29: 2 | AD29: 2 | AE29: 2007-2008 | AF29: Strasbourg-Bastia | AG29: Strasbourg | AH29: - | AI29: Bastia | AJ29: 1 | AK29: 0 | AL29: 2008-2009 | AM29: Strasbourg-Arles | AN29: Strasbourg | AO29: - | AP29: Arles | AQ29: 1 | AR29: 1 | AS29: 2009-2010 | AT29: Reims-Istres | AU29: Reims | AV29: - | AW29: Istres | AX29: 0 | AY29: 0 | AZ29: 2010-2011 | BA29: Laval-Boulogne-sur-Mer | BB29: Laval | BC29: - | BD29: Boulogne-sur-Mer | BE29: 2 | BF29: 2 | BG29: 2011-2012 | BH29: Dijon-Tours FC | BI29: Dijon | BJ29: - | BK29: Tours FC | BL29: 1 | BM29: 0 | BN29: 2012-2013 | BO29: Nancy-Brest | BP29: Nancy | BQ29: - | BR29: Brest | BS29: 0 | BT29: 1 | BU29: 2013-2014 | BV29: Niort-Le Havre | BW29: Niort | BX29: - | BY29: Le Havre | BZ29: 1 | CA29: 0 | CB29: 2014-2015 | CC29: Paris FC-Le Havre | CD29: Paris FC | CE29: - | CF29: Le Havre | CG29: 3 | CH29: 0 | CI29: 2015-2016 | CJ29: Tours FC-RC Strasbourg | CK29: Tours FC | CL29: - | CM29: RC Strasbourg | CN29: 1 | CO29: 3 | CP29: 2016-2017 | CQ29: Sochaux-Lens | CR29: Sochaux | CS29: - | CT29: Lens | CU29: 3 | CV29: 2 | CW29: 2017-2018
A30: =IF(OR(D30=gnp!$G$5,F30=gnp!$G$5),B$2,"") ->  | B30: 403 | C30: Troyes-AS Béziers | D30: =journée03!H21 -> Troyes | E30: - | F30: =journée03!V21 -> AS Béziers | G30: =IF(ISBLANK(journée03!Q21),"",journée03!Q21) -> 0 | H30: =IF(ISBLANK(journée03!S21),"",journée03!S21) -> 1 | I30: 2018-2019 | J30: P | K30: 3ème journée | L30: journée03 | M30: 0-1 | N30: 43322 | O30: Match Aller | P30: 403 | Q30: Reims-Metz | R30: Reims | S30: - | T30: Metz | U30: 2 | V30: 0 | W30: 2006-2007 | X30: 403 | Y30: Niort-Sedan | Z30: Niort | AA30: - | AB30: Sedan | AC30: 0 | AD30: 1 | AE30: 2007-2008 | AF30: Tours FC-Vannes OC | AG30: Tours FC | AH30: - | AI30: Vannes OC | AJ30: 1 | AK30: 0 | AL30: 2008-2009 | AM30: Tours FC-Le Havre | AN30: Tours FC | AO30: - | AP30: Le Havre | AQ30: 2 | AR30: 0 | AS30: 2009-2010 | AT30: Grenoble-Angers | AU30: Grenoble | AV30: - | AW30: Angers | AX30: 0 | AY30: 2 | AZ30: 2010-2011 | BA30: Sedan-Clermont Foot | BB30: Sedan | BC30: - | BD30: Clermont Foot | BE30: 1 | BF30: 2 | BG30: 2011-2012 | BH30: GFCO Ajaccio-Arles-Avignon | BI30: GFCO Ajaccio | BJ30: - | BK30: Arles-Avignon | BL30: 1 | BM30: 1 | BN30: 2012-2013 | BO30: Nîmes-Troyes | BP30: Nîmes | BQ30: - | BR30: Troyes | BS30: 3 | BT30: 2 | BU30: 2013-2014 | BV30: Sochaux-Troyes | BW30: Sochaux | BX30: - | BY30: Troyes | BZ30: 0 | CA30: 2 | CB30: 2014-2015 | CC30: Lens-Créteil | CD30: Lens | CE30: - | CF30: Créteil | CG30: 1 | CH30: 1 | CI30: 2015-2016 | CJ30: Troyes-Laval | CK30: Troyes | CL30: - | CM30: Laval | CN30: 1 | CO30: 0 | CP30: 2016-2017 | CQ30: Tours FC-Reims | CR30: Tours FC | CS30: - | CT30: Reims | CU30: 0 | CV30: 1 | CW30: 2017-2018
A31: =IF(OR(D31=gnp!$G$5,F31=gnp!$G$5),B$2,"") ->  | B31: 453 | C31: Valenciennes-Châteauroux | D31: =journée03!H22 -> Valenciennes | E31: - | F31: =journée03!V22 -> Châteauroux | G31: =IF(ISBLANK(journée03!Q22),"",journée03!Q22) -> 1 | H31: =IF(ISBLANK(journée03!S22),"",journée03!S22) -> 1 | I31: 2018-2019 | J31: N | K31: 3ème journée | L31: journée03 | M31: 1-1 | N31: 43322 | O31: Match Aller | P31: 453 | Q31: Strasbourg-Montpellier | R31: Strasbourg | S31: - | T31: Montpellier | U31: 2 | V31: 0 | W31: 2006-2007 | X31: 453 | Y31: Troyes-Angers | Z31: Troyes | AA31: - | AB31: Angers | AC31: 2 | AD31: 2 | AE31: 2007-2008 | AF31: Troyes-Brest | AG31: Troyes | AH31: - | AI31: Brest | AJ31: 1 | AK31: 0 | AL31: 2008-2009 | AM31: Vannes OC-Nantes | AN31: Vannes OC | AO31: - | AP31: Nantes | AQ31: 1 | AR31: 1 | AS31: 2009-2010 | AT31: Nantes-Evian Thonon G. | AU31: Nantes | AV31: - | AW31: Evian Thonon G. | AX31: 0 | AY31: 1 | AZ31: 2010-2011 | BA31: Angers-Istres | BB31: Angers | BC31: - | BD31: Istres | BE31: 3 | BF31: 1 | BG31: 2011-2012 | BH31: Monaco-Istres | BI31: Monaco | BJ31: - | BK31: Istres | BL31: 3 | BM31: 2 | BN31: 2012-2013 | BO31: Niort-Le Havre | BP31: Niort | BQ31: - | BR31: Le Havre | BS31: 1 | BT31: 1 | BU31: 2013-2014 | BV31: Tours FC-Valenciennes | BW31: Tours FC | BX31: - | BY31: Valenciennes | BZ31: 1 | CA31: 0 | CB31: 2014-2015 | CC31: Red Star 93-Tours FC | CD31: Red Star 93 | CE31: - | CF31: Tours FC | CG31: 1 | CH31: 1 | CI31: 2015-2016 | CJ31: Valenciennes-Reims | CK31: Valenciennes | CL31: - | CM31: Reims | CN31: 0 | CO31: 0 | CP31: 2016-2017 | CQ31: Valenciennes-Clermont Foot | CR31: Valenciennes | CS31: - | CT31: Clermont Foot | CU31: 0 | CV31: 0 | CW31: 2017-2018
A32: =IF(OR(D32=gnp!$G$5,F32=gnp!$G$5),B$2,"") ->  | B32: 4 | C32: GFCO Ajaccio-Grenoble Foot 38 | D32: =journée04!H13 -> GFCO Ajaccio | E32: - | F32: =journée04!V13 -> Grenoble Foot 38 | G32: =IF(ISBLANK(journée04!Q13),"",journée04!Q13) -> 2 | H32: =IF(ISBLANK(journée04!S13),"",journée04!S13) -> 0 | I32: 2018-2019 | J32: G | K32: 4ème journée | L32: journée04 | M32: 2-0 | N32: =journée04!H11 -> 43329 | O32: Match Aller | P32: 4 | Q32: Amiens-Caen | R32: Amiens | S32: - | T32: Caen | U32: 2 | V32: 2 | W32: 2006-2007 | X32: 4 | Y32: Amiens-Grenoble | Z32: Amiens | AA32: - | AB32: Grenoble | AC32: 1 | AD32: 2 | AE32: 2007-2008 | AF32: Bastia-Guingamp | AG32: Bastia | AH32: - | AI32: Guingamp | AJ32: 2 | AK32: 1 | AL32: 2008-2009 | AM32: AC Ajaccio-Strasbourg | AN32: AC Ajaccio | AO32: - | AP32: Strasbourg | AQ32: 2 | AR32: 2 | AS32: 2009-2010 | AT32: Laval-Nantes | AU32: Laval | AV32: - | AW32: Nantes | AX32: 0 | AY32: 0 | AZ32: 2010-2011 | BA32: Clermont Foot-Lens | BB32: Clermont Foot | BC32: - | BD32: Lens | BE32: 2 | BF32: 0 | BG32: 2011-2012 | BH32: Tours FC-Nantes | BI32: Tours FC | BJ32: - | BK32: Nantes | BL32: 0 | BM32: 2 | BN32: 2012-2013 | BO32: Arles-Avignon-Clermont Foot | BP32: Arles-Avignon | BQ32: - | BR32: Clermont Foot | BS32: 1 | BT32: 0 | BU32: 2013-2014 | BV32: AC Ajaccio-Tours FC | BW32: AC Ajaccio | BX32: - | BY32: Tours FC | BZ32: 1 | CA32: 0 | CB32: 2014-2015 | CC32: Dijon-Lens | CD32: Dijon | CE32: - | CF32: Lens | CG32: 2 | CH32: 0 | CI32: 2015-2016 | CJ32: AC Ajaccio-FC Bourg-Péronnas | CK32: AC Ajaccio | CL32: - | CM32: FC Bourg-Péronnas | CN32: 3 | CO32: 1 | CP32: 2016-2017 | CQ32: AC Ajaccio-Paris FC | CR32: AC Ajaccio | CS32: - | CT32: Paris FC | CU32: 2 | CV32: 0 | CW32: 2017-2018
A33: =IF(OR(D33=gnp!$G$5,F33=gnp!$G$5),B$2,"") ->  | B33: =B32+50 -> 54 | C33: Auxerre-Nancy | D33: =journée04!H14 -> Auxerre | E33: - | F33: =journée04!V14 -> Nancy | G33: =IF(ISBLANK(journée04!Q14),"",journée04!Q14) -> 1 | H33: =IF(ISBLANK(journée04!S14),"",journée04!S14) -> 0 | I33: 2018-2019 | J33: G | K33: =K32 -> 4ème journée | L33: journée04 | M33: 1-0 | N33: =N32 -> 43329 | O33: Match Aller | P33: 54 | Q33: Bastia-Brest | R33: Bastia | S33: - | T33: Brest | U33: 4 | V33: 2 | W33: 2006-2007 | X33: 54 | Y33: Angers-AC Ajaccio | Z33: Angers | AA33: - | AB33: AC Ajaccio | AC33: 1 | AD33: 0 | AE33: 2007-2008 | AF33: Brest-Strasbourg | AG33: Brest | AH33: - | AI33: Strasbourg | AJ33: 0 | AK33: 1 | AL33: 2008-2009 | AM33: Arles-Brest | AN33: Arles | AO33: - | AP33: Brest | AQ33: 3 | AR33: 2 | AS33: 2009-2010 | AT33: Le Mans-Châteauroux | AU33: Le Mans | AV33: - | AW33: Châteauroux | AX33: 0 | AY33: 2 | AZ33: 2010-2011 | BA33: Le Havre-Bastia | BB33: Le Havre | BC33: - | BD33: Bastia | BE33: 2 | BF33: 0 | BG33: 2011-2012 | BH33: Guingamp-Monaco | BI33: Guingamp | BJ33: - | BK33: Monaco | BL33: 1 | BM33: 2 | BN33: 2012-2013 | BO33: Auxerre-Châteauroux | BP33: Auxerre | BQ33: - | BR33: Châteauroux | BS33: 2 | BT33: 0 | BU33: 2013-2014 | BV33: Angers-Châteauroux | BW33: Angers | BX33: - | BY33: Châteauroux | BZ33: 1 | CA33: 1 | CB33: 2014-2015 | CC33: Evian Thonon G.-Niort | CD33: Evian Thonon G. | CE33: - | CF33: Niort | CG33: 0 | CH33: 0 | CI33: 2015-2016 | CJ33: Auxerre-Clermont Foot | CK33: Auxerre | CL33: - | CM33: Clermont Foot | CN33: 0 | CO33: 1 | CP33: 2016-2017 | CQ33: Auxerre-US Orléans | CR33: Auxerre | CS33: - | CT33: US Orléans | CU33: 1 | CV33: 3 | CW33: 2017-2018
A34: =IF(OR(D34=gnp!$G$5,F34=gnp!$G$5),B$2,"") ->  | B34: =B33+50 -> 104 | C34: Châteauroux-Red Star 93 | D34: =journée04!H15 -> Châteauroux | E34: - | F34: =journée04!V15 -> Red Star 93 | G34: =IF(ISBLANK(journée04!Q15),"",journée04!Q15) -> 1 | H34: =IF(ISBLANK(journée04!S15),"",journée04!S15) -> 1 | I34: 2018-2019 | J34: N | K34: 4ème journée | L34: journée04 | M34: 1-1 | N34: 43329 | O34: Match Aller | P34: 104 | Q34: Châteauroux-Grenoble | R34: Châteauroux | S34: - | T34: Grenoble | U34: 2 | V34: 2 | W34: 2006-2007 | X34: 104 | Y34: Bastia-Gueugnon | Z34: Bastia | AA34: - | AB34: Gueugnon | AC34: 1 | AD34: 0 | AE34: 2007-2008 | AF34: Châteauroux-Amiens | AG34: Châteauroux | AH34: - | AI34: Amiens | AJ34: 1 | AK34: 0 | AL34: 2008-2009 | AM34: Châteauroux-Caen | AN34: Châteauroux | AO34: - | AP34: Caen | AQ34: 1 | AR34: 1 | AS34: 2009-2010 | AT34: Troyes-AC Ajaccio | AU34: Troyes | AV34: - | AW34: AC Ajaccio | AX34: 3 | AY34: 0 | AZ34: 2010-2011 | BA34: Istres-Laval | BB34: Istres | BC34: - | BD34: Laval | BE34: 1 | BF34: 2 | BG34: 2011-2012 | BH34: Istres-Châteauroux | BI34: Istres | BJ34: - | BK34: Châteauroux | BL34: 0 | BM34: 0 | BN34: 2012-2013 | BO34: Brest-Dijon | BP34: Brest | BQ34: - | BR34: Dijon | BS34: 0 | BT34: 0 | BU34: 2013-2014 | BV34: Arles-Avignon-Sochaux | BW34: Arles-Avignon | BX34: - | BY34: Sochaux | BZ34: 2 | CA34: 2 | CB34: 2014-2015 | CC34: Sochaux-Paris FC | CD34: Sochaux | CE34: - | CF34: Paris FC | CG34: 1 | CH34: 1 | CI34: 2015-2016 | CJ34: Brest-Valenciennes | CK34: Brest | CL34: - | CM34: Valenciennes | CN34: 3 | CO34: 2 | CP34: 2016-2017 | CQ34: Châteauroux-Nîmes | CR34: Châteauroux | CS34: - | CT34: Nîmes | CU34: 1 | CV34: 0 | CW34: 2017-2018
A35: =IF(OR(D35=gnp!$G$5,F35=gnp!$G$5),B$2,"") ->  | B35: 154 | C35: Le Havre-Clermont Foot | D35: =journée04!H16 -> Le Havre | E35: - | F35: =journée04!V16 -> Clermont Foot | G35: =IF(ISBLANK(journée04!Q16),"",journée04!Q16) -> 0 | H35: =IF(ISBLANK(journée04!S16),"",journée04!S16) -> 0 | I35: 2018-2019 | J35: N | K35: 4ème journée | L35: journée04 | M35: 0-0 | N35: 43329 | O35: Match Aller | P35: 154 | Q35: Créteil-Gueugnon | R35: Créteil | S35: - | T35: Gueugnon | U35: 0 | V35: 0 | W35: 2006-2007 | X35: 154 | Y35: Châteauroux-Libourne/Seurin | Z35: Châteauroux | AA35: - | AB35: Libourne/Seurin | AC35: 2 | AD35: 0 | AE35: 2007-2008 | AF35: Clermont Foot-Angers | AG35: Clermont Foot | AH35: - | AI35: Angers | AJ35: 2 | AK35: 2 | AL35: 2008-2009 | AM35: Dijon-Nîmes | AN35: Dijon | AO35: - | AP35: Nîmes | AQ35: 1 | AR35: 0 | AS35: 2009-2010 | AT35: Istres-Dijon | AU35: Istres | AV35: - | AW35: Dijon | AX35: 1 | AY35: 1 | AZ35: 2010-2011 | BA35: Metz-Châteauroux | BB35: Metz | BC35: - | BD35: Châteauroux | BE35: 2 | BF35: 1 | BG35: 2011-2012 | BH35: Laval-Niort | BI35: Laval | BJ35: - | BK35: Niort | BL35: 1 | BM35: 0 | BN35: 2012-2013 | BO35: CA Bastia-Angers | BP35: CA Bastia | BQ35: - | BR35: Angers | BS35: 1 | BT35: 1 | BU35: 2013-2014 | BV35: Clermont Foot-GFCO Ajaccio | BW35: Clermont Foot | BX35: - | BY35: GFCO Ajaccio | BZ35: 3 | CA35: 4 | CB35: 2014-2015 | CC35: Le Havre-Clermont Foot | CD35: Le Havre | CE35: - | CF35: Clermont Foot | CG35: 0 | CH35: 1 | CI35: 2015-2016 | CJ35: Laval-GFCO Ajaccio | CK35: Laval | CL35: - | CM35: GFCO Ajaccio | CN35: 0 | CO35: 1 | CP35: 2016-2017 | CQ35: Clermont Foot-Lorient | CR35: Clermont Foot | CS35: - | CT35: Lorient | CU35: 0 | CV35: 2 | CW35: 2017-2018
A36: =IF(OR(D36=gnp!$G$5,F36=gnp!$G$5),B$2,"") ->  | B36: 204 | C36: Lens-Troyes | D36: =journée04!H17 -> Lens | E36: - | F36: =journée04!V17 -> Troyes | G36: =IF(ISBLANK(journée04!Q17),"",journée04!Q17) -> 2 | H36: =IF(ISBLANK(journée04!S17),"",journée04!S17) -> 0 | I36: 2018-2019 | J36: G | K36: 4ème journée | L36: journée04 | M36: 2-0 | N36: 43329 | O36: Match Aller | P36: 204 | Q36: Dijon-Reims | R36: Dijon | S36: - | T36: Reims | U36: 1 | V36: 0 | W36: 2006-2007 | X36: 204 | Y36: Clermont Foot-Brest | Z36: Clermont Foot | AA36: - | AB36: Brest | AC36: 1 | AD36: 0 | AE36: 2007-2008 | AF36: Dijon-Tours FC | AG36: Dijon | AH36: - | AI36: Tours FC | AJ36: 2 | AK36: 1 | AL36: 2008-2009 | AM36: Guingamp-Vannes OC | AN36: Guingamp | AO36: - | AP36: Vannes OC | AQ36: 4 | AR36: 1 | AS36: 2009-2010 | AT36: Le Havre-Reims | AU36: Le Havre | AV36: - | AW36: Reims | AX36: 2 | AY36: 1 | AZ36: 2010-2011 | BA36: Le Mans-Sedan | BB36: Le Mans | BC36: - | BD36: Sedan | BE36: 3 | BF36: 1 | BG36: 2011-2012 | BH36: Sedan-Nîmes | BI36: Sedan | BJ36: - | BK36: Nîmes | BL36: 2 | BM36: 3 | BN36: 2012-2013 | BO36: Créteil-Istres | BP36: Créteil | BQ36: - | BR36: Istres | BS36: 2 | BT36: 2 | BU36: 2013-2014 | BV36: Créteil-Niort | BW36: Créteil | BX36: - | BY36: Niort | BZ36: 1 | CA36: 1 | CB36: 2014-2015 | CC36: Nîmes-Nancy | CD36: Nîmes | CE36: - | CF36: Nancy | CG36: 2 | CH36: 2 | CI36: 2015-2016 | CJ36: Le Havre-Troyes | CK36: Le Havre | CL36: - | CM36: Troyes | CN36: 1 | CO36: 3 | CP36: 2016-2017 | CQ36: GFCO Ajaccio-US Quevilly | CR36: GFCO Ajaccio | CS36: - | CT36: US Quevilly | CU36: 1 | CV36: 0 | CW36: 2017-2018
A37: =IF(OR(D37=gnp!$G$5,F37=gnp!$G$5),B$2,"") ->  | B37: 254 | C37: Lorient-Valenciennes | D37: =journée04!H18 -> Lorient | E37: - | F37: =journée04!V18 -> Valenciennes | G37: =IF(ISBLANK(journée04!Q18),"",journée04!Q18) -> 3 | H37: =IF(ISBLANK(journée04!S18),"",journée04!S18) -> 1 | I37: 2018-2019 | J37: G | K37: 4ème journée | L37: journée04 | M37: 3-1 | N37: 43329 | O37: Match Aller | P37: 254 | Q37: Guingamp-Le Havre | R37: Guingamp | S37: - | T37: Le Havre | U37: 1 | V37: 2 | W37: 2006-2007 | X37: 254 | Y37: Guingamp-Boulogne/Mer | Z37: Guingamp | AA37: - | AB37: Boulogne/Mer | AC37: 4 | AD37: 2 | AE37: 2007-2008 | AF37: Metz-Boulogne/Mer | AG37: Metz | AH37: - | AI37: Boulogne/Mer | AJ37: 1 | AK37: 2 | AL37: 2008-2009 | AM37: Laval-Tours FC | AN37: Laval | AO37: - | AP37: Tours FC | AQ37: 1 | AR37: 0 | AS37: 2009-2010 | AT37: Sedan-Boulogne-sur-Mer | AU37: Sedan | AV37: - | AW37: Boulogne-sur-Mer | AX37: 1 | AY37: 1 | AZ37: 2010-2011 | BA37: Nantes-Guingamp | BB37: Nantes | BC37: - | BD37: Guingamp | BE37: 4 | BF37: 0 | BG37: 2011-2012 | BH37: Lens-Dijon | BI37: Lens | BJ37: - | BK37: Dijon | BL37: 1 | BM37: 1 | BN37: 2012-2013 | BO37: Laval-Lens | BP37: Laval | BQ37: - | BR37: Lens | BS37: 0 | BT37: 2 | BU37: 2013-2014 | BV37: Dijon-Auxerre | BW37: Dijon | BX37: - | BY37: Auxerre | BZ37: 1 | CA37: 0 | CB37: 2014-2015 | CC37: Brest-AC Ajaccio | CD37: Brest | CE37: - | CF37: AC Ajaccio | CG37: 1 | CH37: 0 | CI37: 2015-2016 | CJ37: Lens-Amiens | CK37: Lens | CL37: - | CM37: Amiens | CN37: 0 | CO37: 1 | CP37: 2016-2017 | CQ37: Le Havre-Valenciennes | CR37: Le Havre | CS37: - | CT37: Valenciennes | CU37: 1 | CV37: 0 | CW37: 2017-2018
A38: =IF(OR(D38=gnp!$G$5,F38=gnp!$G$5),B$2,"") ->  | B38: 304 | C38: Metz-AC Ajaccio | D38: =journée04!H19 -> Metz | E38: - | F38: =journée04!V19 -> AC Ajaccio | G38: =IF(ISBLANK(journée04!Q19),"",journée04!Q19) -> 3 | H38: =IF(ISBLANK(journée04!S19),"",journée04!S19) -> 1 | I38: 2018-2019 | J38: G | K38: 4ème journée | L38: journée04 | M38: 3-1 | N38: 43329 | O38: Match Aller | P38: 304 | Q38: Metz-Libourne/Seurin | R38: Metz | S38: - | T38: Libourne/Seurin | U38: 1 | V38: 0 | W38: 2006-2007 | X38: 304 | Y38: Le Havre-Nantes | Z38: Le Havre | AA38: - | AB38: Nantes | AC38: 1 | AD38: 0 | AE38: 2007-2008 | AF38: Nîmes-Lens | AG38: Nîmes | AH38: - | AI38: Lens | AJ38: 1 | AK38: 2 | AL38: 2008-2009 | AM38: Le Havre-Angers | AN38: Le Havre | AO38: - | AP38: Angers | AQ38: 3 | AR38: 2 | AS38: 2009-2010 | AT38: Nîmes-Grenoble | AU38: Nîmes | AV38: - | AW38: Grenoble | AX38: 1 | AY38: 0 | AZ38: 2010-2011 | BA38: Monaco-Amiens | BB38: Monaco | BC38: - | BD38: Amiens | BE38: 1 | BF38: 1 | BG38: 2011-2012 | BH38: Caen-Clermont Foot | BI38: Caen | BJ38: - | BK38: Clermont Foot | BL38: 4 | BM38: 0 | BN38: 2012-2013 | BO38: Le Havre-Nancy | BP38: Le Havre | BQ38: - | BR38: Nancy | BS38: 1 | BT38: 1 | BU38: 2013-2014 | BV38: Nancy-Nîmes | BW38: Nancy | BX38: - | BY38: Nîmes | BZ38: 0 | CA38: 0 | CB38: 2014-2015 | CC38: Laval-Red Star 93 | CD38: Laval | CE38: - | CF38: Red Star 93 | CG38: 2 | CH38: 1 | CI38: 2015-2016 | CJ38: Niort-Tours FC | CK38: Niort | CL38: - | CM38: Tours FC | CN38: 1 | CO38: 4 | CP38: 2016-2017 | CQ38: Lens-Brest | CR38: Lens | CS38: - | CT38: Brest | CU38: 2 | CV38: 4 | CW38: 2017-2018
A39: =IF(OR(D39=gnp!$G$5,F39=gnp!$G$5),B$2,"") ->  | B39: 354 | C39: Niort-US Orléans | D39: =journée04!H20 -> Niort | E39: - | F39: =journée04!V20 -> US Orléans | G39: =IF(ISBLANK(journée04!Q20),"",journée04!Q20) -> 1 | H39: =IF(ISBLANK(journée04!S20),"",journée04!S20) -> 1 | I39: 2018-2019 | J39: N | K39: 4ème journée | L39: journée04 | M39: 1-1 | N39: 43329 | O39: Match Aller | P39: 354 | Q39: Montpellier-Istres | R39: Montpellier | S39: - | T39: Istres | U39: 4 | V39: 0 | W39: 2006-2007 | X39: 354 | Y39: Montpellier-Troyes | Z39: Montpellier | AA39: - | AB39: Troyes | AC39: 3 | AD39: 0 | AE39: 2007-2008 | AF39: Reims-Montpellier | AG39: Reims | AH39: - | AI39: Montpellier | AJ39: 0 | AK39: 4 | AL39: 2008-2009 | AM39: Metz-Bastia | AN39: Metz | AO39: - | AP39: Bastia | AQ39: 1 | AR39: 0 | AS39: 2009-2010 | AT39: Evian Thonon G.-Tours FC | AU39: Evian Thonon G. | AV39: - | AW39: Tours FC | AX39: 1 | AY39: 2 | AZ39: 2010-2011 | BA39: Boulogne-sur-Mer-Tours FC | BB39: Boulogne-sur-Mer | BC39: - | BD39: Tours FC | BE39: 0 | BF39: 0 | BG39: 2011-2012 | BH39: Le Havre-GFCO Ajaccio | BI39: Le Havre | BJ39: - | BK39: GFCO Ajaccio | BL39: 2 | BM39: 1 | BN39: 2012-2013 | BO39: Metz-Niort | BP39: Metz | BQ39: - | BR39: Niort | BS39: 1 | BT39: 1 | BU39: 2013-2014 | BV39: US Orléans-Brest | BW39: US Orléans | BX39: - | BY39: Brest | BZ39: 1 | CA39: 0 | CB39: 2014-2015 | CC39: Tours FC-Auxerre | CD39: Tours FC | CE39: - | CF39: Auxerre | CG39: 3 | CH39: 1 | CI39: 2015-2016 | CJ39: Reims-Red Star 93 | CK39: Reims | CL39: - | CM39: Red Star 93 | CN39: 2 | CO39: 1 | CP39: 2016-2017 | CQ39: Nancy-Sochaux | CR39: Nancy | CS39: - | CT39: Sochaux | CU39: 2 | CV39: 2 | CW39: 2017-2018
A40: =IF(OR(D40=gnp!$G$5,F40=gnp!$G$5),B$2,"") ->  | B40: 404 | C40: Paris FC-AS Béziers | D40: =journée04!H21 -> Paris FC | E40: - | F40: =journée04!V21 -> AS Béziers | G40: =IF(ISBLANK(journée04!Q21),"",journée04!Q21) -> 1 | H40: =IF(ISBLANK(journée04!S21),"",journée04!S21) -> 0 | I40: 2018-2019 | J40: G | K40: 4ème journée | L40: journée04 | M40: 1-0 | N40: 43329 | O40: Match Aller | P40: 404 | Q40: Niort-Strasbourg | R40: Niort | S40: - | T40: Strasbourg | U40: 2 | V40: 2 | W40: 2006-2007 | X40: 404 | Y40: Reims-Niort | Z40: Reims | AA40: - | AB40: Niort | AC40: 3 | AD40: 1 | AE40: 2007-2008 | AF40: Sedan-AC Ajaccio | AG40: Sedan | AH40: - | AI40: AC Ajaccio | AJ40: 1 | AK40: 1 | AL40: 2008-2009 | AM40: Nantes-Istres | AN40: Nantes | AO40: - | AP40: Istres | AQ40: 5 | AR40: 0 | AS40: 2009-2010 | AT40: Clermont Foot-Angers | AU40: Clermont Foot | AV40: - | AW40: Angers | AX40: 1 | AY40: 2 | AZ40: 2010-2011 | BA40: Reims-Arles-Avignon | BB40: Reims | BC40: - | BD40: Arles-Avignon | BE40: 3 | BF40: 2 | BG40: 2011-2012 | BH40: Arles-Avignon-Angers | BI40: Arles-Avignon | BJ40: - | BK40: Angers | BL40: 2 | BM40: 0 | BN40: 2012-2013 | BO40: Tours FC-Nîmes | BP40: Tours FC | BQ40: - | BR40: Nîmes | BS40: 3 | BT40: 1 | BU40: 2013-2014 | BV40: Troyes-Laval | BW40: Troyes | BX40: - | BY40: Laval | BZ40: 0 | CA40: 0 | CB40: 2014-2015 | CC40: Créteil-Metz | CD40: Créteil | CE40: - | CF40: Metz | CG40: 1 | CH40: 2 | CI40: 2015-2016 | CJ40: Sochaux-US Orléans | CK40: Sochaux | CL40: - | CM40: US Orléans | CN40: 0 | CO40: 0 | CP40: 2016-2017 | CQ40: Niort-Tours FC | CR40: Niort | CS40: - | CT40: Tours FC | CU40: 2 | CV40: 1 | CW40: 2017-2018
A41: =IF(OR(D41=gnp!$G$5,F41=gnp!$G$5),B$2,"") ->  | B41: 454 | C41: Sochaux-Brest | D41: =journée04!H22 -> Sochaux | E41: - | F41: =journée04!V22 -> Brest | G41: =IF(ISBLANK(journée04!Q22),"",journée04!Q22) -> 2 | H41: =IF(ISBLANK(journée04!S22),"",journée04!S22) -> 0 | I41: 2018-2019 | J41: G | K41: 4ème journée | L41: journée04 | M41: 2-0 | N41: 43329 | O41: Match Aller | P41: 454 | Q41: Tours FC-AC Ajaccio | R41: Tours FC | S41: - | T41: AC Ajaccio | U41: 1 | V41: 0 | W41: 2006-2007 | X41: 454 | Y41: Sedan-Dijon | Z41: Sedan | AA41: - | AB41: Dijon | AC41: 0 | AD41: 1 | AE41: 2007-2008 | AF41: Vannes OC-Troyes | AG41: Vannes OC | AH41: - | AI41: Troyes | AJ41: 1 | AK41: 0 | AL41: 2008-2009 | AM41: Sedan-Clermont Foot | AN41: Sedan | AO41: - | AP41: Clermont Foot | AQ41: 2 | AR41: 1 | AS41: 2009-2010 | AT41: Metz-Vannes OC | AU41: Metz | AV41: - | AW41: Vannes OC | AX41: 1 | AY41: 0 | AZ41: 2010-2011 | BA41: Troyes-Angers | BB41: Troyes | BC41: - | BD41: Angers | BE41: 2 | BF41: 1 | BG41: 2011-2012 | BH41: Le Mans-Auxerre | BI41: Le Mans | BJ41: - | BK41: Auxerre | BL41: 3 | BM41: 1 | BN41: 2012-2013 | BO41: Troyes-Caen | BP41: Troyes | BQ41: - | BR41: Caen | BS41: 2 | BT41: 1 | BU41: 2013-2014 | BV41: Valenciennes-Le Havre | BW41: Valenciennes | BX41: - | BY41: Le Havre | BZ41: 0 | CA41: 4 | CB41: 2014-2015 | CC41: Valenciennes-FC Bourg-Péronnas | CD41: Valenciennes | CE41: - | CF41: FC Bourg-Péronnas | CG41: 1 | CH41: 1 | CI41: 2015-2016 | CJ41: RC Strasbourg-Nîmes | CK41: RC Strasbourg | CL41: - | CM41: Nîmes | CN41: 1 | CO41: 1 | CP41: 2016-2017 | CQ41: Reims-FC Bourg-Péronnas | CR41: Reims | CS41: - | CT41: FC Bourg-Péronnas | CU41: 3 | CV41: 0 | CW41: 2017-2018
A42: =IF(OR(D42=gnp!$G$5,F42=gnp!$G$5),B$2,"") ->  | B42: 5 | C42: =D42&E42&F42 -> AC Ajaccio-Lorient | D42: =journée05!H13 -> AC Ajaccio | E42: - | F42: =journée05!V13 -> Lorient | G42: =IF(ISBLANK(journée05!Q13),"",journée05!Q13) -> 0 | H42: =IF(ISBLANK(journée05!S13),"",journée05!S13) -> 0 | I42: 2018-2019 | J42: N | K42: 5ème journée | L42: journée05 | M42: 0-0 | N42: =journée05!H11 -> 43336 | O42: Match Aller | P42: 5 | Q42: AC Ajaccio-Châteauroux | R42: AC Ajaccio | S42: - | T42: Châteauroux | U42: 2 | V42: 3 | W42: 2006-2007 | X42: 5 | Y42: AC Ajaccio-Sedan | Z42: AC Ajaccio | AA42: - | AB42: Sedan | AC42: 2 | AD42: 1 | AE42: 2007-2008 | AF42: AC Ajaccio-Vannes OC | AG42: AC Ajaccio | AH42: - | AI42: Vannes OC | AJ42: 4 | AK42: 0 | AL42: 2008-2009 | AM42: Angers-AC Ajaccio | AN42: Angers | AO42: - | AP42: AC Ajaccio | AQ42: 2 | AR42: 1 | AS42: 2009-2010 | AT42: Clermont Foot-Le Havre | AU42: Clermont Foot | AV42: - | AW42: Le Havre | AX42: 2 | AY42: 1 | AZ42: 2010-2011 | BA42: Tours FC-Nantes | BB42: Tours FC | BC42: - | BD42: Nantes | BE42: 2 | BF42: 1 | BG42: 2011-2012 | BH42: GFCO Ajaccio-Lens | BI42: GFCO Ajaccio | BJ42: - | BK42: Lens | BL42: 1 | BM42: 1 | BN42: 2012-2013 | BO42: Angers-Brest | BP42: Angers | BQ42: - | BR42: Brest | BS42: 2 | BT42: 1 | BU42: 2013-2014 | BV42: Auxerre-Valenciennes | BW42: Auxerre | BX42: - | BY42: Valenciennes | BZ42: 1 | CA42: 2 | CB42: 2014-2015 | CC42: AC Ajaccio-Tours FC | CD42: AC Ajaccio | CE42: - | CF42: Tours FC | CG42: 1 | CH42: 2 | CI42: 2015-2016 | CJ42: FC Bourg-Péronnas-Niort | CK42: FC Bourg-Péronnas | CL42: - | CM42: Niort | CN42: 2 | CO42: 2 | CP42: 2016-2017 | CQ42: Paris FC-Auxerre | CR42: Paris FC | CS42: - | CT42: Auxerre | CU42: 2 | CV42: 1 | CW42: 2017-2018
A43: =IF(OR(D43=gnp!$G$5,F43=gnp!$G$5),B$2,"") ->  | B43: =B42+50 -> 55 | C43: AS Béziers-Lens | D43: =journée05!H14 -> AS Béziers | E43: - | F43: =journée05!V14 -> Lens | G43: =IF(ISBLANK(journée05!Q14),"",journée05!Q14) -> 0 | H43: =IF(ISBLANK(journée05!S14),"",journée05!S14) -> 0 | I43: 2018-2019 | J43: N | K43: =K42 -> 5ème journée | L43: journée05 | M43: 0-0 | N43: =N42 -> 43336 | O43: Match Aller | P43: 55 | Q43: Brest-Metz | R43: Brest | S43: - | T43: Metz | U43: 0 | V43: 1 | W43: 2006-2007 | X43: 55 | Y43: Boulogne/Mer-Angers | Z43: Boulogne/Mer | AA43: - | AB43: Angers | AC43: 1 | AD43: 0 | AE43: 2007-2008 | AF43: Amiens-Reims | AG43: Amiens | AH43: - | AI43: Reims | AJ43: 2 | AK43: 0 | AL43: 2008-2009 | AM43: Bastia-Laval | AN43: Bastia | AO43: - | AP43: Laval | AQ43: 0 | AR43: 1 | AS43: 2009-2010 | AT43: AC Ajaccio-Metz | AU43: AC Ajaccio | AV43: - | AW43: Metz | AX43: 0 | AY43: 0 | AZ43: 2010-2011 | BA43: Arles-Avignon-Le Havre | BB43: Arles-Avignon | BC43: - | BD43: Le Havre | BE43: 1 | BF43: 0 | BG43: 2011-2012 | BH43: Dijon-Le Havre | BI43: Dijon | BJ43: - | BK43: Le Havre | BL43: 2 | BM43: 2 | BN43: 2012-2013 | BO43: Caen-Metz | BP43: Caen | BQ43: - | BR43: Metz | BS43: 0 | BT43: 2 | BU43: 2013-2014 | BV43: Brest-Nancy | BW43: Brest | BX43: - | BY43: Nancy | BZ43: 2 | CA43: 0 | CB43: 2014-2015 | CC43: Auxerre-Nîmes | CD43: Auxerre | CE43: - | CF43: Nîmes | CG43: 1 | CH43: 0 | CI43: 2015-2016 | CJ43: Clermont Foot-AC Ajaccio | CK43: Clermont Foot | CL43: - | CM43: AC Ajaccio | CN43: 2 | CO43: 1 | CP43: 2016-2017 | CQ43: FC Bourg-Péronnas-GFCO Ajaccio | CR43: FC Bourg-Péronnas | CS43: - | CT43: GFCO Ajaccio | CU43: 2 | CV43: 0 | CW43: 2017-2018
A44: =IF(OR(D44=gnp!$G$5,F44=gnp!$G$5),B$2,"") ->  | B44: =B43+50 -> 105 | C44: Brest-Le Havre | D44: =journée05!H15 -> Brest | E44: - | F44: =journée05!V15 -> Le Havre | G44: =IF(ISBLANK(journée05!Q15),"",journée05!Q15) -> 1 | H44: =IF(ISBLANK(journée05!S15),"",journée05!S15) -> 0 | I44: 2018-2019 | J44: G | K44: =K43 -> 5ème journée | L44: journée05 | M44: 1-0 | N44: 43336 | O44: Match Aller | P44: 105 | Q44: Caen-Bastia | R44: Caen | S44: - | T44: Bastia | U44: 2 | V44: 0 | W44: 2006-2007 | X44: 105 | Y44: Dijon-Châteauroux | Z44: Dijon | AA44: - | AB44: Châteauroux | AC44: 0 | AD44: 0 | AE44: 2007-2008 | AF44: Angers-Brest | AG44: Angers | AH44: - | AI44: Brest | AJ44: 1 | AK44: 2 | AL44: 2008-2009 | AM44: Brest-Nantes | AN44: Brest | AO44: - | AP44: Nantes | AQ44: 1 | AR44: 2 | AS44: 2009-2010 | AT44: Tours FC-Laval | AU44: Tours FC | AV44: - | AW44: Laval | AX44: 2 | AY44: 0 | AZ44: 2010-2011 | BA44: Sedan-Metz | BB44: Sedan | BC44: - | BD44: Metz | BE44: 1 | BF44: 1 | BG44: 2011-2012 | BH44: Auxerre-Laval | BI44: Auxerre | BJ44: - | BK44: Laval | BL44: 2 | BM44: 1 | BN44: 2012-2013 | BO44: Châteauroux-CA Bastia | BP44: Châteauroux | BQ44: - | BR44: CA Bastia | BS44: 2 | BT44: 0 | BU44: 2013-2014 | BV44: GFCO Ajaccio-Troyes | BW44: GFCO Ajaccio | BX44: - | BY44: Troyes | BZ44: 0 | CA44: 4 | CB44: 2014-2015 | CC44: Niort-Laval | CD44: Niort | CE44: - | CF44: Laval | CG44: 0 | CH44: 1 | CI44: 2015-2016 | CJ44: GFCO Ajaccio-RC Strasbourg | CK44: GFCO Ajaccio | CL44: - | CM44: RC Strasbourg | CN44: 1 | CO44: 1 | CP44: 2016-2017 | CQ44: Brest-Nancy | CR44: Brest | CS44: - | CT44: Nancy | CU44: 2 | CV44: 1 | CW44: 2017-2018
A45: =IF(OR(D45=gnp!$G$5,F45=gnp!$G$5),B$2,"") ->  | B45: 155 | C45: Clermont Foot-Sochaux | D45: =journée05!H16 -> Clermont Foot | E45: - | F45: =journée05!V16 -> Sochaux | G45: =IF(ISBLANK(journée05!Q16),"",journée05!Q16) -> 1 | H45: =IF(ISBLANK(journée05!S16),"",journée05!S16) -> 0 | I45: 2018-2019 | J45: G | K45: 5ème journée | L45: journée05 | M45: 1-0 | N45: 43336 | O45: Match Aller | P45: 155 | Q45: Grenoble-Tours FC | R45: Grenoble | S45: - | T45: Tours FC | U45: 2 | V45: 1 | W45: 2006-2007 | X45: 155 | Y45: Grenoble-Le Havre | Z45: Grenoble | AA45: - | AB45: Le Havre | AC45: 0 | AD45: 2 | AE45: 2007-2008 | AF45: Boulogne/Mer-Dijon | AG45: Boulogne/Mer | AH45: - | AI45: Dijon | AJ45: 3 | AK45: 0 | AL45: 2008-2009 | AM45: Caen-Arles | AN45: Caen | AO45: - | AP45: Arles | AQ45: 1 | AR45: 0 | AS45: 2009-2010 | AT45: Reims-Troyes | AU45: Reims | AV45: - | AW45: Troyes | AX45: 0 | AY45: 1 | AZ45: 2010-2011 | BA45: Lens-Monaco | BB45: Lens | BC45: - | BD45: Monaco | BE45: 2 | BF45: 2 | BG45: 2011-2012 | BH45: Nantes-Le Mans | BI45: Nantes | BJ45: - | BK45: Le Mans | BL45: 2 | BM45: 0 | BN45: 2012-2013 | BO45: Clermont Foot-Créteil | BP45: Clermont Foot | BQ45: - | BR45: Créteil | BS45: 0 | BT45: 0 | BU45: 2013-2014 | BV45: Laval-AC Ajaccio | BW45: Laval | BX45: - | BY45: AC Ajaccio | BZ45: 0 | CA45: 0 | CB45: 2014-2015 | CC45: Clermont Foot-Nancy | CD45: Clermont Foot | CE45: - | CF45: Nancy | CG45: 1 | CH45: 2 | CI45: 2015-2016 | CJ45: Nîmes-Amiens | CK45: Nîmes | CL45: - | CM45: Amiens | CN45: 2 | CO45: 3 | CP45: 2016-2017 | CQ45: Lorient-Reims | CR45: Lorient | CS45: - | CT45: Reims | CU45: 2 | CV45: 1 | CW45: 2017-2018
A46: =IF(OR(D46=gnp!$G$5,F46=gnp!$G$5),B$2,"") ->  | B46: 205 | C46: Grenoble Foot 38-Châteauroux | D46: =journée05!H17 -> Grenoble Foot 38 | E46: - | F46: =journée05!V17 -> Châteauroux | G46: =IF(ISBLANK(journée05!Q17),"",journée05!Q17) -> 0 | H46: =IF(ISBLANK(journée05!S17),"",journée05!S17) -> 0 | I46: 2018-2019 | J46: N | K46: 5ème journée | L46: journée05 | M46: 0-0 | N46: 43336 | O46: Match Aller | P46: 205 | Q46: Gueugnon-Amiens | R46: Gueugnon | S46: - | T46: Amiens | U46: 2 | V46: 1 | W46: 2006-2007 | X46: 205 | Y46: Gueugnon-Reims | Z46: Gueugnon | AA46: - | AB46: Reims | AC46: 0 | AD46: 1 | AE46: 2007-2008 | AF46: Guingamp-Sedan | AG46: Guingamp | AH46: - | AI46: Sedan | AJ46: 1 | AK46: 1 | AL46: 2008-2009 | AM46: Clermont Foot-Châteauroux | AN46: Clermont Foot | AO46: - | AP46: Châteauroux | AQ46: 0 | AR46: 0 | AS46: 2009-2010 | AT46: Grenoble-Le Mans | AU46: Grenoble | AV46: - | AW46: Le Mans | AX46: 0 | AY46: 1 | AZ46: 2010-2011 | BA46: Laval-Troyes | BB46: Laval | BC46: - | BD46: Troyes | BE46: 0 | BF46: 0 | BG46: 2011-2012 | BH46: Clermont Foot-Sedan | BI46: Clermont Foot | BJ46: - | BK46: Sedan | BL46: 0 | BM46: 2 | BN46: 2012-2013 | BO46: Dijon-Laval | BP46: Dijon | BQ46: - | BR46: Laval | BS46: 1 | BT46: 0 | BU46: 2013-2014 | BV46: Le Havre-Créteil | BW46: Le Havre | BX46: - | BY46: Créteil | BZ46: 1 | CA46: 1 | CB46: 2014-2015 | CC46: Dijon-Créteil | CD46: Dijon | CE46: - | CF46: Créteil | CG46: 4 | CH46: 1 | CI46: 2015-2016 | CJ46: US Orléans-Auxerre | CK46: US Orléans | CL46: - | CM46: Auxerre | CN46: 0 | CO46: 0 | CP46: 2016-2017 | CQ46: Nîmes-Le Havre | CR46: Nîmes | CS46: - | CT46: Le Havre | CU46: 1 | CV46: 0 | CW46: 2017-2018
A47: =IF(OR(D47=gnp!$G$5,F47=gnp!$G$5),B$2,"") ->  | B47: 255 | C47: Nancy-Niort | D47: =journée05!H18 -> Nancy | E47: - | F47: =journée05!V18 -> Niort | G47: =IF(ISBLANK(journée05!Q18),"",journée05!Q18) -> 0 | H47: =IF(ISBLANK(journée05!S18),"",journée05!S18) -> 1 | I47: 2018-2019 | J47: P | K47: 5ème journée | L47: journée05 | M47: 0-1 | N47: 43336 | O47: Match Aller | P47: 255 | Q47: Istres-Niort | R47: Istres | S47: - | T47: Niort | U47: 1 | V47: 0 | W47: 2006-2007 | X47: 255 | Y47: Guingamp-Amiens | Z47: Guingamp | AA47: - | AB47: Amiens | AC47: 1 | AD47: 0 | AE47: 2007-2008 | AF47: Lens-Clermont Foot | AG47: Lens | AH47: - | AI47: Clermont Foot | AJ47: 2 | AK47: 1 | AL47: 2008-2009 | AM47: Istres-Dijon | AN47: Istres | AO47: - | AP47: Dijon | AQ47: 1 | AR47: 1 | AS47: 2009-2010 | AT47: Angers-Sedan | AU47: Angers | AV47: - | AW47: Sedan | AX47: 0 | AY47: 3 | AZ47: 2010-2011 | BA47: Châteauroux-Le Mans | BB47: Châteauroux | BC47: - | BD47: Le Mans | BE47: 1 | BF47: 0 | BG47: 2011-2012 | BH47: Niort-Guingamp | BI47: Niort | BJ47: - | BK47: Guingamp | BL47: 0 | BM47: 0 | BN47: 2012-2013 | BO47: Istres-Auxerre | BP47: Istres | BQ47: - | BR47: Auxerre | BS47: 1 | BT47: 1 | BU47: 2013-2014 | BV47: Châteauroux-US Orléans | BW47: Châteauroux | BX47: - | BY47: US Orléans | BZ47: 0 | CA47: 0 | CB47: 2014-2015 | CC47: FC Bourg-Péronnas-Sochaux | CD47: FC Bourg-Péronnas | CE47: - | CF47: Sochaux | CG47: 2 | CH47: 1 | CI47: 2015-2016 | CJ47: Red Star 93-Le Havre | CK47: Red Star 93 | CL47: - | CM47: Le Havre | CN47: 0 | CO47: 0 | CP47: 2016-2017 | CQ47: US Orléans-Lens | CR47: US Orléans | CS47: - | CT47: Lens | CU47: 2 | CV47: 0 | CW47: 2017-2018
A48: =IF(OR(D48=gnp!$G$5,F48=gnp!$G$5),B$2,"") ->  | B48: 305 | C48: US Orléans-Paris FC | D48: =journée05!H19 -> US Orléans | E48: - | F48: =journée05!V19 -> Paris FC | G48: =IF(ISBLANK(journée05!Q19),"",journée05!Q19) -> 4 | H48: =IF(ISBLANK(journée05!S19),"",journée05!S19) -> 0 | I48: 2018-2019 | J48: G | K48: 5ème journée | L48: journée05 | M48: 4-0 | N48: 43336 | O48: Match Aller | P48: 305 | Q48: Le Havre-Créteil | R48: Le Havre | S48: - | T48: Créteil | U48: 2 | V48: 1 | W48: 2006-2007 | X48: 305 | Y48: Libourne/Seurin-Clermont Foot | Z48: Libourne/Seurin | AA48: - | AB48: Clermont Foot | AC48: 1 | AD48: 1 | AE48: 2007-2008 | AF48: Montpellier-Metz | AG48: Montpellier | AH48: - | AI48: Metz | AJ48: 1 | AK48: 2 | AL48: 2008-2009 | AM48: Nîmes-Metz | AN48: Nîmes | AO48: - | AP48: Metz | AQ48: 1 | AR48: 1 | AS48: 2009-2010 | AT48: Dijon-Nîmes | AU48: Dijon | AV48: - | AW48: Nîmes | AX48: 1 | AY48: 0 | AZ48: 2010-2011 | BA48: Angers-Reims | BB48: Angers | BC48: - | BD48: Reims | BE48: 0 | BF48: 0 | BG48: 2011-2012 | BH48: Nîmes-Caen | BI48: Nîmes | BJ48: - | BK48: Caen | BL48: 0 | BM48: 2 | BN48: 2012-2013 | BO48: Lens-Troyes | BP48: Lens | BQ48: - | BR48: Troyes | BS48: 1 | BT48: 0 | BU48: 2013-2014 | BV48: Nîmes-Arles-Avignon | BW48: Nîmes | BX48: - | BY48: Arles-Avignon | BZ48: 2 | CA48: 2 | CB48: 2014-2015 | CC48: Metz-Evian Thonon G. | CD48: Metz | CE48: - | CF48: Evian Thonon G. | CG48: 2 | CH48: 1 | CI48: 2015-2016 | CJ48: Sochaux-Brest | CK48: Sochaux | CL48: - | CM48: Brest | CN48: 2 | CO48: 2 | CP48: 2016-2017 | CQ48: US Quevilly-Clermont Foot | CR48: US Quevilly | CS48: - | CT48: Clermont Foot | CU48: 0 | CV48: 2 | CW48: 2017-2018
A49: =IF(OR(D49=gnp!$G$5,F49=gnp!$G$5),B$2,"") ->  | B49: 355 | C49: Red Star 93-Auxerre | D49: =journée05!H20 -> Red Star 93 | E49: - | F49: =journée05!V20 -> Auxerre | G49: =IF(ISBLANK(journée05!Q20),"",journée05!Q20) -> 1 | H49: =IF(ISBLANK(journée05!S20),"",journée05!S20) -> 0 | I49: 2018-2019 | J49: G | K49: 5ème journée | L49: journée05 | M49: 1-0 | N49: 43336 | O49: Match Aller | P49: 355 | Q49: Libourne/Seurin-Dijon | R49: Libourne/Seurin | S49: - | T49: Dijon | U49: 0 | V49: 1 | W49: 2006-2007 | X49: 355 | Y49: Nantes-Brest | Z49: Nantes | AA49: - | AB49: Brest | AC49: 3 | AD49: 0 | AE49: 2007-2008 | AF49: Strasbourg-Châteauroux | AG49: Strasbourg | AH49: - | AI49: Châteauroux | AJ49: 2 | AK49: 1 | AL49: 2008-2009 | AM49: Strasbourg-Sedan | AN49: Strasbourg | AO49: - | AP49: Sedan | AQ49: 2 | AR49: 2 | AS49: 2009-2010 | AT49: Boulogne-sur-Mer-Istres | AU49: Boulogne-sur-Mer | AV49: - | AW49: Istres | AX49: 2 | AY49: 0 | AZ49: 2010-2011 | BA49: Amiens-Boulogne-sur-Mer | BB49: Amiens | BC49: - | BD49: Boulogne-sur-Mer | BE49: 0 | BF49: 0 | BG49: 2011-2012 | BH49: Châteauroux-Tours FC | BI49: Châteauroux | BJ49: - | BK49: Tours FC | BL49: 3 | BM49: 0 | BN49: 2012-2013 | BO49: Nancy-Tours FC | BP49: Nancy | BQ49: - | BR49: Tours FC | BS49: 2 | BT49: 3 | BU49: 2013-2014 | BV49: Niort-Clermont Foot | BW49: Niort | BX49: - | BY49: Clermont Foot | BZ49: 0 | CA49: 0 | CB49: 2014-2015 | CC49: Paris FC-Brest | CD49: Paris FC | CE49: - | CF49: Brest | CG49: 1 | CH49: 1 | CI49: 2015-2016 | CJ49: Tours FC-Reims | CK49: Tours FC | CL49: - | CM49: Reims | CN49: 1 | CO49: 1 | CP49: 2016-2017 | CQ49: Sochaux-Châteauroux | CR49: Sochaux | CS49: - | CT49: Châteauroux | CU49: 1 | CV49: 5 | CW49: 2017-2018
A50: =IF(OR(D50=gnp!$G$5,F50=gnp!$G$5),B$2,"") ->  | B50: 405 | C50: Troyes-Metz | D50: =journée05!H21 -> Troyes | E50: - | F50: =journée05!V21 -> Metz | G50: =IF(ISBLANK(journée05!Q21),"",journée05!Q21) -> 0 | H50: =IF(ISBLANK(journée05!S21),"",journée05!S21) -> 1 | I50: 2018-2019 | J50: P | K50: 5ème journée | L50: journée05 | M50: 0-1 | N50: 43336 | O50: Match Aller | P50: 405 | Q50: Reims-Montpellier | R50: Reims | S50: - | T50: Montpellier | U50: 4 | V50: 1 | W50: 2006-2007 | X50: 405 | Y50: Niort-Montpellier | Z50: Niort | AA50: - | AB50: Montpellier | AC50: 1 | AD50: 0 | AE50: 2007-2008 | AF50: Tours FC-Bastia | AG50: Tours FC | AH50: - | AI50: Bastia | AJ50: 0 | AK50: 1 | AL50: 2008-2009 | AM50: Tours FC-Guingamp | AN50: Tours FC | AO50: - | AP50: Guingamp | AQ50: 2 | AR50: 0 | AS50: 2009-2010 | AT50: Nantes-Vannes OC | AU50: Nantes | AV50: - | AW50: Vannes OC | AX50: 2 | AY50: 0 | AZ50: 2010-2011 | BA50: Bastia-Clermont Foot | BB50: Bastia | BC50: - | BD50: Clermont Foot | BE50: 1 | BF50: 1 | BG50: 2011-2012 | BH50: Monaco-Arles-Avignon | BI50: Monaco | BJ50: - | BK50: Arles-Avignon | BL50: 3 | BM50: 0 | BN50: 2012-2013 | BO50: Nîmes-Le Havre | BP50: Nîmes | BQ50: - | BR50: Le Havre | BS50: 0 | BT50: 0 | BU50: 2013-2014 | BV50: Sochaux-Dijon | BW50: Sochaux | BX50: - | BY50: Dijon | BZ50: 0 | CA50: 1 | CB50: 2014-2015 | CC50: Lens-Le Havre | CD50: Lens | CE50: - | CF50: Le Havre | CG50: 0 | CH50: 4 | CI50: 2015-2016 | CJ50: Troyes-Lens | CK50: Troyes | CL50: - | CM50: Lens | CN50: 1 | CO50: 1 | CP50: 2016-2017 | CQ50: Tours FC-AC Ajaccio | CR50: Tours FC | CS50: - | CT50: AC Ajaccio | CU50: 1 | CV50: 3 | CW50: 2017-2018
A51: =IF(OR(D51=gnp!$G$5,F51=gnp!$G$5),B$2,"") ->  | B51: 455 | C51: Valenciennes-GFCO Ajaccio | D51: =journée05!H22 -> Valenciennes | E51: - | F51: =journée05!V22 -> GFCO Ajaccio | G51: =IF(ISBLANK(journée05!Q22),"",journée05!Q22) -> 0 | H51: =IF(ISBLANK(journée05!S22),"",journée05!S22) -> 0 | I51: 2018-2019 | J51: N | K51: 5ème journée | L51: journée05 | M51: 0-0 | N51: 43336 | O51: Match Aller | P51: 455 | Q51: Strasbourg-Guingamp | R51: Strasbourg | S51: - | T51: Guingamp | U51: 2 | V51: 0 | W51: 2006-2007 | X51: 455 | Y51: Troyes-Bastia | Z51: Troyes | AA51: - | AB51: Bastia | AC51: 2 | AD51: 0 | AE51: 2007-2008 | AF51: Troyes-Nîmes | AG51: Troyes | AH51: - | AI51: Nîmes | AJ51: 0 | AK51: 1 | AL51: 2008-2009 | AM51: Vannes OC-Le Havre | AN51: Vannes OC | AO51: - | AP51: Le Havre | AQ51: 1 | AR51: 1 | AS51: 2009-2010 | AT51: Châteauroux-Evian Thonon G. | AU51: Châteauroux | AV51: - | AW51: Evian Thonon G. | AX51: 0 | AY51: 1 | AZ51: 2010-2011 | BA51: Guingamp-Istres | BB51: Guingamp | BC51: - | BD51: Istres | BE51: 1 | BF51: 0 | BG51: 2011-2012 | BH51: Angers-Istres | BI51: Angers | BJ51: - | BK51: Istres | BL51: 0 | BM51: 1 | BN51: 2012-2013 | BO51: Niort-Arles-Avignon | BP51: Niort | BQ51: - | BR51: Arles-Avignon | BS51: 1 | BT51: 0 | BU51: 2013-2014 | BV51: Tours FC-Angers | BW51: Tours FC | BX51: - | BY51: Angers | BZ51: 1 | CA51: 2 | CB51: 2014-2015 | CC51: Red Star 93-Valenciennes | CD51: Red Star 93 | CE51: - | CF51: Valenciennes | CG51: 1 | CH51: 5 | CI51: 2015-2016 | CJ51: Valenciennes-Laval | CK51: Valenciennes | CL51: - | CM51: Laval | CN51: 2 | CO51: 0 | CP51: 2016-2017 | CQ51: Valenciennes-Niort | CR51: Valenciennes | CS51: - | CT51: Niort | CU51: 4 | CV51: 1 | CW51: 2017-2018
A52: =IF(OR(D52=gnp!$G$5,F52=gnp!$G$5),B$2,"") ->  | B52: 6 | C52: GFCO Ajaccio-Red Star 93 | D52: =journée06!H13 -> GFCO Ajaccio | E52: - | F52: =journée06!V13 -> Red Star 93 | G52: =IF(ISBLANK(journée06!Q13),"",journée06!Q13) -> 2 | H52: =IF(ISBLANK(journée06!S13),"",journée06!S13) -> 1 | I52: 2018-2019 | J52: G | K52: 6ème journée | L52: journée06 | M52: 2-1 | N52: =journée06!H11 -> 43343 | O52: Match Aller | P52: 6 | Q52: Amiens-Grenoble | R52: Amiens | S52: - | T52: Grenoble | U52: 0 | V52: 1 | W52: 2006-2007 | X52: 6 | Y52: Amiens-Niort | Z52: Amiens | AA52: - | AB52: Niort | AC52: 0 | AD52: 2 | AE52: 2007-2008 | AF52: Bastia-Amiens | AG52: Bastia | AH52: - | AI52: Amiens | AJ52: 2 | AK52: 2 | AL52: 2008-2009 | AM52: AC Ajaccio-Clermont Foot | AN52: AC Ajaccio | AO52: - | AP52: Clermont Foot | AQ52: 1 | AR52: 1 | AS52: 2009-2010 | AT52: Metz-Nantes | AU52: Metz | AV52: - | AW52: Nantes | AX52: 1 | AY52: 1 | AZ52: 2010-2011 | BA52: Amiens-Lens | BB52: Amiens | BC52: - | BD52: Lens | BE52: 1 | BF52: 2 | BG52: 2011-2012 | BH52: Arles-Avignon-Nantes | BI52: Arles-Avignon | BJ52: - | BK52: Nantes | BL52: 2 | BM52: 1 | BN52: 2012-2013 | BO52: Arles-Avignon-Caen | BP52: Arles-Avignon | BQ52: - | BR52: Caen | BS52: 3 | BT52: 2 | BU52: 2013-2014 | BV52: AC Ajaccio-Châteauroux | BW52: AC Ajaccio | BX52: - | BY52: Châteauroux | BZ52: 1 | CA52: 1 | CB52: 2014-2015 | CC52: Nancy-Niort | CD52: Nancy | CE52: - | CF52: Niort | CG52: 1 | CH52: 1 | CI52: 2015-2016 | CJ52: AC Ajaccio-Red Star 93 | CK52: AC Ajaccio | CL52: - | CM52: Red Star 93 | CN52: 1 | CO52: 2 | CP52: 2016-2017 | CQ52: AC Ajaccio-Nîmes | CR52: AC Ajaccio | CS52: - | CT52: Nîmes | CU52: 1 | CV52: 4 | CW52: 2017-2018
A53: =IF(OR(D53=gnp!$G$5,F53=gnp!$G$5),B$2,"") ->  | B53: =B52+50 -> 56 | C53: Auxerre-Brest | D53: =journée06!H14 -> Auxerre | E53: - | F53: =journée06!V14 -> Brest | G53: =IF(ISBLANK(journée06!Q14),"",journée06!Q14) -> 0 | H53: =IF(ISBLANK(journée06!S14),"",journée06!S14) -> 2 | I53: 2018-2019 | J53: P | K53: =K52 -> 6ème journée | L53: journée06 | M53: 0-2 | N53: =N52 -> 43343 | O53: Match Aller | P53: 56 | Q53: Châteauroux-Istres | R53: Châteauroux | S53: - | T53: Istres | U53: 0 | V53: 0 | W53: 2006-2007 | X53: 56 | Y53: Angers-Guingamp | Z53: Angers | AA53: - | AB53: Guingamp | AC53: 2 | AD53: 1 | AE53: 2007-2008 | AF53: Brest-AC Ajaccio | AG53: Brest | AH53: - | AI53: AC Ajaccio | AJ53: 1 | AK53: 2 | AL53: 2008-2009 | AM53: Arles-Angers | AN53: Arles | AO53: - | AP53: Angers | AQ53: 1 | AR53: 1 | AS53: 2009-2010 | AT53: Laval-Châteauroux | AU53: Laval | AV53: - | AW53: Châteauroux | AX53: 1 | AY53: 1 | AZ53: 2010-2011 | BA53: Troyes-Bastia | BB53: Troyes | BC53: - | BD53: Bastia | BE53: 1 | BF53: 0 | BG53: 2011-2012 | BH53: Le Havre-Monaco | BI53: Le Havre | BJ53: - | BK53: Monaco | BL53: 2 | BM53: 1 | BN53: 2012-2013 | BO53: Auxerre-Brest | BP53: Auxerre | BQ53: - | BR53: Brest | BS53: 0 | BT53: 0 | BU53: 2013-2014 | BV53: Angers-GFCO Ajaccio | BW53: Angers | BX53: - | BY53: GFCO Ajaccio | BZ53: 2 | CA53: 0 | CB53: 2014-2015 | CC53: Clermont Foot-Paris FC | CD53: Clermont Foot | CE53: - | CF53: Paris FC | CG53: 1 | CH53: 1 | CI53: 2015-2016 | CJ53: Amiens-Tours FC | CK53: Amiens | CL53: - | CM53: Tours FC | CN53: 3 | CO53: 1 | CP53: 2016-2017 | CQ53: Auxerre-Tours FC | CR53: Auxerre | CS53: - | CT53: Tours FC | CU53: 1 | CV53: 1 | CW53: 2017-2018
A54: =IF(OR(D54=gnp!$G$5,F54=gnp!$G$5),B$2,"") ->  | B54: =B53+50 -> 106 | C54: Châteauroux-Nancy | D54: =journée06!H15 -> Châteauroux | E54: - | F54: =journée06!V15 -> Nancy | G54: =IF(ISBLANK(journée06!Q15),"",journée06!Q15) -> 1 | H54: =IF(ISBLANK(journée06!S15),"",journée06!S15) -> 0 | I54: 2018-2019 | J54: G | K54: =K53 -> 6ème journée | L54: journée06 | M54: 1-0 | N54: 43343 | O54: Match Aller | P54: 106 | Q54: Créteil-AC Ajaccio | R54: Créteil | S54: - | T54: AC Ajaccio | U54: 0 | V54: 0 | W54: 2006-2007 | X54: 106 | Y54: Bastia-Nantes | Z54: Bastia | AA54: - | AB54: Nantes | AC54: 0 | AD54: 1 | AE54: 2007-2008 | AF54: Châteauroux-Guingamp | AG54: Châteauroux | AH54: - | AI54: Guingamp | AJ54: 1 | AK54: 1 | AL54: 2008-2009 | AM54: Châteauroux-Brest | AN54: Châteauroux | AO54: - | AP54: Brest | AQ54: 1 | AR54: 1 | AS54: 2009-2010 | AT54: Evian Thonon G.-AC Ajaccio | AU54: Evian Thonon G. | AV54: - | AW54: AC Ajaccio | AX54: 1 | AY54: 1 | AZ54: 2010-2011 | BA54: Metz-Laval | BB54: Metz | BC54: - | BD54: Laval | BE54: 2 | BF54: 2 | BG54: 2011-2012 | BH54: Guingamp-Châteauroux | BI54: Guingamp | BJ54: - | BK54: Châteauroux | BL54: 2 | BM54: 1 | BN54: 2012-2013 | BO54: CA Bastia-Dijon | BP54: CA Bastia | BQ54: - | BR54: Dijon | BS54: 0 | BT54: 0 | BU54: 2013-2014 | BV54: Arles-Avignon-Tours FC | BW54: Arles-Avignon | BX54: - | BY54: Tours FC | BZ54: 1 | CA54: 0 | CB54: 2014-2015 | CC54: Evian Thonon G.-Auxerre | CD54: Evian Thonon G. | CE54: - | CF54: Auxerre | CG54: 4 | CH54: 0 | CI54: 2015-2016 | CJ54: Auxerre-Sochaux | CK54: Auxerre | CL54: - | CM54: Sochaux | CN54: 0 | CO54: 0 | CP54: 2016-2017 | CQ54: Châteauroux-US Quevilly | CR54: Châteauroux | CS54: - | CT54: US Quevilly | CU54: 3 | CV54: 2 | CW54: 2017-2018
A55: =IF(OR(D55=gnp!$G$5,F55=gnp!$G$5),B$2,"") ->  | B55: 156 | C55: Le Havre-US Orléans | D55: =journée06!H16 -> Le Havre | E55: - | F55: =journée06!V16 -> US Orléans | G55: =IF(ISBLANK(journée06!Q16),"",journée06!Q16) -> 3 | H55: =IF(ISBLANK(journée06!S16),"",journée06!S16) -> 1 | I55: 2018-2019 | J55: G | K55: 6ème journée | L55: journée06 | M55: 3-1 | N55: 43343 | O55: Match Aller | P55: 156 | Q55: Dijon-Brest | R55: Dijon | S55: - | T55: Brest | U55: 1 | V55: 1 | W55: 2006-2007 | X55: 156 | Y55: Brest-Libourne/Seurin | Z55: Brest | AA55: - | AB55: Libourne/Seurin | AC55: 1 | AD55: 0 | AE55: 2007-2008 | AF55: Clermont Foot-Troyes | AG55: Clermont Foot | AH55: - | AI55: Troyes | AJ55: 2 | AK55: 1 | AL55: 2008-2009 | AM55: Dijon-Bastia | AN55: Dijon | AO55: - | AP55: Bastia | AQ55: 1 | AR55: 0 | AS55: 2009-2010 | AT55: Le Havre-Dijon | AU55: Le Havre | AV55: - | AW55: Dijon | AX55: 2 | AY55: 1 | AZ55: 2010-2011 | BA55: Clermont Foot-Châteauroux | BB55: Clermont Foot | BC55: - | BD55: Châteauroux | BE55: 2 | BF55: 1 | BG55: 2011-2012 | BH55: Istres-Niort | BI55: Istres | BJ55: - | BK55: Niort | BL55: 1 | BM55: 0 | BN55: 2012-2013 | BO55: Créteil-Nancy | BP55: Créteil | BQ55: - | BR55: Nancy | BS55: 1 | BT55: 1 | BU55: 2013-2014 | BV55: Clermont Foot-Le Havre | BW55: Clermont Foot | BX55: - | BY55: Le Havre | BZ55: 1 | CA55: 0 | CB55: 2014-2015 | CC55: Sochaux-Créteil | CD55: Sochaux | CE55: - | CF55: Créteil | CG55: 0 | CH55: 3 | CI55: 2015-2016 | CJ55: Brest-Clermont Foot | CK55: Brest | CL55: - | CM55: Clermont Foot | CN55: 0 | CO55: 2 | CP55: 2016-2017 | CQ55: Clermont Foot-FC Bourg-Péronnas | CR55: Clermont Foot | CS55: - | CT55: FC Bourg-Péronnas | CU55: 4 | CV55: 1 | CW55: 2017-2018
A56: =IF(OR(D56=gnp!$G$5,F56=gnp!$G$5),B$2,"") ->  | B56: 206 | C56: Lorient-Grenoble Foot 38 | D56: =journée06!H17 -> Lorient | E56: - | F56: =journée06!V17 -> Grenoble Foot 38 | G56: =IF(ISBLANK(journée06!Q17),"",journée06!Q17) -> 1 | H56: =IF(ISBLANK(journée06!S17),"",journée06!S17) -> 0 | I56: 2018-2019 | J56: G | K56: 6ème journée | L56: journée06 | M56: 1-0 | N56: 43343 | O56: Match Aller | P56: 206 | Q56: Guingamp-Gueugnon | R56: Guingamp | S56: - | T56: Gueugnon | U56: 6 | V56: 1 | W56: 2006-2007 | X56: 206 | Y56: Châteauroux-Troyes | Z56: Châteauroux | AA56: - | AB56: Troyes | AC56: 1 | AD56: 3 | AE56: 2007-2008 | AF56: Dijon-Montpellier | AG56: Dijon | AH56: - | AI56: Montpellier | AJ56: 1 | AK56: 0 | AL56: 2008-2009 | AM56: Guingamp-Caen | AN56: Guingamp | AO56: - | AP56: Caen | AQ56: 0 | AR56: 0 | AS56: 2009-2010 | AT56: Vannes OC-Reims | AU56: Vannes OC | AV56: - | AW56: Reims | AX56: 4 | AY56: 1 | AZ56: 2010-2011 | BA56: Nantes-Le Mans | BB56: Nantes | BC56: - | BD56: Le Mans | BE56: 1 | BF56: 1 | BG56: 2011-2012 | BH56: Sedan-Caen | BI56: Sedan | BJ56: - | BK56: Caen | BL56: 2 | BM56: 2 | BN56: 2012-2013 | BO56: Laval-Angers | BP56: Laval | BQ56: - | BR56: Angers | BS56: 4 | BT56: 1 | BU56: 2013-2014 | BV56: Dijon-Niort | BW56: Dijon | BX56: - | BY56: Niort | BZ56: 1 | CA56: 0 | CB56: 2014-2015 | CC56: Le Havre-Red Star 93 | CD56: Le Havre | CE56: - | CF56: Red Star 93 | CG56: 0 | CH56: 2 | CI56: 2015-2016 | CJ56: Laval-US Orléans | CK56: Laval | CL56: - | CM56: US Orléans | CN56: 3 | CO56: 1 | CP56: 2016-2017 | CQ56: GFCO Ajaccio-Sochaux | CR56: GFCO Ajaccio | CS56: - | CT56: Sochaux | CU56: 0 | CV56: 1 | CW56: 2017-2018
A57: =IF(OR(D57=gnp!$G$5,F57=gnp!$G$5),B$2,"") ->  | B57: 256 | C57: Metz-Lens | D57: =journée06!H18 -> Metz | E57: - | F57: =journée06!V18 -> Lens | G57: =IF(ISBLANK(journée06!Q18),"",journée06!Q18) -> 2 | H57: =IF(ISBLANK(journée06!S18),"",journée06!S18) -> 0 | I57: 2018-2019 | J57: G | K57: 6ème journée | L57: journée06 | M57: 2-0 | N57: 43343 | O57: Match Aller | P57: 256 | Q57: Le Havre-Caen | R57: Le Havre | S57: - | T57: Caen | U57: 2 | V57: 2 | W57: 2006-2007 | X57: 256 | Y57: Clermont Foot-Grenoble | Z57: Clermont Foot | AA57: - | AB57: Grenoble | AC57: 0 | AD57: 0 | AE57: 2007-2008 | AF57: Lens-Metz | AG57: Lens | AH57: - | AI57: Metz | AJ57: 0 | AK57: 1 | AL57: 2008-2009 | AM57: Laval-Istres | AN57: Laval | AO57: - | AP57: Istres | AQ57: 2 | AR57: 2 | AS57: 2009-2010 | AT57: Le Mans-Boulogne-sur-Mer | AU57: Le Mans | AV57: - | AW57: Boulogne-sur-Mer | AX57: 1 | AY57: 1 | AZ57: 2010-2011 | BA57: Istres-Sedan | BB57: Istres | BC57: - | BD57: Sedan | BE57: 1 | BF57: 1 | BG57: 2011-2012 | BH57: Laval-Nîmes | BI57: Laval | BJ57: - | BK57: Nîmes | BL57: 0 | BM57: 1 | BN57: 2012-2013 | BO57: Le Havre-Lens | BP57: Le Havre | BQ57: - | BR57: Lens | BS57: 6 | BT57: 2 | BU57: 2013-2014 | BV57: Nancy-Sochaux | BW57: Nancy | BX57: - | BY57: Sochaux | BZ57: 1 | CA57: 1 | CB57: 2014-2015 | CC57: Nîmes-AC Ajaccio | CD57: Nîmes | CE57: - | CF57: AC Ajaccio | CG57: 0 | CH57: 0 | CI57: 2015-2016 | CJ57: Le Havre-Valenciennes | CK57: Le Havre | CL57: - | CM57: Valenciennes | CN57: 2 | CO57: 2 | CP57: 2016-2017 | CQ57: Le Havre-US Orléans | CR57: Le Havre | CS57: - | CT57: US Orléans | CU57: 1 | CV57: 1 | CW57: 2017-2018
A58: =IF(OR(D58=gnp!$G$5,F58=gnp!$G$5),B$2,"") ->  | B58: 306 | C58: Niort-AC Ajaccio | D58: =journée06!H19 -> Niort | E58: - | F58: =journée06!V19 -> AC Ajaccio | G58: =IF(ISBLANK(journée06!Q19),"",journée06!Q19) -> 2 | H58: =IF(ISBLANK(journée06!S19),"",journée06!S19) -> 0 | I58: 2018-2019 | J58: G | K58: 6ème journée | L58: journée06 | M58: 2-0 | N58: 43343 | O58: Match Aller | P58: 306 | Q58: Metz-Bastia | R58: Metz | S58: - | T58: Bastia | U58: 2 | V58: 1 | W58: 2006-2007 | X58: 306 | Y58: Le Havre-Gueugnon | Z58: Le Havre | AA58: - | AB58: Gueugnon | AC58: 4 | AD58: 1 | AE58: 2007-2008 | AF58: Nîmes-Tours FC | AG58: Nîmes | AH58: - | AI58: Tours FC | AJ58: 0 | AK58: 1 | AL58: 2008-2009 | AM58: Le Havre-Nîmes | AN58: Le Havre | AO58: - | AP58: Nîmes | AQ58: 0 | AR58: 2 | AS58: 2009-2010 | AT58: Istres-Grenoble | AU58: Istres | AV58: - | AW58: Grenoble | AX58: 0 | AY58: 1 | AZ58: 2010-2011 | BA58: Reims-Guingamp | BB58: Reims | BC58: - | BD58: Guingamp | BE58: 2 | BF58: 1 | BG58: 2011-2012 | BH58: Le Mans-Clermont Foot | BI58: Le Mans | BJ58: - | BK58: Clermont Foot | BL58: 3 | BM58: 1 | BN58: 2012-2013 | BO58: Metz-Nîmes | BP58: Metz | BQ58: - | BR58: Nîmes | BS58: 2 | BT58: 2 | BU58: 2013-2014 | BV58: Nîmes-Brest | BW58: Nîmes | BX58: - | BY58: Brest | BZ58: 0 | CA58: 0 | CB58: 2014-2015 | CC58: Brest-Lens | CD58: Brest | CE58: - | CF58: Lens | CG58: 2 | CH58: 1 | CI58: 2015-2016 | CJ58: Lens-FC Bourg-Péronnas | CK58: Lens | CL58: - | CM58: FC Bourg-Péronnas | CN58: 1 | CO58: 1 | CP58: 2016-2017 | CQ58: Lens-Lorient | CR58: Lens | CS58: - | CT58: Lorient | CU58: 2 | CV58: 3 | CW58: 2017-2018
A59: =IF(OR(D59=gnp!$G$5,F59=gnp!$G$5),B$2,"") ->  | B59: 356 | C59: Paris FC-Troyes | D59: =journée06!H20 -> Paris FC | E59: - | F59: =journée06!V20 -> Troyes | G59: =IF(ISBLANK(journée06!Q20),"",journée06!Q20) -> 2 | H59: =IF(ISBLANK(journée06!S20),"",journée06!S20) -> 0 | I59: 2018-2019 | J59: G | K59: 6ème journée | L59: journée06 | M59: 2-0 | N59: 43343 | O59: Match Aller | P59: 356 | Q59: Montpellier-Libourne/Seurin | R59: Montpellier | S59: - | T59: Libourne/Seurin | U59: 0 | V59: 1 | W59: 2006-2007 | X59: 356 | Y59: Montpellier-AC Ajaccio | Z59: Montpellier | AA59: - | AB59: AC Ajaccio | AC59: 1 | AD59: 0 | AE59: 2007-2008 | AF59: Reims-Boulogne/Mer | AG59: Reims | AH59: - | AI59: Boulogne/Mer | AJ59: 1 | AK59: 1 | AL59: 2008-2009 | AM59: Metz-Tours FC | AN59: Metz | AO59: - | AP59: Tours FC | AQ59: 1 | AR59: 1 | AS59: 2009-2010 | AT59: Sedan-Clermont Foot | AU59: Sedan | AV59: - | AW59: Clermont Foot | AX59: 4 | AY59: 0 | AZ59: 2010-2011 | BA59: Le Havre-Tours FC | BB59: Le Havre | BC59: - | BD59: Tours FC | BE59: 2 | BF59: 1 | BG59: 2011-2012 | BH59: Dijon-GFCO Ajaccio | BI59: Dijon | BJ59: - | BK59: GFCO Ajaccio | BL59: 2 | BM59: 1 | BN59: 2012-2013 | BO59: Niort-Clermont Foot | BP59: Niort | BQ59: - | BR59: Clermont Foot | BS59: 0 | BT59: 0 | BU59: 2013-2014 | BV59: US Orléans-Laval | BW59: US Orléans | BX59: - | BY59: Laval | BZ59: 1 | CA59: 1 | CB59: 2014-2015 | CC59: Laval-Metz | CD59: Laval | CE59: - | CF59: Metz | CG59: 0 | CH59: 1 | CI59: 2015-2016 | CJ59: Niort-Nîmes | CK59: Niort | CL59: - | CM59: Nîmes | CN59: 1 | CO59: 3 | CP59: 2016-2017 | CQ59: Nancy-Valenciennes | CR59: Nancy | CS59: - | CT59: Valenciennes | CU59: 3 | CV59: 0 | CW59: 2017-2018
A60: =IF(OR(D60=gnp!$G$5,F60=gnp!$G$5),B$2,"") ->  | B60: 406 | C60: Sochaux-AS Béziers | D60: =journée06!H21 -> Sochaux | E60: - | F60: =journée06!V21 -> AS Béziers | G60: =IF(ISBLANK(journée06!Q21),"",journée06!Q21) -> 1 | H60: =IF(ISBLANK(journée06!S21),"",journée06!S21) -> 0 | I60: 2018-2019 | J60: G | K60: 6ème journée | L60: journée06 | M60: 1-0 | N60: 43343 | O60: Match Aller | P60: 406 | Q60: Niort-Reims | R60: Niort | S60: - | T60: Reims | U60: 0 | V60: 0 | W60: 2006-2007 | X60: 406 | Y60: Reims-Dijon | Z60: Reims | AA60: - | AB60: Dijon | AC60: 0 | AD60: 1 | AE60: 2007-2008 | AF60: Sedan-Strasbourg | AG60: Sedan | AH60: - | AI60: Strasbourg | AJ60: 2 | AK60: 2 | AL60: 2008-2009 | AM60: Nantes-Strasbourg | AN60: Nantes | AO60: - | AP60: Strasbourg | AQ60: 2 | AR60: 1 | AS60: 2009-2010 | AT60: Troyes-Tours FC | AU60: Troyes | AV60: - | AW60: Tours FC | AX60: 1 | AY60: 2 | AZ60: 2010-2011 | BA60: Boulogne-sur-Mer-Arles-Avignon | BB60: Boulogne-sur-Mer | BC60: - | BD60: Arles-Avignon | BE60: 1 | BF60: 1 | BG60: 2011-2012 | BH60: Lens-Angers | BI60: Lens | BJ60: - | BK60: Angers | BL60: 1 | BM60: 3 | BN60: 2012-2013 | BO60: Tours FC-Istres | BP60: Tours FC | BQ60: - | BR60: Istres | BS60: 2 | BT60: 2 | BU60: 2013-2014 | BV60: Troyes-Auxerre | BW60: Troyes | BX60: - | BY60: Auxerre | BZ60: 1 | CA60: 2 | CB60: 2014-2015 | CC60: Tours FC-FC Bourg-Péronnas | CD60: Tours FC | CE60: - | CF60: FC Bourg-Péronnas | CG60: 0 | CH60: 1 | CI60: 2015-2016 | CJ60: Reims-GFCO Ajaccio | CK60: Reims | CL60: - | CM60: GFCO Ajaccio | CN60: 2 | CO60: 0 | CP60: 2016-2017 | CQ60: Niort-Paris FC | CR60: Niort | CS60: - | CT60: Paris FC | CU60: 0 | CV60: 2 | CW60: 2017-2018
A61: =IF(OR(D61=gnp!$G$5,F61=gnp!$G$5),B$2,"") ->  | B61: 456 | C61: Valenciennes-Clermont Foot | D61: =journée06!H22 -> Valenciennes | E61: - | F61: =journée06!V22 -> Clermont Foot | G61: =IF(ISBLANK(journée06!Q22),"",journée06!Q22) -> 0 | H61: =IF(ISBLANK(journée06!S22),"",journée06!S22) -> 4 | I61: 2018-2019 | J61: P | K61: 6ème journée | L61: journée06 | M61: 0-4 | N61: 43343 | O61: Match Aller | P61: 456 | Q61: Tours FC-Strasbourg | R61: Tours FC | S61: - | T61: Strasbourg | U61: 0 | V61: 0 | W61: 2006-2007 | X61: 456 | Y61: Sedan-Boulogne/Mer | Z61: Sedan | AA61: - | AB61: Boulogne/Mer | AC61: 1 | AD61: 1 | AE61: 2007-2008 | AF61: Vannes OC-Angers | AG61: Vannes OC | AH61: - | AI61: Angers | AJ61: 2 | AK61: 0 | AL61: 2008-2009 | AM61: Sedan-Vannes OC | AN61: Sedan | AO61: - | AP61: Vannes OC | AQ61: 0 | AR61: 1 | AS61: 2009-2010 | AT61: Nîmes-Angers | AU61: Nîmes | AV61: - | AW61: Angers | AX61: 2 | AY61: 0 | AZ61: 2010-2011 | BA61: Monaco-Angers | BB61: Monaco | BC61: - | BD61: Angers | BE61: 1 | BF61: 3 | BG61: 2011-2012 | BH61: Tours FC-Auxerre | BI61: Tours FC | BJ61: - | BK61: Auxerre | BL61: 1 | BM61: 0 | BN61: 2012-2013 | BO61: Troyes-Châteauroux | BP61: Troyes | BQ61: - | BR61: Châteauroux | BS61: 3 | BT61: 0 | BU61: 2013-2014 | BV61: Valenciennes-Créteil | BW61: Valenciennes | BX61: - | BY61: Créteil | BZ61: 1 | CA61: 1 | CB61: 2014-2015 | CC61: Valenciennes-Dijon | CD61: Valenciennes | CE61: - | CF61: Dijon | CG61: 1 | CH61: 3 | CI61: 2015-2016 | CJ61: RC Strasbourg-Troyes | CK61: RC Strasbourg | CL61: - | CM61: Troyes | CN61: 2 | CO61: 0 | CP61: 2016-2017 | CQ61: Reims-Brest | CR61: Reims | CS61: - | CT61: Brest | CU61: 0 | CV61: 1 | CW61: 2017-2018
A62: =IF(OR(D62=gnp!$G$5,F62=gnp!$G$5),B$2,"") ->  | B62: 7 | C62: AC Ajaccio-Paris FC | D62: =journée07!H13 -> AC Ajaccio | E62: - | F62: =journée07!V13 -> Paris FC | G62: =IF(ISBLANK(journée07!Q13),"",journée07!Q13) -> 0 | H62: =IF(ISBLANK(journée07!S13),"",journée07!S13) -> 0 | I62: 2018-2019 | J62: N | K62: 7ème journée | L62: journée07 | M62: 0-0 | N62: =journée07!H11 -> 43357 | O62: Match Aller | P62: 7 | Q62: AC Ajaccio-Le Havre | R62: AC Ajaccio | S62: - | T62: Le Havre | U62: 0 | V62: 0 | W62: 2006-2007 | X62: 7 | Y62: AC Ajaccio-Amiens | Z62: AC Ajaccio | AA62: - | AB62: Amiens | AC62: 1 | AD62: 0 | AE62: 2007-2008 | AF62: AC Ajaccio-Clermont Foot | AG62: AC Ajaccio | AH62: - | AI62: Clermont Foot | AJ62: 5 | AK62: 1 | AL62: 2008-2009 | AM62: Angers-Sedan | AN62: Angers | AO62: - | AP62: Sedan | AQ62: 1 | AR62: 1 | AS62: 2009-2010 | AT62: Reims-Nantes | AU62: Reims | AV62: - | AW62: Nantes | AX62: 2 | AY62: 1 | AZ62: 2010-2011 | BA62: Châteauroux-Nantes | BB62: Châteauroux | BC62: - | BD62: Nantes | BE62: 2 | BF62: 2 | BG62: 2011-2012 | BH62: Châteauroux-Lens | BI62: Châteauroux | BJ62: - | BK62: Lens | BL62: 1 | BM62: 1 | BN62: 2012-2013 | BO62: Angers-Auxerre | BP62: Angers | BQ62: - | BR62: Auxerre | BS62: 2 | BT62: 0 | BU62: 2013-2014 | BV62: Auxerre-AC Ajaccio | BW62: Auxerre | BX62: - | BY62: AC Ajaccio | BZ62: 1 | CA62: 1 | CB62: 2014-2015 | CC62: AC Ajaccio-Laval | CD62: AC Ajaccio | CE62: - | CF62: Laval | CG62: 0 | CH62: 0 | CI62: 2015-2016 | CJ62: FC Bourg-Péronnas-Le Havre | CK62: FC Bourg-Péronnas | CL62: - | CM62: Le Havre | CN62: 2 | CO62: 1 | CP62: 2016-2017 | CQ62: Paris FC-Tours FC | CR62: Paris FC | CS62: - | CT62: Tours FC | CU62: 2 | CV62: 0 | CW62: 2017-2018
A63: =IF(OR(D63=gnp!$G$5,F63=gnp!$G$5),B$2,"") ->  | B63: =B62+50 -> 57 | C63: AS Béziers-Metz | D63: =journée07!H14 -> AS Béziers | E63: - | F63: =journée07!V14 -> Metz | G63: =IF(ISBLANK(journée07!Q14),"",journée07!Q14) -> 1 | H63: =IF(ISBLANK(journée07!S14),"",journée07!S14) -> 3 | I63: 2018-2019 | J63: P | K63: =K62 -> 7ème journée | L63: journée07 | M63: 1-3 | N63: =N62 -> 43357 | O63: Match Aller | P63: 57 | Q63: Bastia-Dijon | R63: Bastia | S63: - | T63: Dijon | U63: 1 | V63: 1 | W63: 2006-2007 | X63: 57 | Y63: Boulogne/Mer-Châteauroux | Z63: Boulogne/Mer | AA63: - | AB63: Châteauroux | AC63: 1 | AD63: 3 | AE63: 2007-2008 | AF63: Amiens-Brest | AG63: Amiens | AH63: - | AI63: Brest | AJ63: 2 | AK63: 1 | AL63: 2008-2009 | AM63: Bastia-Nantes | AN63: Bastia | AO63: - | AP63: Nantes | AQ63: 1 | AR63: 1 | AS63: 2009-2010 | AT63: Tours FC-Le Havre | AU63: Tours FC | AV63: - | AW63: Le Havre | AX63: 0 | AY63: 0 | AZ63: 2010-2011 | BA63: Sedan-Le Havre | BB63: Sedan | BC63: - | BD63: Le Havre | BE63: 3 | BF63: 0 | BG63: 2011-2012 | BH63: Angers-Le Havre | BI63: Angers | BJ63: - | BK63: Le Havre | BL63: 3 | BM63: 1 | BN63: 2012-2013 | BO63: Brest-CA Bastia | BP63: Brest | BQ63: - | BR63: CA Bastia | BS63: 2 | BT63: 0 | BU63: 2013-2014 | BV63: Brest-Arles-Avignon | BW63: Brest | BX63: - | BY63: Arles-Avignon | BZ63: 1 | CA63: 0 | CB63: 2014-2015 | CC63: Auxerre-Clermont Foot | CD63: Auxerre | CE63: - | CF63: Clermont Foot | CG63: 1 | CH63: 0 | CI63: 2015-2016 | CJ63: Brest-Auxerre | CK63: Brest | CL63: - | CM63: Auxerre | CN63: 1 | CO63: 0 | CP63: 2016-2017 | CQ63: FC Bourg-Péronnas-Châteauroux | CR63: FC Bourg-Péronnas | CS63: - | CT63: Châteauroux | CU63: 3 | CV63: 0 | CW63: 2017-2018
A64: =IF(OR(D64=gnp!$G$5,F64=gnp!$G$5),B$2,"") ->  | B64: =B63+50 -> 107 | C64: Brest-GFCO Ajaccio | D64: =journée07!H15 -> Brest | E64: - | F64: =journée07!V15 -> GFCO Ajaccio | G64: =IF(ISBLANK(journée07!Q15),"",journée07!Q15) -> 4 | H64: =IF(ISBLANK(journée07!S15),"",journée07!S15) -> 1 | I64: 2018-2019 | J64: G | K64: =K63 -> 7ème journée | L64: journée07 | M64: 4-1 | N64: 43357 | O64: Match Aller | P64: 107 | Q64: Brest-Montpellier | R64: Brest | S64: - | T64: Montpellier | U64: 0 | V64: 0 | W64: 2006-2007 | X64: 107 | Y64: Dijon-Le Havre | Z64: Dijon | AA64: - | AB64: Le Havre | AC64: 2 | AD64: 3 | AE64: 2007-2008 | AF64: Angers-Nîmes | AG64: Angers | AH64: - | AI64: Nîmes | AJ64: 2 | AK64: 2 | AL64: 2008-2009 | AM64: Brest-Guingamp | AN64: Brest | AO64: - | AP64: Guingamp | AQ64: 2 | AR64: 0 | AS64: 2009-2010 | AT64: Châteauroux-Metz | AU64: Châteauroux | AV64: - | AW64: Metz | AX64: 1 | AY64: 0 | AZ64: 2010-2011 | BA64: Le Mans-Metz | BB64: Le Mans | BC64: - | BD64: Metz | BE64: 0 | BF64: 1 | BG64: 2011-2012 | BH64: Sedan-Laval | BI64: Sedan | BJ64: - | BK64: Laval | BL64: 1 | BM64: 3 | BN64: 2012-2013 | BO64: Caen-Niort | BP64: Caen | BQ64: - | BR64: Niort | BS64: 3 | BT64: 1 | BU64: 2013-2014 | BV64: Créteil-Clermont Foot | BW64: Créteil | BX64: - | BY64: Clermont Foot | BZ64: 2 | CA64: 2 | CB64: 2014-2015 | CC64: Niort-Nîmes | CD64: Niort | CE64: - | CF64: Nîmes | CG64: 1 | CH64: 0 | CI64: 2015-2016 | CJ64: Clermont Foot-Lens | CK64: Clermont Foot | CL64: - | CM64: Lens | CN64: 1 | CO64: 1 | CP64: 2016-2017 | CQ64: Brest-Le Havre | CR64: Brest | CS64: - | CT64: Le Havre | CU64: 1 | CV64: 0 | CW64: 2017-2018
A65: =IF(OR(D65=gnp!$G$5,F65=gnp!$G$5),B$2,"") ->  | B65: 157 | C65: Clermont Foot-Auxerre | D65: =journée07!H16 -> Clermont Foot | E65: - | F65: =journée07!V16 -> Auxerre | G65: =IF(ISBLANK(journée07!Q16),"",journée07!Q16) -> 2 | H65: =IF(ISBLANK(journée07!S16),"",journée07!S16) -> 0 | I65: 2018-2019 | J65: G | K65: 7ème journée | L65: journée07 | M65: 2-0 | N65: 43357 | O65: Match Aller | P65: 157 | Q65: Caen-Metz | R65: Caen | S65: - | T65: Metz | U65: 0 | V65: 0 | W65: 2006-2007 | X65: 157 | Y65: Grenoble-Brest | Z65: Grenoble | AA65: - | AB65: Brest | AC65: 3 | AD65: 1 | AE65: 2007-2008 | AF65: Boulogne/Mer-Bastia | AG65: Boulogne/Mer | AH65: - | AI65: Bastia | AJ65: 1 | AK65: 0 | AL65: 2008-2009 | AM65: Caen-AC Ajaccio | AN65: Caen | AO65: - | AP65: AC Ajaccio | AQ65: 1 | AR65: 0 | AS65: 2009-2010 | AT65: Boulogne-sur-Mer-Laval | AU65: Boulogne-sur-Mer | AV65: - | AW65: Laval | AX65: 0 | AY65: 0 | AZ65: 2010-2011 | BA65: Bastia-Monaco | BB65: Bastia | BC65: - | BD65: Monaco | BE65: 1 | BF65: 1 | BG65: 2011-2012 | BH65: Caen-Le Mans | BI65: Caen | BJ65: - | BK65: Le Mans | BL65: 0 | BM65: 2 | BN65: 2012-2013 | BO65: Châteauroux-Le Havre | BP65: Châteauroux | BQ65: - | BR65: Le Havre | BS65: 2 | BT65: 2 | BU65: 2013-2014 | BV65: GFCO Ajaccio-Dijon | BW65: GFCO Ajaccio | BX65: - | BY65: Dijon | BZ65: 2 | CA65: 0 | CB65: 2014-2015 | CC65: Dijon-Le Havre | CD65: Dijon | CE65: - | CF65: Le Havre | CG65: 2 | CH65: 1 | CI65: 2015-2016 | CJ65: GFCO Ajaccio-Amiens | CK65: GFCO Ajaccio | CL65: - | CM65: Amiens | CN65: 1 | CO65: 1 | CP65: 2016-2017 | CQ65: GFCO Ajaccio-Clermont Foot | CR65: GFCO Ajaccio | CS65: - | CT65: Clermont Foot | CU65: 2 | CV65: 1 | CW65: 2017-2018
A66: =IF(OR(D66=gnp!$G$5,F66=gnp!$G$5),B$2,"") ->  | B66: 207 | C66: Grenoble Foot 38-Valenciennes | D66: =journée07!H17 -> Grenoble Foot 38 | E66: - | F66: =journée07!V17 -> Valenciennes | G66: =IF(ISBLANK(journée07!Q17),"",journée07!Q17) -> 4 | H66: =IF(ISBLANK(journée07!S17),"",journée07!S17) -> 2 | I66: 2018-2019 | J66: G | K66: 7ème journée | L66: journée07 | M66: 4-2 | N66: 43357 | O66: Match Aller | P66: 207 | Q66: Grenoble-Créteil | R66: Grenoble | S66: - | T66: Créteil | U66: 3 | V66: 1 | W66: 2006-2007 | X66: 207 | Y66: Gueugnon-Clermont Foot | Z66: Gueugnon | AA66: - | AB66: Clermont Foot | AC66: 1 | AD66: 1 | AE66: 2007-2008 | AF66: Guingamp-Dijon | AG66: Guingamp | AH66: - | AI66: Dijon | AJ66: 1 | AK66: 1 | AL66: 2008-2009 | AM66: Clermont Foot-Strasbourg | AN66: Clermont Foot | AO66: - | AP66: Strasbourg | AQ66: 3 | AR66: 0 | AS66: 2009-2010 | AT66: Grenoble-Troyes | AU66: Grenoble | AV66: - | AW66: Troyes | AX66: 0 | AY66: 2 | AZ66: 2010-2011 | BA66: Guingamp-Troyes | BB66: Guingamp | BC66: - | BD66: Troyes | BE66: 0 | BF66: 0 | BG66: 2011-2012 | BH66: Nantes-Guingamp | BI66: Nantes | BJ66: - | BK66: Guingamp | BL66: 1 | BM66: 1 | BN66: 2012-2013 | BO66: Clermont Foot-Metz | BP66: Clermont Foot | BQ66: - | BR66: Metz | BS66: 0 | BT66: 0 | BU66: 2013-2014 | BV66: Laval-Angers | BW66: Laval | BX66: - | BY66: Angers | BZ66: 3 | CA66: 2 | CB66: 2014-2015 | CC66: FC Bourg-Péronnas-Brest | CD66: FC Bourg-Péronnas | CE66: - | CF66: Brest | CG66: 3 | CH66: 1 | CI66: 2015-2016 | CJ66: US Orléans-RC Strasbourg | CK66: US Orléans | CL66: - | CM66: RC Strasbourg | CN66: 3 | CO66: 1 | CP66: 2016-2017 | CQ66: Lorient-AC Ajaccio | CR66: Lorient | CS66: - | CT66: AC Ajaccio | CU66: 2 | CV66: 0 | CW66: 2017-2018
A67: =IF(OR(D67=gnp!$G$5,F67=gnp!$G$5),B$2,"") ->  | B67: 257 | C67: =D67&E67&F67 -> Lens-Sochaux | D67: =journée07!H18 -> Lens | E67: - | F67: =journée07!V18 -> Sochaux | G67: =IF(ISBLANK(journée07!Q18),"",journée07!Q18) -> 2 | H67: =IF(ISBLANK(journée07!S18),"",journée07!S18) -> 0 | I67: =IF(ISTEXT(G67),G67,IF(G67="","",IF(G67=H67,$A$1,IF(G67>H67,$A$1,$A$1)))) -> 2018-2019 | J67: =IF(ISTEXT(G67),G67,IF(G67="","",IF(G67=H67,"N",IF(G67>H67,"G","P")))) -> G | K67: 7ème journée | L67: journée07 | M67: =G67&E67&H67 -> 2-0 | N67: 43357 | O67: Match Aller | P67: 257 | Q67: Gueugnon-Tours FC | R67: Gueugnon | S67: - | T67: Tours FC | U67: 2 | V67: 1 | W67: 2006-2007 | X67: 257 | Y67: Guingamp-Montpellier | Z67: Guingamp | AA67: - | AB67: Montpellier | AC67: 0 | AD67: 2 | AE67: 2007-2008 | AF67: Metz-Reims | AG67: Metz | AH67: - | AI67: Reims | AJ67: 0 | AK67: 0 | AL67: 2008-2009 | AM67: Istres-Le Havre | AN67: Istres | AO67: - | AP67: Le Havre | AQ67: 0 | AR67: 1 | AS67: 2009-2010 | AT67: Sedan-Le Mans | AU67: Sedan | AV67: - | AW67: Le Mans | AX67: 2 | AY67: 1 | AZ67: 2010-2011 | BA67: Angers-Amiens | BB67: Angers | BC67: - | BD67: Amiens | BE67: 0 | BF67: 0 | BG67: 2011-2012 | BH67: Monaco-Dijon | BI67: Monaco | BJ67: - | BK67: Dijon | BL67: 1 | BM67: 1 | BN67: 2012-2013 | BO67: Dijon-Tours FC | BP67: Dijon | BQ67: - | BR67: Tours FC | BS67: 2 | BT67: 0 | BU67: 2013-2014 | BV67: Le Havre-Troyes | BW67: Le Havre | BX67: - | BY67: Troyes | BZ67: 3 | CA67: 2 | CB67: 2014-2015 | CC67: Metz-Nancy | CD67: Metz | CE67: - | CF67: Nancy | CG67: 0 | CH67: 0 | CI67: 2015-2016 | CJ67: Red Star 93-Laval | CK67: Red Star 93 | CL67: - | CM67: Laval | CN67: 1 | CO67: 0 | CP67: 2016-2017 | CQ67: Nîmes-Auxerre | CR67: Nîmes | CS67: - | CT67: Auxerre | CU67: 3 | CV67: 0 | CW67: 2017-2018
A68: =IF(OR(D68=gnp!$G$5,F68=gnp!$G$5),B$2,"") ->  | B68: 307 | C68: Nancy-Le Havre | D68: =journée07!H19 -> Nancy | E68: - | F68: =journée07!V19 -> Le Havre | G68: =IF(ISBLANK(journée07!Q19),"",journée07!Q19) -> 0 | H68: =IF(ISBLANK(journée07!S19),"",journée07!S19) -> 1 | I68: 2018-2019 | J68: P | K68: 7ème journée | L68: journée07 | M68: 0-1 | N68: 43357 | O68: =O67 -> Match Aller | P68: 307 | Q68: Istres-Guingamp | R68: Istres | S68: - | T68: Guingamp | U68: 1 | V68: 0 | W68: 2006-2007 | X68: 307 | Y68: Libourne/Seurin-Bastia | Z68: Libourne/Seurin | AA68: - | AB68: Bastia | AC68: 2 | AD68: 4 | AE68: 2007-2008 | AF68: Montpellier-Sedan | AG68: Montpellier | AH68: - | AI68: Sedan | AJ68: 3 | AK68: 1 | AL68: 2008-2009 | AM68: Metz-Dijon | AN68: Metz | AO68: - | AP68: Dijon | AQ68: 0 | AR68: 0 | AS68: 2009-2010 | AT68: Clermont Foot-Nîmes | AU68: Clermont Foot | AV68: - | AW68: Nîmes | AX68: 2 | AY68: 0 | AZ68: 2010-2011 | BA68: Laval-Reims | BB68: Laval | BC68: - | BD68: Reims | BE68: 3 | BF68: 2 | BG68: 2011-2012 | BH68: Clermont Foot-Tours FC | BI68: Clermont Foot | BJ68: - | BK68: Tours FC | BL68: 1 | BM68: 1 | BN68: 2012-2013 | BO68: Istres-Laval | BP68: Istres | BQ68: - | BR68: Laval | BS68: 3 | BT68: 0 | BU68: 2013-2014 | BV68: Châteauroux-Nancy | BW68: Châteauroux | BX68: - | BY68: Nancy | BZ68: 2 | CA68: 5 | CB68: 2014-2015 | CC68: Paris FC-Evian Thonon G. | CD68: Paris FC | CE68: - | CF68: Evian Thonon G. | CG68: 0 | CH68: 0 | CI68: 2015-2016 | CJ68: Sochaux-Reims | CK68: Sochaux | CL68: - | CM68: Reims | CN68: 1 | CO68: 1 | CP68: 2016-2017 | CQ68: US Orléans-Niort | CR68: US Orléans | CS68: - | CT68: Niort | CU68: 3 | CV68: 1 | CW68: 2017-2018
A69: =IF(OR(D69=gnp!$G$5,F69=gnp!$G$5),B$2,"") ->  | B69: 357 | C69: US Orléans-Châteauroux | D69: =journée07!H20 -> US Orléans | E69: - | F69: =journée07!V20 -> Châteauroux | G69: =IF(ISBLANK(journée07!Q20),"",journée07!Q20) -> 2 | H69: =IF(ISBLANK(journée07!S20),"",journée07!S20) -> 0 | I69: 2018-2019 | J69: G | K69: 7ème journée | L69: journée07 | M69: 2-0 | N69: 43357 | O69: Match Aller | P69: 357 | Q69: Libourne/Seurin-Niort | R69: Libourne/Seurin | S69: - | T69: Niort | U69: 3 | V69: 1 | W69: 2006-2007 | X69: 357 | Y69: Nantes-Sedan | Z69: Nantes | AA69: - | AB69: Sedan | AC69: 2 | AD69: 1 | AE69: 2007-2008 | AF69: Strasbourg-Vannes OC | AG69: Strasbourg | AH69: - | AI69: Vannes OC | AJ69: 2 | AK69: 1 | AL69: 2008-2009 | AM69: Nîmes-Laval | AN69: Nîmes | AO69: - | AP69: Laval | AQ69: 1 | AR69: 1 | AS69: 2009-2010 | AT69: Angers-Istres | AU69: Angers | AV69: - | AW69: Istres | AX69: 1 | AY69: 1 | AZ69: 2010-2011 | BA69: Lens-Boulogne-sur-Mer | BB69: Lens | BC69: - | BD69: Boulogne-sur-Mer | BE69: 2 | BF69: 0 | BG69: 2011-2012 | BH69: Nîmes-GFCO Ajaccio | BI69: Nîmes | BJ69: - | BK69: GFCO Ajaccio | BL69: 0 | BM69: 1 | BN69: 2012-2013 | BO69: Lens-Créteil | BP69: Lens | BQ69: - | BR69: Créteil | BS69: 1 | BT69: 1 | BU69: 2013-2014 | BV69: Niort-Valenciennes | BW69: Niort | BX69: - | BY69: Valenciennes | BZ69: 3 | CA69: 0 | CB69: 2014-2015 | CC69: Lens-Tours FC | CD69: Lens | CE69: - | CF69: Tours FC | CG69: 1 | CH69: 1 | CI69: 2015-2016 | CJ69: Tours FC-Nîmes | CK69: Tours FC | CL69: - | CM69: Nîmes | CN69: 1 | CO69: 3 | CP69: 2016-2017 | CQ69: US Quevilly-Nancy | CR69: US Quevilly | CS69: - | CT69: Nancy | CU69: 2 | CV69: 0 | CW69: 2017-2018
A70: =IF(OR(D70=gnp!$G$5,F70=gnp!$G$5),B$2,"") ->  | B70: 407 | C70: Red Star 93-Lorient | D70: =journée07!H21 -> Red Star 93 | E70: - | F70: =journée07!V21 -> Lorient | G70: =IF(ISBLANK(journée07!Q21),"",journée07!Q21) -> 0 | H70: =IF(ISBLANK(journée07!S21),"",journée07!S21) -> 3 | I70: 2018-2019 | J70: P | K70: 7ème journée | L70: journée07 | M70: 0-3 | N70: 43357 | O70: Match Aller | P70: 407 | Q70: Reims-Amiens | R70: Reims | S70: - | T70: Amiens | U70: 1 | V70: 0 | W70: 2006-2007 | X70: 407 | Y70: Niort-Angers | Z70: Niort | AA70: - | AB70: Angers | AC70: 0 | AD70: 1 | AE70: 2007-2008 | AF70: Tours FC-Châteauroux | AG70: Tours FC | AH70: - | AI70: Châteauroux | AJ70: 3 | AK70: 1 | AL70: 2008-2009 | AM70: Tours FC-Arles | AN70: Tours FC | AO70: - | AP70: Arles | AQ70: 4 | AR70: 2 | AS70: 2009-2010 | AT70: AC Ajaccio-Vannes OC | AU70: AC Ajaccio | AV70: - | AW70: Vannes OC | AX70: 3 | AY70: 0 | AZ70: 2010-2011 | BA70: Arles-Avignon-Clermont Foot | BB70: Arles-Avignon | BC70: - | BD70: Clermont Foot | BE70: 0 | BF70: 2 | BG70: 2011-2012 | BH70: Niort-Arles-Avignon | BI70: Niort | BJ70: - | BK70: Arles-Avignon | BL70: 0 | BM70: 0 | BN70: 2012-2013 | BO70: Nancy-Troyes | BP70: Nancy | BQ70: - | BR70: Troyes | BS70: 2 | BT70: 1 | BU70: 2013-2014 | BV70: Sochaux-Nîmes | BW70: Sochaux | BX70: - | BY70: Nîmes | BZ70: 2 | CA70: 0 | CB70: 2014-2015 | CC70: Red Star 93-Sochaux | CD70: Red Star 93 | CE70: - | CF70: Sochaux | CG70: 0 | CH70: 0 | CI70: 2015-2016 | CJ70: Troyes-Niort | CK70: Troyes | CL70: - | CM70: Niort | CN70: 1 | CO70: 1 | CP70: 2016-2017 | CQ70: Sochaux-Reims | CR70: Sochaux | CS70: - | CT70: Reims | CU70: 2 | CV70: 4 | CW70: 2017-2018
A71: =IF(OR(D71=gnp!$G$5,F71=gnp!$G$5),B$2,"") ->  | B71: 457 | C71: Troyes-Niort | D71: =journée07!H22 -> Troyes | E71: - | F71: =journée07!V22 -> Niort | G71: =IF(ISBLANK(journée07!Q22),"",journée07!Q22) -> 2 | H71: =IF(ISBLANK(journée07!S22),"",journée07!S22) -> 0 | I71: 2018-2019 | J71: G | K71: 7ème journée | L71: journée07 | M71: 2-0 | N71: 43357 | O71: Match Aller | P71: 457 | Q71: Strasbourg-Châteauroux | R71: Strasbourg | S71: - | T71: Châteauroux | U71: 2 | V71: 0 | W71: 2006-2007 | X71: 457 | Y71: Troyes-Reims | Z71: Troyes | AA71: - | AB71: Reims | AC71: 4 | AD71: 2 | AE71: 2007-2008 | AF71: Troyes-Lens | AG71: Troyes | AH71: - | AI71: Lens | AJ71: 0 | AK71: 1 | AL71: 2008-2009 | AM71: Vannes OC-Châteauroux | AN71: Vannes OC | AO71: - | AP71: Châteauroux | AQ71: 3 | AR71: 2 | AS71: 2009-2010 | AT71: Dijon-Evian Thonon G. | AU71: Dijon | AV71: - | AW71: Evian Thonon G. | AX71: 5 | AY71: 1 | AZ71: 2010-2011 | BA71: Tours FC-Istres | BB71: Tours FC | BC71: - | BD71: Istres | BE71: 1 | BF71: 2 | BG71: 2011-2012 | BH71: Auxerre-Istres | BI71: Auxerre | BJ71: - | BK71: Istres | BL71: 0 | BM71: 0 | BN71: 2012-2013 | BO71: Nîmes-Arles-Avignon | BP71: Nîmes | BQ71: - | BR71: Arles-Avignon | BS71: 1 | BT71: 2 | BU71: 2013-2014 | BV71: Tours FC-US Orléans | BW71: Tours FC | BX71: - | BY71: US Orléans | BZ71: 4 | CA71: 3 | CB71: 2014-2015 | CC71: Créteil-Valenciennes | CD71: Créteil | CE71: - | CF71: Valenciennes | CG71: 0 | CH71: 1 | CI71: 2015-2016 | CJ71: Valenciennes-AC Ajaccio | CK71: Valenciennes | CL71: - | CM71: AC Ajaccio | CN71: 1 | CO71: 1 | CP71: 2016-2017 | CQ71: Valenciennes-Lens | CR71: Valenciennes | CS71: - | CT71: Lens | CU71: 1 | CV71: 0 | CW71: 2017-2018
A72: =IF(OR(D72=gnp!$G$5,F72=gnp!$G$5),B$2,"") ->  | B72: 8 | C72: GFCO Ajaccio-Nancy | D72: =journée08!H13 -> GFCO Ajaccio | E72: - | F72: =journée08!V13 -> Nancy | G72: =IF(ISBLANK(journée08!Q13),"",journée08!Q13) -> 0 | H72: =IF(ISBLANK(journée08!S13),"",journée08!S13) -> 1 | I72: 2018-2019 | J72: P | K72: 8ème journée | L72: journée08 | M72: 0-1 | N72: =journée08!H11 -> 43364 | O72: Match Aller | P72: 8 | Q72: AC Ajaccio-Reims | R72: AC Ajaccio | S72: - | T72: Reims | U72: 2 | V72: 1 | W72: 2006-2007 | X72: 8 | Y72: Amiens-Boulogne/Mer | Z72: Amiens | AA72: - | AB72: Boulogne/Mer | AC72: 2 | AD72: 1 | AE72: 2007-2008 | AF72: Bastia-Reims | AG72: Bastia | AH72: - | AI72: Reims | AJ72: 2 | AK72: 2 | AL72: 2008-2009 | AM72: AC Ajaccio-Tours FC | AN72: AC Ajaccio | AO72: - | AP72: Tours FC | AQ72: 2 | AR72: 2 | AS72: 2009-2010 | AT72: Troyes-Châteauroux | AU72: Troyes | AV72: - | AW72: Châteauroux | AX72: 3 | AY72: 1 | AZ72: 2010-2011 | BA72: Metz-Nantes | BB72: Metz | BC72: - | BD72: Nantes | BE72: 1 | BF72: 3 | BG72: 2011-2012 | BH72: Le Havre-Nantes | BI72: Le Havre | BJ72: - | BK72: Nantes | BL72: 1 | BM72: 1 | BN72: 2012-2013 | BO72: Arles-Avignon-Châteauroux | BP72: Arles-Avignon | BQ72: - | BR72: Châteauroux | BS72: 1 | BT72: 1 | BU72: 2013-2014 | BV72: AC Ajaccio-Le Havre | BW72: AC Ajaccio | BX72: - | BY72: Le Havre | BZ72: 0 | CA72: 1 | CB72: 2014-2015 | CC72: Nancy-Auxerre | CD72: Nancy | CE72: - | CF72: Auxerre | CG72: 0 | CH72: 1 | CI72: 2015-2016 | CJ72: AC Ajaccio-Auxerre | CK72: AC Ajaccio | CL72: - | CM72: Auxerre | CN72: 2 | CO72: 0 | CP72: 2016-2017 | CQ72: AC Ajaccio-Valenciennes | CR72: AC Ajaccio | CS72: - | CT72: Valenciennes | CU72: 3 | CV72: 0 | CW72: 2017-2018
A73: =IF(OR(D73=gnp!$G$5,F73=gnp!$G$5),B$2,"") ->  | B73: =B72+50 -> 58 | C73: Auxerre-AC Ajaccio | D73: =journée08!H14 -> Auxerre | E73: - | F73: =journée08!V14 -> AC Ajaccio | G73: =IF(ISBLANK(journée08!Q14),"",journée08!Q14) -> 0 | H73: =IF(ISBLANK(journée08!S14),"",journée08!S14) -> 0 | I73: 2018-2019 | J73: N | K73: =K72 -> 8ème journée | L73: journée08 | M73: 0-0 | N73: =N72 -> 43364 | O73: Match Aller | P73: 58 | Q73: Amiens-Libourne/Seurin | R73: Amiens | S73: - | T73: Libourne/Seurin | U73: 1 | V73: 1 | W73: 2006-2007 | X73: 58 | Y73: Angers-Montpellier | Z73: Angers | AA73: - | AB73: Montpellier | AC73: 1 | AD73: 1 | AE73: 2007-2008 | AF73: Brest-Boulogne/Mer | AG73: Brest | AH73: - | AI73: Boulogne/Mer | AJ73: 0 | AK73: 1 | AL73: 2008-2009 | AM73: Arles-Vannes OC | AN73: Arles | AO73: - | AP73: Vannes OC | AQ73: 1 | AR73: 1 | AS73: 2009-2010 | AT73: Nîmes-Sedan | AU73: Nîmes | AV73: - | AW73: Sedan | AX73: 2 | AY73: 0 | AZ73: 2010-2011 | BA73: Reims-Bastia | BB73: Reims | BC73: - | BD73: Bastia | BE73: 1 | BF73: 0 | BG73: 2011-2012 | BH73: Lens-Monaco | BI73: Lens | BJ73: - | BK73: Monaco | BL73: 0 | BM73: 4 | BN73: 2012-2013 | BO73: Auxerre-CA Bastia | BP73: Auxerre | BQ73: - | BR73: CA Bastia | BS73: 1 | BT73: 0 | BU73: 2013-2014 | BV73: Angers-Auxerre | BW73: Angers | BX73: - | BY73: Auxerre | BZ73: 0 | CA73: 0 | CB73: 2014-2015 | CC73: Clermont Foot-AC Ajaccio | CD73: Clermont Foot | CE73: - | CF73: AC Ajaccio | CG73: 2 | CH73: 1 | CI73: 2015-2016 | CJ73: Amiens-Valenciennes | CK73: Amiens | CL73: - | CM73: Valenciennes | CN73: 0 | CO73: 0 | CP73: 2016-2017 | CQ73: Auxerre-Lorient | CR73: Auxerre | CS73: - | CT73: Lorient | CU73: 1 | CV73: 0 | CW73: 2017-2018
A74: =IF(OR(D74=gnp!$G$5,F74=gnp!$G$5),B$2,"") ->  | B74: =B73+50 -> 108 | C74: Châteauroux-AS Béziers | D74: =journée08!H15 -> Châteauroux | E74: - | F74: =journée08!V15 -> AS Béziers | G74: =IF(ISBLANK(journée08!Q15),"",journée08!Q15) -> 2 | H74: =IF(ISBLANK(journée08!S15),"",journée08!S15) -> 0 | I74: 2018-2019 | J74: G | K74: =K73 -> 8ème journée | L74: journée08 | M74: 2-0 | N74: 43364 | O74: Match Aller | P74: 108 | Q74: Châteauroux-Gueugnon | R74: Châteauroux | S74: - | T74: Gueugnon | U74: 2 | V74: 1 | W74: 2006-2007 | X74: 108 | Y74: Bastia-Grenoble | Z74: Bastia | AA74: - | AB74: Grenoble | AC74: 0 | AD74: 0 | AE74: 2007-2008 | AF74: Châteauroux-Montpellier | AG74: Châteauroux | AH74: - | AI74: Montpellier | AJ74: 1 | AK74: 1 | AL74: 2008-2009 | AM74: Châteauroux-Istres | AN74: Châteauroux | AO74: - | AP74: Istres | AQ74: 0 | AR74: 2 | AS74: 2009-2010 | AT74: Laval-AC Ajaccio | AU74: Laval | AV74: - | AW74: AC Ajaccio | AX74: 0 | AY74: 0 | AZ74: 2010-2011 | BA74: Amiens-Laval | BB74: Amiens | BC74: - | BD74: Laval | BE74: 1 | BF74: 0 | BG74: 2011-2012 | BH74: Arles-Avignon-Châteauroux | BI74: Arles-Avignon | BJ74: - | BK74: Châteauroux | BL74: 1 | BM74: 1 | BN74: 2012-2013 | BO74: Clermont Foot-Caen | BP74: Clermont Foot | BQ74: - | BR74: Caen | BS74: 2 | BT74: 2 | BU74: 2013-2014 | BV74: Arles-Avignon-Laval | BW74: Arles-Avignon | BX74: - | BY74: Laval | BZ74: 2 | CA74: 3 | CB74: 2014-2015 | CC74: Evian Thonon G.-Red Star 93 | CD74: Evian Thonon G. | CE74: - | CF74: Red Star 93 | CG74: 0 | CH74: 1 | CI74: 2015-2016 | CJ74: Laval-Sochaux | CK74: Laval | CL74: - | CM74: Sochaux | CN74: 1 | CO74: 1 | CP74: 2016-2017 | CQ74: Paris FC-US Orléans | CR74: Paris FC | CS74: - | CT74: US Orléans | CU74: 1 | CV74: 0 | CW74: 2017-2018
A75: =IF(OR(D75=gnp!$G$5,F75=gnp!$G$5),B$2,"") ->  | B75: 158 | C75: Grenoble Foot 38-Brest | D75: =journée08!H16 -> Grenoble Foot 38 | E75: - | F75: =journée08!V16 -> Brest | G75: =IF(ISBLANK(journée08!Q16),"",journée08!Q16) -> 1 | H75: =IF(ISBLANK(journée08!S16),"",journée08!S16) -> 2 | I75: 2018-2019 | J75: P | K75: 8ème journée | L75: journée08 | M75: 1-2 | N75: 43364 | O75: Match Aller | P75: 158 | Q75: Créteil-Strasbourg | R75: Créteil | S75: - | T75: Strasbourg | U75: 0 | V75: 2 | W75: 2006-2007 | X75: 158 | Y75: Brest-Gueugnon | Z75: Brest | AA75: - | AB75: Gueugnon | AC75: 2 | AD75: 1 | AE75: 2007-2008 | AF75: Clermont Foot-Strasbourg | AG75: Clermont Foot | AH75: - | AI75: Strasbourg | AJ75: 2 | AK75: 2 | AL75: 2008-2009 | AM75: Clermont Foot-Angers | AN75: Clermont Foot | AO75: - | AP75: Angers | AQ75: 3 | AR75: 2 | AS75: 2009-2010 | AT75: Le Mans-Dijon | AU75: Le Mans | AV75: - | AW75: Dijon | AX75: 2 | AY75: 2 | AZ75: 2010-2011 | BA75: Istres-Châteauroux | BB75: Istres | BC75: - | BD75: Châteauroux | BE75: 3 | BF75: 1 | BG75: 2011-2012 | BH75: Tours FC-Sedan | BI75: Tours FC | BJ75: - | BK75: Sedan | BL75: 1 | BM75: 1 | BN75: 2012-2013 | BO75: Créteil-Dijon | BP75: Créteil | BQ75: - | BR75: Dijon | BS75: 1 | BT75: 3 | BU75: 2013-2014 | BV75: Dijon-Créteil | BW75: Dijon | BX75: - | BY75: Créteil | BZ75: 2 | CA75: 1 | CB75: 2014-2015 | CC75: Sochaux-Dijon | CD75: Sochaux | CE75: - | CF75: Dijon | CG75: 0 | CH75: 1 | CI75: 2015-2016 | CJ75: Le Havre-Brest | CK75: Le Havre | CL75: - | CM75: Brest | CN75: 1 | CO75: 1 | CP75: 2016-2017 | CQ75: Châteauroux-Clermont Foot | CR75: Châteauroux | CS75: - | CT75: Clermont Foot | CU75: 0 | CV75: 2 | CW75: 2017-2018
A76: =IF(OR(D76=gnp!$G$5,F76=gnp!$G$5),B$2,"") ->  | B76: 208 | C76: Le Havre-Troyes | D76: =journée08!H17 -> Le Havre | E76: - | F76: =journée08!V17 -> Troyes | G76: =IF(ISBLANK(journée08!Q17),"",journée08!Q17) -> 1 | H76: =IF(ISBLANK(journée08!S17),"",journée08!S17) -> 1 | I76: 2018-2019 | J76: N | K76: 8ème journée | L76: journée08 | M76: 1-1 | N76: 43364 | O76: Match Aller | P76: 208 | Q76: Dijon-Metz | R76: Dijon | S76: - | T76: Metz | U76: 0 | V76: 3 | W76: 2006-2007 | X76: 208 | Y76: Châteauroux-Niort | Z76: Châteauroux | AA76: - | AB76: Niort | AC76: 1 | AD76: 0 | AE76: 2007-2008 | AF76: Dijon-Metz | AG76: Dijon | AH76: - | AI76: Metz | AJ76: 0 | AK76: 1 | AL76: 2008-2009 | AM76: Guingamp-Bastia | AN76: Guingamp | AO76: - | AP76: Bastia | AQ76: 1 | AR76: 1 | AS76: 2009-2010 | AT76: Metz-Reims | AU76: Metz | AV76: - | AW76: Reims | AX76: 0 | AY76: 0 | AZ76: 2010-2011 | BA76: Le Havre-Le Mans | BB76: Le Havre | BC76: - | BD76: Le Mans | BE76: 1 | BF76: 1 | BG76: 2011-2012 | BH76: Le Mans-Niort | BI76: Le Mans | BJ76: - | BK76: Niort | BL76: 2 | BM76: 2 | BN76: 2012-2013 | BO76: Laval-Brest | BP76: Laval | BQ76: - | BR76: Brest | BS76: 2 | BT76: 1 | BU76: 2013-2014 | BV76: Nancy-Tours FC | BW76: Nancy | BX76: - | BY76: Tours FC | BZ76: 2 | CA76: 1 | CB76: 2014-2015 | CC76: Le Havre-Metz | CD76: Le Havre | CE76: - | CF76: Metz | CG76: 1 | CH76: 1 | CI76: 2015-2016 | CJ76: Lens-US Orléans | CK76: Lens | CL76: - | CM76: US Orléans | CN76: 4 | CO76: 2 | CP76: 2016-2017 | CQ76: Le Havre-Sochaux | CR76: Le Havre | CS76: - | CT76: Sochaux | CU76: 1 | CV76: 0 | CW76: 2017-2018
A77: =IF(OR(D77=gnp!$G$5,F77=gnp!$G$5),B$2,"") ->  | B77: 258 | C77: Lorient-Clermont Foot | D77: =journée08!H18 -> Lorient | E77: - | F77: =journée08!V18 -> Clermont Foot | G77: =IF(ISBLANK(journée08!Q18),"",journée08!Q18) -> 0 | H77: =IF(ISBLANK(journée08!S18),"",journée08!S18) -> 0 | I77: 2018-2019 | J77: N | K77: 8ème journée | L77: journée08 | M77: 0-0 | N77: 43364 | O77: Match Aller | P77: 258 | Q77: Guingamp-Brest | R77: Guingamp | S77: - | T77: Brest | U77: 1 | V77: 1 | W77: 2006-2007 | X77: 258 | Y77: Clermont Foot-Dijon | Z77: Clermont Foot | AA77: - | AB77: Dijon | AC77: 3 | AD77: 0 | AE77: 2007-2008 | AF77: Lens-Angers | AG77: Lens | AH77: - | AI77: Angers | AJ77: 3 | AK77: 0 | AL77: 2008-2009 | AM77: Laval-Dijon | AN77: Laval | AO77: - | AP77: Dijon | AQ77: 2 | AR77: 2 | AS77: 2009-2010 | AT77: Evian Thonon G.-Boulogne-sur-Mer | AU77: Evian Thonon G. | AV77: - | AW77: Boulogne-sur-Mer | AX77: 0 | AY77: 0 | AZ77: 2010-2011 | BA77: Troyes-Sedan | BB77: Troyes | BC77: - | BD77: Sedan | BE77: 1 | BF77: 1 | BG77: 2011-2012 | BH77: Laval-Caen | BI77: Laval | BJ77: - | BK77: Caen | BL77: 1 | BM77: 2 | BN77: 2012-2013 | BO77: Le Havre-Istres | BP77: Le Havre | BQ77: - | BR77: Istres | BS77: 1 | BT77: 0 | BU77: 2013-2014 | BV77: Nîmes-Châteauroux | BW77: Nîmes | BX77: - | BY77: Châteauroux | BZ77: 1 | CA77: 0 | CB77: 2014-2015 | CC77: Nîmes-Paris FC | CD77: Nîmes | CE77: - | CF77: Paris FC | CG77: 1 | CH77: 1 | CI77: 2015-2016 | CJ77: Nîmes-Troyes | CK77: Nîmes | CL77: - | CM77: Troyes | CN77: 2 | CO77: 2 | CP77: 2016-2017 | CQ77: Lens-US Quevilly | CR77: Lens | CS77: - | CT77: US Quevilly | CU77: 2 | CV77: 0 | CW77: 2017-2018
A78: =IF(OR(D78=gnp!$G$5,F78=gnp!$G$5),B$2,"") ->  | B78: 308 | C78: Niort-Lens | D78: =journée08!H19 -> Niort | E78: - | F78: =journée08!V19 -> Lens | G78: =IF(ISBLANK(journée08!Q19),"",journée08!Q19) -> 1 | H78: =IF(ISBLANK(journée08!S19),"",journée08!S19) -> 2 | I78: 2018-2019 | J78: P | K78: 8ème journée | L78: journée08 | M78: 1-2 | N78: 43364 | O78: Match Aller | P78: 308 | Q78: Le Havre-Grenoble | R78: Le Havre | S78: - | T78: Grenoble | U78: 1 | V78: 1 | W78: 2006-2007 | X78: 308 | Y78: Le Havre-Troyes | Z78: Le Havre | AA78: - | AB78: Troyes | AC78: 0 | AD78: 0 | AE78: 2007-2008 | AF78: Nîmes-AC Ajaccio | AG78: Nîmes | AH78: - | AI78: AC Ajaccio | AJ78: 2 | AK78: 2 | AL78: 2008-2009 | AM78: Le Havre-Metz | AN78: Le Havre | AO78: - | AP78: Metz | AQ78: 2 | AR78: 0 | AS78: 2009-2010 | AT78: Nantes-Grenoble | AU78: Nantes | AV78: - | AW78: Grenoble | AX78: 2 | AY78: 1 | AZ78: 2010-2011 | BA78: Boulogne-sur-Mer-Guingamp | BB78: Boulogne-sur-Mer | BC78: - | BD78: Guingamp | BE78: 2 | BF78: 0 | BG78: 2011-2012 | BH78: Istres-Nîmes | BI78: Istres | BJ78: - | BK78: Nîmes | BL78: 2 | BM78: 0 | BN78: 2012-2013 | BO78: Metz-Nancy | BP78: Metz | BQ78: - | BR78: Nancy | BS78: 3 | BT78: 0 | BU78: 2013-2014 | BV78: US Orléans-GFCO Ajaccio | BW78: US Orléans | BX78: - | BY78: GFCO Ajaccio | BZ78: 0 | CA78: 1 | CB78: 2014-2015 | CC78: Brest-Niort | CD78: Brest | CE78: - | CF78: Niort | CG78: 1 | CH78: 1 | CI78: 2015-2016 | CJ78: Niort-GFCO Ajaccio | CK78: Niort | CL78: - | CM78: GFCO Ajaccio | CN78: 0 | CO78: 0 | CP78: 2016-2017 | CQ78: Nancy-FC Bourg-Péronnas | CR78: Nancy | CS78: - | CT78: FC Bourg-Péronnas | CU78: 2 | CV78: 1 | CW78: 2017-2018
A79: =IF(OR(D79=gnp!$G$5,F79=gnp!$G$5),B$2,"") ->  | B79: 358 | C79: Paris FC-Metz | D79: =journée08!H20 -> Paris FC | E79: - | F79: =journée08!V20 -> Metz | G79: =IF(ISBLANK(journée08!Q20),"",journée08!Q20) -> 2 | H79: =IF(ISBLANK(journée08!S20),"",journée08!S20) -> 1 | I79: 2018-2019 | J79: G | K79: 8ème journée | L79: journée08 | M79: 2-1 | N79: 43364 | O79: Match Aller | P79: 358 | Q79: Montpellier-Bastia | R79: Montpellier | S79: - | T79: Bastia | U79: 4 | V79: 0 | W79: 2006-2007 | X79: 358 | Y79: Libourne/Seurin-Nantes | Z79: Libourne/Seurin | AA79: - | AB79: Nantes | AC79: 2 | AD79: 3 | AE79: 2007-2008 | AF79: Sedan-Amiens | AG79: Sedan | AH79: - | AI79: Amiens | AJ79: 0 | AK79: 1 | AL79: 2008-2009 | AM79: Nantes-Nîmes | AN79: Nantes | AO79: - | AP79: Nîmes | AQ79: 2 | AR79: 1 | AS79: 2009-2010 | AT79: Istres-Clermont Foot | AU79: Istres | AV79: - | AW79: Clermont Foot | AX79: 2 | AY79: 2 | AZ79: 2010-2011 | BA79: Clermont Foot-Tours FC | BB79: Clermont Foot | BC79: - | BD79: Tours FC | BE79: 0 | BF79: 1 | BG79: 2011-2012 | BH79: Dijon-Clermont Foot | BI79: Dijon | BJ79: - | BK79: Clermont Foot | BL79: 1 | BM79: 1 | BN79: 2012-2013 | BO79: Niort-Nîmes | BP79: Niort | BQ79: - | BR79: Nîmes | BS79: 2 | BT79: 1 | BU79: 2013-2014 | BV79: Sochaux-Brest | BW79: Sochaux | BX79: - | BY79: Brest | BZ79: 0 | CA79: 0 | CB79: 2014-2015 | CC79: Laval-FC Bourg-Péronnas | CD79: Laval | CE79: - | CF79: FC Bourg-Péronnas | CG79: 1 | CH79: 3 | CI79: 2015-2016 | CJ79: Reims-Clermont Foot | CK79: Reims | CL79: - | CM79: Clermont Foot | CN79: 2 | CO79: 1 | CP79: 2016-2017 | CQ79: Niort-Brest | CR79: Niort | CS79: - | CT79: Brest | CU79: 0 | CV79: 2 | CW79: 2017-2018
A80: =IF(OR(D80=gnp!$G$5,F80=gnp!$G$5),B$2,"") ->  | B80: 408 | C80: Sochaux-US Orléans | D80: =journée08!H21 -> Sochaux | E80: - | F80: =journée08!V21 -> US Orléans | G80: =IF(ISBLANK(journée08!Q21),"",journée08!Q21) -> 0 | H80: =IF(ISBLANK(journée08!S21),"",journée08!S21) -> 1 | I80: 2018-2019 | J80: P | K80: 8ème journée | L80: journée08 | M80: 0-1 | N80: 43364 | O80: Match Aller | P80: 408 | Q80: Niort-Caen | R80: Niort | S80: - | T80: Caen | U80: 2 | V80: 2 | W80: 2006-2007 | X80: 408 | Y80: Reims-AC Ajaccio | Z80: Reims | AA80: - | AB80: AC Ajaccio | AC80: 0 | AD80: 0 | AE80: 2007-2008 | AF80: Troyes-Tours FC | AG80: Troyes | AH80: - | AI80: Tours FC | AJ80: 3 | AK80: 2 | AL80: 2008-2009 | AM80: Sedan-Brest | AN80: Sedan | AO80: - | AP80: Brest | AQ80: 0 | AR80: 0 | AS80: 2009-2010 | AT80: Vannes OC-Tours FC | AU80: Vannes OC | AV80: - | AW80: Tours FC | AX80: 0 | AY80: 0 | AZ80: 2010-2011 | BA80: Monaco-Arles-Avignon | BB80: Monaco | BC80: - | BD80: Arles-Avignon | BE80: 1 | BF80: 0 | BG80: 2011-2012 | BH80: GFCO Ajaccio-Angers | BI80: GFCO Ajaccio | BJ80: - | BK80: Angers | BL80: 0 | BM80: 1 | BN80: 2012-2013 | BO80: Tours FC-Lens | BP80: Tours FC | BQ80: - | BR80: Lens | BS80: 3 | BT80: 1 | BU80: 2013-2014 | BV80: Troyes-Niort | BW80: Troyes | BX80: - | BY80: Niort | BZ80: 4 | CA80: 1 | CB80: 2014-2015 | CC80: Tours FC-Créteil | CD80: Tours FC | CE80: - | CF80: Créteil | CG80: 1 | CH80: 2 | CI80: 2015-2016 | CJ80: RC Strasbourg-Red Star 93 | CK80: RC Strasbourg | CL80: - | CM80: Red Star 93 | CN80: 0 | CO80: 0 | CP80: 2016-2017 | CQ80: Reims-GFCO Ajaccio | CR80: Reims | CS80: - | CT80: GFCO Ajaccio | CU80: 5 | CV80: 0 | CW80: 2017-2018
A81: =IF(OR(D81=gnp!$G$5,F81=gnp!$G$5),B$2,"") ->  | B81: 458 | C81: Valenciennes-Red Star 93 | D81: =journée08!H22 -> Valenciennes | E81: - | F81: =journée08!V22 -> Red Star 93 | G81: =IF(ISBLANK(journée08!Q22),"",journée08!Q22) -> 4 | H81: =IF(ISBLANK(journée08!S22),"",journée08!S22) -> 1 | I81: 2018-2019 | J81: G | K81: 8ème journée | L81: journée08 | M81: 4-1 | N81: 43364 | O81: Match Aller | P81: 458 | Q81: Tours FC-Istres | R81: Tours FC | S81: - | T81: Istres | U81: 2 | V81: 0 | W81: 2006-2007 | X81: 458 | Y81: Sedan-Guingamp | Z81: Sedan | AA81: - | AB81: Guingamp | AC81: 1 | AD81: 0 | AE81: 2007-2008 | AF81: Vannes OC-Guingamp | AG81: Vannes OC | AH81: - | AI81: Guingamp | AJ81: 0 | AK81: 0 | AL81: 2008-2009 | AM81: Strasbourg-Caen | AN81: Strasbourg | AO81: - | AP81: Caen | AQ81: 2 | AR81: 2 | AS81: 2009-2010 | AT81: Le Havre-Angers | AU81: Le Havre | AV81: - | AW81: Angers | AX81: 1 | AY81: 0 | AZ81: 2010-2011 | BA81: Lens-Angers | BB81: Lens | BC81: - | BD81: Angers | BE81: 0 | BF81: 0 | BG81: 2011-2012 | BH81: Guingamp-Auxerre | BI81: Guingamp | BJ81: - | BK81: Auxerre | BL81: 4 | BM81: 3 | BN81: 2012-2013 | BO81: Troyes-Angers | BP81: Troyes | BQ81: - | BR81: Angers | BS81: 3 | BT81: 3 | BU81: 2013-2014 | BV81: Valenciennes-Clermont Foot | BW81: Valenciennes | BX81: - | BY81: Clermont Foot | BZ81: 2 | CA81: 1 | CB81: 2014-2015 | CC81: Valenciennes-Lens | CD81: Valenciennes | CE81: - | CF81: Lens | CG81: 0 | CH81: 1 | CI81: 2015-2016 | CJ81: Tours FC-FC Bourg-Péronnas | CK81: Tours FC | CL81: - | CM81: FC Bourg-Péronnas | CN81: 0 | CO81: 2 | CP81: 2016-2017 | CQ81: Tours FC-Nîmes | CR81: Tours FC | CS81: - | CT81: Nîmes | CU81: 0 | CV81: 4 | CW81: 2017-2018
A82: =IF(OR(D82=gnp!$G$5,F82=gnp!$G$5),B$2,"") ->  | B82: 9 | C82: AC Ajaccio-Valenciennes | D82: =journée09!H13 -> AC Ajaccio | E82: - | F82: =journée09!V13 -> Valenciennes | G82: =IF(ISBLANK(journée09!Q13),"",journée09!Q13) -> 3 | H82: =IF(ISBLANK(journée09!S13),"",journée09!S13) -> 1 | I82: 2018-2019 | J82: G | K82: 9ème journée | L82: journée09 | M82: 3-1 | N82: =journée09!H11 -> 43371 | O82: Match Aller | P82: 9 | Q82: Bastia-Niort | R82: Bastia | S82: - | T82: Niort | U82: 4 | V82: 1 | W82: 2006-2007 | X82: 9 | Y82: AC Ajaccio-Le Havre | Z82: AC Ajaccio | AA82: - | AB82: Le Havre | AC82: 0 | AD82: 3 | AE82: 2007-2008 | AF82: AC Ajaccio-Lens | AG82: AC Ajaccio | AH82: - | AI82: Lens | AJ82: 1 | AK82: 2 | AL82: 2008-2009 | AM82: Angers-Strasbourg | AN82: Angers | AO82: - | AP82: Strasbourg | AQ82: 0 | AR82: 0 | AS82: 2009-2010 | AT82: AC Ajaccio-Nantes | AU82: AC Ajaccio | AV82: - | AW82: Nantes | AX82: 2 | AY82: 3 | AZ82: 2010-2011 | BA82: Arles-Avignon-Lens | BB82: Arles-Avignon | BC82: - | BD82: Lens | BE82: 3 | BF82: 0 | BG82: 2011-2012 | BH82: Nantes-Lens | BI82: Nantes | BJ82: - | BK82: Lens | BL82: 4 | BM82: 0 | BN82: 2012-2013 | BO82: Angers-Tours FC | BP82: Angers | BQ82: - | BR82: Tours FC | BS82: 1 | BT82: 1 | BU82: 2013-2014 | BV82: Auxerre-Arles-Avignon | BW82: Auxerre | BX82: - | BY82: Arles-Avignon | BZ82: 2 | CA82: 1 | CB82: 2014-2015 | CC82: AC Ajaccio-Auxerre | CD82: AC Ajaccio | CE82: - | CF82: Auxerre | CG82: 1 | CH82: 0 | CI82: 2015-2016 | CJ82: Auxerre-Le Havre | CK82: Auxerre | CL82: - | CM82: Le Havre | CN82: 0 | CO82: 1 | CP82: 2016-2017 | CQ82: FC Bourg-Péronnas-Le Havre | CR82: FC Bourg-Péronnas | CS82: - | CT82: Le Havre | CU82: 2 | CV82: 1 | CW82: 2017-2018
A83: =IF(OR(D83=gnp!$G$5,F83=gnp!$G$5),B$2,"") ->  | B83: =B82+50 -> 59 | C83: AS Béziers-Niort | D83: =journée09!H14 -> AS Béziers | E83: - | F83: =journée09!V14 -> Niort | G83: =IF(ISBLANK(journée09!Q14),"",journée09!Q14) -> 1 | H83: =IF(ISBLANK(journée09!S14),"",journée09!S14) -> 1 | I83: 2018-2019 | J83: N | K83: =K82 -> 9ème journée | L83: journée09 | M83: 1-1 | N83: =N82 -> 43371 | O83: Match Aller | P83: 59 | Q83: Brest-Créteil | R83: Brest | S83: - | T83: Créteil | U83: 4 | V83: 1 | W83: 2006-2007 | X83: 59 | Y83: Angers-Amiens | Z83: Angers | AA83: - | AB83: Amiens | AC83: 2 | AD83: 0 | AE83: 2007-2008 | AF83: Amiens-Vannes OC | AG83: Amiens | AH83: - | AI83: Vannes OC | AJ83: 0 | AK83: 2 | AL83: 2008-2009 | AM83: Bastia-Châteauroux | AN83: Bastia | AO83: - | AP83: Châteauroux | AQ83: 0 | AR83: 1 | AS83: 2009-2010 | AT83: Boulogne-sur-Mer-Le Havre | AU83: Boulogne-sur-Mer | AV83: - | AW83: Le Havre | AX83: 1 | AY83: 1 | AZ83: 2010-2011 | BA83: Guingamp-Le Havre | BB83: Guingamp | BC83: - | BD83: Le Havre | BE83: 1 | BF83: 0 | BG83: 2011-2012 | BH83: Châteauroux-Le Havre | BI83: Châteauroux | BJ83: - | BK83: Le Havre | BL83: 1 | BM83: 1 | BN83: 2012-2013 | BO83: Brest-Créteil | BP83: Brest | BQ83: - | BR83: Créteil | BS83: 1 | BT83: 2 | BU83: 2013-2014 | BV83: Clermont Foot-Troyes | BW83: Clermont Foot | BX83: - | BY83: Troyes | BZ83: 1 | CA83: 0 | CB83: 2014-2015 | CC83: Niort-Clermont Foot | CD83: Niort | CE83: - | CF83: Clermont Foot | CG83: 1 | CH83: 1 | CI83: 2015-2016 | CJ83: FC Bourg-Péronnas-Laval | CK83: FC Bourg-Péronnas | CL83: - | CM83: Laval | CN83: 0 | CO83: 0 | CP83: 2016-2017 | CQ83: Brest-Paris FC | CR83: Brest | CS83: - | CT83: Paris FC | CU83: 1 | CV83: 1 | CW83: 2017-2018
A84: =IF(OR(D84=gnp!$G$5,F84=gnp!$G$5),B$2,"") ->  | B84: =B83+50 -> 109 | C84: Brest-Châteauroux | D84: =journée09!H15 -> Brest | E84: - | F84: =journée09!V15 -> Châteauroux | G84: =IF(ISBLANK(journée09!Q15),"",journée09!Q15) -> 5 | H84: =IF(ISBLANK(journée09!S15),"",journée09!S15) -> 1 | I84: 2018-2019 | J84: G | K84: =K83 -> 9ème journée | L84: journée09 | M84: 5-1 | N84: 43371 | O84: Match Aller | P84: 109 | Q84: Caen-Tours FC | R84: Caen | S84: - | T84: Tours FC | U84: 1 | V84: 0 | W84: 2006-2007 | X84: 109 | Y84: Boulogne/Mer-Reims | Z84: Boulogne/Mer | AA84: - | AB84: Reims | AC84: 1 | AD84: 0 | AE84: 2007-2008 | AF84: Angers-Troyes | AG84: Angers | AH84: - | AI84: Troyes | AJ84: 0 | AK84: 0 | AL84: 2008-2009 | AM84: Brest-Clermont Foot | AN84: Brest | AO84: - | AP84: Clermont Foot | AQ84: 2 | AR84: 0 | AS84: 2009-2010 | AT84: Tours FC-Metz | AU84: Tours FC | AV84: - | AW84: Metz | AX84: 2 | AY84: 2 | AZ84: 2010-2011 | BA84: Laval-Monaco | BB84: Laval | BC84: - | BD84: Monaco | BE84: 1 | BF84: 0 | BG84: 2011-2012 | BH84: Clermont Foot-Laval | BI84: Clermont Foot | BJ84: - | BK84: Laval | BL84: 0 | BM84: 0 | BN84: 2012-2013 | BO84: CA Bastia-Laval | BP84: CA Bastia | BQ84: - | BR84: Laval | BS84: 1 | BT84: 1 | BU84: 2013-2014 | BV84: Créteil-AC Ajaccio | BW84: Créteil | BX84: - | BY84: AC Ajaccio | BZ84: 3 | CA84: 2 | CB84: 2014-2015 | CC84: Dijon-Laval | CD84: Dijon | CE84: - | CF84: Laval | CG84: 2 | CH84: 0 | CI84: 2015-2016 | CJ84: Brest-Reims | CK84: Brest | CL84: - | CM84: Reims | CN84: 2 | CO84: 1 | CP84: 2016-2017 | CQ84: Clermont Foot-Lens | CR84: Clermont Foot | CS84: - | CT84: Lens | CU84: 1 | CV84: 0 | CW84: 2017-2018
A85: =IF(OR(D85=gnp!$G$5,F85=gnp!$G$5),B$2,"") ->  | B85: 159 | C85: Clermont Foot-GFCO Ajaccio | D85: =journée09!H16 -> Clermont Foot | E85: - | F85: =journée09!V16 -> GFCO Ajaccio | G85: =IF(ISBLANK(journée09!Q16),"",journée09!Q16) -> 1 | H85: =IF(ISBLANK(journée09!S16),"",journée09!S16) -> 1 | I85: 2018-2019 | J85: N | K85: 9ème journée | L85: journée09 | M85: 1-1 | N85: 43371 | O85: Match Aller | P85: 159 | Q85: Grenoble-AC Ajaccio | R85: Grenoble | S85: - | T85: AC Ajaccio | U85: 2 | V85: 0 | W85: 2006-2007 | X85: 159 | Y85: Dijon-Brest | Z85: Dijon | AA85: - | AB85: Brest | AC85: 2 | AD85: 2 | AE85: 2007-2008 | AF85: Boulogne/Mer-Châteauroux | AG85: Boulogne/Mer | AH85: - | AI85: Châteauroux | AJ85: 2 | AK85: 1 | AL85: 2008-2009 | AM85: Caen-Sedan | AN85: Caen | AO85: - | AP85: Sedan | AQ85: 3 | AR85: 1 | AS85: 2009-2010 | AT85: Angers-Laval | AU85: Angers | AV85: - | AW85: Laval | AX85: 2 | AY85: 0 | AZ85: 2010-2011 | BA85: Le Mans-Troyes | BB85: Le Mans | BC85: - | BD85: Troyes | BE85: 1 | BF85: 1 | BG85: 2011-2012 | BH85: Angers-Le Mans | BI85: Angers | BJ85: - | BK85: Le Mans | BL85: 4 | BM85: 0 | BN85: 2012-2013 | BO85: Caen-Le Havre | BP85: Caen | BQ85: - | BR85: Le Havre | BS85: 1 | BT85: 0 | BU85: 2013-2014 | BV85: GFCO Ajaccio-Nîmes | BW85: GFCO Ajaccio | BX85: - | BY85: Nîmes | BZ85: 2 | CA85: 0 | CB85: 2014-2015 | CC85: FC Bourg-Péronnas-Evian Thonon G. | CD85: FC Bourg-Péronnas | CE85: - | CF85: Evian Thonon G. | CG85: 0 | CH85: 2 | CI85: 2015-2016 | CJ85: Clermont Foot-RC Strasbourg | CK85: Clermont Foot | CL85: - | CM85: RC Strasbourg | CN85: 0 | CO85: 0 | CP85: 2016-2017 | CQ85: GFCO Ajaccio-Châteauroux | CR85: GFCO Ajaccio | CS85: - | CT85: Châteauroux | CU85: 2 | CV85: 1 | CW85: 2017-2018
A86: =IF(OR(D86=gnp!$G$5,F86=gnp!$G$5),B$2,"") ->  | B86: 209 | C86: Lens-Paris FC | D86: =journée09!H17 -> Lens | E86: - | F86: =journée09!V17 -> Paris FC | G86: =IF(ISBLANK(journée09!Q17),"",journée09!Q17) -> 0 | H86: =IF(ISBLANK(journée09!S17),"",journée09!S17) -> 0 | I86: 2018-2019 | J86: N | K86: 9ème journée | L86: journée09 | M86: 0-0 | N86: 43371 | O86: Match Aller | P86: 209 | Q86: Gueugnon-Dijon | R86: Gueugnon | S86: - | T86: Dijon | U86: 0 | V86: 2 | W86: 2006-2007 | X86: 209 | Y86: Grenoble-Nantes | Z86: Grenoble | AA86: - | AB86: Nantes | AC86: 0 | AD86: 3 | AE86: 2007-2008 | AF86: Guingamp-Clermont Foot | AG86: Guingamp | AH86: - | AI86: Clermont Foot | AJ86: 2 | AK86: 1 | AL86: 2008-2009 | AM86: Dijon-Le Havre | AN86: Dijon | AO86: - | AP86: Le Havre | AQ86: 1 | AR86: 2 | AS86: 2009-2010 | AT86: Dijon-Troyes | AU86: Dijon | AV86: - | AW86: Troyes | AX86: 0 | AY86: 1 | AZ86: 2010-2011 | BA86: Tours FC-Amiens | BB86: Tours FC | BC86: - | BD86: Amiens | BE86: 1 | BF86: 1 | BG86: 2011-2012 | BH86: Nîmes-Guingamp | BI86: Nîmes | BJ86: - | BK86: Guingamp | BL86: 2 | BM86: 1 | BN86: 2012-2013 | BO86: Châteauroux-Niort | BP86: Châteauroux | BQ86: - | BR86: Niort | BS86: 3 | BT86: 0 | BU86: 2013-2014 | BV86: Laval-Nancy | BW86: Laval | BX86: - | BY86: Nancy | BZ86: 1 | CA86: 1 | CB86: 2014-2015 | CC86: Metz-Nîmes | CD86: Metz | CE86: - | CF86: Nîmes | CG86: 1 | CH86: 2 | CI86: 2015-2016 | CJ86: GFCO Ajaccio-Nîmes | CK86: GFCO Ajaccio | CL86: - | CM86: Nîmes | CN86: 0 | CO86: 2 | CP86: 2016-2017 | CQ86: Lorient-Nancy | CR86: Lorient | CS86: - | CT86: Nancy | CU86: 0 | CV86: 0 | CW86: 2017-2018
A87: =IF(OR(D87=gnp!$G$5,F87=gnp!$G$5),B$2,"") ->  | B87: 259 | C87: Metz-Le Havre | D87: =journée09!H18 -> Metz | E87: - | F87: =journée09!V18 -> Le Havre | G87: =IF(ISBLANK(journée09!Q18),"",journée09!Q18) -> 0 | H87: =IF(ISBLANK(journée09!S18),"",journée09!S18) -> 1 | I87: 2018-2019 | J87: P | K87: 9ème journée | L87: journée09 | M87: 0-1 | N87: 43371 | O87: Match Aller | P87: 259 | Q87: Istres-Amiens | R87: Istres | S87: - | T87: Amiens | U87: 1 | V87: 3 | W87: 2006-2007 | X87: 259 | Y87: Gueugnon-Libourne/Seurin | Z87: Gueugnon | AA87: - | AB87: Libourne/Seurin | AC87: 2 | AD87: 2 | AE87: 2007-2008 | AF87: Metz-Sedan | AG87: Metz | AH87: - | AI87: Sedan | AJ87: 2 | AK87: 0 | AL87: 2008-2009 | AM87: Istres-Arles | AN87: Istres | AO87: - | AP87: Arles | AQ87: 1 | AR87: 1 | AS87: 2009-2010 | AT87: Nîmes-Le Mans | AU87: Nîmes | AV87: - | AW87: Le Mans | AX87: 1 | AY87: 2 | AZ87: 2010-2011 | BA87: Sedan-Reims | BB87: Sedan | BC87: - | BD87: Reims | BE87: 1 | BF87: 0 | BG87: 2011-2012 | BH87: Niort-Dijon | BI87: Niort | BJ87: - | BK87: Dijon | BL87: 4 | BM87: 2 | BN87: 2012-2013 | BO87: Dijon-Auxerre | BP87: Dijon | BQ87: - | BR87: Auxerre | BS87: 1 | BT87: 0 | BU87: 2013-2014 | BV87: Le Havre-Dijon | BW87: Le Havre | BX87: - | BY87: Dijon | BZ87: 1 | CA87: 0 | CB87: 2014-2015 | CC87: Paris FC-Nancy | CD87: Paris FC | CE87: - | CF87: Nancy | CG87: 1 | CH87: 1 | CI87: 2015-2016 | CJ87: US Orléans-Amiens | CK87: US Orléans | CL87: - | CM87: Amiens | CN87: 1 | CO87: 2 | CP87: 2016-2017 | CQ87: Nîmes-Niort | CR87: Nîmes | CS87: - | CT87: Niort | CU87: 1 | CV87: 5 | CW87: 2017-2018
A88: =IF(OR(D88=gnp!$G$5,F88=gnp!$G$5),B$2,"") ->  | B88: 309 | C88: Nancy-Sochaux | D88: =journée09!H19 -> Nancy | E88: - | F88: =journée09!V19 -> Sochaux | G88: =IF(ISBLANK(journée09!Q19),"",journée09!Q19) -> 0 | H88: =IF(ISBLANK(journée09!S19),"",journée09!S19) -> 0 | I88: 2018-2019 | J88: N | K88: 9ème journée | L88: journée09 | M88: 0-0 | N88: 43371 | O88: Match Aller | P88: 309 | Q88: Libourne/Seurin-Châteauroux | R88: Libourne/Seurin | S88: - | T88: Châteauroux | U88: 0 | V88: 1 | W88: 2006-2007 | X88: 309 | Y88: Guingamp-Châteauroux | Z88: Guingamp | AA88: - | AB88: Châteauroux | AC88: 2 | AD88: 2 | AE88: 2007-2008 | AF88: Montpellier-Bastia | AG88: Montpellier | AH88: - | AI88: Bastia | AJ88: 2 | AK88: 1 | AL88: 2008-2009 | AM88: Metz-Laval | AN88: Metz | AO88: - | AP88: Laval | AQ88: 3 | AR88: 2 | AS88: 2009-2010 | AT88: Châteauroux-Reims | AU88: Châteauroux | AV88: - | AW88: Reims | AX88: 2 | AY88: 0 | AZ88: 2010-2011 | BA88: Châteauroux-Boulogne-sur-Mer | BB88: Châteauroux | BC88: - | BD88: Boulogne-sur-Mer | BE88: 2 | BF88: 1 | BG88: 2011-2012 | BH88: Caen-Tours FC | BI88: Caen | BJ88: - | BK88: Tours FC | BL88: 0 | BM88: 1 | BN88: 2012-2013 | BO88: Istres-Troyes | BP88: Istres | BQ88: - | BR88: Troyes | BS88: 0 | BT88: 2 | BU88: 2013-2014 | BV88: Châteauroux-Brest | BW88: Châteauroux | BX88: - | BY88: Brest | BZ88: 1 | CA88: 1 | CB88: 2014-2015 | CC88: Lens-Sochaux | CD88: Lens | CE88: - | CF88: Sochaux | CG88: 1 | CH88: 0 | CI88: 2015-2016 | CJ88: Red Star 93-Niort | CK88: Red Star 93 | CL88: - | CM88: Niort | CN88: 0 | CO88: 1 | CP88: 2016-2017 | CQ88: US Orléans-Tours FC | CR88: US Orléans | CS88: - | CT88: Tours FC | CU88: 1 | CV88: 1 | CW88: 2017-2018
A89: =IF(OR(D89=gnp!$G$5,F89=gnp!$G$5),B$2,"") ->  | B89: 359 | C89: US Orléans-Lorient | D89: =journée09!H20 -> US Orléans | E89: - | F89: =journée09!V20 -> Lorient | G89: =IF(ISBLANK(journée09!Q20),"",journée09!Q20) -> 2 | H89: =IF(ISBLANK(journée09!S20),"",journée09!S20) -> 0 | I89: 2018-2019 | J89: G | K89: 9ème journée | L89: journée09 | M89: 2-0 | N89: 43371 | O89: Match Aller | P89: 359 | Q89: Metz-Montpellier | R89: Metz | S89: - | T89: Montpellier | U89: 2 | V89: 1 | W89: 2006-2007 | X89: 359 | Y89: Montpellier-Sedan | Z89: Montpellier | AA89: - | AB89: Sedan | AC89: 0 | AD89: 0 | AE89: 2007-2008 | AF89: Reims-Dijon | AG89: Reims | AH89: - | AI89: Dijon | AJ89: 1 | AK89: 4 | AL89: 2008-2009 | AM89: Nîmes-Guingamp | AN89: Nîmes | AO89: - | AP89: Guingamp | AQ89: 2 | AR89: 0 | AS89: 2009-2010 | AT89: Sedan-Istres | AU89: Sedan | AV89: - | AW89: Istres | AX89: 5 | AY89: 1 | AZ89: 2010-2011 | BA89: Nantes-Clermont Foot | BB89: Nantes | BC89: - | BD89: Clermont Foot | BE89: 1 | BF89: 0 | BG89: 2011-2012 | BH89: Monaco-GFCO Ajaccio | BI89: Monaco | BJ89: - | BK89: GFCO Ajaccio | BL89: 2 | BM89: 2 | BN89: 2012-2013 | BO89: Lens-Metz | BP89: Lens | BQ89: - | BR89: Metz | BS89: 3 | BT89: 2 | BU89: 2013-2014 | BV89: Niort-Angers | BW89: Niort | BX89: - | BY89: Angers | BZ89: 2 | CA89: 1 | CB89: 2014-2015 | CC89: Red Star 93-Brest | CD89: Red Star 93 | CE89: - | CF89: Brest | CG89: 1 | CH89: 0 | CI89: 2015-2016 | CJ89: Troyes-Tours FC | CK89: Troyes | CL89: - | CM89: Tours FC | CN89: 3 | CO89: 1 | CP89: 2016-2017 | CQ89: US Quevilly-Reims | CR89: US Quevilly | CS89: - | CT89: Reims | CU89: 1 | CV89: 2 | CW89: 2017-2018
A90: =IF(OR(D90=gnp!$G$5,F90=gnp!$G$5),B$2,"") ->  | B90: 409 | C90: Red Star 93-Grenoble Foot 38 | D90: =journée09!H21 -> Red Star 93 | E90: - | F90: =journée09!V21 -> Grenoble Foot 38 | G90: =IF(ISBLANK(journée09!Q21),"",journée09!Q21) -> 2 | H90: =IF(ISBLANK(journée09!S21),"",journée09!S21) -> 3 | I90: 2018-2019 | J90: P | K90: 9ème journée | L90: journée09 | M90: 2-3 | N90: 43371 | O90: Match Aller | P90: 409 | Q90: Reims-Guingamp | R90: Reims | S90: - | T90: Guingamp | U90: 1 | V90: 0 | W90: 2006-2007 | X90: 409 | Y90: Niort-Bastia | Z90: Niort | AA90: - | AB90: Bastia | AC90: 1 | AD90: 3 | AE90: 2007-2008 | AF90: Strasbourg-Nîmes | AG90: Strasbourg | AH90: - | AI90: Nîmes | AJ90: 5 | AK90: 0 | AL90: 2008-2009 | AM90: Tours FC-Nantes | AN90: Tours FC | AO90: - | AP90: Nantes | AQ90: 1 | AR90: 1 | AS90: 2009-2010 | AT90: Grenoble-Vannes OC | AU90: Grenoble | AV90: - | AW90: Vannes OC | AX90: 1 | AY90: 2 | AZ90: 2010-2011 | BA90: Metz-Istres | BB90: Metz | BC90: - | BD90: Istres | BE90: 1 | BF90: 2 | BG90: 2011-2012 | BH90: Auxerre-Arles-Avignon | BI90: Auxerre | BJ90: - | BK90: Arles-Avignon | BL90: 2 | BM90: 1 | BN90: 2012-2013 | BO90: Nancy-Arles-Avignon | BP90: Nancy | BQ90: - | BR90: Arles-Avignon | BS90: 0 | BT90: 0 | BU90: 2013-2014 | BV90: Tours FC-Sochaux | BW90: Tours FC | BX90: - | BY90: Sochaux | BZ90: 0 | CA90: 1 | CB90: 2014-2015 | CC90: Créteil-Le Havre | CD90: Créteil | CE90: - | CF90: Le Havre | CG90: 2 | CH90: 1 | CI90: 2015-2016 | CJ90: Valenciennes-Lens | CK90: Valenciennes | CL90: - | CM90: Lens | CN90: 1 | CO90: 2 | CP90: 2016-2017 | CQ90: Sochaux-AC Ajaccio | CR90: Sochaux | CS90: - | CT90: AC Ajaccio | CU90: 1 | CV90: 6 | CW90: 2017-2018
A91: =IF(OR(D91=gnp!$G$5,F91=gnp!$G$5),B$2,"") ->  | B91: 459 | C91: Troyes-Auxerre | D91: =journée09!H22 -> Troyes | E91: - | F91: =journée09!V22 -> Auxerre | G91: =IF(ISBLANK(journée09!Q22),"",journée09!Q22) -> 1 | H91: =IF(ISBLANK(journée09!S22),"",journée09!S22) -> 0 | I91: 2018-2019 | J91: G | K91: 9ème journée | L91: journée09 | M91: 1-0 | N91: 43371 | O91: Match Aller | P91: 459 | Q91: Strasbourg-Le Havre | R91: Strasbourg | S91: - | T91: Le Havre | U91: 1 | V91: 1 | W91: 2006-2007 | X91: 459 | Y91: Troyes-Clermont Foot | Z91: Troyes | AA91: - | AB91: Clermont Foot | AC91: 2 | AD91: 2 | AE91: 2007-2008 | AF91: Tours FC-Brest | AG91: Tours FC | AH91: - | AI91: Brest | AJ91: 2 | AK91: 0 | AL91: 2008-2009 | AM91: Vannes OC-AC Ajaccio | AN91: Vannes OC | AO91: - | AP91: AC Ajaccio | AQ91: 0 | AR91: 3 | AS91: 2009-2010 | AT91: Clermont Foot-Evian Thonon G. | AU91: Clermont Foot | AV91: - | AW91: Evian Thonon G. | AX91: 3 | AY91: 3 | AZ91: 2010-2011 | BA91: Bastia-Angers | BB91: Bastia | BC91: - | BD91: Angers | BE91: 3 | BF91: 1 | BG91: 2011-2012 | BH91: Sedan-Istres | BI91: Sedan | BJ91: - | BK91: Istres | BL91: 0 | BM91: 2 | BN91: 2012-2013 | BO91: Nîmes-Clermont Foot | BP91: Nîmes | BQ91: - | BR91: Clermont Foot | BS91: 1 | BT91: 1 | BU91: 2013-2014 | BV91: Valenciennes-US Orléans | BW91: Valenciennes | BX91: - | BY91: US Orléans | BZ91: 2 | CA91: 0 | CB91: 2014-2015 | CC91: Valenciennes-Tours FC | CD91: Valenciennes | CE91: - | CF91: Tours FC | CG91: 0 | CH91: 0 | CI91: 2015-2016 | CJ91: Sochaux-AC Ajaccio | CK91: Sochaux | CL91: - | CM91: AC Ajaccio | CN91: 1 | CO91: 0 | CP91: 2016-2017 | CQ91: Valenciennes-Auxerre | CR91: Valenciennes | CS91: - | CT91: Auxerre | CU91: 0 | CV91: 2 | CW91: 2017-2018
A92: =IF(OR(D92=gnp!$G$5,F92=gnp!$G$5),B$2,"") ->  | B92: 10 | C92: GFCO Ajaccio-US Orléans | D92: =journée10!H13 -> GFCO Ajaccio | E92: - | F92: =journée10!V13 -> US Orléans | G92: =IF(ISBLANK(journée10!Q13),"",journée10!Q13) -> 0 | H92: =IF(ISBLANK(journée10!S13),"",journée10!S13) -> 2 | I92: 2018-2019 | J92: P | K92: 10ème journée | L92: journée10 | M92: 0-2 | N92: =journée10!H11 -> 43378 | O92: Match Aller | P92: 10 | Q92: AC Ajaccio-Strasbourg | R92: AC Ajaccio | S92: - | T92: Strasbourg | U92: 2 | V92: 2 | W92: 2006-2007 | X92: 10 | Y92: Amiens-Montpellier | Z92: Amiens | AA92: - | AB92: Montpellier | AC92: 1 | AD92: 1 | AE92: 2007-2008 | AF92: Angers-Strasbourg | AG92: Angers | AH92: - | AI92: Strasbourg | AJ92: 3 | AK92: 0 | AL92: 2008-2009 | AM92: AC Ajaccio-Brest | AN92: AC Ajaccio | AO92: - | AP92: Brest | AQ92: 0 | AR92: 0 | AS92: 2009-2010 | AT92: Vannes OC-Châteauroux | AU92: Vannes OC | AV92: - | AW92: Châteauroux | AX92: 0 | AY92: 1 | AZ92: 2010-2011 | BA92: Le Havre-Nantes | BB92: Le Havre | BC92: - | BD92: Nantes | BE92: 1 | BF92: 1 | BG92: 2011-2012 | BH92: GFCO Ajaccio-Nantes | BI92: GFCO Ajaccio | BJ92: - | BK92: Nantes | BL92: 3 | BM92: 1 | BN92: 2012-2013 | BO92: Arles-Avignon-Lens | BP92: Arles-Avignon | BQ92: - | BR92: Lens | BS92: 1 | BT92: 1 | BU92: 2013-2014 | BV92: AC Ajaccio-Niort | BW92: AC Ajaccio | BX92: - | BY92: Niort | BZ92: 0 | CA92: 0 | CB92: 2014-2015 | CC92: Auxerre-Paris FC | CD92: Auxerre | CE92: - | CF92: Paris FC | CG92: 2 | CH92: 0 | CI92: 2015-2016 | CJ92: AC Ajaccio-Brest | CK92: AC Ajaccio | CL92: - | CM92: Brest | CN92: 1 | CO92: 1 | CP92: 2016-2017 | CQ92: AC Ajaccio-FC Bourg-Péronnas | CR92: AC Ajaccio | CS92: - | CT92: FC Bourg-Péronnas | CU92: 2 | CV92: 0 | CW92: 2017-2018
A93: =IF(OR(D93=gnp!$G$5,F93=gnp!$G$5),B$2,"") ->  | B93: =B92+50 -> 60 | C93: Auxerre-Lens | D93: =journée10!H14 -> Auxerre | E93: - | F93: =journée10!V14 -> Lens | G93: =IF(ISBLANK(journée10!Q14),"",journée10!Q14) -> 1 | H93: =IF(ISBLANK(journée10!S14),"",journée10!S14) -> 2 | I93: 2018-2019 | J93: P | K93: =K92 -> 10ème journée | L93: journée10 | M93: 1-2 | N93: =N92 -> 43378 | O93: Match Aller | P93: 60 | Q93: Amiens-Bastia | R93: Amiens | S93: - | T93: Bastia | U93: 1 | V93: 0 | W93: 2006-2007 | X93: 60 | Y93: Bastia-Dijon | Z93: Bastia | AA93: - | AB93: Dijon | AC93: 0 | AD93: 0 | AE93: 2007-2008 | AF93: Bastia-Dijon | AG93: Bastia | AH93: - | AI93: Dijon | AJ93: 0 | AK93: 0 | AL93: 2008-2009 | AM93: Angers-Istres | AN93: Angers | AO93: - | AP93: Istres | AQ93: 1 | AR93: 0 | AS93: 2009-2010 | AT93: Le Havre-Sedan | AU93: Le Havre | AV93: - | AW93: Sedan | AX93: 1 | AY93: 1 | AZ93: 2010-2011 | BA93: Boulogne-sur-Mer-Bastia | BB93: Boulogne-sur-Mer | BC93: - | BD93: Bastia | BE93: 1 | BF93: 3 | BG93: 2011-2012 | BH93: Guingamp-Laval | BI93: Guingamp | BJ93: - | BK93: Laval | BL93: 1 | BM93: 1 | BN93: 2012-2013 | BO93: Auxerre-Laval | BP93: Auxerre | BQ93: - | BR93: Laval | BS93: 2 | BT93: 0 | BU93: 2013-2014 | BV93: Angers-Créteil | BW93: Angers | BX93: - | BY93: Créteil | BZ93: 3 | CA93: 0 | CB93: 2014-2015 | CC93: Nancy-AC Ajaccio | CD93: Nancy | CE93: - | CF93: AC Ajaccio | CG93: 3 | CH93: 0 | CI93: 2015-2016 | CJ93: Amiens-Troyes | CK93: Amiens | CL93: - | CM93: Troyes | CN93: 0 | CO93: 1 | CP93: 2016-2017 | CQ93: Auxerre-Sochaux | CR93: Auxerre | CS93: - | CT93: Sochaux | CU93: 2 | CV93: 0 | CW93: 2017-2018
A94: =IF(OR(D94=gnp!$G$5,F94=gnp!$G$5),B$2,"") ->  | B94: =B93+50 -> 110 | C94: Châteauroux-Troyes | D94: =journée10!H15 -> Châteauroux | E94: - | F94: =journée10!V15 -> Troyes | G94: =IF(ISBLANK(journée10!Q15),"",journée10!Q15) -> 0 | H94: =IF(ISBLANK(journée10!S15),"",journée10!S15) -> 3 | I94: 2018-2019 | J94: P | K94: =K93 -> 10ème journée | L94: journée10 | M94: 0-3 | N94: 43378 | O94: Match Aller | P94: 110 | Q94: Châteauroux-Reims | R94: Châteauroux | S94: - | T94: Reims | U94: 1 | V94: 1 | W94: 2006-2007 | X94: 110 | Y94: Brest-Troyes | Z94: Brest | AA94: - | AB94: Troyes | AC94: 0 | AD94: 0 | AE94: 2007-2008 | AF94: Brest-Montpellier | AG94: Brest | AH94: - | AI94: Montpellier | AJ94: 0 | AK94: 3 | AL94: 2008-2009 | AM94: Arles-Bastia | AN94: Arles | AO94: - | AP94: Bastia | AQ94: 1 | AR94: 0 | AS94: 2009-2010 | AT94: Reims-AC Ajaccio | AU94: Reims | AV94: - | AW94: AC Ajaccio | AX94: 1 | AY94: 1 | AZ94: 2010-2011 | BA94: Clermont Foot-Metz | BB94: Clermont Foot | BC94: - | BD94: Metz | BE94: 1 | BF94: 0 | BG94: 2011-2012 | BH94: Monaco-Châteauroux | BI94: Monaco | BJ94: - | BK94: Châteauroux | BL94: 0 | BM94: 0 | BN94: 2012-2013 | BO94: Clermont Foot-Istres | BP94: Clermont Foot | BQ94: - | BR94: Istres | BS94: 2 | BT94: 0 | BU94: 2013-2014 | BV94: Arles-Avignon-Châteauroux | BW94: Arles-Avignon | BX94: - | BY94: Châteauroux | BZ94: 0 | CA94: 1 | CB94: 2014-2015 | CC94: Clermont Foot-FC Bourg-Péronnas | CD94: Clermont Foot | CE94: - | CF94: FC Bourg-Péronnas | CG94: 3 | CH94: 2 | CI94: 2015-2016 | CJ94: Laval-Clermont Foot | CK94: Laval | CL94: - | CM94: Clermont Foot | CN94: 1 | CO94: 1 | CP94: 2016-2017 | CQ94: Paris FC-Nîmes | CR94: Paris FC | CS94: - | CT94: Nîmes | CU94: 2 | CV94: 1 | CW94: 2017-2018
A95: =IF(OR(D95=gnp!$G$5,F95=gnp!$G$5),B$2,"") ->  | B95: 160 | C95: Grenoble Foot 38-Clermont Foot | D95: =journée10!H16 -> Grenoble Foot 38 | E95: - | F95: =journée10!V16 -> Clermont Foot | G95: =IF(ISBLANK(journée10!Q16),"",journée10!Q16) -> 1 | H95: =IF(ISBLANK(journée10!S16),"",journée10!S16) -> 0 | I95: 2018-2019 | J95: G | K95: 10ème journée | L95: journée10 | M95: 1-0 | N95: 43378 | O95: Match Aller | P95: 160 | Q95: Créteil-Istres | R95: Créteil | S95: - | T95: Istres | U95: 1 | V95: 0 | W95: 2006-2007 | X95: 160 | Y95: Châteauroux-AC Ajaccio | Z95: Châteauroux | AA95: - | AB95: AC Ajaccio | AC95: 0 | AD95: 0 | AE95: 2007-2008 | AF95: Châteauroux-Metz | AG95: Châteauroux | AH95: - | AI95: Metz | AJ95: 1 | AK95: 1 | AL95: 2008-2009 | AM95: Châteauroux-Nîmes | AN95: Châteauroux | AO95: - | AP95: Nîmes | AQ95: 1 | AR95: 2 | AS95: 2009-2010 | AT95: Istres-Nîmes | AU95: Istres | AV95: - | AW95: Nîmes | AX95: 0 | AY95: 0 | AZ95: 2010-2011 | BA95: Lens-Laval | BB95: Lens | BC95: - | BD95: Laval | BE95: 0 | BF95: 0 | BG95: 2011-2012 | BH95: Le Mans-Sedan | BI95: Le Mans | BJ95: - | BK95: Sedan | BL95: 1 | BM95: 0 | BN95: 2012-2013 | BO95: Créteil-Angers | BP95: Créteil | BQ95: - | BR95: Angers | BS95: 0 | BT95: 0 | BU95: 2013-2014 | BV95: Brest-Tours FC | BW95: Brest | BX95: - | BY95: Tours FC | BZ95: 2 | CA95: 0 | CB95: 2014-2015 | CC95: Evian Thonon G.-Lens | CD95: Evian Thonon G. | CE95: - | CF95: Lens | CG95: 2 | CH95: 1 | CI95: 2015-2016 | CJ95: Le Havre-Sochaux | CK95: Le Havre | CL95: - | CM95: Sochaux | CN95: 2 | CO95: 1 | CP95: 2016-2017 | CQ95: Le Havre-Lorient | CR95: Le Havre | CS95: - | CT95: Lorient | CU95: 3 | CV95: 2 | CW95: 2017-2018
A96: =IF(OR(D96=gnp!$G$5,F96=gnp!$G$5),B$2,"") ->  | B96: 210 | C96: Le Havre-AS Béziers | D96: =journée10!H17 -> Le Havre | E96: - | F96: =journée10!V17 -> AS Béziers | G96: =IF(ISBLANK(journée10!Q17),"",journée10!Q17) -> 2 | H96: =IF(ISBLANK(journée10!S17),"",journée10!S17) -> 3 | I96: 2018-2019 | J96: P | K96: 10ème journée | L96: journée10 | M96: 2-3 | N96: 43378 | O96: Match Aller | P96: 210 | Q96: Grenoble-Brest | R96: Grenoble | S96: - | T96: Brest | U96: 0 | V96: 0 | W96: 2006-2007 | X96: 210 | Y96: Clermont Foot-Boulogne/Mer | Z96: Clermont Foot | AA96: - | AB96: Boulogne/Mer | AC96: 0 | AD96: 0 | AE96: 2007-2008 | AF96: Clermont Foot-Tours FC | AG96: Clermont Foot | AH96: - | AI96: Tours FC | AJ96: 0 | AK96: 0 | AL96: 2008-2009 | AM96: Clermont Foot-Caen | AN96: Clermont Foot | AO96: - | AP96: Caen | AQ96: 1 | AR96: 3 | AS96: 2009-2010 | AT96: Metz-Dijon | AU96: Metz | AV96: - | AW96: Dijon | AX96: 3 | AY96: 1 | AZ96: 2010-2011 | BA96: Reims-Châteauroux | BB96: Reims | BC96: - | BD96: Châteauroux | BE96: 2 | BF96: 0 | BG96: 2011-2012 | BH96: Lens-Niort | BI96: Lens | BJ96: - | BK96: Niort | BL96: 1 | BM96: 0 | BN96: 2012-2013 | BO96: Le Havre-Dijon | BP96: Le Havre | BQ96: - | BR96: Dijon | BS96: 0 | BT96: 0 | BU96: 2013-2014 | BV96: Dijon-Clermont Foot | BW96: Dijon | BX96: - | BY96: Clermont Foot | BZ96: 1 | CA96: 0 | CB96: 2014-2015 | CC96: Sochaux-Valenciennes | CD96: Sochaux | CE96: - | CF96: Valenciennes | CG96: 1 | CH96: 0 | CI96: 2015-2016 | CJ96: Lens-Red Star 93 | CK96: Lens | CL96: - | CM96: Red Star 93 | CN96: 2 | CO96: 0 | CP96: 2016-2017 | CQ96: Lens-GFCO Ajaccio | CR96: Lens | CS96: - | CT96: GFCO Ajaccio | CU96: 2 | CV96: 0 | CW96: 2017-2018
A97: =IF(OR(D97=gnp!$G$5,F97=gnp!$G$5),B$2,"") ->  | B97: 260 | C97: Lorient-Nancy | D97: =journée10!H18 -> Lorient | E97: - | F97: =journée10!V18 -> Nancy | G97: =IF(ISBLANK(journée10!Q18),"",journée10!Q18) -> 4 | H97: =IF(ISBLANK(journée10!S18),"",journée10!S18) -> 1 | I97: 2018-2019 | J97: G | K97: 10ème journée | L97: journée10 | M97: 4-1 | N97: 43378 | O97: Match Aller | P97: 260 | Q97: Guingamp-Caen | R97: Guingamp | S97: - | T97: Caen | U97: 1 | V97: 3 | W97: 2006-2007 | X97: 260 | Y97: Le Havre-Niort | Z97: Le Havre | AA97: - | AB97: Niort | AC97: 1 | AD97: 1 | AE97: 2007-2008 | AF97: Lens-Guingamp | AG97: Lens | AH97: - | AI97: Guingamp | AJ97: 1 | AK97: 0 | AL97: 2008-2009 | AM97: Guingamp-Dijon | AN97: Guingamp | AO97: - | AP97: Dijon | AQ97: 1 | AR97: 1 | AS97: 2009-2010 | AT97: Troyes-Boulogne-sur-Mer | AU97: Troyes | AV97: - | AW97: Boulogne-sur-Mer | AX97: 1 | AY97: 1 | AZ97: 2010-2011 | BA97: Istres-Le Mans | BB97: Istres | BC97: - | BD97: Le Mans | BE97: 1 | BF97: 2 | BG97: 2011-2012 | BH97: Istres-Caen | BI97: Istres | BJ97: - | BK97: Caen | BL97: 0 | BM97: 4 | BN97: 2012-2013 | BO97: Metz-Châteauroux | BP97: Metz | BQ97: - | BR97: Châteauroux | BS97: 1 | BT97: 0 | BU97: 2013-2014 | BV97: Nancy-GFCO Ajaccio | BW97: Nancy | BX97: - | BY97: GFCO Ajaccio | BZ97: 1 | CA97: 0 | CB97: 2014-2015 | CC97: Le Havre-Niort | CD97: Le Havre | CE97: - | CF97: Niort | CG97: 0 | CH97: 0 | CI97: 2015-2016 | CJ97: Nîmes-FC Bourg-Péronnas | CK97: Nîmes | CL97: - | CM97: FC Bourg-Péronnas | CN97: 0 | CO97: 0 | CP97: 2016-2017 | CQ97: Nancy-Châteauroux | CR97: Nancy | CS97: - | CT97: Châteauroux | CU97: 4 | CV97: 1 | CW97: 2017-2018
A98: =IF(OR(D98=gnp!$G$5,F98=gnp!$G$5),B$2,"") ->  | B98: 310 | C98: Niort-Paris FC | D98: =journée10!H19 -> Niort | E98: - | F98: =journée10!V19 -> Paris FC | G98: =IF(ISBLANK(journée10!Q19),"",journée10!Q19) -> 1 | H98: =IF(ISBLANK(journée10!S19),"",journée10!S19) -> 0 | I98: 2018-2019 | J98: G | K98: 10ème journée | L98: journée10 | M98: 1-0 | N98: 43378 | O98: Match Aller | P98: 310 | Q98: Le Havre-Gueugnon | R98: Le Havre | S98: - | T98: Gueugnon | U98: 6 | V98: 1 | W98: 2006-2007 | X98: 310 | Y98: Libourne/Seurin-Grenoble | Z98: Libourne/Seurin | AA98: - | AB98: Grenoble | AC98: 1 | AD98: 2 | AE98: 2007-2008 | AF98: Nîmes-Amiens | AG98: Nîmes | AH98: - | AI98: Amiens | AJ98: 1 | AK98: 1 | AL98: 2008-2009 | AM98: Le Havre-Laval | AN98: Le Havre | AO98: - | AP98: Laval | AQ98: 0 | AR98: 2 | AS98: 2009-2010 | AT98: Laval-Grenoble | AU98: Laval | AV98: - | AW98: Grenoble | AX98: 3 | AY98: 0 | AZ98: 2010-2011 | BA98: Monaco-Sedan | BB98: Monaco | BC98: - | BD98: Sedan | BE98: 2 | BF98: 2 | BG98: 2011-2012 | BH98: Tours FC-Nîmes | BI98: Tours FC | BJ98: - | BK98: Nîmes | BL98: 1 | BM98: 0 | BN98: 2012-2013 | BO98: Nîmes-Caen | BP98: Nîmes | BQ98: - | BR98: Caen | BS98: 2 | BT98: 1 | BU98: 2013-2014 | BV98: Nîmes-Laval | BW98: Nîmes | BX98: - | BY98: Laval | BZ98: 0 | CA98: 0 | CB98: 2014-2015 | CC98: Nîmes-Red Star 93 | CD98: Nîmes | CE98: - | CF98: Red Star 93 | CG98: 1 | CH98: 1 | CI98: 2015-2016 | CJ98: Niort-US Orléans | CK98: Niort | CL98: - | CM98: US Orléans | CN98: 1 | CO98: 0 | CP98: 2016-2017 | CQ98: Niort-US Quevilly | CR98: Niort | CS98: - | CT98: US Quevilly | CU98: 2 | CV98: 1 | CW98: 2017-2018
A99: =IF(OR(D99=gnp!$G$5,F99=gnp!$G$5),B$2,"") ->  | B99: 360 | C99: Red Star 93-AC Ajaccio | D99: =journée10!H20 -> Red Star 93 | E99: - | F99: =journée10!V20 -> AC Ajaccio | G99: =IF(ISBLANK(journée10!Q20),"",journée10!Q20) -> 2 | H99: =IF(ISBLANK(journée10!S20),"",journée10!S20) -> 0 | I99: 2018-2019 | J99: G | K99: 10ème journée | L99: journée10 | M99: 2-0 | N99: 43378 | O99: Match Aller | P99: 360 | Q99: Montpellier-Dijon | R99: Montpellier | S99: - | T99: Dijon | U99: 3 | V99: 0 | W99: 2006-2007 | X99: 360 | Y99: Nantes-Gueugnon | Z99: Nantes | AA99: - | AB99: Gueugnon | AC99: 0 | AD99: 0 | AE99: 2007-2008 | AF99: Sedan-Reims | AG99: Sedan | AH99: - | AI99: Reims | AJ99: 1 | AK99: 1 | AL99: 2008-2009 | AM99: Nantes-Metz | AN99: Nantes | AO99: - | AP99: Metz | AQ99: 2 | AR99: 2 | AS99: 2009-2010 | AT99: Le Mans-Clermont Foot | AU99: Le Mans | AV99: - | AW99: Clermont Foot | AX99: 2 | AY99: 0 | AZ99: 2010-2011 | BA99: Amiens-Guingamp | BB99: Amiens | BC99: - | BD99: Guingamp | BE99: 0 | BF99: 0 | BG99: 2011-2012 | BH99: Arles-Avignon-Clermont Foot | BI99: Arles-Avignon | BJ99: - | BK99: Clermont Foot | BL99: 0 | BM99: 2 | BN99: 2012-2013 | BO99: Niort-Nancy | BP99: Niort | BQ99: - | BR99: Nancy | BS99: 2 | BT99: 2 | BU99: 2013-2014 | BV99: US Orléans-Le Havre | BW99: US Orléans | BX99: - | BY99: Le Havre | BZ99: 2 | CA99: 2 | CB99: 2014-2015 | CC99: Brest-Metz | CD99: Brest | CE99: - | CF99: Metz | CG99: 1 | CH99: 1 | CI99: 2015-2016 | CJ99: Reims-Auxerre | CK99: Reims | CL99: - | CM99: Auxerre | CN99: 3 | CO99: 0 | CP99: 2016-2017 | CQ99: US Orléans-Valenciennes | CR99: US Orléans | CS99: - | CT99: Valenciennes | CU99: 3 | CV99: 4 | CW99: 2017-2018
A100: =IF(OR(D100=gnp!$G$5,F100=gnp!$G$5),B$2,"") ->  | B100: 410 | C100: Sochaux-Metz | D100: =journée10!H21 -> Sochaux | E100: - | F100: =journée10!V21 -> Metz | G100: =IF(ISBLANK(journée10!Q21),"",journée10!Q21) -> 1 | H100: =IF(ISBLANK(journée10!S21),"",journée10!S21) -> 2 | I100: 2018-2019 | J100: P | K100: 10ème journée | L100: journée10 | M100: 1-2 | N100: 43378 | O100: Match Aller | P100: 410 | Q100: Niort-Metz | R100: Niort | S100: - | T100: Metz | U100: 1 | V100: 1 | W100: 2006-2007 | X100: 410 | Y100: Reims-Guingamp | Z100: Reims | AA100: - | AB100: Guingamp | AC100: 3 | AD100: 2 | AE100: 2007-2008 | AF100: Troyes-AC Ajaccio | AG100: Troyes | AH100: - | AI100: AC Ajaccio | AJ100: 2 | AK100: 0 | AL100: 2008-2009 | AM100: Sedan-Tours FC | AN100: Sedan | AO100: - | AP100: Tours FC | AQ100: 2 | AR100: 0 | AS100: 2009-2010 | AT100: Nantes-Tours FC | AU100: Nantes | AV100: - | AW100: Tours FC | AX100: 0 | AY100: 0 | AZ100: 2010-2011 | BA100: Troyes-Tours FC | BB100: Troyes | BC100: - | BD100: Tours FC | BE100: 2 | BF100: 1 | BG100: 2011-2012 | BH100: Dijon-Angers | BI100: Dijon | BJ100: - | BK100: Angers | BL100: 0 | BM100: 0 | BN100: 2012-2013 | BO100: Tours FC-Brest | BP100: Tours FC | BQ100: - | BR100: Brest | BS100: 1 | BT100: 1 | BU100: 2013-2014 | BV100: Sochaux-Auxerre | BW100: Sochaux | BX100: - | BY100: Auxerre | BZ100: 0 | CA100: 0 | CB100: 2014-2015 | CC100: Laval-Créteil | CD100: Laval | CE100: - | CF100: Créteil | CG100: 3 | CH100: 2 | CI100: 2015-2016 | CJ100: RC Strasbourg-Valenciennes | CK100: RC Strasbourg | CL100: - | CM100: Valenciennes | CN100: 2 | CO100: 4 | CP100: 2016-2017 | CQ100: Reims-Clermont Foot | CR100: Reims | CS100: - | CT100: Clermont Foot | CU100: 1 | CV100: 0 | CW100: 2017-2018
A101: =IF(OR(D101=gnp!$G$5,F101=gnp!$G$5),B$2,"") ->  | B101: 460 | C101: Valenciennes-Brest | D101: =journée10!H22 -> Valenciennes | E101: - | F101: =journée10!V22 -> Brest | G101: =IF(ISBLANK(journée10!Q22),"",journée10!Q22) -> 1 | H101: =IF(ISBLANK(journée10!S22),"",journée10!S22) -> 3 | I101: 2018-2019 | J101: P | K101: 10ème journée | L101: journée10 | M101: 1-3 | N101: 43378 | O101: Match Aller | P101: 460 | Q101: Tours FC-Libourne/Seurin | R101: Tours FC | S101: - | T101: Libourne/Seurin | U101: 1 | V101: 2 | W101: 2006-2007 | X101: 460 | Y101: Sedan-Angers | Z101: Sedan | AA101: - | AB101: Angers | AC101: 2 | AD101: 2 | AE101: 2007-2008 | AF101: Vannes OC-Boulogne/Mer | AG101: Vannes OC | AH101: - | AI101: Boulogne/Mer | AJ101: 0 | AK101: 0 | AL101: 2008-2009 | AM101: Strasbourg-Vannes OC | AN101: Strasbourg | AO101: - | AP101: Vannes OC | AQ101: 1 | AR101: 0 | AS101: 2009-2010 | AT101: Evian Thonon G.-Angers | AU101: Evian Thonon G. | AV101: - | AW101: Angers | AX101: 0 | AY101: 0 | AZ101: 2010-2011 | BA101: Angers-Arles-Avignon | BB101: Angers | BC101: - | BD101: Arles-Avignon | BE101: 2 | BF101: 0 | BG101: 2011-2012 | BH101: Le Havre-Auxerre | BI101: Le Havre | BJ101: - | BK101: Auxerre | BL101: 2 | BM101: 1 | BN101: 2012-2013 | BO101: Troyes-CA Bastia | BP101: Troyes | BQ101: - | BR101: CA Bastia | BS101: 6 | BT101: 1 | BU101: 2013-2014 | BV101: Troyes-Valenciennes | BW101: Troyes | BX101: - | BY101: Valenciennes | BZ101: 0 | CA101: 0 | CB101: 2014-2015 | CC101: Tours FC-Dijon | CD101: Tours FC | CE101: - | CF101: Dijon | CG101: 1 | CH101: 0 | CI101: 2015-2016 | CJ101: Tours FC-GFCO Ajaccio | CK101: Tours FC | CL101: - | CM101: GFCO Ajaccio | CN101: 0 | CO101: 3 | CP101: 2016-2017 | CQ101: Tours FC-Brest | CR101: Tours FC | CS101: - | CT101: Brest | CU101: 1 | CV101: 2 | CW101: 2017-2018
A102: =IF(OR(D102=gnp!$G$5,F102=gnp!$G$5),B$2,"") ->  | B102: 11 | C102: AC Ajaccio-Le Havre | D102: =journée11!H13 -> AC Ajaccio | E102: - | F102: =journée11!V13 -> Le Havre | G102: =IF(ISBLANK(journée11!Q13),"",journée11!Q13) -> 3 | H102: =IF(ISBLANK(journée11!S13),"",journée11!S13) -> 2 | I102: 2018-2019 | J102: G | K102: 11ème journée | L102: journée11 | M102: 3-2 | N102: =journée11!H11 -> 43392 | O102: Match Aller | P102: 11 | Q102: Bastia-Châteauroux | R102: Bastia | S102: - | T102: Châteauroux | U102: 1 | V102: 2 | W102: 2006-2007 | X102: 11 | Y102: AC Ajaccio-Clermont Foot | Z102: AC Ajaccio | AA102: - | AB102: Clermont Foot | AC102: 3 | AD102: 1 | AE102: 2007-2008 | AF102: AC Ajaccio-Angers | AG102: AC Ajaccio | AH102: - | AI102: Angers | AJ102: 0 | AK102: 0 | AL102: 2008-2009 | AM102: Bastia-Le Havre | AN102: Bastia | AO102: - | AP102: Le Havre | AQ102: 1 | AR102: 1 | AS102: 2009-2010 | AT102: Boulogne-sur-Mer-Nantes | AU102: Boulogne-sur-Mer | AV102: - | AW102: Nantes | AX102: 0 | AY102: 0 | AZ102: 2010-2011 | BA102: Bastia-Lens | BB102: Bastia | BC102: - | BD102: Lens | BE102: 2 | BF102: 2 | BG102: 2011-2012 | BH102: Auxerre-Lens | BI102: Auxerre | BJ102: - | BK102: Lens | BL102: 1 | BM102: 2 | BN102: 2012-2013 | BO102: Angers-Niort | BP102: Angers | BQ102: - | BR102: Niort | BS102: 2 | BT102: 0 | BU102: 2013-2014 | BV102: Auxerre-Nancy | BW102: Auxerre | BX102: - | BY102: Nancy | BZ102: 2 | CA102: 2 | CB102: 2014-2015 | CC102: Niort-Auxerre | CD102: Niort | CE102: - | CF102: Auxerre | CG102: 2 | CH102: 3 | CI102: 2015-2016 | CJ102: AC Ajaccio-Reims | CK102: AC Ajaccio | CL102: - | CM102: Reims | CN102: 1 | CO102: 0 | CP102: 2016-2017 | CQ102: FC Bourg-Péronnas-Lens | CR102: FC Bourg-Péronnas | CS102: - | CT102: Lens | CU102: 0 | CV102: 6 | CW102: 2017-2018
A103: =IF(OR(D103=gnp!$G$5,F103=gnp!$G$5),B$2,"") ->  | B103: =B102+50 -> 61 | C103: Auxerre-AS Béziers | D103: =journée11!H14 -> Auxerre | E103: - | F103: =journée11!V14 -> AS Béziers | G103: =IF(ISBLANK(journée11!Q14),"",journée11!Q14) -> 2 | H103: =IF(ISBLANK(journée11!S14),"",journée11!S14) -> 0 | I103: 2018-2019 | J103: G | K103: =K102 -> 11ème journée | L103: journée11 | M103: 2-0 | N103: =N102 -> 43392 | O103: Match Aller | P103: 61 | Q103: Brest-Amiens | R103: Brest | S103: - | T103: Amiens | U103: 1 | V103: 1 | W103: 2006-2007 | X103: 61 | Y103: Amiens-Sedan | Z103: Amiens | AA103: - | AB103: Sedan | AC103: 2 | AD103: 1 | AE103: 2007-2008 | AF103: Amiens-Clermont Foot | AG103: Amiens | AH103: - | AI103: Clermont Foot | AJ103: 0 | AK103: 0 | AL103: 2008-2009 | AM103: Brest-Strasbourg | AN103: Brest | AO103: - | AP103: Strasbourg | AQ103: 1 | AR103: 1 | AS103: 2009-2010 | AT103: Istres-Le Havre | AU103: Istres | AV103: - | AW103: Le Havre | AX103: 0 | AY103: 2 | AZ103: 2010-2011 | BA103: Metz-Le Havre | BB103: Metz | BC103: - | BD103: Le Havre | BE103: 0 | BF103: 2 | BG103: 2011-2012 | BH103: Niort-Le Havre | BI103: Niort | BJ103: - | BK103: Le Havre | BL103: 0 | BM103: 0 | BN103: 2012-2013 | BO103: Auxerre-Créteil | BP103: Auxerre | BQ103: - | BR103: Créteil | BS103: 1 | BT103: 1 | BU103: 2013-2014 | BV103: Clermont Foot-AC Ajaccio | BW103: Clermont Foot | BX103: - | BY103: AC Ajaccio | BZ103: 1 | CA103: 1 | CB103: 2014-2015 | CC103: Dijon-Evian Thonon G. | CD103: Dijon | CE103: - | CF103: Evian Thonon G. | CG103: 1 | CH103: 3 | CI103: 2015-2016 | CJ103: Auxerre-Laval | CK103: Auxerre | CL103: - | CM103: Laval | CN103: 2 | CO103: 0 | CP103: 2016-2017 | CQ103: Brest-Auxerre | CR103: Brest | CS103: - | CT103: Auxerre | CU103: 1 | CV103: 1 | CW103: 2017-2018
A104: =IF(OR(D104=gnp!$G$5,F104=gnp!$G$5),B$2,"") ->  | B104: =B103+50 -> 111 | C104: Brest-Lorient | D104: =journée11!H15 -> Brest | E104: - | F104: =journée11!V15 -> Lorient | G104: =IF(ISBLANK(journée11!Q15),"",journée11!Q15) -> 3 | H104: =IF(ISBLANK(journée11!S15),"",journée11!S15) -> 2 | I104: 2018-2019 | J104: G | K104: =K103 -> 11ème journée | L104: journée11 | M104: 3-2 | N104: 43392 | O104: Match Aller | P104: 111 | Q104: Caen-Montpellier | R104: Caen | S104: - | T104: Montpellier | U104: 0 | V104: 0 | W104: 2006-2007 | X104: 111 | Y104: Angers-Reims | Z104: Angers | AA104: - | AB104: Reims | AC104: 1 | AD104: 0 | AE104: 2007-2008 | AF104: Boulogne/Mer-Sedan | AG104: Boulogne/Mer | AH104: - | AI104: Sedan | AJ104: 0 | AK104: 1 | AL104: 2008-2009 | AM104: Caen-Angers | AN104: Caen | AO104: - | AP104: Angers | AQ104: 2 | AR104: 1 | AS104: 2009-2010 | AT104: Grenoble-Metz | AU104: Grenoble | AV104: - | AW104: Metz | AX104: 1 | AY104: 0 | AZ104: 2010-2011 | BA104: Guingamp-Monaco | BB104: Guingamp | BC104: - | BD104: Monaco | BE104: 4 | BF104: 0 | BG104: 2011-2012 | BH104: Angers-Monaco | BI104: Angers | BJ104: - | BK104: Monaco | BL104: 1 | BM104: 2 | BN104: 2012-2013 | BO104: Brest-Metz | BP104: Brest | BQ104: - | BR104: Metz | BS104: 0 | BT104: 3 | BU104: 2013-2014 | BV104: Créteil-Troyes | BW104: Créteil | BX104: - | BY104: Troyes | BZ104: 1 | CA104: 1 | CB104: 2014-2015 | CC104: FC Bourg-Péronnas-Nîmes | CD104: FC Bourg-Péronnas | CE104: - | CF104: Nîmes | CG104: 4 | CH104: 2 | CI104: 2015-2016 | CJ104: FC Bourg-Péronnas-Amiens | CK104: FC Bourg-Péronnas | CL104: - | CM104: Amiens | CN104: 2 | CO104: 4 | CP104: 2016-2017 | CQ104: Châteauroux-Reims | CR104: Châteauroux | CS104: - | CT104: Reims | CU104: 3 | CV104: 1 | CW104: 2017-2018
A105: =IF(OR(D105=gnp!$G$5,F105=gnp!$G$5),B$2,"") ->  | B105: 161 | C105: Clermont Foot-Red Star 93 | D105: =journée11!H16 -> Clermont Foot | E105: - | F105: =journée11!V16 -> Red Star 93 | G105: =IF(ISBLANK(journée11!Q16),"",journée11!Q16) -> 0 | H105: =IF(ISBLANK(journée11!S16),"",journée11!S16) -> 0 | I105: 2018-2019 | J105: N | K105: 11ème journée | L105: journée11 | M105: 0-0 | N105: 43392 | O105: Match Aller | P105: 161 | Q105: Dijon-Niort | R105: Dijon | S105: - | T105: Niort | U105: 2 | V105: 1 | W105: 2006-2007 | X105: 161 | Y105: Boulogne/Mer-Le Havre | Z105: Boulogne/Mer | AA105: - | AB105: Le Havre | AC105: 0 | AD105: 3 | AE105: 2007-2008 | AF105: Dijon-Châteauroux | AG105: Dijon | AH105: - | AI105: Châteauroux | AJ105: 2 | AK105: 0 | AL105: 2008-2009 | AM105: Dijon-Nantes | AN105: Dijon | AO105: - | AP105: Nantes | AQ105: 1 | AR105: 2 | AS105: 2009-2010 | AT105: Clermont Foot-Laval | AU105: Clermont Foot | AV105: - | AW105: Laval | AX105: 2 | AY105: 0 | AZ105: 2010-2011 | BA105: Châteauroux-Troyes | BB105: Châteauroux | BC105: - | BD105: Troyes | BE105: 1 | BF105: 0 | BG105: 2011-2012 | BH105: Nîmes-Le Mans | BI105: Nîmes | BJ105: - | BK105: Le Mans | BL105: 2 | BM105: 1 | BN105: 2012-2013 | BO105: CA Bastia-Tours FC | BP105: CA Bastia | BQ105: - | BR105: Tours FC | BS105: 1 | BT105: 2 | BU105: 2013-2014 | BV105: GFCO Ajaccio-Arles-Avignon | BW105: GFCO Ajaccio | BX105: - | BY105: Arles-Avignon | BZ105: 3 | CA105: 1 | CB105: 2014-2015 | CC105: Metz-Clermont Foot | CD105: Metz | CE105: - | CF105: Clermont Foot | CG105: 2 | CH105: 2 | CI105: 2015-2016 | CJ105: Brest-RC Strasbourg | CK105: Brest | CL105: - | CM105: RC Strasbourg | CN105: 2 | CO105: 1 | CP105: 2016-2017 | CQ105: Clermont Foot-Le Havre | CR105: Clermont Foot | CS105: - | CT105: Le Havre | CU105: 3 | CV105: 0 | CW105: 2017-2018
A106: =IF(OR(D106=gnp!$G$5,F106=gnp!$G$5),B$2,"") ->  | B106: 211 | C106: Lens-GFCO Ajaccio | D106: =journée11!H17 -> Lens | E106: - | F106: =journée11!V17 -> GFCO Ajaccio | G106: =IF(ISBLANK(journée11!Q17),"",journée11!Q17) -> 5 | H106: =IF(ISBLANK(journée11!S17),"",journée11!S17) -> 0 | I106: 2018-2019 | J106: G | K106: 11ème journée | L106: journée11 | M106: 5-0 | N106: 43392 | O106: Match Aller | P106: 211 | Q106: Gueugnon-AC Ajaccio | R106: Gueugnon | S106: - | T106: AC Ajaccio | U106: 1 | V106: 0 | W106: 2006-2007 | X106: 211 | Y106: Dijon-Nantes | Z106: Dijon | AA106: - | AB106: Nantes | AC106: 0 | AD106: 0 | AE106: 2007-2008 | AF106: Guingamp-Nîmes | AG106: Guingamp | AH106: - | AI106: Nîmes | AJ106: 1 | AK106: 0 | AL106: 2008-2009 | AM106: Istres-AC Ajaccio | AN106: Istres | AO106: - | AP106: AC Ajaccio | AQ106: 0 | AR106: 2 | AS106: 2009-2010 | AT106: Sedan-Troyes | AU106: Sedan | AV106: - | AW106: Troyes | AX106: 1 | AY106: 1 | AZ106: 2010-2011 | BA106: Arles-Avignon-Amiens | BB106: Arles-Avignon | BC106: - | BD106: Amiens | BE106: 1 | BF106: 1 | BG106: 2011-2012 | BH106: Caen-Guingamp | BI106: Caen | BJ106: - | BK106: Guingamp | BL106: 1 | BM106: 2 | BN106: 2012-2013 | BO106: Châteauroux-Caen | BP106: Châteauroux | BQ106: - | BR106: Caen | BS106: 0 | BT106: 2 | BU106: 2013-2014 | BV106: Laval-Brest | BW106: Laval | BX106: - | BY106: Brest | BZ106: 2 | CA106: 2 | CB106: 2014-2015 | CC106: Sochaux-Tours FC | CD106: Sochaux | CE106: - | CF106: Tours FC | CG106: 0 | CH106: 0 | CI106: 2015-2016 | CJ106: Clermont Foot-Le Havre | CK106: Clermont Foot | CL106: - | CM106: Le Havre | CN106: 1 | CO106: 3 | CP106: 2016-2017 | CQ106: GFCO Ajaccio-Nancy | CR106: GFCO Ajaccio | CS106: - | CT106: Nancy | CU106: 2 | CV106: 1 | CW106: 2017-2018
A107: =IF(OR(D107=gnp!$G$5,F107=gnp!$G$5),B$2,"") ->  | B107: 261 | C107: Metz-Niort | D107: =journée11!H18 -> Metz | E107: - | F107: =journée11!V18 -> Niort | G107: =IF(ISBLANK(journée11!Q18),"",journée11!Q18) -> 3 | H107: =IF(ISBLANK(journée11!S18),"",journée11!S18) -> 0 | I107: 2018-2019 | J107: G | K107: 11ème journée | L107: journée11 | M107: 3-0 | N107: 43392 | O107: Match Aller | P107: 261 | Q107: Istres-Le Havre | R107: Istres | S107: - | T107: Le Havre | U107: 0 | V107: 1 | W107: 2006-2007 | X107: 261 | Y107: Grenoble-Gueugnon | Z107: Grenoble | AA107: - | AB107: Gueugnon | AC107: 3 | AD107: 1 | AE107: 2007-2008 | AF107: Metz-Bastia | AG107: Metz | AH107: - | AI107: Bastia | AJ107: 0 | AK107: 0 | AL107: 2008-2009 | AM107: Laval-Arles | AN107: Laval | AO107: - | AP107: Arles | AQ107: 0 | AR107: 1 | AS107: 2009-2010 | AT107: Angers-Le Mans | AU107: Angers | AV107: - | AW107: Le Mans | AX107: 1 | AY107: 3 | AZ107: 2010-2011 | BA107: Tours FC-Reims | BB107: Tours FC | BC107: - | BD107: Reims | BE107: 1 | BF107: 1 | BG107: 2011-2012 | BH107: Nantes-Dijon | BI107: Nantes | BJ107: - | BK107: Dijon | BL107: 2 | BM107: 0 | BN107: 2012-2013 | BO107: Dijon-Troyes | BP107: Dijon | BQ107: - | BR107: Troyes | BS107: 2 | BT107: 1 | BU107: 2013-2014 | BV107: Le Havre-Angers | BW107: Le Havre | BX107: - | BY107: Angers | BZ107: 1 | CA107: 0 | CB107: 2014-2015 | CC107: Paris FC-AC Ajaccio | CD107: Paris FC | CE107: - | CF107: AC Ajaccio | CG107: 0 | CH107: 0 | CI107: 2015-2016 | CJ107: US Orléans-Tours FC | CK107: US Orléans | CL107: - | CM107: Tours FC | CN107: 0 | CO107: 0 | CP107: 2016-2017 | CQ107: Lorient-Niort | CR107: Lorient | CS107: - | CT107: Niort | CU107: 0 | CV107: 0 | CW107: 2017-2018
A108: =IF(OR(D108=gnp!$G$5,F108=gnp!$G$5),B$2,"") ->  | B108: 311 | C108: Nancy-Grenoble Foot 38 | D108: =journée11!H19 -> Nancy | E108: - | F108: =journée11!V19 -> Grenoble Foot 38 | G108: =IF(ISBLANK(journée11!Q19),"",journée11!Q19) -> 1 | H108: =IF(ISBLANK(journée11!S19),"",journée11!S19) -> 2 | I108: 2018-2019 | J108: P | K108: 11ème journée | L108: journée11 | M108: 1-2 | N108: 43392 | O108: Match Aller | P108: 311 | Q108: Libourne/Seurin-Guingamp | R108: Libourne/Seurin | S108: - | T108: Guingamp | U108: 1 | V108: 1 | W108: 2006-2007 | X108: 311 | Y108: Guingamp-Bastia | Z108: Guingamp | AA108: - | AB108: Bastia | AC108: 0 | AD108: 1 | AE108: 2007-2008 | AF108: Montpellier-Vannes OC | AG108: Montpellier | AH108: - | AI108: Vannes OC | AJ108: 3 | AK108: 1 | AL108: 2008-2009 | AM108: Metz-Guingamp | AN108: Metz | AO108: - | AP108: Guingamp | AQ108: 2 | AR108: 0 | AS108: 2009-2010 | AT108: Châteauroux-AC Ajaccio | AU108: Châteauroux | AV108: - | AW108: AC Ajaccio | AX108: 1 | AY108: 2 | AZ108: 2010-2011 | BA108: Sedan-Boulogne-sur-Mer | BB108: Sedan | BC108: - | BD108: Boulogne-sur-Mer | BE108: 1 | BF108: 4 | BG108: 2011-2012 | BH108: Laval-Tours FC | BI108: Laval | BJ108: - | BK108: Tours FC | BL108: 2 | BM108: 2 | BN108: 2012-2013 | BO108: Istres-Arles-Avignon | BP108: Istres | BQ108: - | BR108: Arles-Avignon | BS108: 1 | BT108: 0 | BU108: 2013-2014 | BV108: Châteauroux-Sochaux | BW108: Châteauroux | BX108: - | BY108: Sochaux | BZ108: 1 | CA108: 4 | CB108: 2014-2015 | CC108: Lens-Laval | CD108: Lens | CE108: - | CF108: Laval | CG108: 1 | CH108: 1 | CI108: 2015-2016 | CJ108: Red Star 93-Nîmes | CK108: Red Star 93 | CL108: - | CM108: Nîmes | CN108: 3 | CO108: 3 | CP108: 2016-2017 | CQ108: Nîmes-US Orléans | CR108: Nîmes | CS108: - | CT108: US Orléans | CU108: 4 | CV108: 1 | CW108: 2017-2018
A109: =IF(OR(D109=gnp!$G$5,F109=gnp!$G$5),B$2,"") ->  | B109: 361 | C109: US Orléans-Valenciennes | D109: =journée11!H20 -> US Orléans | E109: - | F109: =journée11!V20 -> Valenciennes | G109: =IF(ISBLANK(journée11!Q20),"",journée11!Q20) -> 1 | H109: =IF(ISBLANK(journée11!S20),"",journée11!S20) -> 0 | I109: 2018-2019 | J109: G | K109: 11ème journée | L109: journée11 | M109: 1-0 | N109: 43392 | O109: Match Aller | P109: 361 | Q109: Metz-Créteil | R109: Metz | S109: - | T109: Créteil | U109: 2 | V109: 0 | W109: 2006-2007 | X109: 361 | Y109: Montpellier-Châteauroux | Z109: Montpellier | AA109: - | AB109: Châteauroux | AC109: 1 | AD109: 0 | AE109: 2007-2008 | AF109: Reims-Brest | AG109: Reims | AH109: - | AI109: Brest | AJ109: 0 | AK109: 1 | AL109: 2008-2009 | AM109: Nîmes-Sedan | AN109: Nîmes | AO109: - | AP109: Sedan | AQ109: 3 | AR109: 0 | AS109: 2009-2010 | AT109: Tours FC-Reims | AU109: Tours FC | AV109: - | AW109: Reims | AX109: 2 | AY109: 1 | AZ109: 2010-2011 | BA109: Le Mans-Clermont Foot | BB109: Le Mans | BC109: - | BD109: Clermont Foot | BE109: 0 | BF109: 2 | BG109: 2011-2012 | BH109: Châteauroux-GFCO Ajaccio | BI109: Châteauroux | BJ109: - | BK109: GFCO Ajaccio | BL109: 3 | BM109: 1 | BN109: 2012-2013 | BO109: Laval-Le Havre | BP109: Laval | BQ109: - | BR109: Le Havre | BS109: 2 | BT109: 2 | BU109: 2013-2014 | BV109: Niort-US Orléans | BW109: Niort | BX109: - | BY109: US Orléans | BZ109: 1 | CA109: 1 | CB109: 2014-2015 | CC109: Red Star 93-Nancy | CD109: Red Star 93 | CE109: - | CF109: Nancy | CG109: 0 | CH109: 1 | CI109: 2015-2016 | CJ109: Sochaux-Lens | CK109: Sochaux | CL109: - | CM109: Lens | CN109: 1 | CO109: 0 | CP109: 2016-2017 | CQ109: US Quevilly-AC Ajaccio | CR109: US Quevilly | CS109: - | CT109: AC Ajaccio | CU109: 0 | CV109: 1 | CW109: 2017-2018
A110: =IF(OR(D110=gnp!$G$5,F110=gnp!$G$5),B$2,"") ->  | B110: 411 | C110: Paris FC-Châteauroux | D110: =journée11!H21 -> Paris FC | E110: - | F110: =journée11!V21 -> Châteauroux | G110: =IF(ISBLANK(journée11!Q21),"",journée11!Q21) -> 0 | H110: =IF(ISBLANK(journée11!S21),"",journée11!S21) -> 0 | I110: 2018-2019 | J110: N | K110: 11ème journée | L110: journée11 | M110: 0-0 | N110: 43392 | O110: Match Aller | P110: 411 | Q110: Reims-Tours FC | R110: Reims | S110: - | T110: Tours FC | U110: 2 | V110: 1 | W110: 2006-2007 | X110: 411 | Y110: Niort-Brest | Z110: Niort | AA110: - | AB110: Brest | AC110: 0 | AD110: 1 | AE110: 2007-2008 | AF110: Strasbourg-Troyes | AG110: Strasbourg | AH110: - | AI110: Troyes | AJ110: 0 | AK110: 0 | AL110: 2008-2009 | AM110: Tours FC-Châteauroux | AN110: Tours FC | AO110: - | AP110: Châteauroux | AQ110: 2 | AR110: 2 | AS110: 2009-2010 | AT110: Dijon-Vannes OC | AU110: Dijon | AV110: - | AW110: Vannes OC | AX110: 4 | AY110: 1 | AZ110: 2010-2011 | BA110: Nantes-Istres | BB110: Nantes | BC110: - | BD110: Istres | BE110: 3 | BF110: 1 | BG110: 2011-2012 | BH110: Sedan-Arles-Avignon | BI110: Sedan | BJ110: - | BK110: Arles-Avignon | BL110: 4 | BM110: 2 | BN110: 2012-2013 | BO110: Lens-Nîmes | BP110: Lens | BQ110: - | BR110: Nîmes | BS110: 1 | BT110: 0 | BU110: 2013-2014 | BV110: Tours FC-Nîmes | BW110: Tours FC | BX110: - | BY110: Nîmes | BZ110: 1 | CA110: 2 | CB110: 2014-2015 | CC110: Créteil-Brest | CD110: Créteil | CE110: - | CF110: Brest | CG110: 0 | CH110: 2 | CI110: 2015-2016 | CJ110: Troyes-GFCO Ajaccio | CK110: Troyes | CL110: - | CM110: GFCO Ajaccio | CN110: 1 | CO110: 0 | CP110: 2016-2017 | CQ110: Sochaux-Paris FC | CR110: Sochaux | CS110: - | CT110: Paris FC | CU110: 1 | CV110: 0 | CW110: 2017-2018
A111: =IF(OR(D111=gnp!$G$5,F111=gnp!$G$5),B$2,"") ->  | B111: 461 | C111: Troyes-Sochaux | D111: =journée11!H22 -> Troyes | E111: - | F111: =journée11!V22 -> Sochaux | G111: =IF(ISBLANK(journée11!Q22),"",journée11!Q22) -> 1 | H111: =IF(ISBLANK(journée11!S22),"",journée11!S22) -> 2 | I111: 2018-2019 | J111: P | K111: 11ème journée | L111: journée11 | M111: 1-2 | N111: 43392 | O111: Match Aller | P111: 461 | Q111: Strasbourg-Grenoble | R111: Strasbourg | S111: - | T111: Grenoble | U111: 1 | V111: 0 | W111: 2006-2007 | X111: 461 | Y111: Troyes-Libourne/Seurin | Z111: Troyes | AA111: - | AB111: Libourne/Seurin | AC111: 2 | AD111: 0 | AE111: 2007-2008 | AF111: Tours FC-Lens | AG111: Tours FC | AH111: - | AI111: Lens | AJ111: 3 | AK111: 1 | AL111: 2008-2009 | AM111: Vannes OC-Clermont Foot | AN111: Vannes OC | AO111: - | AP111: Clermont Foot | AQ111: 1 | AR111: 2 | AS111: 2009-2010 | AT111: Nîmes-Evian Thonon G. | AU111: Nîmes | AV111: - | AW111: Evian Thonon G. | AX111: 1 | AY111: 3 | AZ111: 2010-2011 | BA111: Laval-Angers | BB111: Laval | BC111: - | BD111: Angers | BE111: 0 | BF111: 1 | BG111: 2011-2012 | BH111: Clermont Foot-Istres | BI111: Clermont Foot | BJ111: - | BK111: Istres | BL111: 2 | BM111: 1 | BN111: 2012-2013 | BO111: Nancy-Clermont Foot | BP111: Nancy | BQ111: - | BR111: Clermont Foot | BS111: 3 | BT111: 2 | BU111: 2013-2014 | BV111: Valenciennes-Dijon | BW111: Valenciennes | BX111: - | BY111: Dijon | BZ111: 0 | CA111: 3 | CB111: 2014-2015 | CC111: Valenciennes-Le Havre | CD111: Valenciennes | CE111: - | CF111: Le Havre | CG111: 0 | CH111: 1 | CI111: 2015-2016 | CJ111: Valenciennes-Niort | CK111: Valenciennes | CL111: - | CM111: Niort | CN111: 3 | CO111: 1 | CP111: 2016-2017 | CQ111: Valenciennes-Tours FC | CR111: Valenciennes | CS111: - | CT111: Tours FC | CU111: 2 | CV111: 0 | CW111: 2017-2018
A112: =IF(OR(D112=gnp!$G$5,F112=gnp!$G$5),B$2,"") ->  | B112: 12 | C112: GFCO Ajaccio-AS Béziers | D112: =journée12!H13 -> GFCO Ajaccio | E112: - | F112: =journée12!V13 -> AS Béziers | G112: =IF(ISBLANK(journée12!Q13),"",journée12!Q13) -> 0 | H112: =IF(ISBLANK(journée12!S13),"",journée12!S13) -> 1 | I112: 2018-2019 | J112: P | K112: 12ème journée | L112: journée12 | M112: 0-1 | N112: =journée12!H11 -> 43399 | O112: Match Aller | P112: 12 | Q112: AC Ajaccio-Istres | R112: AC Ajaccio | S112: - | T112: Istres | U112: 2 | V112: 0 | W112: 2006-2007 | X112: 12 | Y112: Bastia-Boulogne/Mer | Z112: Bastia | AA112: - | AB112: Boulogne/Mer | AC112: 4 | AD112: 0 | AE112: 2007-2008 | AF112: AC Ajaccio-Strasbourg | AG112: AC Ajaccio | AH112: - | AI112: Strasbourg | AJ112: 1 | AK112: 1 | AL112: 2008-2009 | AM112: AC Ajaccio-Nîmes | AN112: AC Ajaccio | AO112: - | AP112: Nîmes | AQ112: 2 | AR112: 0 | AS112: 2009-2010 | AT112: Nantes-Châteauroux | AU112: Nantes | AV112: - | AW112: Châteauroux | AX112: 1 | AY112: 1 | AZ112: 2010-2011 | BA112: Boulogne-sur-Mer-Nantes | BB112: Boulogne-sur-Mer | BC112: - | BD112: Nantes | BE112: 2 | BF112: 1 | BG112: 2011-2012 | BH112: Monaco-Nantes | BI112: Monaco | BJ112: - | BK112: Nantes | BL112: 0 | BM112: 2 | BN112: 2012-2013 | BO112: Arles-Avignon-Dijon | BP112: Arles-Avignon | BQ112: - | BR112: Dijon | BS112: 0 | BT112: 0 | BU112: 2013-2014 | BV112: AC Ajaccio-Valenciennes | BW112: AC Ajaccio | BX112: - | BY112: Valenciennes | BZ112: 2 | CA112: 1 | CB112: 2014-2015 | CC112: AC Ajaccio-Metz | CD112: AC Ajaccio | CE112: - | CF112: Metz | CG112: 0 | CH112: 1 | CI112: 2015-2016 | CJ112: Amiens-Red Star 93 | CK112: Amiens | CL112: - | CM112: Red Star 93 | CN112: 0 | CO112: 0 | CP112: 2016-2017 | CQ112: AC Ajaccio-GFCO Ajaccio | CR112: AC Ajaccio | CS112: - | CT112: GFCO Ajaccio | CU112: 2 | CV112: 0 | CW112: 2017-2018
A113: =IF(OR(D113=gnp!$G$5,F113=gnp!$G$5),B$2,"") ->  | B113: =B112+50 -> 62 | C113: Auxerre-Paris FC | D113: =journée12!H14 -> Auxerre | E113: - | F113: =journée12!V14 -> Paris FC | G113: =IF(ISBLANK(journée12!Q14),"",journée12!Q14) -> 0 | H113: =IF(ISBLANK(journée12!S14),"",journée12!S14) -> 2 | I113: 2018-2019 | J113: P | K113: =K112 -> 12ème journée | L113: journée12 | M113: 0-2 | N113: =N112 -> 43399 | O113: Match Aller | P113: 62 | Q113: Amiens-Dijon | R113: Amiens | S113: - | T113: Dijon | U113: 0 | V113: 4 | W113: 2006-2007 | X113: 62 | Y113: Brest-AC Ajaccio | Z113: Brest | AA113: - | AB113: AC Ajaccio | AC113: 0 | AD113: 1 | AE113: 2007-2008 | AF113: Angers-Tours FC | AG113: Angers | AH113: - | AI113: Tours FC | AJ113: 2 | AK113: 0 | AL113: 2008-2009 | AM113: Angers-Brest | AN113: Angers | AO113: - | AP113: Brest | AQ113: 1 | AR113: 2 | AS113: 2009-2010 | AT113: Evian Thonon G.-Sedan | AU113: Evian Thonon G. | AV113: - | AW113: Sedan | AX113: 2 | AY113: 2 | AZ113: 2010-2011 | BA113: Amiens-Bastia | BB113: Amiens | BC113: - | BD113: Bastia | BE113: 1 | BF113: 1 | BG113: 2011-2012 | BH113: Le Mans-Laval | BI113: Le Mans | BJ113: - | BK113: Laval | BL113: 2 | BM113: 0 | BN113: 2012-2013 | BO113: Caen-Nancy | BP113: Caen | BQ113: - | BR113: Nancy | BS113: 1 | BT113: 2 | BU113: 2013-2014 | BV113: Angers-Clermont Foot | BW113: Angers | BX113: - | BY113: Clermont Foot | BZ113: 3 | CA113: 0 | CB113: 2014-2015 | CC113: Auxerre-Red Star 93 | CD113: Auxerre | CE113: - | CF113: Red Star 93 | CG113: 0 | CH113: 1 | CI113: 2015-2016 | CJ113: GFCO Ajaccio-US Orléans | CK113: GFCO Ajaccio | CL113: - | CM113: US Orléans | CN113: 2 | CO113: 0 | CP113: 2016-2017 | CQ113: Auxerre-US Quevilly | CR113: Auxerre | CS113: - | CT113: US Quevilly | CU113: 2 | CV113: 1 | CW113: 2017-2018
A114: =IF(OR(D114=gnp!$G$5,F114=gnp!$G$5),B$2,"") ->  | B114: =B113+50 -> 112 | C114: Châteauroux-AC Ajaccio | D114: =journée12!H15 -> Châteauroux | E114: - | F114: =journée12!V15 -> AC Ajaccio | G114: =IF(ISBLANK(journée12!Q15),"",journée12!Q15) -> 2 | H114: =IF(ISBLANK(journée12!S15),"",journée12!S15) -> 2 | I114: 2018-2019 | J114: N | K114: =K113 -> 12ème journée | L114: journée12 | M114: 2-2 | N114: 43399 | O114: Match Aller | P114: 112 | Q114: Châteauroux-Brest | R114: Châteauroux | S114: - | T114: Brest | U114: 1 | V114: 0 | W114: 2006-2007 | X114: 112 | Y114: Châteauroux-Sedan | Z114: Châteauroux | AA114: - | AB114: Sedan | AC114: 1 | AD114: 1 | AE114: 2007-2008 | AF114: Brest-Metz | AG114: Brest | AH114: - | AI114: Metz | AJ114: 2 | AK114: 1 | AL114: 2008-2009 | AM114: Arles-Dijon | AN114: Arles | AO114: - | AP114: Dijon | AQ114: 0 | AR114: 0 | AS114: 2009-2010 | AT114: Le Havre-Nîmes | AU114: Le Havre | AV114: - | AW114: Nîmes | AX114: 0 | AY114: 0 | AZ114: 2010-2011 | BA114: Troyes-Metz | BB114: Troyes | BC114: - | BD114: Metz | BE114: 1 | BF114: 0 | BG114: 2011-2012 | BH114: Angers-Châteauroux | BI114: Angers | BJ114: - | BK114: Châteauroux | BL114: 1 | BM114: 0 | BN114: 2012-2013 | BO114: Clermont Foot-Lens | BP114: Clermont Foot | BQ114: - | BR114: Lens | BS114: 0 | BT114: 0 | BU114: 2013-2014 | BV114: Arles-Avignon-Niort | BW114: Arles-Avignon | BX114: - | BY114: Niort | BZ114: 1 | CA114: 0 | CB114: 2014-2015 | CC114: Nancy-FC Bourg-Péronnas | CD114: Nancy | CE114: - | CF114: FC Bourg-Péronnas | CG114: 3 | CH114: 1 | CI114: 2015-2016 | CJ114: Laval-Brest | CK114: Laval | CL114: - | CM114: Brest | CN114: 0 | CO114: 1 | CP114: 2016-2017 | CQ114: Paris FC-Valenciennes | CR114: Paris FC | CS114: - | CT114: Valenciennes | CU114: 3 | CV114: 2 | CW114: 2017-2018
A115: =IF(OR(D115=gnp!$G$5,F115=gnp!$G$5),B$2,"") ->  | B115: 162 | C115: Clermont Foot-Brest | D115: =journée12!H16 -> Clermont Foot | E115: - | F115: =journée12!V16 -> Brest | G115: =IF(ISBLANK(journée12!Q16),"",journée12!Q16) -> 2 | H115: =IF(ISBLANK(journée12!S16),"",journée12!S16) -> 2 | I115: 2018-2019 | J115: N | K115: 12ème journée | L115: journée12 | M115: 2-2 | N115: 43399 | O115: Match Aller | P115: 162 | Q115: Créteil-Libourne/Seurin | R115: Créteil | S115: - | T115: Libourne/Seurin | U115: 1 | V115: 0 | W115: 2006-2007 | X115: 162 | Y115: Clermont Foot-Angers | Z115: Clermont Foot | AA115: - | AB115: Angers | AC115: 2 | AD115: 0 | AE115: 2007-2008 | AF115: Châteauroux-Bastia | AG115: Châteauroux | AH115: - | AI115: Bastia | AJ115: 2 | AK115: 0 | AL115: 2008-2009 | AM115: Caen-Vannes OC | AN115: Caen | AO115: - | AP115: Vannes OC | AQ115: 4 | AR115: 2 | AS115: 2009-2010 | AT115: Laval-Dijon | AU115: Laval | AV115: - | AW115: Dijon | AX115: 2 | AY115: 0 | AZ115: 2010-2011 | BA115: Le Havre-Châteauroux | BB115: Le Havre | BC115: - | BD115: Châteauroux | BE115: 3 | BF115: 0 | BG115: 2011-2012 | BH115: Guingamp-Sedan | BI115: Guingamp | BJ115: - | BK115: Sedan | BL115: 2 | BM115: 0 | BN115: 2012-2013 | BO115: Créteil-CA Bastia | BP115: Créteil | BQ115: - | BR115: CA Bastia | BS115: 3 | BT115: 0 | BU115: 2013-2014 | BV115: Brest-GFCO Ajaccio | BW115: Brest | BX115: - | BY115: GFCO Ajaccio | BZ115: 3 | CA115: 0 | CB115: 2014-2015 | CC115: Clermont Foot-Lens | CD115: Clermont Foot | CE115: - | CF115: Lens | CG115: 2 | CH115: 2 | CI115: 2015-2016 | CJ115: Le Havre-AC Ajaccio | CK115: Le Havre | CL115: - | CM115: AC Ajaccio | CN115: 2 | CO115: 0 | CP115: 2016-2017 | CQ115: Le Havre-Châteauroux | CR115: Le Havre | CS115: - | CT115: Châteauroux | CU115: 1 | CV115: 1 | CW115: 2017-2018
A116: =IF(OR(D116=gnp!$G$5,F116=gnp!$G$5),B$2,"") ->  | B116: 212 | C116: Grenoble Foot 38-Troyes | D116: =journée12!H17 -> Grenoble Foot 38 | E116: - | F116: =journée12!V17 -> Troyes | G116: =IF(ISBLANK(journée12!Q17),"",journée12!Q17) -> 0 | H116: =IF(ISBLANK(journée12!S17),"",journée12!S17) -> 2 | I116: 2018-2019 | J116: P | K116: 12ème journée | L116: journée12 | M116: 0-2 | N116: 43399 | O116: Match Aller | P116: 212 | Q116: Grenoble-Gueugnon | R116: Grenoble | S116: - | T116: Gueugnon | U116: 2 | V116: 2 | W116: 2006-2007 | X116: 212 | Y116: Grenoble-Guingamp | Z116: Grenoble | AA116: - | AB116: Guingamp | AC116: 0 | AD116: 0 | AE116: 2007-2008 | AF116: Clermont Foot-Montpellier | AG116: Clermont Foot | AH116: - | AI116: Montpellier | AJ116: 2 | AK116: 1 | AL116: 2008-2009 | AM116: Châteauroux-Metz | AN116: Châteauroux | AO116: - | AP116: Metz | AQ116: 1 | AR116: 2 | AS116: 2009-2010 | AT116: Vannes OC-Boulogne-sur-Mer | AU116: Vannes OC | AV116: - | AW116: Boulogne-sur-Mer | AX116: 0 | AY116: 0 | AZ116: 2010-2011 | BA116: Reims-Le Mans | BB116: Reims | BC116: - | BD116: Le Mans | BE116: 1 | BF116: 1 | BG116: 2011-2012 | BH116: GFCO Ajaccio-Niort | BI116: GFCO Ajaccio | BJ116: - | BK116: Niort | BL116: 2 | BM116: 2 | BN116: 2012-2013 | BO116: Le Havre-Brest | BP116: Le Havre | BQ116: - | BR116: Brest | BS116: 0 | BT116: 1 | BU116: 2013-2014 | BV116: Châteauroux-Tours FC | BW116: Châteauroux | BX116: - | BY116: Tours FC | BZ116: 2 | CA116: 1 | CB116: 2014-2015 | CC116: Evian Thonon G.-Créteil | CD116: Evian Thonon G. | CE116: - | CF116: Créteil | CG116: 1 | CH116: 2 | CI116: 2015-2016 | CJ116: Lens-Reims | CK116: Lens | CL116: - | CM116: Reims | CN116: 1 | CO116: 1 | CP116: 2016-2017 | CQ116: Lens-Reims | CR116: Lens | CS116: - | CT116: Reims | CU116: 0 | CV116: 1 | CW116: 2017-2018
A117: =IF(OR(D117=gnp!$G$5,F117=gnp!$G$5),B$2,"") ->  | B117: 262 | C117: Le Havre-Lens | D117: =journée12!H18 -> Le Havre | E117: - | F117: =journée12!V18 -> Lens | G117: =IF(ISBLANK(journée12!Q18),"",journée12!Q18) -> 2 | H117: =IF(ISBLANK(journée12!S18),"",journée12!S18) -> 1 | I117: 2018-2019 | J117: G | K117: 12ème journée | L117: journée12 | M117: 2-1 | N117: 43399 | O117: Match Aller | P117: 262 | Q117: Guingamp-Metz | R117: Guingamp | S117: - | T117: Metz | U117: 0 | V117: 2 | W117: 2006-2007 | X117: 262 | Y117: Gueugnon-Dijon | Z117: Gueugnon | AA117: - | AB117: Dijon | AC117: 4 | AD117: 0 | AE117: 2007-2008 | AF117: Lens-Amiens | AG117: Lens | AH117: - | AI117: Amiens | AJ117: 2 | AK117: 0 | AL117: 2008-2009 | AM117: Clermont Foot-Istres | AN117: Clermont Foot | AO117: - | AP117: Istres | AQ117: 2 | AR117: 0 | AS117: 2009-2010 | AT117: Reims-Grenoble | AU117: Reims | AV117: - | AW117: Grenoble | AX117: 4 | AY117: 1 | AZ117: 2010-2011 | BA117: Angers-Sedan | BB117: Angers | BC117: - | BD117: Sedan | BE117: 1 | BF117: 3 | BG117: 2011-2012 | BH117: Arles-Avignon-Caen | BI117: Arles-Avignon | BJ117: - | BK117: Caen | BL117: 0 | BM117: 2 | BN117: 2012-2013 | BO117: Metz-Angers | BP117: Metz | BQ117: - | BR117: Angers | BS117: 1 | BT117: 0 | BU117: 2013-2014 | BV117: Nancy-Le Havre | BW117: Nancy | BX117: - | BY117: Le Havre | BZ117: 2 | CA117: 1 | CB117: 2014-2015 | CC117: Le Havre-Sochaux | CD117: Le Havre | CE117: - | CF117: Sochaux | CG117: 2 | CH117: 1 | CI117: 2015-2016 | CJ117: Nîmes-Sochaux | CK117: Nîmes | CL117: - | CM117: Sochaux | CN117: 0 | CO117: 0 | CP117: 2016-2017 | CQ117: Nancy-Clermont Foot | CR117: Nancy | CS117: - | CT117: Clermont Foot | CU117: 2 | CV117: 2 | CW117: 2017-2018
A118: =IF(OR(D118=gnp!$G$5,F118=gnp!$G$5),B$2,"") ->  | B118: 312 | C118: Lorient-Metz | D118: =journée12!H19 -> Lorient | E118: - | F118: =journée12!V19 -> Metz | G118: =IF(ISBLANK(journée12!Q19),"",journée12!Q19) -> 0 | H118: =IF(ISBLANK(journée12!S19),"",journée12!S19) -> 0 | I118: 2018-2019 | J118: N | K118: 12ème journée | L118: journée12 | M118: 0-0 | N118: 43399 | O118: Match Aller | P118: 312 | Q118: Le Havre-Reims | R118: Le Havre | S118: - | T118: Reims | U118: 1 | V118: 0 | W118: 2006-2007 | X118: 312 | Y118: Le Havre-Amiens | Z118: Le Havre | AA118: - | AB118: Amiens | AC118: 2 | AD118: 2 | AE118: 2007-2008 | AF118: Nîmes-Boulogne/Mer | AG118: Nîmes | AH118: - | AI118: Boulogne/Mer | AJ118: 0 | AK118: 1 | AL118: 2008-2009 | AM118: Guingamp-Le Havre | AN118: Guingamp | AO118: - | AP118: Le Havre | AQ118: 1 | AR118: 2 | AS118: 2009-2010 | AT118: Troyes-Clermont Foot | AU118: Troyes | AV118: - | AW118: Clermont Foot | AX118: 1 | AY118: 1 | AZ118: 2010-2011 | BA118: Lens-Guingamp | BB118: Lens | BC118: - | BD118: Guingamp | BE118: 0 | BF118: 2 | BG118: 2011-2012 | BH118: Le Havre-Nîmes | BI118: Le Havre | BJ118: - | BK118: Nîmes | BL118: 1 | BM118: 1 | BN118: 2012-2013 | BO118: Nîmes-Châteauroux | BP118: Nîmes | BQ118: - | BR118: Châteauroux | BS118: 3 | BT118: 1 | BU118: 2013-2014 | BV118: Nîmes-Auxerre | BW118: Nîmes | BX118: - | BY118: Auxerre | BZ118: 0 | CA118: 1 | CB118: 2014-2015 | CC118: Nîmes-Dijon | CD118: Nîmes | CE118: - | CF118: Dijon | CG118: 1 | CH118: 1 | CI118: 2015-2016 | CJ118: Niort-Clermont Foot | CK118: Niort | CL118: - | CM118: Clermont Foot | CN118: 2 | CO118: 1 | CP118: 2016-2017 | CQ118: Nîmes-Brest | CR118: Nîmes | CS118: - | CT118: Brest | CU118: 4 | CV118: 0 | CW118: 2017-2018
A119: =IF(OR(D119=gnp!$G$5,F119=gnp!$G$5),B$2,"") ->  | B119: 362 | C119: Red Star 93-US Orléans | D119: =journée12!H20 -> Red Star 93 | E119: - | F119: =journée12!V20 -> US Orléans | G119: =IF(ISBLANK(journée12!Q20),"",journée12!Q20) -> 0 | H119: =IF(ISBLANK(journée12!S20),"",journée12!S20) -> 4 | I119: 2018-2019 | J119: P | K119: 12ème journée | L119: journée12 | M119: 0-4 | N119: 43399 | O119: Match Aller | P119: 362 | Q119: Niort-Montpellier | R119: Niort | S119: - | T119: Montpellier | U119: 1 | V119: 1 | W119: 2006-2007 | X119: 362 | Y119: Libourne/Seurin-Niort | Z119: Libourne/Seurin | AA119: - | AB119: Niort | AC119: 0 | AD119: 2 | AE119: 2007-2008 | AF119: Sedan-Dijon | AG119: Sedan | AH119: - | AI119: Dijon | AJ119: 2 | AK119: 1 | AL119: 2008-2009 | AM119: Nantes-Laval | AN119: Nantes | AO119: - | AP119: Laval | AQ119: 0 | AR119: 0 | AS119: 2009-2010 | AT119: AC Ajaccio-Tours FC | AU119: AC Ajaccio | AV119: - | AW119: Tours FC | AX119: 2 | AY119: 0 | AZ119: 2010-2011 | BA119: Istres-Clermont Foot | BB119: Istres | BC119: - | BD119: Clermont Foot | BE119: 2 | BF119: 2 | BG119: 2011-2012 | BH119: Lens-Clermont Foot | BI119: Lens | BJ119: - | BK119: Clermont Foot | BL119: 2 | BM119: 2 | BN119: 2012-2013 | BO119: Niort-Istres | BP119: Niort | BQ119: - | BR119: Istres | BS119: 3 | BT119: 1 | BU119: 2013-2014 | BV119: US Orléans-Créteil | BW119: US Orléans | BX119: - | BY119: Créteil | BZ119: 1 | CA119: 1 | CB119: 2014-2015 | CC119: Paris FC-Niort | CD119: Paris FC | CE119: - | CF119: Niort | CG119: 1 | CH119: 1 | CI119: 2015-2016 | CJ119: RC Strasbourg-Auxerre | CK119: RC Strasbourg | CL119: - | CM119: Auxerre | CN119: 2 | CO119: 1 | CP119: 2016-2017 | CQ119: Niort-FC Bourg-Péronnas | CR119: Niort | CS119: - | CT119: FC Bourg-Péronnas | CU119: 2 | CV119: 0 | CW119: 2017-2018
A120: =IF(OR(D120=gnp!$G$5,F120=gnp!$G$5),B$2,"") ->  | B120: 412 | C120: Sochaux-Niort | D120: =journée12!H21 -> Sochaux | E120: - | F120: =journée12!V21 -> Niort | G120: =IF(ISBLANK(journée12!Q21),"",journée12!Q21) -> 0 | H120: =IF(ISBLANK(journée12!S21),"",journée12!S21) -> 3 | I120: 2018-2019 | J120: P | K120: 12ème journée | L120: journée12 | M120: 0-3 | N120: 43399 | O120: Match Aller | P120: 412 | Q120: Strasbourg-Caen | R120: Strasbourg | S120: - | T120: Caen | U120: 3 | V120: 2 | W120: 2006-2007 | X120: 412 | Y120: Nantes-Troyes | Z120: Nantes | AA120: - | AB120: Troyes | AC120: 2 | AD120: 0 | AE120: 2007-2008 | AF120: Troyes-Guingamp | AG120: Troyes | AH120: - | AI120: Guingamp | AJ120: 2 | AK120: 2 | AL120: 2008-2009 | AM120: Sedan-Bastia | AN120: Sedan | AO120: - | AP120: Bastia | AQ120: 1 | AR120: 0 | AS120: 2009-2010 | AT120: Le Mans-Istres | AU120: Le Mans | AV120: - | AW120: Istres | AX120: 1 | AY120: 0 | AZ120: 2010-2011 | BA120: Monaco-Tours FC | BB120: Monaco | BC120: - | BD120: Tours FC | BE120: 0 | BF120: 0 | BG120: 2011-2012 | BH120: Istres-Tours FC | BI120: Istres | BJ120: - | BK120: Tours FC | BL120: 4 | BM120: 1 | BN120: 2012-2013 | BO120: Tours FC-Laval | BP120: Tours FC | BQ120: - | BR120: Laval | BS120: 2 | BT120: 0 | BU120: 2013-2014 | BV120: Sochaux-Laval | BW120: Sochaux | BX120: - | BY120: Laval | BZ120: 1 | CA120: 1 | CB120: 2014-2015 | CC120: Brest-Valenciennes | CD120: Brest | CE120: - | CF120: Valenciennes | CG120: 1 | CH120: 2 | CI120: 2015-2016 | CJ120: Tours FC-Valenciennes | CK120: Tours FC | CL120: - | CM120: Valenciennes | CN120: 4 | CO120: 1 | CP120: 2016-2017 | CQ120: US Orléans-Lorient | CR120: US Orléans | CS120: - | CT120: Lorient | CU120: 1 | CV120: 2 | CW120: 2017-2018
A121: =IF(OR(D121=gnp!$G$5,F121=gnp!$G$5),B$2,"") ->  | B121: 462 | C121: Valenciennes-Nancy | D121: =journée12!H22 -> Valenciennes | E121: - | F121: =journée12!V22 -> Nancy | G121: =IF(ISBLANK(journée12!Q22),"",journée12!Q22) -> 1 | H121: =IF(ISBLANK(journée12!S22),"",journée12!S22) -> 1 | I121: 2018-2019 | J121: N | K121: 12ème journée | L121: journée12 | M121: 1-1 | N121: 43399 | O121: Match Aller | P121: 462 | Q121: Tours FC-Bastia | R121: Tours FC | S121: - | T121: Bastia | U121: 0 | V121: 3 | W121: 2006-2007 | X121: 462 | Y121: Reims-Montpellier | Z121: Reims | AA121: - | AB121: Montpellier | AC121: 2 | AD121: 1 | AE121: 2007-2008 | AF121: Vannes OC-Reims | AG121: Vannes OC | AH121: - | AI121: Reims | AJ121: 1 | AK121: 0 | AL121: 2008-2009 | AM121: Strasbourg-Tours FC | AN121: Strasbourg | AO121: - | AP121: Tours FC | AQ121: 0 | AR121: 1 | AS121: 2009-2010 | AT121: Metz-Angers | AU121: Metz | AV121: - | AW121: Angers | AX121: 1 | AY121: 1 | AZ121: 2010-2011 | BA121: Laval-Arles-Avignon | BB121: Laval | BC121: - | BD121: Arles-Avignon | BE121: 2 | BF121: 1 | BG121: 2011-2012 | BH121: Dijon-Auxerre | BI121: Dijon | BJ121: - | BK121: Auxerre | BL121: 0 | BM121: 1 | BN121: 2012-2013 | BO121: Troyes-Auxerre | BP121: Troyes | BQ121: - | BR121: Auxerre | BS121: 2 | BT121: 0 | BU121: 2013-2014 | BV121: Troyes-Dijon | BW121: Troyes | BX121: - | BY121: Dijon | BZ121: 1 | CA121: 0 | CB121: 2014-2015 | CC121: Laval-Tours FC | CD121: Laval | CE121: - | CF121: Tours FC | CG121: 1 | CH121: 1 | CI121: 2015-2016 | CJ121: Troyes-FC Bourg-Péronnas | CK121: Troyes | CL121: - | CM121: FC Bourg-Péronnas | CN121: 1 | CO121: 0 | CP121: 2016-2017 | CQ121: Tours FC-Sochaux | CR121: Tours FC | CS121: - | CT121: Sochaux | CU121: 0 | CV121: 1 | CW121: 2017-2018
A122: =IF(OR(D122=gnp!$G$5,F122=gnp!$G$5),B$2,"") ->  | B122: 13 | C122: AC Ajaccio-GFCO Ajaccio | D122: =journée13!H13 -> AC Ajaccio | E122: - | F122: =journée13!V13 -> GFCO Ajaccio | G122: =IF(ISBLANK(journée13!Q13),"",journée13!Q13) -> 1 | H122: =IF(ISBLANK(journée13!S13),"",journée13!S13) -> 2 | I122: 2018-2019 | J122: P | K122: 13ème journée | L122: journée13 | M122: 1-2 | N122: =journée13!H11 -> 43406 | O122: Match Aller | P122: 13 | Q122: Bastia-Guingamp | R122: Bastia | S122: - | T122: Guingamp | U122: 0 | V122: 0 | W122: 2006-2007 | X122: 13 | Y122: AC Ajaccio-Bastia | Z122: AC Ajaccio | AA122: - | AB122: Bastia | AC122: 1 | AD122: 3 | AE122: 2007-2008 | AF122: Amiens-Troyes | AG122: Amiens | AH122: - | AI122: Troyes | AJ122: 1 | AK122: 1 | AL122: 2008-2009 | AM122: Bastia-AC Ajaccio | AN122: Bastia | AO122: - | AP122: AC Ajaccio | AQ122: 1 | AR122: 0 | AS122: 2009-2010 | AT122: Dijon-Nantes | AU122: Dijon | AV122: - | AW122: Nantes | AX122: 0 | AY122: 0 | AZ122: 2010-2011 | BA122: Nantes-Lens | BB122: Nantes | BC122: - | BD122: Lens | BE122: 1 | BF122: 0 | BG122: 2011-2012 | BH122: Sedan-Lens | BI122: Sedan | BJ122: - | BK122: Lens | BL122: 0 | BM122: 1 | BN122: 2012-2013 | BO122: Angers-Arles-Avignon | BP122: Angers | BQ122: - | BR122: Arles-Avignon | BS122: 1 | BT122: 0 | BU122: 2013-2014 | BV122: Auxerre-Brest | BW122: Auxerre | BX122: - | BY122: Brest | BZ122: 0 | CA122: 3 | CB122: 2014-2015 | CC122: Niort-AC Ajaccio | CD122: Niort | CE122: - | CF122: AC Ajaccio | CG122: 3 | CH122: 1 | CI122: 2015-2016 | CJ122: AC Ajaccio-Laval | CK122: AC Ajaccio | CL122: - | CM122: Laval | CN122: 1 | CO122: 3 | CP122: 2016-2017 | CQ122: FC Bourg-Péronnas-Auxerre | CR122: FC Bourg-Péronnas | CS122: - | CT122: Auxerre | CU122: 1 | CV122: 1 | CW122: 2017-2018
A123: =IF(OR(D123=gnp!$G$5,F123=gnp!$G$5),B$2,"") ->  | B123: =B122+50 -> 63 | C123: AS Béziers-Lorient | D123: =journée13!H14 -> AS Béziers | E123: - | F123: =journée13!V14 -> Lorient | G123: =IF(ISBLANK(journée13!Q14),"",journée13!Q14) -> 0 | H123: =IF(ISBLANK(journée13!S14),"",journée13!S14) -> 1 | I123: 2018-2019 | J123: P | K123: =K122 -> 13ème journée | L123: journée13 | M123: 0-1 | N123: =N122 -> 43406 | O123: Match Aller | P123: 63 | Q123: Brest-Niort | R123: Brest | S123: - | T123: Niort | U123: 1 | V123: 0 | W123: 2006-2007 | X123: 63 | Y123: Amiens-Châteauroux | Z123: Amiens | AA123: - | AB123: Châteauroux | AC123: 1 | AD123: 2 | AE123: 2007-2008 | AF123: Bastia-Sedan | AG123: Bastia | AH123: - | AI123: Sedan | AJ123: 2 | AK123: 0 | AL123: 2008-2009 | AM123: Brest-Caen | AN123: Brest | AO123: - | AP123: Caen | AQ123: 2 | AR123: 0 | AS123: 2009-2010 | AT123: Clermont Foot-Metz | AU123: Clermont Foot | AV123: - | AW123: Metz | AX123: 1 | AY123: 1 | AZ123: 2010-2011 | BA123: Istres-Le Havre | BB123: Istres | BC123: - | BD123: Le Havre | BE123: 1 | BF123: 1 | BG123: 2011-2012 | BH123: Caen-Le Havre | BI123: Caen | BJ123: - | BK123: Le Havre | BL123: 2 | BM123: 0 | BN123: 2012-2013 | BO123: Auxerre-Tours FC | BP123: Auxerre | BQ123: - | BR123: Tours FC | BS123: 4 | BT123: 0 | BU123: 2013-2014 | BV123: Clermont Foot-Nîmes | BW123: Clermont Foot | BX123: - | BY123: Nîmes | BZ123: 3 | CA123: 0 | CB123: 2014-2015 | CC123: Dijon-Brest | CD123: Dijon | CE123: - | CF123: Brest | CG123: 3 | CH123: 1 | CI123: 2015-2016 | CJ123: Auxerre-Niort | CK123: Auxerre | CL123: - | CM123: Niort | CN123: 0 | CO123: 4 | CP123: 2016-2017 | CQ123: Brest-US Orléans | CR123: Brest | CS123: - | CT123: US Orléans | CU123: 0 | CV123: 1 | CW123: 2017-2018
A124: =IF(OR(D124=gnp!$G$5,F124=gnp!$G$5),B$2,"") ->  | B124: =B123+50 -> 113 | C124: Brest-Red Star 93 | D124: =journée13!H15 -> Brest | E124: - | F124: =journée13!V15 -> Red Star 93 | G124: =IF(ISBLANK(journée13!Q15),"",journée13!Q15) -> 1 | H124: =IF(ISBLANK(journée13!S15),"",journée13!S15) -> 1 | I124: 2018-2019 | J124: N | K124: =K123 -> 13ème journée | L124: journée13 | M124: 1-1 | N124: 43406 | O124: Match Aller | P124: 113 | Q124: Caen-AC Ajaccio | R124: Caen | S124: - | T124: AC Ajaccio | U124: 4 | V124: 0 | W124: 2006-2007 | X124: 113 | Y124: Angers-Le Havre | Z124: Angers | AA124: - | AB124: Le Havre | AC124: 1 | AD124: 2 | AE124: 2007-2008 | AF124: Boulogne/Mer-Clermont Foot | AG124: Boulogne/Mer | AH124: - | AI124: Clermont Foot | AJ124: 2 | AK124: 1 | AL124: 2008-2009 | AM124: Dijon-Châteauroux | AN124: Dijon | AO124: - | AP124: Châteauroux | AQ124: 5 | AR124: 4 | AS124: 2009-2010 | AT124: Nîmes-Laval | AU124: Nîmes | AV124: - | AW124: Laval | AX124: 0 | AY124: 0 | AZ124: 2010-2011 | BA124: Châteauroux-Monaco | BB124: Châteauroux | BC124: - | BD124: Monaco | BE124: 2 | BF124: 1 | BG124: 2011-2012 | BH124: Niort-Monaco | BI124: Niort | BJ124: - | BK124: Monaco | BL124: 1 | BM124: 1 | BN124: 2012-2013 | BO124: Brest-Troyes | BP124: Brest | BQ124: - | BR124: Troyes | BS124: 1 | BT124: 1 | BU124: 2013-2014 | BV124: Créteil-Sochaux | BW124: Créteil | BX124: - | BY124: Sochaux | BZ124: 1 | CA124: 2 | CB124: 2014-2015 | CC124: FC Bourg-Péronnas-Auxerre | CD124: FC Bourg-Péronnas | CE124: - | CF124: Auxerre | CG124: 1 | CH124: 1 | CI124: 2015-2016 | CJ124: FC Bourg-Péronnas-GFCO Ajaccio | CK124: FC Bourg-Péronnas | CL124: - | CM124: GFCO Ajaccio | CN124: 1 | CO124: 0 | CP124: 2016-2017 | CQ124: Châteauroux-Lens | CR124: Châteauroux | CS124: - | CT124: Lens | CU124: 0 | CV124: 0 | CW124: 2017-2018
A125: =IF(OR(D125=gnp!$G$5,F125=gnp!$G$5),B$2,"") ->  | B125: 163 | C125: Lens-Châteauroux | D125: =journée13!H16 -> Lens | E125: - | F125: =journée13!V16 -> Châteauroux | G125: =IF(ISBLANK(journée13!Q16),"",journée13!Q16) -> 0 | H125: =IF(ISBLANK(journée13!S16),"",journée13!S16) -> 1 | I125: 2018-2019 | J125: P | K125: 13ème journée | L125: journée13 | M125: 0-1 | N125: 43406 | O125: Match Aller | P125: 163 | Q125: Dijon-Châteauroux | R125: Dijon | S125: - | T125: Châteauroux | U125: 2 | V125: 0 | W125: 2006-2007 | X125: 163 | Y125: Boulogne/Mer-Gueugnon | Z125: Boulogne/Mer | AA125: - | AB125: Gueugnon | AC125: 0 | AD125: 0 | AE125: 2007-2008 | AF125: Dijon-Brest | AG125: Dijon | AH125: - | AI125: Brest | AJ125: 1 | AK125: 2 | AL125: 2008-2009 | AM125: Istres-Sedan | AN125: Istres | AO125: - | AP125: Sedan | AQ125: 3 | AR125: 1 | AS125: 2009-2010 | AT125: Angers-Troyes | AU125: Angers | AV125: - | AW125: Troyes | AX125: 3 | AY125: 0 | AZ125: 2010-2011 | BA125: Tours FC-Laval | BB125: Tours FC | BC125: - | BD125: Laval | BE125: 0 | BF125: 0 | BG125: 2011-2012 | BH125: Tours FC-Le Mans | BI125: Tours FC | BJ125: - | BK125: Le Mans | BL125: 2 | BM125: 0 | BN125: 2012-2013 | BO125: CA Bastia-Le Havre | BP125: CA Bastia | BQ125: - | BR125: Le Havre | BS125: 0 | BT125: 0 | BU125: 2013-2014 | BV125: Dijon-AC Ajaccio | BW125: Dijon | BX125: - | BY125: AC Ajaccio | BZ125: 3 | CA125: 0 | CB125: 2014-2015 | CC125: Metz-Paris FC | CD125: Metz | CE125: - | CF125: Paris FC | CG125: 2 | CH125: 1 | CI125: 2015-2016 | CJ125: Brest-Lens | CK125: Brest | CL125: - | CM125: Lens | CN125: 1 | CO125: 2 | CP125: 2016-2017 | CQ125: Clermont Foot-AC Ajaccio | CR125: Clermont Foot | CS125: - | CT125: AC Ajaccio | CU125: 1 | CV125: 1 | CW125: 2017-2018
A126: =IF(OR(D126=gnp!$G$5,F126=gnp!$G$5),B$2,"") ->  | B126: 213 | C126: Metz-Auxerre | D126: =journée13!H17 -> Metz | E126: - | F126: =journée13!V17 -> Auxerre | G126: =IF(ISBLANK(journée13!Q17),"",journée13!Q17) -> 0 | H126: =IF(ISBLANK(journée13!S17),"",journée13!S17) -> 1 | I126: 2018-2019 | J126: P | K126: 13ème journée | L126: journée13 | M126: 0-1 | N126: 43406 | O126: Match Aller | P126: 213 | Q126: Gueugnon-Strasbourg | R126: Gueugnon | S126: - | T126: Strasbourg | U126: 0 | V126: 1 | W126: 2006-2007 | X126: 213 | Y126: Dijon-Libourne/Seurin | Z126: Dijon | AA126: - | AB126: Libourne/Seurin | AC126: 3 | AD126: 1 | AE126: 2007-2008 | AF126: Guingamp-Angers | AG126: Guingamp | AH126: - | AI126: Angers | AJ126: 0 | AK126: 0 | AL126: 2008-2009 | AM126: Laval-Guingamp | AN126: Laval | AO126: - | AP126: Guingamp | AQ126: 3 | AR126: 0 | AS126: 2009-2010 | AT126: Tours FC-Châteauroux | AU126: Tours FC | AV126: - | AW126: Châteauroux | AX126: 2 | AY126: 0 | AZ126: 2010-2011 | BA126: Clermont Foot-Troyes | BB126: Clermont Foot | BC126: - | BD126: Troyes | BE126: 1 | BF126: 1 | BG126: 2011-2012 | BH126: Clermont Foot-Guingamp | BI126: Clermont Foot | BJ126: - | BK126: Guingamp | BL126: 1 | BM126: 2 | BN126: 2012-2013 | BO126: Châteauroux-Clermont Foot | BP126: Châteauroux | BQ126: - | BR126: Clermont Foot | BS126: 3 | BT126: 0 | BU126: 2013-2014 | BV126: GFCO Ajaccio-Châteauroux | BW126: GFCO Ajaccio | BX126: - | BY126: Châteauroux | BZ126: 1 | CA126: 0 | CB126: 2014-2015 | CC126: Sochaux-Evian Thonon G. | CD126: Sochaux | CE126: - | CF126: Evian Thonon G. | CG126: 1 | CH126: 0 | CI126: 2015-2016 | CJ126: Clermont Foot-Amiens | CK126: Clermont Foot | CL126: - | CM126: Amiens | CN126: 1 | CO126: 0 | CP126: 2016-2017 | CQ126: GFCO Ajaccio-Paris FC | CR126: GFCO Ajaccio | CS126: - | CT126: Paris FC | CU126: 0 | CV126: 0 | CW126: 2017-2018
A127: =IF(OR(D127=gnp!$G$5,F127=gnp!$G$5),B$2,"") ->  | B127: 263 | C127: Nancy-Clermont Foot | D127: =journée13!H18 -> Nancy | E127: - | F127: =journée13!V18 -> Clermont Foot | G127: =IF(ISBLANK(journée13!Q18),"",journée13!Q18) -> 0 | H127: =IF(ISBLANK(journée13!S18),"",journée13!S18) -> 1 | I127: 2018-2019 | J127: P | K127: 13ème journée | L127: journée13 | M127: 0-1 | N127: 43406 | O127: Match Aller | P127: 263 | Q127: Istres-Grenoble | R127: Istres | S127: - | T127: Grenoble | U127: 3 | V127: 0 | W127: 2006-2007 | X127: 263 | Y127: Guingamp-Brest | Z127: Guingamp | AA127: - | AB127: Brest | AC127: 1 | AD127: 0 | AE127: 2007-2008 | AF127: Metz-Vannes OC | AG127: Metz | AH127: - | AI127: Vannes OC | AJ127: 2 | AK127: 0 | AL127: 2008-2009 | AM127: Le Havre-Nantes | AN127: Le Havre | AO127: - | AP127: Nantes | AQ127: 4 | AR127: 0 | AS127: 2009-2010 | AT127: Le Havre-Le Mans | AU127: Le Havre | AV127: - | AW127: Le Mans | AX127: 1 | AY127: 1 | AZ127: 2010-2011 | BA127: Sedan-Amiens | BB127: Sedan | BC127: - | BD127: Amiens | BE127: 3 | BF127: 1 | BG127: 2011-2012 | BH127: Châteauroux-Dijon | BI127: Châteauroux | BJ127: - | BK127: Dijon | BL127: 2 | BM127: 2 | BN127: 2012-2013 | BO127: Dijon-Niort | BP127: Dijon | BQ127: - | BR127: Niort | BS127: 2 | BT127: 2 | BU127: 2013-2014 | BV127: Laval-Tours FC | BW127: Laval | BX127: - | BY127: Tours FC | BZ127: 2 | CA127: 1 | CB127: 2014-2015 | CC127: Lens-Nancy | CD127: Lens | CE127: - | CF127: Nancy | CG127: 1 | CH127: 0 | CI127: 2015-2016 | CJ127: US Orléans-Troyes | CK127: US Orléans | CL127: - | CM127: Troyes | CN127: 1 | CO127: 1 | CP127: 2016-2017 | CQ127: Lorient-Tours FC | CR127: Lorient | CS127: - | CT127: Tours FC | CU127: 2 | CV127: 0 | CW127: 2017-2018
A128: =IF(OR(D128=gnp!$G$5,F128=gnp!$G$5),B$2,"") ->  | B128: 313 | C128: Niort-Le Havre | D128: =journée13!H19 -> Niort | E128: - | F128: =journée13!V19 -> Le Havre | G128: =IF(ISBLANK(journée13!Q19),"",journée13!Q19) -> 1 | H128: =IF(ISBLANK(journée13!S19),"",journée13!S19) -> 0 | I128: 2018-2019 | J128: G | K128: 13ème journée | L128: journée13 | M128: 1-0 | N128: 43406 | O128: Match Aller | P128: 313 | Q128: Libourne/Seurin-Le Havre | R128: Libourne/Seurin | S128: - | T128: Le Havre | U128: 0 | V128: 0 | W128: 2006-2007 | X128: 313 | Y128: Montpellier-Clermont Foot | Z128: Montpellier | AA128: - | AB128: Clermont Foot | AC128: 2 | AD128: 3 | AE128: 2007-2008 | AF128: Montpellier-Nîmes | AG128: Montpellier | AH128: - | AI128: Nîmes | AJ128: 1 | AK128: 1 | AL128: 2008-2009 | AM128: Metz-Strasbourg | AN128: Metz | AO128: - | AP128: Strasbourg | AQ128: 1 | AR128: 0 | AS128: 2009-2010 | AT128: Grenoble-AC Ajaccio | AU128: Grenoble | AV128: - | AW128: AC Ajaccio | AX128: 1 | AY128: 1 | AZ128: 2010-2011 | BA128: Metz-Reims | BB128: Metz | BC128: - | BD128: Reims | BE128: 1 | BF128: 0 | BG128: 2011-2012 | BH128: Auxerre-GFCO Ajaccio | BI128: Auxerre | BJ128: - | BK128: GFCO Ajaccio | BL128: 1 | BM128: 1 | BN128: 2012-2013 | BO128: Istres-Metz | BP128: Istres | BQ128: - | BR128: Metz | BS128: 1 | BT128: 2 | BU128: 2013-2014 | BV128: Le Havre-Arles-Avignon | BW128: Le Havre | BX128: - | BY128: Arles-Avignon | BZ128: 2 | CA128: 0 | CB128: 2014-2015 | CC128: Red Star 93-Clermont Foot | CD128: Red Star 93 | CE128: - | CF128: Clermont Foot | CG128: 2 | CH128: 1 | CI128: 2015-2016 | CJ128: Red Star 93-Tours FC | CK128: Red Star 93 | CL128: - | CM128: Tours FC | CN128: 3 | CO128: 1 | CP128: 2016-2017 | CQ128: US Quevilly-Le Havre | CR128: US Quevilly | CS128: - | CT128: Le Havre | CU128: 0 | CV128: 2 | CW128: 2017-2018
A129: =IF(OR(D129=gnp!$G$5,F129=gnp!$G$5),B$2,"") ->  | B129: 363 | C129: US Orléans-Grenoble Foot 38 | D129: =journée13!H20 -> US Orléans | E129: - | F129: =journée13!V20 -> Grenoble Foot 38 | G129: =IF(ISBLANK(journée13!Q20),"",journée13!Q20) -> 0 | H129: =IF(ISBLANK(journée13!S20),"",journée13!S20) -> 3 | I129: 2018-2019 | J129: P | K129: 13ème journée | L129: journée13 | M129: 0-3 | N129: 43406 | O129: Match Aller | P129: 363 | Q129: Metz-Tours FC | R129: Metz | S129: - | T129: Tours FC | U129: 2 | V129: 1 | W129: 2006-2007 | X129: 363 | Y129: Niort-Nantes | Z129: Niort | AA129: - | AB129: Nantes | AC129: 0 | AD129: 1 | AE129: 2007-2008 | AF129: Reims-Châteauroux | AG129: Reims | AH129: - | AI129: Châteauroux | AJ129: 4 | AK129: 3 | AL129: 2008-2009 | AM129: Nîmes-Arles | AN129: Nîmes | AO129: - | AP129: Arles | AQ129: 1 | AR129: 1 | AS129: 2009-2010 | AT129: Boulogne-sur-Mer-Reims | AU129: Boulogne-sur-Mer | AV129: - | AW129: Reims | AX129: 1 | AY129: 0 | AZ129: 2010-2011 | BA129: Le Mans-Boulogne-sur-Mer | BB129: Le Mans | BC129: - | BD129: Boulogne-sur-Mer | BE129: 1 | BF129: 0 | BG129: 2011-2012 | BH129: Nîmes-Arles-Avignon | BI129: Nîmes | BJ129: - | BK129: Arles-Avignon | BL129: 4 | BM129: 1 | BN129: 2012-2013 | BO129: Laval-Créteil | BP129: Laval | BQ129: - | BR129: Créteil | BS129: 5 | BT129: 1 | BU129: 2013-2014 | BV129: Niort-Nancy | BW129: Niort | BX129: - | BY129: Nancy | BZ129: 1 | CA129: 4 | CB129: 2014-2015 | CC129: Tours FC-Le Havre | CD129: Tours FC | CE129: - | CF129: Le Havre | CG129: 0 | CH129: 1 | CI129: 2015-2016 | CJ129: Reims-Le Havre | CK129: Reims | CL129: - | CM129: Le Havre | CN129: 1 | CO129: 0 | CP129: 2016-2017 | CQ129: Reims-Nancy | CR129: Reims | CS129: - | CT129: Nancy | CU129: 3 | CV129: 0 | CW129: 2017-2018
A130: =IF(OR(D130=gnp!$G$5,F130=gnp!$G$5),B$2,"") ->  | B130: 413 | C130: Paris FC-Sochaux | D130: =journée13!H21 -> Paris FC | E130: - | F130: =journée13!V21 -> Sochaux | G130: =IF(ISBLANK(journée13!Q21),"",journée13!Q21) -> 0 | H130: =IF(ISBLANK(journée13!S21),"",journée13!S21) -> 0 | I130: 2018-2019 | J130: N | K130: 13ème journée | L130: journée13 | M130: 0-0 | N130: 43406 | O130: Match Aller | P130: 413 | Q130: Montpellier-Amiens | R130: Montpellier | S130: - | T130: Amiens | U130: 1 | V130: 2 | W130: 2006-2007 | X130: 413 | Y130: Sedan-Reims | Z130: Sedan | AA130: - | AB130: Reims | AC130: 2 | AD130: 1 | AE130: 2007-2008 | AF130: Strasbourg-Lens | AG130: Strasbourg | AH130: - | AI130: Lens | AJ130: 1 | AK130: 1 | AL130: 2008-2009 | AM130: Tours FC-Clermont Foot | AN130: Tours FC | AO130: - | AP130: Clermont Foot | AQ130: 1 | AR130: 1 | AS130: 2009-2010 | AT130: Sedan-Vannes OC | AU130: Sedan | AV130: - | AW130: Vannes OC | AX130: 4 | AY130: 0 | AZ130: 2010-2011 | BA130: Bastia-Arles-Avignon | BB130: Bastia | BC130: - | BD130: Arles-Avignon | BE130: 3 | BF130: 0 | BG130: 2011-2012 | BH130: Laval-Istres | BI130: Laval | BJ130: - | BK130: Istres | BL130: 2 | BM130: 1 | BN130: 2012-2013 | BO130: Lens-Caen | BP130: Lens | BQ130: - | BR130: Caen | BS130: 2 | BT130: 1 | BU130: 2013-2014 | BV130: Troyes-US Orléans | BW130: Troyes | BX130: - | BY130: US Orléans | BZ130: 1 | CA130: 0 | CB130: 2014-2015 | CC130: Créteil-Nîmes | CD130: Créteil | CE130: - | CF130: Nîmes | CG130: 1 | CH130: 2 | CI130: 2015-2016 | CJ130: Sochaux-RC Strasbourg | CK130: Sochaux | CL130: - | CM130: RC Strasbourg | CN130: 1 | CO130: 2 | CP130: 2016-2017 | CQ130: Sochaux-Niort | CR130: Sochaux | CS130: - | CT130: Niort | CU130: 2 | CV130: 1 | CW130: 2017-2018
A131: =IF(OR(D131=gnp!$G$5,F131=gnp!$G$5),B$2,"") ->  | B131: 463 | C131: =D131&E131&F131 -> Troyes-Valenciennes | D131: =journée13!H22 -> Troyes | E131: - | F131: =journée13!V22 -> Valenciennes | G131: =IF(ISBLANK(journée13!Q22),"",journée13!Q22) -> 4 | H131: =IF(ISBLANK(journée13!S22),"",journée13!S22) -> 2 | I131: =IF(ISTEXT(G131),G131,IF(G131="","",IF(G131=H131,$A$1,IF(G131>H131,$A$1,$A$1)))) -> 2018-2019 | J131: =IF(ISTEXT(G131),G131,IF(G131="","",IF(G131=H131,"N",IF(G131>H131,"G","P")))) -> G | K131: 13ème journée | L131: journée13 | M131: =G131&E131&H131 -> 4-2 | N131: 43406 | O131: Match Aller | P131: 463 | Q131: Reims-Créteil | R131: Reims | S131: - | T131: Créteil | U131: 0 | V131: 0 | W131: 2006-2007 | X131: 463 | Y131: Troyes-Grenoble | Z131: Troyes | AA131: - | AB131: Grenoble | AC131: 2 | AD131: 2 | AE131: 2007-2008 | AF131: Tours FC-AC Ajaccio | AG131: Tours FC | AH131: - | AI131: AC Ajaccio | AJ131: 4 | AK131: 1 | AL131: 2008-2009 | AM131: Vannes OC-Angers | AN131: Vannes OC | AO131: - | AP131: Angers | AQ131: 1 | AR131: 0 | AS131: 2009-2010 | AT131: Istres-Evian Thonon G. | AU131: Istres | AV131: - | AW131: Evian Thonon G. | AX131: 1 | AY131: 1 | AZ131: 2010-2011 | BA131: Guingamp-Angers | BB131: Guingamp | BC131: - | BD131: Angers | BE131: 1 | BF131: 0 | BG131: 2011-2012 | BH131: Nantes-Angers | BI131: Nantes | BJ131: - | BK131: Angers | BL131: 1 | BM131: 0 | BN131: 2012-2013 | BO131: Nancy-Nîmes | BP131: Nancy | BQ131: - | BR131: Nîmes | BS131: 1 | BT131: 0 | BU131: 2013-2014 | BV131: Valenciennes-Angers | BW131: Valenciennes | BX131: - | BY131: Angers | BZ131: 1 | CA131: 0 | CB131: 2014-2015 | CC131: Valenciennes-Laval | CD131: Valenciennes | CE131: - | CF131: Laval | CG131: 0 | CH131: 0 | CI131: 2015-2016 | CJ131: Valenciennes-Nîmes | CK131: Valenciennes | CL131: - | CM131: Nîmes | CN131: 2 | CO131: 3 | CP131: 2016-2017 | CQ131: Valenciennes-Nîmes | CR131: Valenciennes | CS131: - | CT131: Nîmes | CU131: 1 | CV131: 2 | CW131: 2017-2018
A132: =IF(OR(D132=gnp!$G$5,F132=gnp!$G$5),B$2,"") ->  | B132: 14 | C132: GFCO Ajaccio-Troyes | D132: =journée14!H13 -> GFCO Ajaccio | E132: - | F132: =journée14!V13 -> Troyes | G132: =IF(ISBLANK(journée14!Q13),"",journée14!Q13) -> 2 | H132: =IF(ISBLANK(journée14!S13),"",journée14!S13) -> 1 | I132: 2018-2019 | J132: G | K132: 14ème journée | L132: journée14 | M132: 2-1 | N132: =journée14!H11 -> 43413 | O132: =O131 -> Match Aller | P132: 14 | Q132: AC Ajaccio-Libourne/Seurin | R132: AC Ajaccio | S132: - | T132: Libourne/Seurin | U132: 1 | V132: 0 | W132: 2006-2007 | X132: 14 | Y132: Bastia-Montpellier | Z132: Bastia | AA132: - | AB132: Montpellier | AC132: 1 | AD132: 1 | AE132: 2007-2008 | AF132: AC Ajaccio-Guingamp | AG132: AC Ajaccio | AH132: - | AI132: Guingamp | AJ132: 2 | AK132: 1 | AL132: 2008-2009 | AM132: AC Ajaccio-Dijon | AN132: AC Ajaccio | AO132: - | AP132: Dijon | AQ132: 0 | AR132: 0 | AS132: 2009-2010 | AT132: Evian Thonon G.-Le Havre | AU132: Evian Thonon G. | AV132: - | AW132: Le Havre | AX132: 1 | AY132: 1 | AZ132: 2010-2011 | BA132: Troyes-Nantes | BB132: Troyes | BC132: - | BD132: Nantes | BE132: 2 | BF132: 0 | BG132: 2011-2012 | BH132: Arles-Avignon-Laval | BI132: Arles-Avignon | BJ132: - | BK132: Laval | BL132: 0 | BM132: 3 | BN132: 2012-2013 | BO132: Arles-Avignon-Brest | BP132: Arles-Avignon | BQ132: - | BR132: Brest | BS132: 1 | BT132: 0 | BU132: 2013-2014 | BV132: AC Ajaccio-Troyes | BW132: AC Ajaccio | BX132: - | BY132: Troyes | BZ132: 2 | CA132: 1 | CB132: 2014-2015 | CC132: AC Ajaccio-FC Bourg-Péronnas | CD132: AC Ajaccio | CE132: - | CF132: FC Bourg-Péronnas | CG132: 2 | CH132: 0 | CI132: 2015-2016 | CJ132: Amiens-Auxerre | CK132: Amiens | CL132: - | CM132: Auxerre | CN132: 0 | CO132: 0 | CP132: 2016-2017 | CQ132: AC Ajaccio-Châteauroux | CR132: AC Ajaccio | CS132: - | CT132: Châteauroux | CU132: 1 | CV132: 2 | CW132: 2017-2018
A133: =IF(OR(D133=gnp!$G$5,F133=gnp!$G$5),B$2,"") ->  | B133: =B132+50 -> 64 | C133: Auxerre-Niort | D133: =journée14!H14 -> Auxerre | E133: - | F133: =journée14!V14 -> Niort | G133: =IF(ISBLANK(journée14!Q14),"",journée14!Q14) -> 0 | H133: =IF(ISBLANK(journée14!S14),"",journée14!S14) -> 0 | I133: 2018-2019 | J133: N | K133: =K132 -> 14ème journée | L133: journée14 | M133: 0-0 | N133: =N132 -> 43413 | O133: Match Aller | P133: 64 | Q133: Amiens-Niort | R133: Amiens | S133: - | T133: Niort | U133: 1 | V133: 0 | W133: 2006-2007 | X133: 64 | Y133: Brest-Sedan | Z133: Brest | AA133: - | AB133: Sedan | AC133: 1 | AD133: 1 | AE133: 2007-2008 | AF133: Angers-Amiens | AG133: Angers | AH133: - | AI133: Amiens | AJ133: 1 | AK133: 0 | AL133: 2008-2009 | AM133: Angers-Bastia | AN133: Angers | AO133: - | AP133: Bastia | AQ133: 2 | AR133: 0 | AS133: 2009-2010 | AT133: Metz-Le Mans | AU133: Metz | AV133: - | AW133: Le Mans | AX133: 0 | AY133: 1 | AZ133: 2010-2011 | BA133: Laval-Bastia | BB133: Laval | BC133: - | BD133: Bastia | BE133: 1 | BF133: 0 | BG133: 2011-2012 | BH133: Nantes-Châteauroux | BI133: Nantes | BJ133: - | BK133: Châteauroux | BL133: 1 | BM133: 1 | BN133: 2012-2013 | BO133: Caen-Istres | BP133: Caen | BQ133: - | BR133: Istres | BS133: 4 | BT133: 0 | BU133: 2013-2014 | BV133: Angers-Dijon | BW133: Angers | BX133: - | BY133: Dijon | BZ133: 1 | CA133: 0 | CB133: 2014-2015 | CC133: Auxerre-Lens | CD133: Auxerre | CE133: - | CF133: Lens | CG133: 1 | CH133: 2 | CI133: 2015-2016 | CJ133: FC Bourg-Péronnas-US Orléans | CK133: FC Bourg-Péronnas | CL133: - | CM133: US Orléans | CN133: 0 | CO133: 0 | CP133: 2016-2017 | CQ133: Auxerre-GFCO Ajaccio | CR133: Auxerre | CS133: - | CT133: GFCO Ajaccio | CU133: 0 | CV133: 1 | CW133: 2017-2018
A134: =IF(OR(D134=gnp!$G$5,F134=gnp!$G$5),B$2,"") ->  | B134: =B133+50 -> 114 | C134: Brest-Nancy | D134: =journée14!H15 -> Brest | E134: - | F134: =journée14!V15 -> Nancy | G134: =IF(ISBLANK(journée14!Q15),"",journée14!Q15) -> 2 | H134: =IF(ISBLANK(journée14!S15),"",journée14!S15) -> 1 | I134: 2018-2019 | J134: G | K134: =K133 -> 14ème journée | L134: journée14 | M134: 2-1 | N134: 43413 | O134: Match Aller | P134: 114 | Q134: Châteauroux-Metz | R134: Châteauroux | S134: - | T134: Metz | U134: 0 | V134: 1 | W134: 2006-2007 | X134: 114 | Y134: Châteauroux-Angers | Z134: Châteauroux | AA134: - | AB134: Angers | AC134: 2 | AD134: 2 | AE134: 2007-2008 | AF134: Brest-Bastia | AG134: Brest | AH134: - | AI134: Bastia | AJ134: 4 | AK134: 0 | AL134: 2008-2009 | AM134: Arles-Le Havre | AN134: Arles | AO134: - | AP134: Le Havre | AQ134: 1 | AR134: 0 | AS134: 2009-2010 | AT134: Laval-Sedan | AU134: Laval | AV134: - | AW134: Sedan | AX134: 3 | AY134: 0 | AZ134: 2010-2011 | BA134: Boulogne-sur-Mer-Metz | BB134: Boulogne-sur-Mer | BC134: - | BD134: Metz | BE134: 0 | BF134: 1 | BG134: 2011-2012 | BH134: Istres-Le Mans | BI134: Istres | BJ134: - | BK134: Le Mans | BL134: 1 | BM134: 0 | BN134: 2012-2013 | BO134: Clermont Foot-Auxerre | BP134: Clermont Foot | BQ134: - | BR134: Auxerre | BS134: 1 | BT134: 1 | BU134: 2013-2014 | BV134: Arles-Avignon-Valenciennes | BW134: Arles-Avignon | BX134: - | BY134: Valenciennes | BZ134: 1 | CA134: 2 | CB134: 2014-2015 | CC134: Nancy-Dijon | CD134: Nancy | CE134: - | CF134: Dijon | CG134: 3 | CH134: 1 | CI134: 2015-2016 | CJ134: GFCO Ajaccio-Red Star 93 | CK134: GFCO Ajaccio | CL134: - | CM134: Red Star 93 | CN134: 2 | CO134: 1 | CP134: 2016-2017 | CQ134: Paris FC-Lorient | CR134: Paris FC | CS134: - | CT134: Lorient | CU134: 1 | CV134: 1 | CW134: 2017-2018
A135: =IF(OR(D135=gnp!$G$5,F135=gnp!$G$5),B$2,"") ->  | B135: 164 | C135: Châteauroux-Metz | D135: =journée14!H16 -> Châteauroux | E135: - | F135: =journée14!V16 -> Metz | G135: =IF(ISBLANK(journée14!Q16),"",journée14!Q16) -> 1 | H135: =IF(ISBLANK(journée14!S16),"",journée14!S16) -> 2 | I135: 2018-2019 | J135: P | K135: 14ème journée | L135: journée14 | M135: 1-2 | N135: 43413 | O135: Match Aller | P135: 164 | Q135: Créteil-Bastia | R135: Créteil | S135: - | T135: Bastia | U135: 1 | V135: 0 | W135: 2006-2007 | X135: 164 | Y135: Clermont Foot-Niort | Z135: Clermont Foot | AA135: - | AB135: Niort | AC135: 1 | AD135: 0 | AE135: 2007-2008 | AF135: Châteauroux-Sedan | AG135: Châteauroux | AH135: - | AI135: Sedan | AJ135: 1 | AK135: 1 | AL135: 2008-2009 | AM135: Brest-Vannes OC | AN135: Brest | AO135: - | AP135: Vannes OC | AQ135: 3 | AR135: 4 | AS135: 2009-2010 | AT135: Nantes-Nîmes | AU135: Nantes | AV135: - | AW135: Nîmes | AX135: 2 | AY135: 1 | AZ135: 2010-2011 | BA135: Amiens-Châteauroux | BB135: Amiens | BC135: - | BD135: Châteauroux | BE135: 4 | BF135: 0 | BG135: 2011-2012 | BH135: GFCO Ajaccio-Sedan | BI135: GFCO Ajaccio | BJ135: - | BK135: Sedan | BL135: 1 | BM135: 1 | BN135: 2012-2013 | BO135: Créteil-Tours FC | BP135: Créteil | BQ135: - | BR135: Tours FC | BS135: 2 | BT135: 1 | BU135: 2013-2014 | BV135: Brest-Le Havre | BW135: Brest | BX135: - | BY135: Le Havre | BZ135: 1 | CA135: 0 | CB135: 2014-2015 | CC135: Niort-Metz | CD135: Niort | CE135: - | CF135: Metz | CG135: 1 | CH135: 1 | CI135: 2015-2016 | CJ135: Laval-Le Havre | CK135: Laval | CL135: - | CM135: Le Havre | CN135: 0 | CO135: 2 | CP135: 2016-2017 | CQ135: Le Havre-Reims | CR135: Le Havre | CS135: - | CT135: Reims | CU135: 0 | CV135: 0 | CW135: 2017-2018
A136: =IF(OR(D136=gnp!$G$5,F136=gnp!$G$5),B$2,"") ->  | B136: 214 | C136: Clermont Foot-US Orléans | D136: =journée14!H17 -> Clermont Foot | E136: - | F136: =journée14!V17 -> US Orléans | G136: =IF(ISBLANK(journée14!Q17),"",journée14!Q17) -> 3 | H136: =IF(ISBLANK(journée14!S17),"",journée14!S17) -> 0 | I136: 2018-2019 | J136: G | K136: 14ème journée | L136: journée14 | M136: 3-0 | N136: 43413 | O136: Match Aller | P136: 214 | Q136: Grenoble-Caen | R136: Grenoble | S136: - | T136: Caen | U136: 1 | V136: 1 | W136: 2006-2007 | X136: 214 | Y136: Grenoble-Dijon | Z136: Grenoble | AA136: - | AB136: Dijon | AC136: 2 | AD136: 0 | AE136: 2007-2008 | AF136: Clermont Foot-Metz | AG136: Clermont Foot | AH136: - | AI136: Metz | AJ136: 1 | AK136: 0 | AL136: 2008-2009 | AM136: Caen-Tours FC | AN136: Caen | AO136: - | AP136: Tours FC | AQ136: 0 | AR136: 0 | AS136: 2009-2010 | AT136: AC Ajaccio-Dijon | AU136: AC Ajaccio | AV136: - | AW136: Dijon | AX136: 1 | AY136: 0 | AZ136: 2010-2011 | BA136: Monaco-Le Mans | BB136: Monaco | BC136: - | BD136: Le Mans | BE136: 2 | BF136: 2 | BG136: 2011-2012 | BH136: Angers-Niort | BI136: Angers | BJ136: - | BK136: Niort | BL136: 0 | BM136: 0 | BN136: 2012-2013 | BO136: Le Havre-Angers | BP136: Le Havre | BQ136: - | BR136: Angers | BS136: 1 | BT136: 2 | BU136: 2013-2014 | BV136: Châteauroux-Laval | BW136: Châteauroux | BX136: - | BY136: Laval | BZ136: 1 | CA136: 1 | CB136: 2014-2015 | CC136: Clermont Foot-Créteil | CD136: Clermont Foot | CE136: - | CF136: Créteil | CG136: 1 | CH136: 0 | CI136: 2015-2016 | CJ136: Lens-AC Ajaccio | CK136: Lens | CL136: - | CM136: AC Ajaccio | CN136: 1 | CO136: 1 | CP136: 2016-2017 | CQ136: Nancy-Lens | CR136: Nancy | CS136: - | CT136: Lens | CU136: 1 | CV136: 1 | CW136: 2017-2018
A137: =IF(OR(D137=gnp!$G$5,F137=gnp!$G$5),B$2,"") ->  | B137: 264 | C137: Grenoble Foot 38-AC Ajaccio | D137: =journée14!H18 -> Grenoble Foot 38 | E137: - | F137: =journée14!V18 -> AC Ajaccio | G137: =IF(ISBLANK(journée14!Q18),"",journée14!Q18) -> 2 | H137: =IF(ISBLANK(journée14!S18),"",journée14!S18) -> 0 | I137: 2018-2019 | J137: G | K137: 14ème journée | L137: journée14 | M137: 2-0 | N137: 43413 | O137: Match Aller | P137: 264 | Q137: Gueugnon-Reims | R137: Gueugnon | S137: - | T137: Reims | U137: 0 | V137: 0 | W137: 2006-2007 | X137: 264 | Y137: Gueugnon-Troyes | Z137: Gueugnon | AA137: - | AB137: Troyes | AC137: 1 | AD137: 1 | AE137: 2007-2008 | AF137: Lens-Montpellier | AG137: Lens | AH137: - | AI137: Montpellier | AJ137: 0 | AK137: 2 | AL137: 2008-2009 | AM137: Châteauroux-Laval | AN137: Châteauroux | AO137: - | AP137: Laval | AQ137: 2 | AR137: 1 | AS137: 2009-2010 | AT137: Tours FC-Boulogne-sur-Mer | AU137: Tours FC | AV137: - | AW137: Boulogne-sur-Mer | AX137: 2 | AY137: 0 | AZ137: 2010-2011 | BA137: Lens-Sedan | BB137: Lens | BC137: - | BD137: Sedan | BE137: 4 | BF137: 2 | BG137: 2011-2012 | BH137: Lens-Caen | BI137: Lens | BJ137: - | BK137: Caen | BL137: 0 | BM137: 0 | BN137: 2012-2013 | BO137: Metz-Dijon | BP137: Metz | BQ137: - | BR137: Dijon | BS137: 2 | BT137: 0 | BU137: 2013-2014 | BV137: Nancy-Créteil | BW137: Nancy | BX137: - | BY137: Créteil | BZ137: 3 | CA137: 1 | CB137: 2014-2015 | CC137: Evian Thonon G.-Valenciennes | CD137: Evian Thonon G. | CE137: - | CF137: Valenciennes | CG137: 4 | CH137: 0 | CI137: 2015-2016 | CJ137: Nîmes-Clermont Foot | CK137: Nîmes | CL137: - | CM137: Clermont Foot | CN137: 1 | CO137: 1 | CP137: 2016-2017 | CQ137: Nîmes-US Quevilly | CR137: Nîmes | CS137: - | CT137: US Quevilly | CU137: 4 | CV137: 1 | CW137: 2017-2018
A138: =IF(OR(D138=gnp!$G$5,F138=gnp!$G$5),B$2,"") ->  | B138: 314 | C138: Le Havre-Sochaux | D138: =journée14!H19 -> Le Havre | E138: - | F138: =journée14!V19 -> Sochaux | G138: =IF(ISBLANK(journée14!Q19),"",journée14!Q19) -> 3 | H138: =IF(ISBLANK(journée14!S19),"",journée14!S19) -> 2 | I138: 2018-2019 | J138: G | K138: 14ème journée | L138: journée14 | M138: 3-2 | N138: 43413 | O138: Match Aller | P138: 314 | Q138: Guingamp-Montpellier | R138: Guingamp | S138: - | T138: Montpellier | U138: 1 | V138: 0 | W138: 2006-2007 | X138: 314 | Y138: Le Havre-Guingamp | Z138: Le Havre | AA138: - | AB138: Guingamp | AC138: 2 | AD138: 1 | AE138: 2007-2008 | AF138: Nîmes-Reims | AG138: Nîmes | AH138: - | AI138: Reims | AJ138: 2 | AK138: 2 | AL138: 2008-2009 | AM138: Clermont Foot-Nîmes | AN138: Clermont Foot | AO138: - | AP138: Nîmes | AQ138: 0 | AR138: 1 | AS138: 2009-2010 | AT138: Châteauroux-Grenoble | AU138: Châteauroux | AV138: - | AW138: Grenoble | AX138: 4 | AY138: 3 | AZ138: 2010-2011 | BA138: Arles-Avignon-Guingamp | BB138: Arles-Avignon | BC138: - | BD138: Guingamp | BE138: 1 | BF138: 2 | BG138: 2011-2012 | BH138: Dijon-Nîmes | BI138: Dijon | BJ138: - | BK138: Nîmes | BL138: 2 | BM138: 1 | BN138: 2012-2013 | BO138: Nancy-Châteauroux | BP138: Nancy | BQ138: - | BR138: Châteauroux | BS138: 2 | BT138: 0 | BU138: 2013-2014 | BV138: Nîmes-Niort | BW138: Nîmes | BX138: - | BY138: Niort | BZ138: 3 | CA138: 2 | CB138: 2014-2015 | CC138: Nîmes-Sochaux | CD138: Nîmes | CE138: - | CF138: Sochaux | CG138: 0 | CH138: 2 | CI138: 2015-2016 | CJ138: Niort-Sochaux | CK138: Niort | CL138: - | CM138: Sochaux | CN138: 2 | CO138: 0 | CP138: 2016-2017 | CQ138: Niort-Clermont Foot | CR138: Niort | CS138: - | CT138: Clermont Foot | CU138: 1 | CV138: 1 | CW138: 2017-2018
A139: =IF(OR(D139=gnp!$G$5,F139=gnp!$G$5),B$2,"") ->  | B139: 364 | C139: Lorient-Paris FC | D139: =journée14!H20 -> Lorient | E139: - | F139: =journée14!V20 -> Paris FC | G139: =IF(ISBLANK(journée14!Q20),"",journée14!Q20) -> 2 | H139: =IF(ISBLANK(journée14!S20),"",journée14!S20) -> 1 | I139: 2018-2019 | J139: G | K139: 14ème journée | L139: journée14 | M139: 2-1 | N139: 43413 | O139: Match Aller | P139: 364 | Q139: Le Havre-Brest | R139: Le Havre | S139: - | T139: Brest | U139: 0 | V139: 1 | W139: 2006-2007 | X139: 364 | Y139: Libourne/Seurin-Boulogne/Mer | Z139: Libourne/Seurin | AA139: - | AB139: Boulogne/Mer | AC139: 2 | AD139: 2 | AE139: 2007-2008 | AF139: Strasbourg-Tours FC | AG139: Strasbourg | AH139: - | AI139: Tours FC | AJ139: 4 | AK139: 0 | AL139: 2008-2009 | AM139: Nantes-Guingamp | AN139: Nantes | AO139: - | AP139: Guingamp | AQ139: 0 | AR139: 2 | AS139: 2009-2010 | AT139: Vannes OC-Clermont Foot | AU139: Vannes OC | AV139: - | AW139: Clermont Foot | AX139: 1 | AY139: 1 | AZ139: 2010-2011 | BA139: Le Havre-Clermont Foot | BB139: Le Havre | BC139: - | BD139: Clermont Foot | BE139: 0 | BF139: 2 | BG139: 2011-2012 | BH139: Le Havre-Clermont Foot | BI139: Le Havre | BJ139: - | BK139: Clermont Foot | BL139: 1 | BM139: 3 | BN139: 2012-2013 | BO139: Nîmes-CA Bastia | BP139: Nîmes | BQ139: - | BR139: CA Bastia | BS139: 0 | BT139: 1 | BU139: 2013-2014 | BV139: US Orléans-Clermont Foot | BW139: US Orléans | BX139: - | BY139: Clermont Foot | BZ139: 2 | CA139: 1 | CB139: 2014-2015 | CC139: Paris FC-Red Star 93 | CD139: Paris FC | CE139: - | CF139: Red Star 93 | CG139: 0 | CH139: 1 | CI139: 2015-2016 | CJ139: RC Strasbourg-Reims | CK139: RC Strasbourg | CL139: - | CM139: Reims | CN139: 1 | CO139: 2 | CP139: 2016-2017 | CQ139: US Orléans-Sochaux | CR139: US Orléans | CS139: - | CT139: Sochaux | CU139: 3 | CV139: 3 | CW139: 2017-2018
A140: =IF(OR(D140=gnp!$G$5,F140=gnp!$G$5),B$2,"") ->  | B140: 414 | C140: Red Star 93-AS Béziers | D140: =journée14!H21 -> Red Star 93 | E140: - | F140: =journée14!V21 -> AS Béziers | G140: =IF(ISBLANK(journée14!Q21),"",journée14!Q21) -> 0 | H140: =IF(ISBLANK(journée14!S21),"",journée14!S21) -> 3 | I140: 2018-2019 | J140: P | K140: 14ème journée | L140: journée14 | M140: 0-3 | N140: 43413 | O140: Match Aller | P140: 414 | Q140: Strasbourg-Istres | R140: Strasbourg | S140: - | T140: Istres | U140: 2 | V140: 0 | W140: 2006-2007 | X140: 414 | Y140: Nantes-AC Ajaccio | Z140: Nantes | AA140: - | AB140: AC Ajaccio | AC140: 2 | AD140: 1 | AE140: 2007-2008 | AF140: Troyes-Boulogne/Mer | AG140: Troyes | AH140: - | AI140: Boulogne/Mer | AJ140: 1 | AK140: 0 | AL140: 2008-2009 | AM140: Sedan-Metz | AN140: Sedan | AO140: - | AP140: Metz | AQ140: 1 | AR140: 1 | AS140: 2009-2010 | AT140: Troyes-Istres | AU140: Troyes | AV140: - | AW140: Istres | AX140: 0 | AY140: 1 | AZ140: 2010-2011 | BA140: Angers-Tours FC | BB140: Angers | BC140: - | BD140: Tours FC | BE140: 1 | BF140: 0 | BG140: 2011-2012 | BH140: Guingamp-Tours FC | BI140: Guingamp | BJ140: - | BK140: Tours FC | BL140: 0 | BM140: 0 | BN140: 2012-2013 | BO140: Niort-Lens | BP140: Niort | BQ140: - | BR140: Lens | BS140: 2 | BT140: 2 | BU140: 2013-2014 | BV140: Sochaux-GFCO Ajaccio | BW140: Sochaux | BX140: - | BY140: GFCO Ajaccio | BZ140: 2 | CA140: 1 | CB140: 2014-2015 | CC140: Brest-Tours FC | CD140: Brest | CE140: - | CF140: Tours FC | CG140: 3 | CH140: 0 | CI140: 2015-2016 | CJ140: Tours FC-Brest | CK140: Tours FC | CL140: - | CM140: Brest | CN140: 0 | CO140: 1 | CP140: 2016-2017 | CQ140: Tours FC-FC Bourg-Péronnas | CR140: Tours FC | CS140: - | CT140: FC Bourg-Péronnas | CU140: 3 | CV140: 2 | CW140: 2017-2018
A141: =IF(OR(D141=gnp!$G$5,F141=gnp!$G$5),B$2,"") ->  | B141: 464 | C141: Valenciennes-Lens | D141: =journée14!H22 -> Valenciennes | E141: - | F141: =journée14!V22 -> Lens | G141: =IF(ISBLANK(journée14!Q22),"",journée14!Q22) -> 4 | H141: =IF(ISBLANK(journée14!S22),"",journée14!S22) -> 2 | I141: 2018-2019 | J141: G | K141: 14ème journée | L141: journée14 | M141: 4-2 | N141: 43413 | O141: Match Aller | P141: 464 | Q141: Tours FC-Dijon | R141: Tours FC | S141: - | T141: Dijon | U141: 0 | V141: 1 | W141: 2006-2007 | X141: 464 | Y141: Reims-Amiens | Z141: Reims | AA141: - | AB141: Amiens | AC141: 0 | AD141: 0 | AE141: 2007-2008 | AF141: Vannes OC-Dijon | AG141: Vannes OC | AH141: - | AI141: Dijon | AJ141: 1 | AK141: 1 | AL141: 2008-2009 | AM141: Strasbourg-Istres | AN141: Strasbourg | AO141: - | AP141: Istres | AQ141: 2 | AR141: 0 | AS141: 2009-2010 | AT141: Reims-Angers | AU141: Reims | AV141: - | AW141: Angers | AX141: 2 | AY141: 0 | AZ141: 2010-2011 | BA141: Reims-Istres | BB141: Reims | BC141: - | BD141: Istres | BE141: 2 | BF141: 1 | BG141: 2011-2012 | BH141: Monaco-Auxerre | BI141: Monaco | BJ141: - | BK141: Auxerre | BL141: 2 | BM141: 0 | BN141: 2012-2013 | BO141: Troyes-Laval | BP141: Troyes | BQ141: - | BR141: Laval | BS141: 0 | BT141: 1 | BU141: 2013-2014 | BV141: Tours FC-Auxerre | BW141: Tours FC | BX141: - | BY141: Auxerre | BZ141: 2 | CA141: 3 | CB141: 2014-2015 | CC141: Laval-Le Havre | CD141: Laval | CE141: - | CF141: Le Havre | CG141: 0 | CH141: 1 | CI141: 2015-2016 | CJ141: Troyes-Valenciennes | CK141: Troyes | CL141: - | CM141: Valenciennes | CN141: 2 | CO141: 0 | CP141: 2016-2017 | CQ141: Valenciennes-Brest | CR141: Valenciennes | CS141: - | CT141: Brest | CU141: 0 | CV141: 0 | CW141: 2017-2018
A142: =IF(OR(D142=gnp!$G$5,F142=gnp!$G$5),B$2,"") ->  | B142: 15 | C142: AC Ajaccio-Clermont Foot | D142: =journée15!H13 -> AC Ajaccio | E142: - | F142: =journée15!V13 -> Clermont Foot | G142: =IF(ISBLANK(journée15!Q13),"",journée15!Q13) -> 0 | H142: =IF(ISBLANK(journée15!S13),"",journée15!S13) -> 0 | I142: 2018-2019 | J142: N | K142: 15ème journée | L142: journée15 | M142: 0-0 | N142: =journée15!H11 -> 43427 | O142: Match Aller | P142: 15 | Q142: Bastia-Le Havre | R142: Bastia | S142: - | T142: Le Havre | U142: 1 | V142: 1 | W142: 2006-2007 | X142: 15 | Y142: AC Ajaccio-Libourne/Seurin | Z142: AC Ajaccio | AA142: - | AB142: Libourne/Seurin | AC142: 2 | AD142: 3 | AE142: 2007-2008 | AF142: Amiens-AC Ajaccio | AG142: Amiens | AH142: - | AI142: AC Ajaccio | AJ142: 2 | AK142: 0 | AL142: 2008-2009 | AM142: Bastia-Brest | AN142: Bastia | AO142: - | AP142: Brest | AQ142: 1 | AR142: 1 | AS142: 2009-2010 | AT142: Angers-Nantes | AU142: Angers | AV142: - | AW142: Nantes | AX142: 1 | AY142: 1 | AZ142: 2010-2011 | BA142: Le Mans-Lens | BB142: Le Mans | BC142: - | BD142: Lens | BE142: 0 | BF142: 1 | BG142: 2011-2012 | BH142: Nîmes-Lens | BI142: Nîmes | BJ142: - | BK142: Lens | BL142: 1 | BM142: 2 | BN142: 2012-2013 | BO142: Angers-Clermont Foot | BP142: Angers | BQ142: - | BR142: Clermont Foot | BS142: 0 | BT142: 2 | BU142: 2013-2014 | BV142: AC Ajaccio-Angers | BW142: AC Ajaccio | BX142: - | BY142: Angers | BZ142: 1 | CA142: 1 | CB142: 2014-2015 | CC142: Dijon-Clermont Foot | CD142: Dijon | CE142: - | CF142: Clermont Foot | CG142: 4 | CH142: 1 | CI142: 2015-2016 | CJ142: AC Ajaccio-RC Strasbourg | CK142: AC Ajaccio | CL142: - | CM142: RC Strasbourg | CN142: 2 | CO142: 0 | CP142: 2016-2017 | CQ142: FC Bourg-Péronnas-Valenciennes | CR142: FC Bourg-Péronnas | CS142: - | CT142: Valenciennes | CU142: 1 | CV142: 3 | CW142: 2017-2018
A143: =IF(OR(D143=gnp!$G$5,F143=gnp!$G$5),B$2,"") ->  | B143: =B142+50 -> 65 | C143: AS Béziers-Valenciennes | D143: =journée15!H14 -> AS Béziers | E143: - | F143: =journée15!V14 -> Valenciennes | G143: =IF(ISBLANK(journée15!Q14),"",journée15!Q14) -> 1 | H143: =IF(ISBLANK(journée15!S14),"",journée15!S14) -> 1 | I143: 2018-2019 | J143: N | K143: =K142 -> 15ème journée | L143: journée15 | M143: 1-1 | N143: =N142 -> 43427 | O143: Match Aller | P143: 65 | Q143: Brest-AC Ajaccio | R143: Brest | S143: - | T143: AC Ajaccio | U143: 0 | V143: 1 | W143: 2006-2007 | X143: 65 | Y143: Amiens-Bastia | Z143: Amiens | AA143: - | AB143: Bastia | AC143: 1 | AD143: 1 | AE143: 2007-2008 | AF143: Bastia-Lens | AG143: Bastia | AH143: - | AI143: Lens | AJ143: 0 | AK143: 1 | AL143: 2008-2009 | AM143: Dijon-Strasbourg | AN143: Dijon | AO143: - | AP143: Strasbourg | AQ143: 0 | AR143: 0 | AS143: 2009-2010 | AT143: Boulogne-sur-Mer-Metz | AU143: Boulogne-sur-Mer | AV143: - | AW143: Metz | AX143: 0 | AY143: 2 | AZ143: 2010-2011 | BA143: Guingamp-Bastia | BB143: Guingamp | BC143: - | BD143: Bastia | BE143: 1 | BF143: 1 | BG143: 2011-2012 | BH143: Auxerre-Nantes | BI143: Auxerre | BJ143: - | BK143: Nantes | BL143: 0 | BM143: 2 | BN143: 2012-2013 | BO143: Auxerre-Caen | BP143: Auxerre | BQ143: - | BR143: Caen | BS143: 3 | BT143: 2 | BU143: 2013-2014 | BV143: Auxerre-Châteauroux | BW143: Auxerre | BX143: - | BY143: Châteauroux | BZ143: 3 | CA143: 1 | CB143: 2014-2015 | CC143: FC Bourg-Péronnas-Paris FC | CD143: FC Bourg-Péronnas | CE143: - | CF143: Paris FC | CG143: 4 | CH143: 1 | CI143: 2015-2016 | CJ143: Auxerre-Lens | CK143: Auxerre | CL143: - | CM143: Lens | CN143: 1 | CO143: 1 | CP143: 2016-2017 | CQ143: Châteauroux-Tours FC | CR143: Châteauroux | CS143: - | CT143: Tours FC | CU143: 1 | CV143: 0 | CW143: 2017-2018
A144: =IF(OR(D144=gnp!$G$5,F144=gnp!$G$5),B$2,"") ->  | B144: =B143+50 -> 115 | C144: Lens-Grenoble Foot 38 | D144: =journée15!H15 -> Lens | E144: - | F144: =journée15!V15 -> Grenoble Foot 38 | G144: =IF(ISBLANK(journée15!Q15),"",journée15!Q15) -> 0 | H144: =IF(ISBLANK(journée15!S15),"",journée15!S15) -> 0 | I144: 2018-2019 | J144: N | K144: =K143 -> 15ème journée | L144: journée15 | M144: 0-0 | N144: 43427 | O144: Match Aller | P144: 115 | Q144: Caen-Créteil | R144: Caen | S144: - | T144: Créteil | U144: 1 | V144: 0 | W144: 2006-2007 | X144: 115 | Y144: Angers-Gueugnon | Z144: Angers | AA144: - | AB144: Gueugnon | AC144: 2 | AD144: 0 | AE144: 2007-2008 | AF144: Boulogne/Mer-Angers | AG144: Boulogne/Mer | AH144: - | AI144: Angers | AJ144: 2 | AK144: 3 | AL144: 2008-2009 | AM144: Guingamp-Arles | AN144: Guingamp | AO144: - | AP144: Arles | AQ144: 4 | AR144: 1 | AS144: 2009-2010 | AT144: Le Havre-Laval | AU144: Le Havre | AV144: - | AW144: Laval | AX144: 1 | AY144: 0 | AZ144: 2010-2011 | BA144: Nantes-Monaco | BB144: Nantes | BC144: - | BD144: Monaco | BE144: 3 | BF144: 0 | BG144: 2011-2012 | BH144: Sedan-Le Havre | BI144: Sedan | BJ144: - | BK144: Le Havre | BL144: 1 | BM144: 2 | BN144: 2012-2013 | BO144: Brest-Niort | BP144: Brest | BQ144: - | BR144: Niort | BS144: 0 | BT144: 1 | BU144: 2013-2014 | BV144: Clermont Foot-Arles-Avignon | BW144: Clermont Foot | BX144: - | BY144: Arles-Avignon | BZ144: 3 | CA144: 1 | CB144: 2014-2015 | CC144: Metz-Auxerre | CD144: Metz | CE144: - | CF144: Auxerre | CG144: 0 | CH144: 1 | CI144: 2015-2016 | CJ144: Brest-Niort | CK144: Brest | CL144: - | CM144: Niort | CN144: 2 | CO144: 3 | CP144: 2016-2017 | CQ144: Clermont Foot-Auxerre | CR144: Clermont Foot | CS144: - | CT144: Auxerre | CU144: 1 | CV144: 0 | CW144: 2017-2018
A145: =IF(OR(D145=gnp!$G$5,F145=gnp!$G$5),B$2,"") ->  | B145: 165 | C145: Metz-GFCO Ajaccio | D145: =journée15!H16 -> Metz | E145: - | F145: =journée15!V16 -> GFCO Ajaccio | G145: =IF(ISBLANK(journée15!Q16),"",journée15!Q16) -> 1 | H145: =IF(ISBLANK(journée15!S16),"",journée15!S16) -> 0 | I145: 2018-2019 | J145: G | K145: 15ème journée | L145: journée15 | M145: 1-0 | N145: 43427 | O145: Match Aller | P145: 165 | Q145: Dijon-Guingamp | R145: Dijon | S145: - | T145: Guingamp | U145: 2 | V145: 1 | W145: 2006-2007 | X145: 165 | Y145: Boulogne/Mer-Nantes | Z145: Boulogne/Mer | AA145: - | AB145: Nantes | AC145: 4 | AD145: 0 | AE145: 2007-2008 | AF145: Châteauroux-Vannes OC | AG145: Châteauroux | AH145: - | AI145: Vannes OC | AJ145: 1 | AK145: 0 | AL145: 2008-2009 | AM145: Istres-Vannes OC | AN145: Istres | AO145: - | AP145: Vannes OC | AQ145: 1 | AR145: 1 | AS145: 2009-2010 | AT145: Nîmes-Troyes | AU145: Nîmes | AV145: - | AW145: Troyes | AX145: 1 | AY145: 0 | AZ145: 2010-2011 | BA145: Sedan-Laval | BB145: Sedan | BC145: - | BD145: Laval | BE145: 2 | BF145: 1 | BG145: 2011-2012 | BH145: Clermont Foot-Monaco | BI145: Clermont Foot | BJ145: - | BK145: Monaco | BL145: 0 | BM145: 1 | BN145: 2012-2013 | BO145: CA Bastia-Metz | BP145: CA Bastia | BQ145: - | BR145: Metz | BS145: 0 | BT145: 2 | BU145: 2013-2014 | BV145: Créteil-Nîmes | BW145: Créteil | BX145: - | BY145: Nîmes | BZ145: 2 | CA145: 0 | CB145: 2014-2015 | CC145: Sochaux-Laval | CD145: Sochaux | CE145: - | CF145: Laval | CG145: 0 | CH145: 0 | CI145: 2015-2016 | CJ145: Clermont Foot-GFCO Ajaccio | CK145: Clermont Foot | CL145: - | CM145: GFCO Ajaccio | CN145: 3 | CO145: 1 | CP145: 2016-2017 | CQ145: GFCO Ajaccio-Le Havre | CR145: GFCO Ajaccio | CS145: - | CT145: Le Havre | CU145: 1 | CV145: 1 | CW145: 2017-2018
A146: =IF(OR(D146=gnp!$G$5,F146=gnp!$G$5),B$2,"") ->  | B146: 215 | C146: Nancy-Red Star 93 | D146: =journée15!H17 -> Nancy | E146: - | F146: =journée15!V17 -> Red Star 93 | G146: =IF(ISBLANK(journée15!Q17),"",journée15!Q17) -> 1 | H146: =IF(ISBLANK(journée15!S17),"",journée15!S17) -> 0 | I146: 2018-2019 | J146: G | K146: 15ème journée | L146: journée15 | M146: 1-0 | N146: 43427 | O146: Match Aller | P146: 215 | Q146: Istres-Gueugnon | R146: Istres | S146: - | T146: Gueugnon | U146: 0 | V146: 1 | W146: 2006-2007 | X146: 215 | Y146: Châteauroux-Reims | Z146: Châteauroux | AA146: - | AB146: Reims | AC146: 0 | AD146: 1 | AE146: 2007-2008 | AF146: Dijon-Nîmes | AG146: Dijon | AH146: - | AI146: Nîmes | AJ146: 2 | AK146: 1 | AL146: 2008-2009 | AM146: Laval-Sedan | AN146: Laval | AO146: - | AP146: Sedan | AQ146: 1 | AR146: 1 | AS146: 2009-2010 | AT146: Clermont Foot-Châteauroux | AU146: Clermont Foot | AV146: - | AW146: Châteauroux | AX146: 0 | AY146: 1 | AZ146: 2010-2011 | BA146: Le Havre-Troyes | BB146: Le Havre | BC146: - | BD146: Troyes | BE146: 3 | BF146: 0 | BG146: 2011-2012 | BH146: Niort-Châteauroux | BI146: Niort | BJ146: - | BK146: Châteauroux | BL146: 2 | BM146: 2 | BN146: 2012-2013 | BO146: Créteil-Troyes | BP146: Créteil | BQ146: - | BR146: Troyes | BS146: 0 | BT146: 3 | BU146: 2013-2014 | BV146: Dijon-US Orléans | BW146: Dijon | BX146: - | BY146: US Orléans | BZ146: 2 | CA146: 1 | CB146: 2014-2015 | CC146: Le Havre-Brest | CD146: Le Havre | CE146: - | CF146: Brest | CG146: 0 | CH146: 0 | CI146: 2015-2016 | CJ146: Le Havre-Amiens | CK146: Le Havre | CL146: - | CM146: Amiens | CN146: 0 | CO146: 0 | CP146: 2016-2017 | CQ146: Lens-Niort | CR146: Lens | CS146: - | CT146: Niort | CU146: 3 | CV146: 1 | CW146: 2017-2018
A147: =IF(OR(D147=gnp!$G$5,F147=gnp!$G$5),B$2,"") ->  | B147: 265 | C147: Niort-Châteauroux | D147: =journée15!H18 -> Niort | E147: - | F147: =journée15!V18 -> Châteauroux | G147: =IF(ISBLANK(journée15!Q18),"",journée15!Q18) -> 0 | H147: =IF(ISBLANK(journée15!S18),"",journée15!S18) -> 1 | I147: 2018-2019 | J147: P | K147: 15ème journée | L147: journée15 | M147: 0-1 | N147: 43427 | O147: Match Aller | P147: 265 | Q147: Libourne/Seurin-Grenoble | R147: Libourne/Seurin | S147: - | T147: Grenoble | U147: 2 | V147: 1 | W147: 2006-2007 | X147: 265 | Y147: Guingamp-Clermont Foot | Z147: Guingamp | AA147: - | AB147: Clermont Foot | AC147: 0 | AD147: 0 | AE147: 2007-2008 | AF147: Guingamp-Tours FC | AG147: Guingamp | AH147: - | AI147: Tours FC | AJ147: 3 | AK147: 1 | AL147: 2008-2009 | AM147: Le Havre-AC Ajaccio | AN147: Le Havre | AO147: - | AP147: AC Ajaccio | AQ147: 1 | AR147: 0 | AS147: 2009-2010 | AT147: Sedan-AC Ajaccio | AU147: Sedan | AV147: - | AW147: AC Ajaccio | AX147: 4 | AY147: 1 | AZ147: 2010-2011 | BA147: Metz-Amiens | BB147: Metz | BC147: - | BD147: Amiens | BE147: 1 | BF147: 0 | BG147: 2011-2012 | BH147: Le Mans-Guingamp | BI147: Le Mans | BJ147: - | BK147: Guingamp | BL147: 0 | BM147: 2 | BN147: 2012-2013 | BO147: Dijon-Nancy | BP147: Dijon | BQ147: - | BR147: Nancy | BS147: 1 | BT147: 0 | BU147: 2013-2014 | BV147: GFCO Ajaccio-Laval | BW147: GFCO Ajaccio | BX147: - | BY147: Laval | BZ147: 1 | CA147: 0 | CB147: 2014-2015 | CC147: Lens-Niort | CD147: Lens | CE147: - | CF147: Niort | CG147: 1 | CH147: 1 | CI147: 2015-2016 | CJ147: US Orléans-Nîmes | CK147: US Orléans | CL147: - | CM147: Nîmes | CN147: 2 | CO147: 1 | CP147: 2016-2017 | CQ147: Lorient-Brest | CR147: Lorient | CS147: - | CT147: Brest | CU147: 4 | CV147: 2 | CW147: 2017-2018
A148: =IF(OR(D148=gnp!$G$5,F148=gnp!$G$5),B$2,"") ->  | B148: 315 | C148: US Orléans-Brest | D148: =journée15!H19 -> US Orléans | E148: - | F148: =journée15!V19 -> Brest | G148: =IF(ISBLANK(journée15!Q19),"",journée15!Q19) -> 0 | H148: =IF(ISBLANK(journée15!S19),"",journée15!S19) -> 0 | I148: 2018-2019 | J148: N | K148: 15ème journée | L148: journée15 | M148: 0-0 | N148: 43427 | O148: Match Aller | P148: 315 | Q148: Metz-Amiens | R148: Metz | S148: - | T148: Amiens | U148: 1 | V148: 0 | W148: 2006-2007 | X148: 315 | Y148: Montpellier-Brest | Z148: Montpellier | AA148: - | AB148: Brest | AC148: 2 | AD148: 1 | AE148: 2007-2008 | AF148: Metz-Strasbourg | AG148: Metz | AH148: - | AI148: Strasbourg | AJ148: 3 | AK148: 2 | AL148: 2008-2009 | AM148: Metz-Clermont Foot | AN148: Metz | AO148: - | AP148: Clermont Foot | AQ148: 2 | AR148: 1 | AS148: 2009-2010 | AT148: Dijon-Reims | AU148: Dijon | AV148: - | AW148: Reims | AX148: 3 | AY148: 2 | AZ148: 2010-2011 | BA148: Clermont Foot-Reims | BB148: Clermont Foot | BC148: - | BD148: Reims | BE148: 1 | BF148: 0 | BG148: 2011-2012 | BH148: Laval-Dijon | BI148: Laval | BJ148: - | BK148: Dijon | BL148: 3 | BM148: 0 | BN148: 2012-2013 | BO148: Istres-Nîmes | BP148: Istres | BQ148: - | BR148: Nîmes | BS148: 4 | BT148: 2 | BU148: 2013-2014 | BV148: Le Havre-Sochaux | BW148: Le Havre | BX148: - | BY148: Sochaux | BZ148: 1 | CA148: 1 | CB148: 2014-2015 | CC148: Red Star 93-AC Ajaccio | CD148: Red Star 93 | CE148: - | CF148: AC Ajaccio | CG148: 1 | CH148: 1 | CI148: 2015-2016 | CJ148: Red Star 93-Troyes | CK148: Red Star 93 | CL148: - | CM148: Troyes | CN148: 1 | CO148: 2 | CP148: 2016-2017 | CQ148: Nancy-AC Ajaccio | CR148: Nancy | CS148: - | CT148: AC Ajaccio | CU148: 2 | CV148: 2 | CW148: 2017-2018
A149: =IF(OR(D149=gnp!$G$5,F149=gnp!$G$5),B$2,"") ->  | B149: 365 | C149: Paris FC-Le Havre | D149: =journée15!H20 -> Paris FC | E149: - | F149: =journée15!V20 -> Le Havre | G149: =IF(ISBLANK(journée15!Q20),"",journée15!Q20) -> 1 | H149: =IF(ISBLANK(journée15!S20),"",journée15!S20) -> 0 | I149: 2018-2019 | J149: G | K149: 15ème journée | L149: journée15 | M149: 1-0 | N149: 43427 | O149: Match Aller | P149: 365 | Q149: Montpellier-Tours FC | R149: Montpellier | S149: - | T149: Tours FC | U149: 1 | V149: 0 | W149: 2006-2007 | X149: 365 | Y149: Niort-Grenoble | Z149: Niort | AA149: - | AB149: Grenoble | AC149: 2 | AD149: 1 | AE149: 2007-2008 | AF149: Montpellier-Troyes | AG149: Montpellier | AH149: - | AI149: Troyes | AJ149: 3 | AK149: 0 | AL149: 2008-2009 | AM149: Nantes-Châteauroux | AN149: Nantes | AO149: - | AP149: Châteauroux | AQ149: 2 | AR149: 2 | AS149: 2009-2010 | AT149: Grenoble-Tours FC | AU149: Grenoble | AV149: - | AW149: Tours FC | AX149: 2 | AY149: 2 | AZ149: 2010-2011 | BA149: Istres-Boulogne-sur-Mer | BB149: Istres | BC149: - | BD149: Boulogne-sur-Mer | BE149: 0 | BF149: 0 | BG149: 2011-2012 | BH149: Tours FC-GFCO Ajaccio | BI149: Tours FC | BJ149: - | BK149: GFCO Ajaccio | BL149: 2 | BM149: 1 | BN149: 2012-2013 | BO149: Laval-Arles-Avignon | BP149: Laval | BQ149: - | BR149: Arles-Avignon | BS149: 1 | BT149: 1 | BU149: 2013-2014 | BV149: Niort-Tours FC | BW149: Niort | BX149: - | BY149: Tours FC | BZ149: 1 | CA149: 1 | CB149: 2014-2015 | CC149: Tours FC-Evian Thonon G. | CD149: Tours FC | CE149: - | CF149: Evian Thonon G. | CG149: 2 | CH149: 1 | CI149: 2015-2016 | CJ149: Reims-Laval | CK149: Reims | CL149: - | CM149: Laval | CN149: 0 | CO149: 2 | CP149: 2016-2017 | CQ149: US Quevilly-US Orléans | CR149: US Quevilly | CS149: - | CT149: US Orléans | CU149: 1 | CV149: 0 | CW149: 2017-2018
A150: =IF(OR(D150=gnp!$G$5,F150=gnp!$G$5),B$2,"") ->  | B150: 415 | C150: Sochaux-Auxerre | D150: =journée15!H21 -> Sochaux | E150: - | F150: =journée15!V21 -> Auxerre | G150: =IF(ISBLANK(journée15!Q21),"",journée15!Q21) -> 1 | H150: =IF(ISBLANK(journée15!S21),"",journée15!S21) -> 4 | I150: 2018-2019 | J150: P | K150: 15ème journée | L150: journée15 | M150: 1-4 | N150: 43427 | O150: Match Aller | P150: 415 | Q150: Niort-Châteauroux | R150: Niort | S150: - | T150: Châteauroux | U150: 2 | V150: 0 | W150: 2006-2007 | X150: 415 | Y150: Sedan-Le Havre | Z150: Sedan | AA150: - | AB150: Le Havre | AC150: 2 | AD150: 1 | AE150: 2007-2008 | AF150: Reims-Clermont Foot | AG150: Reims | AH150: - | AI150: Clermont Foot | AJ150: 1 | AK150: 1 | AL150: 2008-2009 | AM150: Nîmes-Caen | AN150: Nîmes | AO150: - | AP150: Caen | AQ150: 0 | AR150: 4 | AS150: 2009-2010 | AT150: Istres-Vannes OC | AU150: Istres | AV150: - | AW150: Vannes OC | AX150: 3 | AY150: 0 | AZ150: 2010-2011 | BA150: Tours FC-Arles-Avignon | BB150: Tours FC | BC150: - | BD150: Arles-Avignon | BE150: 4 | BF150: 1 | BG150: 2011-2012 | BH150: Istres-Arles-Avignon | BI150: Istres | BJ150: - | BK150: Arles-Avignon | BL150: 0 | BM150: 1 | BN150: 2012-2013 | BO150: Lens-Châteauroux | BP150: Lens | BQ150: - | BR150: Châteauroux | BS150: 2 | BT150: 0 | BU150: 2013-2014 | BV150: Troyes-Nancy | BW150: Troyes | BX150: - | BY150: Nancy | BZ150: 1 | CA150: 0 | CB150: 2014-2015 | CC150: Créteil-Nancy | CD150: Créteil | CE150: - | CF150: Nancy | CG150: 0 | CH150: 3 | CI150: 2015-2016 | CJ150: Sochaux-Tours FC | CK150: Sochaux | CL150: - | CM150: Tours FC | CN150: 2 | CO150: 1 | CP150: 2016-2017 | CQ150: Reims-Paris FC | CR150: Reims | CS150: - | CT150: Paris FC | CU150: 1 | CV150: 1 | CW150: 2017-2018
A151: =IF(OR(D151=gnp!$G$5,F151=gnp!$G$5),B$2,"") ->  | B151: 465 | C151: Troyes-Lorient | D151: =journée15!H22 -> Troyes | E151: - | F151: =journée15!V22 -> Lorient | G151: =IF(ISBLANK(journée15!Q22),"",journée15!Q22) -> 2 | H151: =IF(ISBLANK(journée15!S22),"",journée15!S22) -> 0 | I151: 2018-2019 | J151: G | K151: 15ème journée | L151: journée15 | M151: 2-0 | N151: 43427 | O151: Match Aller | P151: 465 | Q151: Reims-Strasbourg | R151: Reims | S151: - | T151: Strasbourg | U151: 2 | V151: 0 | W151: 2006-2007 | X151: 465 | Y151: Troyes-Dijon | Z151: Troyes | AA151: - | AB151: Dijon | AC151: 3 | AD151: 0 | AE151: 2007-2008 | AF151: Sedan-Brest | AG151: Sedan | AH151: - | AI151: Brest | AJ151: 1 | AK151: 0 | AL151: 2008-2009 | AM151: Tours FC-Angers | AN151: Tours FC | AO151: - | AP151: Angers | AQ151: 2 | AR151: 0 | AS151: 2009-2010 | AT151: Le Mans-Evian Thonon G. | AU151: Le Mans | AV151: - | AW151: Evian Thonon G. | AX151: 1 | AY151: 3 | AZ151: 2010-2011 | BA151: Châteauroux-Angers | BB151: Châteauroux | BC151: - | BD151: Angers | BE151: 0 | BF151: 1 | BG151: 2011-2012 | BH151: Caen-Angers | BI151: Caen | BJ151: - | BK151: Angers | BL151: 1 | BM151: 0 | BN151: 2012-2013 | BO151: Tours FC-Le Havre | BP151: Tours FC | BQ151: - | BR151: Le Havre | BS151: 2 | BT151: 2 | BU151: 2013-2014 | BV151: Valenciennes-Brest | BW151: Valenciennes | BX151: - | BY151: Brest | BZ151: 0 | CA151: 1 | CB151: 2014-2015 | CC151: Valenciennes-Nîmes | CD151: Valenciennes | CE151: - | CF151: Nîmes | CG151: 2 | CH151: 2 | CI151: 2015-2016 | CJ151: Valenciennes-FC Bourg-Péronnas | CK151: Valenciennes | CL151: - | CM151: FC Bourg-Péronnas | CN151: 3 | CO151: 3 | CP151: 2016-2017 | CQ151: Sochaux-Nîmes | CR151: Sochaux | CS151: - | CT151: Nîmes | CU151: 2 | CV151: 1 | CW151: 2017-2018
A152: =IF(OR(D152=gnp!$G$5,F152=gnp!$G$5),B$2,"") ->  | B152: 16 | C152: GFCO Ajaccio-Niort | D152: =journée16!H13 -> GFCO Ajaccio | E152: - | F152: =journée16!V13 -> Niort | G152: =IF(ISBLANK(journée16!Q13),"",journée16!Q13) -> 0 | H152: =IF(ISBLANK(journée16!S13),"",journée16!S13) -> 1 | I152: 2018-2019 | J152: P | K152: 16ème journée | L152: journée16 | M152: 0-1 | N152: =journée16!H11 -> 43434 | O152: Match Aller | P152: 16 | Q152: Gueugnon-Caen | R152: Gueugnon | S152: - | T152: Caen | U152: 0 | V152: 1 | W152: 2006-2007 | X152: 16 | Y152: Bastia-Sedan | Z152: Bastia | AA152: - | AB152: Sedan | AC152: 3 | AD152: 1 | AE152: 2007-2008 | AF152: AC Ajaccio-Boulogne/Mer | AG152: AC Ajaccio | AH152: - | AI152: Boulogne/Mer | AJ152: 0 | AK152: 2 | AL152: 2008-2009 | AM152: AC Ajaccio-Laval | AN152: AC Ajaccio | AO152: - | AP152: Laval | AQ152: 1 | AR152: 1 | AS152: 2009-2010 | AT152: Troyes-Le Havre | AU152: Troyes | AV152: - | AW152: Le Havre | AX152: 0 | AY152: 0 | AZ152: 2010-2011 | BA152: Reims-Nantes | BB152: Reims | BC152: - | BD152: Nantes | BE152: 3 | BF152: 1 | BG152: 2011-2012 | BH152: Lens-Laval | BI152: Lens | BJ152: - | BK152: Laval | BL152: 1 | BM152: 0 | BN152: 2012-2013 | BO152: Arles-Avignon-CA Bastia | BP152: Arles-Avignon | BQ152: - | BR152: CA Bastia | BS152: 0 | BT152: 0 | BU152: 2013-2014 | BV152: Angers-Troyes | BW152: Angers | BX152: - | BY152: Troyes | BZ152: 0 | CA152: 3 | CB152: 2014-2015 | CC152: AC Ajaccio-Lens | CD152: AC Ajaccio | CE152: - | CF152: Lens | CG152: 1 | CH152: 1 | CI152: 2015-2016 | CJ152: Amiens-Brest | CK152: Amiens | CL152: - | CM152: Brest | CN152: 3 | CO152: 0 | CP152: 2016-2017 | CQ152: AC Ajaccio-Reims | CR152: AC Ajaccio | CS152: - | CT152: Reims | CU152: 0 | CV152: 1 | CW152: 2017-2018
A153: =IF(OR(D153=gnp!$G$5,F153=gnp!$G$5),B$2,"") ->  | B153: =B152+50 -> 66 | C153: Brest-AC Ajaccio | D153: =journée16!H14 -> Brest | E153: - | F153: =journée16!V14 -> AC Ajaccio | G153: =IF(ISBLANK(journée16!Q14),"",journée16!Q14) -> 2 | H153: =IF(ISBLANK(journée16!S14),"",journée16!S14) -> 0 | I153: 2018-2019 | J153: G | K153: =K152 -> 16ème journée | L153: journée16 | M153: 2-0 | N153: =N152 -> 43434 | O153: Match Aller | P153: 66 | Q153: Créteil-Dijon | R153: Créteil | S153: - | T153: Dijon | U153: 1 | V153: 1 | W153: 2006-2007 | X153: 66 | Y153: Brest-Reims | Z153: Brest | AA153: - | AB153: Reims | AC153: 1 | AD153: 0 | AE153: 2007-2008 | AF153: Angers-Montpellier | AG153: Angers | AH153: - | AI153: Montpellier | AJ153: 3 | AK153: 3 | AL153: 2008-2009 | AM153: Angers-Nîmes | AN153: Angers | AO153: - | AP153: Nîmes | AQ153: 1 | AR153: 0 | AS153: 2009-2010 | AT153: Tours FC-Le Mans | AU153: Tours FC | AV153: - | AW153: Le Mans | AX153: 0 | AY153: 1 | AZ153: 2010-2011 | BA153: Boulogne-sur-Mer-Le Havre | BB153: Boulogne-sur-Mer | BC153: - | BD153: Le Havre | BE153: 1 | BF153: 1 | BG153: 2011-2012 | BH153: Arles-Avignon-Le Mans | BI153: Arles-Avignon | BJ153: - | BK153: Le Mans | BL153: 0 | BM153: 0 | BN153: 2012-2013 | BO153: Caen-Angers | BP153: Caen | BQ153: - | BR153: Angers | BS153: 1 | BT153: 1 | BU153: 2013-2014 | BV153: Arles-Avignon-Dijon | BW153: Arles-Avignon | BX153: - | BY153: Dijon | BZ153: 0 | CA153: 2 | CB153: 2014-2015 | CC153: Auxerre-Créteil | CD153: Auxerre | CE153: - | CF153: Créteil | CG153: 3 | CH153: 1 | CI153: 2015-2016 | CJ153: FC Bourg-Péronnas-Red Star 93 | CK153: FC Bourg-Péronnas | CL153: - | CM153: Red Star 93 | CN153: 4 | CO153: 1 | CP153: 2016-2017 | CQ153: Auxerre-Nancy | CR153: Auxerre | CS153: - | CT153: Nancy | CU153: 1 | CV153: 1 | CW153: 2017-2018
